Workbook

Sheet Main
B1: Design & prepared by Pravesh Kumar Sharma-9460100093 | O1: Back to Pension Master
N2: Important Hints-How to use this sheet
B3: Find out Due Date of Selection Scale/ACP including considering of penalties | K3: A
N4: 1 | O4: Use only unhighlighted cells (i.e. white colour cells), rest cells are linked with master data. Select proper condition that is applicable. Please avoid mismatching codition that's are not applicable.
B7: Pay Fixation in V Pay Commission (including Selection Scale effect) (w.e.f. 01-09-1996)
K8: B
N9: 2 | O9: All the calcuations are based on selected data, updation/changes options are avaiable whereas more than one coditions applicable
B11: Pay Fixation in VI Pay Commission (including ACP effect) (w.e.f. 01-01-2006 & 01-09-2006)
K12: C
N13: 3 | O13: Use required cells, please leave blank cells, if no data for input
B15: General Increment Master (in 6th Pay Commission) | K15: D
N16: 4 | O16: << Enable macros before start work in this sheet and adjust date format in "dd/mm/yyyy">>
B18: VII Pay Commission (Various calculation relating to 7th Pay commission)
K19: E | N19: 5 | O19: Please mail for any kind error found or suggestion/updation required that is benefied to all
O22: praveshbkn@gamil.com

Sheet Home-V PC
B1: Design & prepared by Pravesh Kumar Sharma-9460100093 | O1: Back to Main
B3: B | D3: Pay Fixation in V Pay Commission (including Selection Scale effect) (w.e.f. 01-09-1996)
D6: Fill Basic Data Entry | K6: Fixation Master-1998
D9: Add-Name of services/HOD name | K9: Fixation Statement-1998
K11: IncrOrder(1998)
J14: praveshbkn@gamil.com

Sheet Home-VI PC
B1: Design & prepared by Pravesh Kumar Sharma-9460100093 | O1: Back to Main
B3: C | D3: Pay Fixation in VI Pay Commission (including ACP effect) (w.e.f. 01-01-2006 & 01-09-2006)
D6: Fill Basic Data Entry | J6: Add-Name of services/HOD name
D9: Fixation Master-2008 | J9: Option Form
D12: Fixation Statement-2008 | J12: Increment Order-2008
D15: ACP-I (2008) | H15: ACP-II (2008) | L15: Pension Case
B18: D | D18: General Increment Master (in 6th Pay Commission)
D21: Fill Basic Data Entry | I21: Add-Name of services/HOD name | O21: Increment Master
E23: Increment Order | J23: ACP-I Order | N23: ACP-II Order

Sheet FMS
H1: Back to Main | P1: Back to Main
B3: A | D3: Find out Due Date of Selection Scale/ACP including considering of penalties
E6: Ascertainment of Selection Scale/ACP | N6: DOP ORDER COPY
E8: ACP concept in 7th Pay Commission
E10: <<----under prepration--->>>

Sheet SLACP
A1: Find out Due Date of Selection Scale/ACP after considering penalties given in service life. | H1: Back to Main
B2: Use only unhighligted cells (i.e. white cells) , rest cells are linked with relevant other cells/sheets
A3: Date of Birth (dd/mm/yyyy) | D3: 1954-07-11 | G3: Types of Penalty | H3: Effecttive Time/No | I3: Effective Date
A4: Date of appointment (dd/mm/yyyy) | D4: 1976-09-07 | G4: Stop Increments Without cumulative effect | H4: 2 | I4: 1990-12-03
A5: End of service (year) | C5: 60 | D5: ='Table-ACP'!E7 -> 2014-07-31 | H5: 1 | I5: 1997-07-23
A6: Effect of Third child in ascertainment of ACP | C6: Date of birth of third child | E6: 2006-04-15
C7: Process for effect of third child | E7: NO
A8: Effect of Forego in ascertainment of ACP
A11: Determination of Selection Scale/ACP dates
A12: Contents | C12: ='Table-ACP'!D43 -> 9 Year Selection Scale | D12: ='Table-ACP'!E43 -> 18 Year Selection Scale | E12: ='Table-ACP'!F43 -> 27 Year Selection Scale | G12: Effect of third child in ACP | H12: ='Table-ACP'!B34 -> 0 | I12: =IF('Table-ACP'!$B$32="YES",'Table-ACP'!B31,"") -> 
A13: Regular Due Date based on date of appointment | C13: ='Table-ACP'!I13 -> 1992-01-25 | D13: ='Table-ACP'!N13 -> 1994-09-07 | E13: ='Table-ACP'!S13 -> 2003-09-07
G14: Please call /write to mail for any type of Ø Error found in the calculation, Ø Suggestions for improvement - benefited to all
A15: Period consider for Penalties - | C15: ='Table-ACP'!X2 -> 25/01/1985 to 25/01/1992 | D15: ='Table-ACP'!X3 -> 07/09/1987 to 07/09/1994 | E15: ='Table-ACP'!X4 -> 07/09/1996 to 07/09/2003
G16: praveshbkn@gmail.com | H16: 9460100093
A17: Total Year effected | C17: =CONCATENATE('Table-ACP'!K2," ","Year") -> 2 Year | D17: =CONCATENATE('Table-ACP'!K3," ","Year") -> 0 Year | E17: =CONCATENATE('Table-ACP'!K4," ","Year") -> 1 Year
A18: Regular Due Date based on Penalties given | C18: ='Table-ACP'!U2 -> 1994-01-25 | D18: =IF(D13="Not Allowed","Not Applicable",'Table-ACP'!U3) -> 1994-09-07 | E18: =IF(E13="Not Allowed","Not Applicable",'Table-ACP'!U4) -> 2004-09-07
A20: Treatment of particular penalty-DOP order | D20: Order/dated 26-07-2006 | H20: 2002-05-31 | I20: 5
A21: Design & prepared by Pravesh Kumar Sharma-Accountant | G21: =H20+1 -> 2002-06-01 | H21: 2015-10-06 | I21: 5
G22: =H21+1 -> 2015-10-07 | I22: 3

Sheet Table-ACP (hidden)
A1: Calculate Date of Retirement | H1: 1992-01-25 | I1: =YEAR(H1) -> 1992 | J1: =IF(SLACP!E7="YES",SLACP!E6,"") ->  | K1: 2006-01-01 | L1: Days | M1: Month | N1: Year | O1: R.Year | P1: Days | Q1: Month | R1: Year | S1: Concate Text | T1: Date Value | U1: Final Value
A2: Date of Birth | B2: Year | C2: Month | D2: Days | E2: Age | G2: X | H2: =E9 -> 9 Year ACP | I2: =MAX(H13,A11) -> 1985-01-25 | J2: =I13 -> 1992-01-25 | K2: =IF($J$1>=J2,L28) -> 2 | L2: =DAY(J2) -> 25 | M2: =MONTH(J2) -> 1 | N2: =YEAR(J2) -> 1992 | O2: =N2+K2 -> 1994 | P2: =L2 -> 25 | Q2: =VLOOKUP(M2,$W$31:$Z$42,2) -> 01 | R2: =O2 -> 1994 | S2: =CONCATENATE(P2,"/",Q2,"/",R2) -> 25/01/1994 | T2: =MAX(A12,DATEVALUE(S2)) -> 1994-01-25 | U2: =T2 -> 1994-01-25 | V2: =H13 -> 1985-01-25 | W2: =I13 -> 1992-01-25 | X2: =CONCATENATE(TEXT(V2,"dd/mm/yyyy")," ","to"," ",TEXT(W2,"dd/mm/yyyy")) -> 25/01/1985 to 25/01/1992
A3: =SLACP!$D$3 -> 1954-07-11 | B3: =YEAR(A3) -> 1954 | C3: =MONTH(A3) -> 7 | D3: =DAY(A3) -> 11 | E3: =SLACP!$C$5 -> 60 | G3: Y | H3: =J9 -> 18 Year ACP | I3: =J2+1 -> 1992-01-26 | J3: =N13 -> 1994-09-07 | K3: =IF(N30>=1,"Not allowed",IF(J3>$K$1,K2+N27,N27)) -> 0 | L3: =DAY(J3) -> 7 | M3: =MONTH(J3) -> 9 | N3: =YEAR(J3) -> 1994 | O3: =N3+K3 -> 1994 | P3: =L3 -> 7 | Q3: =VLOOKUP(M3,$W$31:$Z$42,2) -> 09 | R3: =O3 -> 1994 | S3: =CONCATENATE(P3,"/",Q3,"/",R3) -> 7/09/1994 | T3: =DATEVALUE(S3) -> 1994-09-07 | U3: =IF(T2>T3,T2,T3) -> 1994-09-07 | V3: =M13 -> 1987-09-07 | W3: =N12 -> 1994-09-07 | X3: =CONCATENATE(TEXT(V3,"dd/mm/yyyy")," ","to"," ",TEXT(W3,"dd/mm/yyyy")) -> 07/09/1987 to 07/09/1994
A4: =IF(D3=1,A3-1,A3) -> 1954-07-11 | B4: =YEAR(A4) -> 1954 | C4: =MONTH(A4) -> 7 | D4: =DAY(A4) -> 11 | E4: =A3-A4 -> 0 | G4: Z | H4: =O9 -> 27Year ACP | I4: =J3+1 -> 1994-09-08 | J4: =S13 -> 2003-09-07 | K4: =IF(J4>$K$1,K3+P27,P27) -> 1 | L4: =DAY(J4) -> 7 | M4: =MONTH(J4) -> 9 | N4: =YEAR(J4) -> 2003 | O4: =N4+K4 -> 2004 | P4: =L4 -> 7 | Q4: =VLOOKUP(M4,$W$31:$Z$42,2) -> 09 | R4: =O4 -> 2004 | S4: =CONCATENATE(P4,"/",Q4,"/",R4) -> 7/09/2004 | T4: =DATEVALUE(S4) -> 2004-09-07 | U4: =IF(T3>T4,T3,T4) -> 2004-09-07 | V4: =R13 -> 1996-09-07 | W4: =S13 -> 2003-09-07 | X4: =CONCATENATE(TEXT(V4,"dd/mm/yyyy")," ","to"," ",TEXT(W4,"dd/mm/yyyy")) -> 07/09/1996 to 07/09/2003
A5: Days | B5: Month | C5: Year | D5: Concate Text | E5: Final Value
A6: =VLOOKUP($C$3,$W$31:$Z$42,4) -> 31 | B6: =VLOOKUP($C$3,$W$31:$Z$42,2) -> 07 | C6: =V32 -> 2014 | D6: =CONCATENATE(A6,"/",B6,"/",C6) -> 31/07/2014 | E6: =IF(E4=1,D7,D6) -> 31/07/2014
A7: =VLOOKUP($C$4,$W$31:$Z$42,4) -> 31 | B7: =VLOOKUP($C$4,$W$31:$Z$42,2) -> 07 | C7: =IF(B7=12,C6-1,C6) -> 2014 | D7: =CONCATENATE(A7,"/",B7,"/",C7) -> 31/07/2014 | E7: =DATEVALUE(E6) -> 2014-07-31
A9: Constant Date | B9: 1992-01-25 | D9: 2006-01-01 | E9: 9 Year ACP | J9: 18 Year ACP | O9: 27Year ACP
A10: Date of appointment | B10: Days | C10: Month | D10: Year | E10: Days | F10: Month | G10: Year | H10: Concate Text | I10: Final Value | J10: Days | K10: Month | L10: Year | M10: Concate Text | N10: Final Value | O10: Days | P10: Month | Q10: Year | R10: Concate Text | S10: Final Value
A11: =SLACP!$D$4 -> 1976-09-07 | B11: =DAY(A11) -> 7 | C11: =MONTH(A11) -> 9 | D11: =YEAR(A11) -> 1976 | E11: =B11 -> 7 | F11: =VLOOKUP($C$11,$W$31:$Z$42,2) -> 09 | G11: =$D$11+9 -> 1985 | H11: =CONCATENATE(E11,"/",F11,"/",G11) -> 7/09/1985 | I11: =IF(($E$7-H11)>1,H11,"Not Allowed") -> 7/09/1985 | J11: =B11 -> 7 | K11: =VLOOKUP($C$11,$W$31:$Z$42,2) -> 09 | L11: =$D$11+18 -> 1994 | M11: =CONCATENATE(J11,"/",K11,"/",L11) -> 7/09/1994 | N11: =IF(($E$7-M11)>1,M11,"Not Allowed") -> 7/09/1994 | O11: =B11 -> 7 | P11: =VLOOKUP($C$11,$W$31:$Z$42,2) -> 09 | Q11: =$D$11+27 -> 2003 | R11: =CONCATENATE(O11,"/",P11,"/",Q11) -> 7/09/2003 | S11: =IF(($E$7-R11)>1,R11,"Not Allowed") -> 7/09/2003
A12: 1992-01-25 | B12: =DAY(A12) -> 25 | C12: =MONTH(A12) -> 1 | D12: =YEAR(A12) -> 1992 | E12: =B12 -> 25 | F12: =VLOOKUP($C$12,$W$31:$Z$42,2) -> 01 | G12: =YEAR(A12)-7 -> 1985 | H12: =CONCATENATE(E12,"/",F12,"/",G12) -> 25/01/1985 | I12: =DATEVALUE(I11) -> 1985-09-07 | J12: =J11 -> 7 | K12: =K11 -> 09 | L12: =YEAR(N13)-7 -> 1987 | M12: =CONCATENATE(J12,"/",K12,"/",L12) -> 7/09/1987 | N12: =IF(N11="Not Allowed","",DATEVALUE(N11)) -> 1994-09-07 | O12: =O11 -> 7 | P12: =P11 -> 09 | Q12: =YEAR(S13)-7 -> 1996 | R12: =CONCATENATE(O12,"/",P12,"/",Q12) -> 7/09/1996 | S12: =IF(S11="Not Allowed","",DATEVALUE(S11)) -> 2003-09-07
H13: =MAX(A11,DATEVALUE(H12)) -> 1985-01-25 | I13: =MAX(A12:I12) -> 1992-01-25 | M13: =IF(DATEVALUE(M11)>D9,I3,DATEVALUE(M12)) -> 1987-09-07 | N13: =IF(N11="Not Allowed","Not Allowed",MAX(A12,N12)) -> 1994-09-07 | R13: =IF(DATEVALUE(R11)>D9,I4,DATEVALUE(R12)) -> 1996-09-07 | S13: =IF(S11="Not Allowed","Not Allowed",MAX(A12,S12)) -> 2003-09-07
A16: =SLACP!G3 -> Types of Penalty | E16: =SLACP!H3 -> Effecttive Time/No | F16: =SLACP!I3 -> Effective Date | H16: Date value: | I16: Value | J16: Search result: | K16: Year | L16: X | M16: Value | N16: Y | O16: Value | P16: Z
A17: =IF(SLACP!G4="","",SLACP!G4) -> Stop Increments Without cumulative effect | E17: =IF(SLACP!H4="","",SLACP!H4) -> 2 | F17: =IF(SLACP!I4="","",SLACP!I4) -> 1990-12-03 | H17: =IF(F17>$J$4,"",F17) -> 1990-12-03 | I17: =IF(H17="","",IF($I$13>F17,H17-$H$13,0)) -> 2138 | J17: =IF(H17="","",INDEX($G$2:$G$4,MIN(IF((H17>=$I$2:$I$4)*(H17<=$J$2:$J$4),MATCH(ROW($G$2:$G$4),ROW($G$2:$G$4)))))) -> X | K17: =IF(H17="","",E17) -> 2 | L17: =IF(I17<0,0,IF($L$16=J17,K17,0)) -> 2 | M17: =IF(H17="","",IF($N$13>F17,H17-$M$13,0)) -> 1183 | N17: =IF(M17<0,0,IF($N$16=J17,K17,0)) -> 0 | O17: =IF(H17="","",IF($S$13>F17,H17-$R$13,0)) -> -2105 | P17: =IF(O17<=0,0,IF($P$16=J17,K17,0)) -> 0
A18: =IF(SLACP!G5="","",SLACP!G5) ->  | E18: =IF(SLACP!H5="","",SLACP!H5) -> 1 | F18: =IF(SLACP!I5="","",SLACP!I5) -> 1997-07-23 | H18: 1997-07-23 | I18: 0 | J18: =IF(H18="","",INDEX($G$2:$G$4,MIN(IF((H18>=$I$2:$I$4)*(H18<=$J$2:$J$4),MATCH(ROW($G$2:$G$4),ROW($G$2:$G$4)))))) -> Z | K18: 1 | L18: 0 | M18: 0 | N18: 0 | O18: 319 | P18: 1
A19: =IF(SLACP!G6="","",SLACP!G6) ->  | E19: =IF(SLACP!H6="","",SLACP!H6) ->  | F19: =IF(SLACP!I6="","",SLACP!I6) ->  | J19: =IF(H19="","",INDEX($G$2:$G$4,MIN(IF((H19>=$I$2:$I$4)*(H19<=$J$2:$J$4),MATCH(ROW($G$2:$G$4),ROW($G$2:$G$4)))))) ->  | L19: 0 | N19: 0 | P19: 0
A20: =IF(SLACP!G7="","",SLACP!G7) ->  | E20: =IF(SLACP!H7="","",SLACP!H7) ->  | F20: =IF(SLACP!I7="","",SLACP!I7) ->  | J20: =IF(H20="","",INDEX($G$2:$G$4,MIN(IF((H20>=$I$2:$I$4)*(H20<=$J$2:$J$4),MATCH(ROW($G$2:$G$4),ROW($G$2:$G$4)))))) ->  | L20: 0 | N20: 0 | P20: 0
A21: =IF(SLACP!G8="","",SLACP!G8) ->  | E21: =IF(SLACP!H8="","",SLACP!H8) ->  | F21: =IF(SLACP!I8="","",SLACP!I8) ->  | J21: =IF(H21="","",INDEX($G$2:$G$4,MIN(IF((H21>=$I$2:$I$4)*(H21<=$J$2:$J$4),MATCH(ROW($G$2:$G$4),ROW($G$2:$G$4)))))) ->  | L21: 0 | N21: 0 | P21: 0
A22: =IF(SLACP!G9="","",SLACP!G9) ->  | E22: =IF(SLACP!H9="","",SLACP!H9) ->  | F22: =IF(SLACP!I9="","",SLACP!I9) ->  | H22: =IF(F22>$J$4,"",F22) ->  | J22: =IF(H22="","",INDEX($G$2:$G$4,MIN(IF((H22>=$I$2:$I$4)*(H22<=$J$2:$J$4),MATCH(ROW($G$2:$G$4),ROW($G$2:$G$4)))))) ->  | L22: 0 | N22: 0 | P22: 0
A23: =IF(SLACP!G10="","",SLACP!G10) ->  | E23: =IF(SLACP!H10="","",SLACP!H10) ->  | F23: =IF(SLACP!I10="","",SLACP!I10) ->  | H23: =IF(F23>$J$4,"",F23) ->  | J23: =IF(H23="","",INDEX($G$2:$G$4,MIN(IF((H23>=$I$2:$I$4)*(H23<=$J$2:$J$4),MATCH(ROW($G$2:$G$4),ROW($G$2:$G$4)))))) ->  | L23: 0 | N23: 0 | P23: =IF(O23<=0,0,IF($P$16=J23,K23,0)) -> 0
A24: =IF(SLACP!G11="","",SLACP!G11) ->  | E24: =IF(SLACP!H11="","",SLACP!H11) ->  | F24: =IF(SLACP!I11="","",SLACP!I11) ->  | I24: =IF(H24="","",H24-$H$13) ->  | J24: =IF(H24="","",INDEX($G$2:$G$4,MIN(IF((H24>=$I$2:$I$4)*(H24<=$J$2:$J$4),MATCH(ROW($G$2:$G$4),ROW($G$2:$G$4)))))) ->  | L24: 0 | N24: 0 | P24: =IF(O24<=0,0,IF($P$16=J24,K24,0)) -> 0
A25: =IF(SLACP!G12="","",SLACP!G12) -> Effect of third child in ACP | E25: =IF(SLACP!H12="","",SLACP!H12) -> 0 | F25: =IF(SLACP!I12="","",SLACP!I12) ->  | J25: =IF(H25="","",INDEX($G$2:$G$4,MIN(IF((H25>=$I$2:$I$4)*(H25<=$J$2:$J$4),MATCH(ROW($G$2:$G$4),ROW($G$2:$G$4)))))) ->  | L25: 0 | N25: 0 | P25: 0
A26: =IF(SLACP!G13="","",SLACP!G13) ->  | E26: =IF(SLACP!H13="","",SLACP!H13) ->  | F26: =IF(SLACP!I13="","",SLACP!I13) ->  | J26: =IF(H26="","",INDEX($G$2:$G$4,MIN(IF((H26>=$I$2:$I$4)*(H26<=$J$2:$J$4),MATCH(ROW($G$2:$G$4),ROW($G$2:$G$4)))))) ->  | L26: 0 | N26: 0 | P26: 0
A27: =IF(SLACP!A21="","",SLACP!A21) -> Design & prepared by Pravesh Kumar Sharma-Accountant | J27: CHILD EFFECT | K27: =SUM(K17:K26) -> 3 | L27: =IFERROR(SUM(L17:L26),0) -> 2 | N27: =IF(N30>=1,"Not allowed",SUM(N17:N26)) -> 0 | P27: =IFERROR(SUM(P17:P26),0) -> 1
J28: NORMAL | K28: =IF(K30>=1,"Not allowed",SUM(K17:K26)) -> 3 | L28: =IF(K30>=1,"Not allowed",IFERROR(SUM(L17:L26),0)) -> 2
J29: FINAL
D30: Period from-to | F30: Effect | G30: consequential effect on next acp | H30: Effective from | I30: Order Date | K30: =COUNTIF($K$17:$K$26,"Not allowed") -> 0 | N30: =COUNTIF($N$17:$N$26,"Not allowed") -> 0 | W30: Month code | X30: Month code | Y30: Month name | Z30: Day-end | AA30: Day-calculted | AC30: Code | AD30: Nature of Penalties
A31: DOB of third child | B31: =SLACP!E6 -> 2006-04-15 | E31: 2002-05-31 | F31: 0 | V31: =EVEN(B3+$E$3) -> 2014 | W31: 1 | X31: 01 | Y31: January | Z31: 31 | AA31: =Z42 -> 31 | AC31: A | AD31: Censure
A32: Condition | B32: =SLACP!E7 -> NO | D32: =E31+1 -> 2002-06-01 | E32: 2015-10-05 | F32: Not allowed | H32: 2006-01-01 | I32: No. F. 14(88)FD/Rules/2008-II dated 31-12-2009 | V32: =B3+$E$3 -> 2014 | W32: 2 | X32: 02 | Y32: February | Z32: =IF(V31=V32,29,28) -> 29 | AA32: =Z31 -> 31 | AC32: B | AD32: Stop Increments Without cumulative effect
A33: Cal. Period | B33: =VLOOKUP($B$31,$D$31:$I$35,3) -> Not allowed | D33: =E32+1 -> 2015-10-06 | E33: 2017-05-31 | F33: 5 | G33: 5 | H33: 2015-10-06 | I33: No. F. 14(88)FD/Rules/2008-II dated 06-10-2015 | W33: 3 | X33: 03 | Y33: March | Z33: 31 | AA33: 29 | AC33: C | AD33: Stop Increments With cumulative effect
A34: Effect | B34: =IF(B32="YES",B33,0) -> 0 | D34: =E33+1 -> 2017-06-01 | E34: 2020-12-17 | F34: 3 | G34: 3 | H34: 2017-06-01 | I34: No. F. 14(88)FD/Rules/2008-II dated 01-06-2017 | W34: 4 | X34: 04 | Y34: April | Z34: 30 | AA34: 31 | AC34: D | AD34: Withholding of promotion
D35: =E34+1 -> 2020-12-18 | F35: 3 | G35: 0 | H35: 2020-12-18 | I35: No. F. 14(88)FD/Rules/2008 Pt. dated 18-12-2020 | W35: 5 | X35: 05 | Y35: May | Z35: 31 | AA35: 30 | AC35: E | AD35: Recovery from pay of the whole or part of any pecuniary loss caused to the Government by negligence or breach of any law, rule or order
W36: 6 | X36: 06 | Y36: June | Z36: 30 | AA36: 31 | AC36: F | AD36: Reduction to a lower service, grade or post; or to a lower time scale or to a lower stage in the time scale or in the case of pension to an amount lower than that due under the rules
W37: 7 | X37: 07 | Y37: July | Z37: 31 | AA37: 30 | AC37: G | AD37: Stop Pension
W38: 8 | X38: 08 | Y38: August | Z38: 31 | AA38: 31 | AC38: G | AD38: Stop Pension
D39: Ist ACP | E39: IInd ACP | F39: IIIrd ACP | W39: 9 | X39: 09 | Y39: September | Z39: 30 | AA39: 31 | AC39: G | AD39: Stop Pension
D40: 9 Year Selection Scale | E40: 18 Year Selection Scale | F40: 27 Year Selection Scale | W40: 10 | X40: 10 | Y40: October | Z40: 31 | AA40: 30
D41: =SLACP!C13 -> 1992-01-25 | E41: =SLACP!D13 -> 1994-09-07 | F41: =SLACP!E13 -> 2003-09-07 | W41: 11 | X41: 11 | Y41: November | Z41: 30 | AA41: 31
D42: 2006-01-01 | E42: 2006-01-01 | F42: 2006-01-01 | W42: 12 | X42: 12 | Y42: December | Z42: 31 | AA42: 30
D43: =IF(D41>=D42,D39,D40) -> 9 Year Selection Scale | E43: =IF(E41>=E42,E39,E40) -> 18 Year Selection Scale | F43: =IF(F41>=F42,F39,F40) -> 27 Year Selection Scale

Sheet DOP order
U2: Back to Main

Sheet Data
C1: Home V PC | E1: Home-VI PC | F1: Home V PC | H1: Home-VI PC | J1: Home V PC | L1: Home-VI PC | N1: Home V PC | Q1: Home V PC
B2: Employee code/Sr. NO/ ID | C2: Name of employee | D2: Designation | E2: NAME OF OFFICE (HEAD OF OFFICE) | F2: Name of signaturing entity where DDO's designation is different from Name of office (Users may Leave blank if both entity is same) | G2: Name of department (Select) | H2: Employee name of service (Select) | I2: Types of Pay (Select) | J2: DATE OF FIXATION OPTION | K2: DATE OF LAST INCR. IN OLD SCALE | L2: Name of Head of Office, who singed on pension set | M2: Types of pension i.e. (in case of retirement/death case) | N2: DATE OF RETIREMENT/ SERVICE END DATE (Applicable only in retirement/death case) | O2: PPO Number (in case of retirement/death case) | P2: Place of Pension Office where pension case will be settaled (in case of retirement/death case) | Q2: Pensioner Address, where copy of letter dispatched (only in case of pension) | R2: Last Pay (in case of retirement/death case)
B3: 647805 | C3: PRAVESH KUMAR SHARMA | D3: JUNIOR ACCOUNTANT | E3: COMMISSIONER COLONISATION BIKANER | F3: EXTRA ASSISTANT COMMISSIONER COLONISATION (ADM), BIKANER | G3: COLONISATION | H3: Rajasthan Subordinate Accounts Services | I3: Substantive | J3: 2006-01-01 | K3: 2005-09-01 | L3: Senior Legal Officer, Colonisation, Bikaner | M3: Retirement | N3: 2012-04-25 | O3: 99 | P3: Bikaner | Q3: Near Jail well water Tank, Bikaner | R3: 26630
B4: 1 | C4: JUGAL KISHORE SRIMALI GOVINDA | D4: AAO-II | E4: TREASURY OFFICER, JAISALMER | F4: =E4 -> TREASURY OFFICER, JAISALMER | G4: TREASURY & ACCOUNTS | H4: Rajasthan Subordinate Accounts Services | I4: Substantive
B5: 2 | C5: GOURI SHANKAR PUROHIT | D5: PATWARI | E5: TEHSILDAR COLONISATION MOHANGARH NO. 2 | F5: =E5 -> TEHSILDAR COLONISATION MOHANGARH NO. 2 | G5: COLONISATION | H5: Rajasthan Subordinate Accounts Services | I5: Substantive
B6: 3 | C6: RAJESH GEHLOT | D6: PATWARI | E6: TEHSILDAR COLONISATION MOHANGARH NO. 2 | F6: =E6 -> TEHSILDAR COLONISATION MOHANGARH NO. 2 | G6: COLONISATION | H6: Subordinate Services | I6: Substantive | J6: 2006-09-01 | K6: 2005-12-03 | L6: =F6 -> TEHSILDAR COLONISATION MOHANGARH NO. 2
B7: 4 | C7: NATWARLAL PUROHIT | D7: LDC | E7: DIRECTOR SECONDARY EDUCATION RAJ. BIKANER | F7: DY. DIR. (ADM), SECONDARY EDUCATION, BIKANER | G7: Secondary Education | H7: Ministrial Staff Services | I7: Substantive | J7: 2006-09-01 | K7: 2005-07-09 | L7: =F7 -> DY. DIR. (ADM), SECONDARY EDUCATION, BIKANER
B8: 5 | C8: MAHESH CHAND SHARMA | D8: CLASS IV | E8: TEHSILDAR COLONISATION NACHANA NO. 2 | F8: =E8 -> TEHSILDAR COLONISATION NACHANA NO. 2 | G8: COLONISATION | H8: Class IV Services | I8: Substantive | J8: 1996-10-12 | K8: 1996-10-12 | L8: =F8 -> TEHSILDAR COLONISATION NACHANA NO. 2
B9: 6 | C9: KAILASH PRASAD | D9: LDC | E9: TEHSILDAR COLONISATION MOHANGARH NO. 2 | F9: TEHSILDAR COLONISATION MOHANGARH NO. 2 | G9: COLONISATION | H9: Ministrial Staff Services | I9: Substantive | J9: 1995-11-28 | K9: 1995-11-28 | L9: TEHSILDAR COLONISATION MOHANGARH NO. 2
B10: 7 | C10: KAILASH PRASAD | D10: LDC | E10: TEHSILDAR COLONISATION MOHANGARH NO. 2 | F10: TEHSILDAR COLONISATION MOHANGARH NO. 2 | G10: COLONISATION | H10: Ministrial Staff Services | I10: Substantive | J10: 2006-09-01 | K10: 2005-07-09 | L10: TEHSILDAR COLONISATION MOHANGARH NO. 2 | M10: Retirement
B102: End Line | C102: End Line | D102: End Line | E102: End Line | F102: End Line | G102: End Line | H102: End Line | I102: End Line | J102: End Line | K102: End Line | L102: End Line | M102: End Line | N102: End Line | O102: End Line | P102: End Line | Q102: End Line | R102: End Line
G112: DeptName | H112: Service Type
G113: ABHILEKHAGHAR | H113: State Service
G114: ADIM JATI | H114: Accounts Service
G115: ADULT EDUCATION | H115: Subordinate Services
G116: AGRICULTURE | H116: Ministrial Staff Services
G117: AGRICULTURE MARKETING | H117: Class IV Services
G118: ANIMAL HUSBANDARY | H118: =Add!A3 -> Rajasthan Accounts Services
G119: ANTI CORRUPTION | H119: =Add!A4 -> Rajasthan Subordinate Accounts Services
G120: ARCHIVES & MUSEUM | H120: =Add!A5 -> RAJASTHAN TEHSILDAR SERVIES
G121: ART & CULTURE | H121: =Add!A6 -> RAJASTHAN ADMINISTRATION SERVIES
G122: AYURVED | H122: =Add!A7 -> 0
G123: AYURVEDIC COLLEGE | H123: =Add!A8 -> 0
G124: BHASHA VIBHAG | H124: =Add!A9 -> 0
G125: C.A.D. | H125: =Add!A10 -> 0
G126: C.I.D (C.B.) | H126: =Add!A11 -> 0
G127: CENTRAL WOOL BOARD | H127: =Add!A12 -> 0
G128: CHIEF TOWN PLANNER | H128: =Add!A13 -> 0
G129: CHILD & WOMEN DEVELOPMENT | H129: =Add!A14 -> 0
G130: CIRCUIT HOUSE (DAK BANGLOW) | H130: =Add!A15 -> 0
G131: CIVIL DEFENCE & HOME GUARD | H131: =Add!A16 -> 0
G132: COLLEGE EDUCATION | H132: =Add!A17 -> 0
G133: COLONISATION | H133: =Add!A18 -> 0
G134: COMMERCIAL TAXES | H134: =Add!A19 -> 0
G135: CONSUMER FORUM | H135: =Add!A20 -> 0
G136: CO-OPERATIVE SOCIETIES | H136: =Add!A21 -> 0
G137: D.O.P. (A-1) | H137: =Add!A22 -> 0
G138: D.O.P. (Gr.-4) | H138: =Add!A23 -> 0
G139: D.O.P. (KHA-2) | H139: =Add!A24 -> 0
G140: D.O.P.(KHA-3) | H140: =Add!A25 -> 0
G141: D.R.D.A. | H141: =Add!A26 -> 0
G142: DEBT RECOVERY TRIBUNAL | H142: =Add!A27 -> 0
G143: DEPARTMENT OF INFORMATION TECHNOLOGY | H143: =Add!A28 -> End Line
G144: DEVSTHAN
G145: DIRECTORATE OF INSPECTION
G146: DIVISIONAL COMMISSIONER
G147: E.S.I. HOSPITAL
G148: ECONOMICS & STATISTICS
G149: ELECTION
G150: ELECTRICAL INSPECTOR
G151: EMPLOYMENT
G152: ENERGY DEVELOPMENT
G153: ENVIRONMENT DEPARTMENT
G154: EVALUATION ORGANISATION
G155: EXCISE
G156: FACTORIES & BOILERS
G157: FINANCE
G158: FISHERIES
G159: FOOD & CIVIL SUPPLY
G160: FOREST
G161: G.A.D.
G162: GAS AUTHORITY OF INDIA LTD.
G163: GAZZETEERS
G164: GOVERNOR
G165: GOVT. PRESS
G166: GROUND WATER
G167: HCM RIPA
G168: HOME DEPARTMENT
G169: HOMEOPETHIC
G170: HORTICULTURE
G171: I.G.N.P.
G172: INDIAN FOOD CRAFTS INSTITUTE
G173: INDIRA GANDHI PANCHAYATIRAJ SANSTHAN
G174: INDUSTRIES
G175: INFORMATION CENTRE
G176: IRRIGATION
G177: JAIL
G178: JAWAHAR KALA KENDRA
G179: JUDICIAL
G180: KHADI GRAMOUDYOG BOARD
G181: LABOUR
G182: LALIT KALA ACADEMY
G183: LAND & BUILDING TAXES
G184: LAW
G185: LEGISLATIVE ASSEMBLY
G186: LITIGATION
G187: LOCAL BODIES
G188: LOCAL FUND AUDIT
G189: LOK AYUKT
G190: LOK ZUMBISH PARISHAD
G191: MEDICAL & HEALTH SERVICES
G192: MEDICAL COLLEGE
G193: MEWAR TEXTILES MILLS
G194: MINES & GEOLOGY
G195: MUNICIPALITIES
G196: NATIONAL CADETS CORE
G197: NATIONAL INSTITUTE OF AYURVED
G198: ORIENTAL REASEARCH INSTITUTE
G199: P.H.E.D.
G200: P.W.D.
G201: PANCHAYAT SAMITI
G202: PENSION AND PENSIONERS WELFARE
G203: PLANNING
G204: POLICE
G205: PRIMARY & SECONDARY EDUCATION
G206: PRINTING & STATIONERY
G207: PROSECUTION
G208: PUBLIC RELATION
G209: R.A.C.
G210: RAJ. HIGH COURT
G211: RAJ. SALES TAX TRIBUNAL
G212: RAJ. STATE HANDLOOM DEV. CORPORATION
G213: RAJ. STATE MOTOR GARAGE
G214: RAJ. STATE ROAD TRANSPORT CORP
G215: RAJ. STATE SPORTS COUNCIL
G216: RAJ.CIVIL SERV.APP.& TRIBUNAL
G217: RAJ.CO-OP. DAIRY FEDERATION
G218: RAJ.FINANCIAL CORPORATION
G219: RAJ.LAND DEVLOPMENT CORP.
G220: RAJ.POLLUTION CONTROL BOARD
G221: RAJ.PUBLIC SERVICE COMMISSION
G222: RAJ.SMALL SCALE INDUSTRIES
G223: RAJ.STATE AGRO INDUSTRIES CORP
G224: RAJ.STATE MINERALS DEV.CORP.
G225: RAJASTHAN DAIRY FEDERATION
G226: RAJASTHAN HINDI GRANTH ACEDMY
G227: RAJASTHAN SC/ST COOPERATIVE DEVELOPMENT
G228: RAJASTHAN STATE TEXT BOOK BOARD
G229: RAJASTHAN STATE WAREHOUSING CORPORATION
G230: REGISTRATION & STAMPS
G231: REHABILITATION
G232: RELIEF
G233: REVENUE
G234: REVENUE BOARD
G235: RIICO
G236: RURAL DEV. & PANCHAYATI RAJ
G237: SANSKRIT EDUCATION
G238: SCIENCE & TECHNOLOGY
G239: SETTLEMENT
G240: SHEEP & WOOL DEPARTMENT
G241: SHIKSHA KARMI BOARD
G242: SMALL SAVINGS & STATE LOTTERIES
G243: SOCIAL WELFARE
G244: SOIL CONSERVATION & W.S.D.
G245: SOLDIER WELFARE BOARD
G246: SPECIAL SCHEME (I.R.D.)
G247: STATE ELECTION
G248: STATE ENTERPRISES
G249: STATE INSURANCE & GPF
G250: STATE REMOTE APPLICATION
G251: TECHNICAL EDUCATION
G252: TOURISM DEPARTMENT
G253: TOWN PLANNING
G254: TRANSPORT
G255: TREASURY & ACCOUNTS
G256: TRIBAL AREA DEVELOPMENT
G257: UIT/JDA
G258: UNIVERSITY
G259: URBAN DEVELOPMENT
G260: WOMEN PROG., CHILD & NUTRITION
G261: YOUTH & SPORTS AFFAIRS DEPARTMENT
G262: ZILA PARISHAD
G263: =Add!B3 -> Secondary Education
G264: =Add!B4 -> XYZ
G265: =Add!B5 -> bikaner
G266: =Add!B6 -> ratangarh
G267: =Add!B7 -> RAJASTHAN CO-OPERATIVE DAIRY FEDRATION
G268: =Add!B8 -> 0
G269: =Add!B9 -> 0
G270: =Add!B10 -> 0
G271: =Add!B11 -> 0
G272: =Add!B12 -> 0
G273: =Add!B13 -> 0
G274: =Add!B14 -> 0
G275: =Add!B15 -> 0
G276: =Add!B16 -> 0
G277: =Add!B17 -> 0
G278: =Add!B18 -> 0
G279: =Add!B19 -> 0
G280: =Add!B20 -> 0
G281: =Add!B21 -> 0
G282: =Add!B22 -> 0
G283: =Add!B23 -> 0
G284: =Add!B24 -> 0
G285: =Add!B25 -> 0
G286: =Add!B26 -> 0
G287: =Add!B27 -> 0
G288: =Add!B28 -> End Line

Sheet Add
A1: Back to Main
A2: Name of Services (Here add the name of services , due the variasion , user may add required service name, this will be add in drop down list at bottom level | B2: Name of Department (if required department name does not listed in data sheet, then add here name of departent name, this will be add is drop down list at bottom level | D2: HOME(7PC)
A3: Rajasthan Accounts Services | B3: Secondary Education | D3: Home-VI PC
A4: Rajasthan Subordinate Accounts Services | B4: XYZ
A5: RAJASTHAN TEHSILDAR SERVIES | B5: bikaner | D5: Home V PC
A6: RAJASTHAN ADMINISTRATION SERVIES | B6: ratangarh
B7: RAJASTHAN CO-OPERATIVE DAIRY FEDRATION
A28: End Line | B28: End Line

Sheet MS Fixation(1998)
A1: Design & prepared by Pravesh Kumar Sharma-9460100093 | E1: IncrOrder(1998) | F1: Fixation Statement-1998 | H1: Home V PC
A2: GPD/ID NO | C2: 647805 | E2: Date of option for Fixation | G2: =INDEX(Data!$J$3:$J$101,MATCH('MS Fixation(1998)'!$C$2,Data!$B$3:$B$101,0)) -> 2006-01-01 | U2: Back to Main
A3: Date of last increment in the existing pay scale . | D3: 1995-12-13 | E3: NAME OF OFFICE | G3: =INDEX(Data!$E$3:$E$101,MATCH('MS Fixation(1998)'!$C$2,Data!$B$3:$B$101,0)) -> COMMISSIONER COLONISATION BIKANER
A4: NAME OF EMPLOYEE | C4: =INDEX(Data!$C$3:$C$101,MATCH('MS Fixation(1998)'!$C$2,Data!$B$3:$B$101,0)) -> PRAVESH KUMAR SHARMA
A5: DESIGNATION | C5: =INDEX(Data!$D$3:$D$101,MATCH('MS Fixation(1998)'!$C$2,Data!$B$3:$B$101,0)) -> JUNIOR ACCOUNTANT | E5: Name signature authority | G5: =INDEX(Data!$F$3:$F$101,MATCH('MS Fixation(1998)'!$C$2,Data!$B$3:$B$101,0)) -> EXTRA ASSISTANT COMMISSIONER COLONISATION (ADM), BIKANER
A6: Type of post/servies | C6: =INDEX(Data!$I$3:$I$101,MATCH('MS Fixation(1998)'!$C$2,Data!$B$3:$B$101,0)) -> Substantive | E6: Name of department | G6: =INDEX(Data!$G$3:$G$101,MATCH('MS Fixation(1998)'!$C$2,Data!$B$3:$B$101,0)) -> COLONISATION
A7: Pay Fixation in Revised Pay Scale 1998
A8: Old Pay Scale 1989 | B8: ='Table 1998'!D3 -> 6 | C8: 950-20-1150-25-1400-30-1640-40-1680 | E8: =CONCATENATE("Basic Pay as on"," ",TEXT(D3,"DD/MM/YYYY")) -> Basic Pay as on 13/12/1995 | I8: 1030
A9: Post have been upgraded-condition | B9: Condition | C9: NO | D9: 8 | E9: Personal Pay in old pay scale | I9: 0
B10: Upgrade Scale | C10: =IF(C9="YES",'Table 1998'!D5,'MS Fixation(1998)'!C8) -> 950-20-1150-25-1400-30-1640-40-1680 | E10: Fixation of pay in the revised pay scale at the stage next above the pre fixation emoluments | I10: ='Table 1998'!D22 -> 3200
A11: B.P.in higher Pay Scale | C11: ='Table 1998'!D8 -> 1030 | D11: ='Table 1998'!D9 -> 0
A12: Revised Pay Scale (R.P.S. 1998) | C12: ='Table 1998'!D12 -> 3050-75-3950-80-4590 | E12: If one increment is ensured in the revised pay scale for every 3 increments in the existing pay scale, the stage of pay in the revised pay sacle | I12: ='Table 1998'!D17 -> 3125 | X12: Fixation Statement-1998
A13: Dearness Allowance as on | C13: 1996-01-01 | D13: =ROUND(C11*148%,0) -> 1524
A14: Ist Installment of I.R. | C14: (@100) | D14: 100
A15: Iind Installment of I.R. | C15: (Min Rs. 100) | D15: =IF(ROUND(C11*10%,0)>100,ROUND(C11*10%,0),100) -> 103 | E15: Pay to be fixed in the revised pay scale | I15: =MAX(I10,I12) -> 3200
A16: Fixation benefit @ 40% of Bais Pay | D16: =ROUND(C11*40%,0) -> 412 | E16: Personal Pay in revised pay scale | I16: =IF('Table 1998'!D21>0,'Table 1998'!D21,0) -> 0
A17: Pre-fixation emoluments in Old pay scale | D17: =SUM(I8+I9+D13+D14+D15+D16) -> 3169 | E17: Next date of increment | G17: ='Table 1998'!D24 -> Unchanged | I17: ='Table 1998'!D25 -> 1996-12-13
A18: Base Pay data for determination of Increment Amt. and Pay after increment | F18: Increment Date | H18: Start Date | I18: End Date
H19: 1997-12-13 | I19: 2005-12-31
A20: Select(Type)-I | B20: Due type | C20: Due Date | D20: Pay Status | F20: Existing Value | G20: Changed Value | H20: Condition | I20: Final Value
A21: SELECTION SCALE | B21: 9 years | C21: 2005-05-11 | D21: Base Basic Pay | F21: =I15 -> 3200 | G21: 3670 | H21: YES | I21: =IF(H21="YES",G21,F21) -> 3670
A22: Condition | C22: YES | D22: Personal Pay (if any) | F22: =I16 -> 0 | G22: =F22 -> 0 | H22: NO | I22: =IF(H22="YES",G22,F22) -> 0
A23: Existing Pay Scale(based on fixation) | C23: =C12 -> 3050-75-3950-80-4590 | E23: Next Stage of Pay in existing scale | H23: ='Table 1998'!Q144 -> 4480
A24: Existing Pay Scale (for selection scale) | C24: 3400-90-5200 | E24: New Stage of Pay in new scale | H24: ='Table 1998'!T148 -> 4500
A25: Revised/New Pay Scale | C25: ='Table 1998'!Q141 -> 4000-100-6000 | E25: Next date of increment | G25: ='Table 1998'!Q187 -> Unchanged | H25: =IF(C22="YES",'Table 1998'!Q199,H19) -> 2005-12-13
A26: Note-A | B26: Here existing value (i.e. F21) is related to existing pay scale, so if your input existing pay scale is differ from "existing pay scale(based on fixation) i.e. C23, then pay will be also changed.. So in this condition input pay in changed value cell G22
A28: Note_B | B28: In cell C24 i.e. existing pay scale is always inputable, ethier it is equal to C23 or not
A29: Ready recknor for find out stage at fit -in V pay commission
A30: Select(Type)-I | B30: SELECTION SCALE | D30: Due type | E30: 9 years | F30: Next Stage of Pay in existing scale | I30: ='Table 1998'!W144 -> 4480
A31: Existing Scale | B31: 3400-90-5200 | D31: Due Date | E31: 1999-04-16 | F31: New Stage of Pay in new scale | I31: ='Table 1998'!Y148 -> 4500
A32: New Scale | B32: 4000-100-6000 | D32: Condition | E32: YES | F32: Manuual Change in Calculated Pay | I32: 4600
A33: Pay Status | B33: Existing Value | C33: Changed Value | D33: Condition | E33: Final Value | F33: Condition for Process | H33: NO | I33: ='Table 1998'!T145 -> 4500
A34: Current Pay | B34: 4390 | C34: 8475 | D34: NO | E34: =IF(D34="YES",C34,B34) -> 4390 | F34: Next date of increment | H34: ='Table 1998'!V187 -> Unchanged | I34: ='Table 1998'!V189 -> 1997-12-13
A35: Determination of Annual increment date and amount
A37: Regular Increment Date | B37: Change Date (if any required) | C37: Condition for change date | D37: Final increment date (after change date) | E37: Basic Pay as on due date of increment | F37: Increment Condition | G37: Increment Amount | H37: Basic Pay (after increment condition applied) | I37: Relased Stopped Amt
A38: ='Table 1998'!E148 -> 1997-12-13 | B38: =A38 -> 1997-12-13 | C38: NO | D38: ='Table 1998'!J148 -> 1997-12-13 | E38: ='Table 1998'!AF148 -> 3760 | F38: YES | G38: =IF(A38="","",'Table 1998'!AI148) -> 90 | H38: =IF(A38="","",'Table 1998'!AH148) -> 3760
A39: =IF(D39="","",'Table 1998'!E149) -> 1998-12-13 | B39: 1998-12-13 | C39: NO | D39: ='Table 1998'!J149 -> 1998-12-13 | E39: =IF(A39="","",'Table 1998'!AF149) -> 3850 | F39: YES | G39: =IF(A39="","",'Table 1998'!AI149) -> 90 | H39: =IF(A39="","",'Table 1998'!AH149) -> 3850
A40: =IF(D40="","",'Table 1998'!E150) -> 1999-12-13 | B40: 1999-12-13 | C40: NO | D40: ='Table 1998'!J150 -> 1999-12-13 | E40: =IF(A40="","",'Table 1998'!AF150) -> 3940 | F40: YES | G40: =IF(A40="","",'Table 1998'!AI150) -> 90 | H40: =IF(A40="","",'Table 1998'!AH150) -> 3940
A41: =IF(D41="","",'Table 1998'!E151) -> 2000-12-13 | B41: 2000-12-13 | C41: NO | D41: ='Table 1998'!J151 -> 2000-12-13 | E41: =IF(A41="","",'Table 1998'!AF151) -> 4030 | F41: YES | G41: =IF(A41="","",'Table 1998'!AI151) -> 90 | H41: =IF(A41="","",'Table 1998'!AH151) -> 4030
A42: =IF(D42="","",'Table 1998'!E152) -> 2001-12-13 | B42: 2001-12-13 | C42: NO | D42: ='Table 1998'!J152 -> 2001-12-13 | E42: =IF(A42="","",'Table 1998'!AF152) -> 4120 | F42: YES | G42: =IF(A42="","",'Table 1998'!AI152) -> 90 | H42: =IF(A42="","",'Table 1998'!AH152) -> 4120
A43: =IF(D43="","",'Table 1998'!E153) -> 2002-12-13 | B43: 2002-12-13 | C43: NO | D43: ='Table 1998'!J153 -> 2002-12-13 | E43: =IF(A43="","",'Table 1998'!AF153) -> 4210 | F43: YES | G43: =IF(A43="","",'Table 1998'!AI153) -> 90 | H43: =IF(A43="","",'Table 1998'!AH153) -> 4210
A44: =IF(D44="","",'Table 1998'!E154) -> 2003-12-13 | B44: 2003-12-13 | C44: NO | D44: ='Table 1998'!J154 -> 2003-12-13 | E44: =IF(A44="","",'Table 1998'!AF154) -> 4300 | F44: YES | G44: =IF(A44="","",'Table 1998'!AI154) -> 240 | H44: =IF(A44="","",'Table 1998'!AH154) -> 4300 | I44: 150
A45: =IF(D45="","",'Table 1998'!E155) -> 2004-12-13 | B45: 2004-12-13 | C45: NO | D45: ='Table 1998'!J155 -> 2004-12-13 | E45: =IF(A45="","",'Table 1998'!AF155) -> 4390 | F45: YES | G45: =IF(A45="","",'Table 1998'!AI155) -> 90 | H45: =IF(A45="","",'Table 1998'!AH155) -> 4390
A46: =IF(D46="","",'Table 1998'!E156) -> 2005-05-11 | B46: 2005-05-11 | C46: NO | D46: ='Table 1998'!J156 -> 2005-05-11 | E46: =IF(A46="","",'Table 1998'!AF156) -> 4500 | F46: YES | G46: =IF(A46="","",'Table 1998'!AI156) -> Sel.Scale | H46: =IF(A46="","",'Table 1998'!AH156) -> 4500
A47: =IF(D47="","",'Table 1998'!E157) -> 2005-12-13 | B47: 2005-12-13 | C47: NO | D47: ='Table 1998'!J157 -> 2005-12-13 | E47: =IF(A47="","",'Table 1998'!AF157) -> 4600 | F47: YES | G47: =IF(A47="","",'Table 1998'!AI157) -> 100 | H47: =IF(A47="","",'Table 1998'!AH157) -> 4600
A48: =IF(D48="","",'Table 1998'!E158) ->  | C48: NO | D48: ='Table 1998'!J158 ->  | E48: =IF(A48="","",'Table 1998'!AF158) ->  | F48: YES | G48: =IF(A48="","",'Table 1998'!AI158) ->  | H48: =IF(A48="","",'Table 1998'!AH158) -> 
A49: =IF(D49="","",'Table 1998'!E159) ->  | C49: NO | D49: ='Table 1998'!J159 ->  | E49: =IF(A49="","",'Table 1998'!AF159) ->  | F49: YES | G49: =IF(A49="","",'Table 1998'!AI159) ->  | H49: =IF(A49="","",'Table 1998'!AH159) -> 
A50: =IF(D50="","",'Table 1998'!E160) ->  | C50: NO | D50: ='Table 1998'!J160 ->  | E50: =IF(A50="","",'Table 1998'!AF160) ->  | F50: YES | G50: =IF(A50="","",'Table 1998'!AI160) ->  | H50: =IF(A50="","",'Table 1998'!AH160) -> 
A51: =IF(D51="","",'Table 1998'!E161) ->  | C51: NO | D51: ='Table 1998'!J161 ->  | E51: =IF(A51="","",'Table 1998'!AF161) ->  | F51: YES | G51: =IF(A51="","",'Table 1998'!AI161) ->  | H51: =IF(A51="","",'Table 1998'!AH161) -> 
A52: =IF(D52="","",'Table 1998'!E162) ->  | C52: NO | D52: ='Table 1998'!J162 ->  | E52: =IF(A52="","",'Table 1998'!AF162) ->  | F52: YES | G52: =IF(A52="","",'Table 1998'!AI162) ->  | H52: =IF(A52="","",'Table 1998'!AH162) -> 
A53: =IF(D53="","",'Table 1998'!E163) ->  | C53: NO | D53: ='Table 1998'!J163 ->  | E53: =IF(A53="","",'Table 1998'!AF163) ->  | F53: YES | G53: =IF(A53="","",'Table 1998'!AI163) ->  | H53: =IF(A53="","",'Table 1998'!AH163) -> 
A54: =IF(D54="","",'Table 1998'!E164) ->  | C54: NO | D54: ='Table 1998'!J164 ->  | E54: =IF(A54="","",'Table 1998'!AF164) ->  | F54: YES | G54: =IF(A54="","",'Table 1998'!AI164) ->  | H54: =IF(A54="","",'Table 1998'!AH164) -> 
A55: =IF(D55="","",'Table 1998'!E165) ->  | C55: NO | D55: ='Table 1998'!J165 ->  | E55: =IF(A55="","",'Table 1998'!AF165) ->  | F55: YES | G55: =IF(A55="","",'Table 1998'!AI165) ->  | H55: =IF(A55="","",'Table 1998'!AH165) -> 
A56: =IF(D56="","",'Table 1998'!E166) ->  | C56: NO | D56: ='Table 1998'!J166 ->  | E56: =IF(A56="","",'Table 1998'!AF166) ->  | F56: YES | G56: =IF(A56="","",'Table 1998'!AI166) ->  | H56: =IF(A56="","",'Table 1998'!AH166) -> 
A57: =IF(D57="","",'Table 1998'!E167) ->  | C57: NO | D57: ='Table 1998'!J167 ->  | E57: =IF(A57="","",'Table 1998'!AF167) ->  | F57: YES | G57: =IF(A57="","",'Table 1998'!AI167) ->  | H57: =IF(A57="","",'Table 1998'!AH167) -> 
A59: If any note required to display in increment order for (leave blank,if no data to input) INCREMENT/ACP/PROMOTION
A62: Details of dispatch no/order date, and name of parties for copy of order is forwarded | F62: Concerning Try. Name for order dispatch purpose | I62: Final Name
A64: Letter No/File Number for Office order,date for order dispatch purpose | C64: Accounts/2014 | E64: Order date | F64: Select Try/Sub Try | G64: Treasury | H64: JAISALMER | I64: ='Table 1998'!FT17 -> Treasury JAISALMER
E65: =TODAY() -> 2026-05-12 | H65: Pokaran
A66: S.N. | B66: Name of Parties | E66: Process | F66: The parties name will be shown in order as under
A67: 1 | B67: Commissioner Colonisation Deptt. Bikaner | E67: YES | F67: =IF(E67="YES",'Table 1998'!FY20,"") -> Commissioner Colonisation Deptt. Bikaner
A68: 2 | B68: Concerning Sub/Treasury (Mandentary) | E68: YES | F68: =IF(E68="YES",I64,"") -> Treasury JAISALMER
A69: 3 | B69: Incumbent (i.e. Concerning employee.. Mandantary) | E69: YES | F69: =IF(E69="YES",'Table 1998'!FY24,"") -> Pravesh Kumar Sharma ,Designation -- Junior Accountant
A70: 4 | B70: Accounts Branch (suggested to select "yes") | E70: NO | F70: =IF(E70="YES",'Table 1998'!FY23,"") -> 
A71: 5 | B71: =G3 -> COMMISSIONER COLONISATION BIKANER | E71: YES | F71: =IF(E71="YES",'Table 1998'!FY22,"") -> Commissioner Colonisation Bikaner
A72: 6 | B72: Personal File/Gurd File | E72: NO | F72: =IF(E72="YES",'Table 1998'!FY25,"") -> 

Sheet FS 1998
A1: GPF NO | D1: ='MS Fixation(1998)'!C2 -> 647805
A2: STATEMENT OF FIXATION OF PAY IN THE REVISED PAY SCALES, 1998 | L2: Home V PC
A3: Name of the Department/ Office | I3: ='MS Fixation(1998)'!G3 -> COMMISSIONER COLONISATION BIKANER
A5: 1. | B5: Name and designation of Government servant | I5: ='MS Fixation(1998)'!C4 -> PRAVESH KUMAR SHARMA
I6: ='MS Fixation(1998)'!C5 -> JUNIOR ACCOUNTANT
A7: 2. | B7: For substantive / officiating post | I7: ='MS Fixation(1998)'!C6 -> Substantive | L7: Fixation Statement-1998
A8: 3. | B8: (i) | C8: Existing Pay Scale | I8: ='MS Fixation(1998)'!C10 -> 950-20-1150-25-1400-30-1640-40-1680
B9: (ii) | C9: Date of last increment in the existing pay scale . | I9: ='MS Fixation(1998)'!$D$3 -> 1995-12-13 | L9: Fixation Master-1998
A10: 4. | B10: Revised Pay Scale | I10: ='MS Fixation(1998)'!C12 -> 3050-75-3950-80-4590
A11: 5. | B11: Date from which Revised Pay Scale opted or deemed to have opted | I11: ='MS Fixation(1998)'!G2 -> 2006-01-01
A12: 6. | B12: Details of Pre-revised emoluments as defined in Rule 5(5):
B13: (A) | C13: Basic Pay as defined in Rule 5(3) | J13: ='MS Fixation(1998)'!I8 -> 1030
B14: (B) | C14: Personal Pay, if any | J14: ='MS Fixation(1998)'!I9 -> 0
B15: ( C) | C15: (i) | D15: Amount of D.A. on the basic pay at the rates in force on 01-01-1996 | J15: ='MS Fixation(1998)'!D13 -> 1524
C16: (ii) | D16: Amount of I & II instalment of Interim Relief on the basic pay | J16: ='MS Fixation(1998)'!D14+'MS Fixation(1998)'!D15 -> 203
B17: (D) | C17: Fixation benefit @ 40% of basic pay | J17: ='MS Fixation(1998)'!D16 -> 412
B18: Total of Pre-fixation emoluments (A+B+C+D) | J18: ='MS Fixation(1998)'!D17 -> 3169
A19: 7. | B19: Pay fixed under Rule 11(1)
B20: (A) | C20: Stage in the revised scale of pay at which is to be fixed in terms of Rule 11(1)(a), excluding the benefit of one increment for every three increments as ehvisaged in the proviso given below Rule 11(1)(a)(ii) | J20: ='MS Fixation(1998)'!I10 -> 3200
B23: (B) | C23: Stage in the revised scale of pay at which pay is to be fixed so as to ensure atleast one increment in the revised scale for every three increments in the existing pay scale. (proviso given below Rule 11(1)(a)(ii) | J23: ='MS Fixation(1998)'!I12 -> 3125
A26: 8. | B26: Pay fixed in the revised scale of pay (stage of pay at Sr.No. 7(A) or 7(B), whichever is higher | J26: ='MS Fixation(1998)'!I15 -> 3200
A28: 9. | B28: Personal pay, if any, (under Rule 11(1)(a)(ii) | J28: ='MS Fixation(1998)'!I16 -> 0
A29: 10. | B29: Date of next increment under Rule 12 | J29: ='MS Fixation(1998)'!I17 -> 1996-12-13
A30: 11. | B30: Remarks :
B31: Certified that -
A32: (i) | C32: Pay in the revised pay scale has been fixed as above in accordance with the Rajasthan Civil Services (Revised Pay Scale) Rules, 1998
A34: (ii) | C34: An undertaking has been obtained from the employee to refund overpayments, if any, which may subsequently detected.
A36: Place :
A37: Date :
G38: Signature & Designation of
G39: Head of Office / Head of Department
A41: Checked and approved
A43: Date : | G43: Accounts Officer / Asstt. Accounts Officer
A44: No. | E44: Date :
A46: Copy to : -
A47: 1.
A48: 2. | C48: Accounts Officer / Asstt. Accounts Officer.
G50: Accounts Officer / Asstt. Accounts Officer

Sheet IncrOrder(1998)
B1: Employee code | C1: ='MS Fixation(1998)'!C2 -> 647805 | L1: GA 92
A2: ='MS Fixation(1998)'!G3 -> COMMISSIONER COLONISATION BIKANER | M2: Home V PC
A3: Periodic Salalry Increment Certificate
A4: 1 | B4: Certified that the Government servents named below have earned the prescribed periodical increments from the date cited in column 9 having been the incumbent of the posts specified not less than year from the date in column 9 after deducting period of suspension for misconduct etc. and absence on leave without pay & the case of those holding the post in officiating capacity, all other kinds of leave.
M5: Fixation Statement-1998
A7: 2 | B7: Certified that the Government servents named below have earned/will earn periodical increments from the date cited for reasons stated in the explanatory memo attached here to.
A9: S.No | B9: Name of Incumbent | C9: Post | D9: Pay Scale as on | E9: Present Pay Scale as on | H9: Date From Present Pay is being taken | I9: Date of Increment | K9: Annual Increment Amount
E10: =D11 -> 1996-12-13 | J10: Present Pay | K10: Increment amount | L10: Basic Pay (after increment)
D11: ='MS Fixation(1998)'!I17 -> 1996-12-13 | E11: Basic Pay | F11: P. Pay (if any) | G11: Total Basic Pay
A12: 1 | B12: 2 | C12: 3 | D12: 4 | E12: 5 | F12: 6 | G12: 7(5+6) | H12: 8 | I12: 9 | J12: 10 | K12: 11 | L12: 12(10+11)
A13: 1 | B13: ='MS Fixation(1998)'!C4 -> PRAVESH KUMAR SHARMA | C13: ='MS Fixation(1998)'!C5 -> JUNIOR ACCOUNTANT | D13: ='MS Fixation(1998)'!C12 -> 3050-75-3950-80-4590 | E13: ='MS Fixation(1998)'!I15 -> 3200 | F13: ='MS Fixation(1998)'!I16 -> 0 | G13: =E13+F13 -> 3200 | H13: =D11 -> 1996-12-13 | I13: =IF('MS Fixation(1998)'!D38="","",'MS Fixation(1998)'!D38) -> 1997-12-13 | J13: =IF(I13="","",'MS Fixation(1998)'!E38) -> 3760 | K13: =IF(I13="","",'MS Fixation(1998)'!G38) -> 90 | L13: =IF(I13="","",'MS Fixation(1998)'!H38) -> 3760
H14: =IF(I14="","",I13) -> 1997-12-13 | I14: =IF('MS Fixation(1998)'!D39="","",'MS Fixation(1998)'!D39) -> 1998-12-13 | J14: =IF(I14="","",'MS Fixation(1998)'!E39) -> 3850 | K14: =IF(I14="","",'MS Fixation(1998)'!G39) -> 90 | L14: =IF(I14="","",'MS Fixation(1998)'!H39) -> 3850
B15: ='Table 1998'!I221 -> Details of Selection Scale -9 years from 13/12/97 to 31/12/05 | H15: 1998-12-13 | I15: =IF('MS Fixation(1998)'!D40="","",'MS Fixation(1998)'!D40) -> 1999-12-13 | J15: =IF(I15="","",'MS Fixation(1998)'!E40) -> 3940 | K15: =IF(I15="","",'MS Fixation(1998)'!G40) -> 90 | L15: =IF(I15="","",'MS Fixation(1998)'!H40) -> 3940
B16: =IF('MS Fixation(1998)'!C22="NO","",IF('MS Fixation(1998)'!A21="PROMOTION","Promotion due date","Selection due date")) -> Selection due date | C16: =IF($B$15="","","Existing Basic Pay") -> Existing Basic Pay | D16: =IF($B$15="","","Next Stage of Pay in existing scale ") -> Next Stage of Pay in existing scale | F16: =IF($B$15="","","New Stage of Pay in new scale ") -> New Stage of Pay in new scale | H16: 1999-12-13 | I16: =IF('MS Fixation(1998)'!D41="","",'MS Fixation(1998)'!D41) -> 2000-12-13 | J16: =IF(I16="","",'MS Fixation(1998)'!E41) -> 4030 | K16: =IF(I16="","",'MS Fixation(1998)'!G41) -> 90 | L16: =IF(I16="","",'MS Fixation(1998)'!H41) -> 4030
H17: 2000-12-13 | I17: =IF('MS Fixation(1998)'!D42="","",'MS Fixation(1998)'!D42) -> 2001-12-13 | J17: =IF(I17="","",'MS Fixation(1998)'!E42) -> 4120 | K17: =IF(I17="","",'MS Fixation(1998)'!G42) -> 90 | L17: =IF(I17="","",'MS Fixation(1998)'!H42) -> 4120
B18: =IF('MS Fixation(1998)'!C22="YES",'Table 1998'!C144,"") -> 2005-05-11 | C18: =IF($B$15="","",'MS Fixation(1998)'!$I$21+'MS Fixation(1998)'!$I$22) -> 3670 | D18: =IF($B$15="","",'MS Fixation(1998)'!$H$23) -> 4480 | F18: =IF($B$15="","",'MS Fixation(1998)'!$H$24) -> 4500 | H18: 2001-12-13 | I18: =IF('MS Fixation(1998)'!D43="","",'MS Fixation(1998)'!D43) -> 2002-12-13 | J18: =IF(I18="","",'MS Fixation(1998)'!E43) -> 4210 | K18: =IF(I18="","",'MS Fixation(1998)'!G43) -> 90 | L18: =IF(I18="","",'MS Fixation(1998)'!H43) -> 4210
B19: ='Table 1998'!I223 ->  | H19: 2002-12-13 | I19: =IF('MS Fixation(1998)'!D44="","",'MS Fixation(1998)'!D44) -> 2003-12-13 | J19: =IF(I19="","",'MS Fixation(1998)'!E44) -> 4300 | K19: =IF(I19="","",'MS Fixation(1998)'!G44) -> 240 | L19: =IF(I19="","",'MS Fixation(1998)'!H44) -> 4300
H20: 2003-12-13 | I20: =IF('MS Fixation(1998)'!D45="","",'MS Fixation(1998)'!D45) -> 2004-12-13 | J20: =IF(I20="","",'MS Fixation(1998)'!E45) -> 4390 | K20: =IF(I20="","",'MS Fixation(1998)'!G45) -> 90 | L20: =IF(I20="","",'MS Fixation(1998)'!H45) -> 4390
H21: 2004-12-13 | I21: =IF('MS Fixation(1998)'!D46="","",'MS Fixation(1998)'!D46) -> 2005-05-11 | J21: =IF(I21="","",'MS Fixation(1998)'!E46) -> 4500 | K21: =IF(I21="","",'MS Fixation(1998)'!G46) -> Sel.Scale | L21: =IF(I21="","",'MS Fixation(1998)'!H46) -> 4500
H22: 2005-05-11 | I22: =IF('MS Fixation(1998)'!D47="","",'MS Fixation(1998)'!D47) -> 2005-12-13 | J22: =IF(I22="","",'MS Fixation(1998)'!E47) -> 4600 | K22: =IF(I22="","",'MS Fixation(1998)'!G47) -> 100 | L22: =IF(I22="","",'MS Fixation(1998)'!H47) -> 4600
B23: =IF(B24="","","Remark/Note") ->  | I23: =IF('MS Fixation(1998)'!D48="","",'MS Fixation(1998)'!D48) ->  | J23: =IF(I23="","",'MS Fixation(1998)'!E48) ->  | K23: =IF(I23="","",'MS Fixation(1998)'!G48) ->  | L23: =IF(I23="","",'MS Fixation(1998)'!H48) -> 
B24: =IF('MS Fixation(1998)'!A60="","",'MS Fixation(1998)'!$A$60) ->  | I24: =IF('MS Fixation(1998)'!D49="","",'MS Fixation(1998)'!D49) ->  | J24: =IF(I24="","",'MS Fixation(1998)'!E49) ->  | K24: =IF(I24="","",'MS Fixation(1998)'!G49) ->  | L24: =IF(I24="","",'MS Fixation(1998)'!H49) -> 
I25: =IF('MS Fixation(1998)'!D50="","",'MS Fixation(1998)'!D50) ->  | J25: =IF(I25="","",'MS Fixation(1998)'!E50) ->  | K25: =IF(I25="","",'MS Fixation(1998)'!G50) ->  | L25: =IF(I25="","",'MS Fixation(1998)'!H50) -> 
I26: =IF('MS Fixation(1998)'!D51="","",'MS Fixation(1998)'!D51) ->  | J26: =IF(I26="","",'MS Fixation(1998)'!E51) ->  | K26: =IF(I26="","",'MS Fixation(1998)'!G51) ->  | L26: =IF(I26="","",'MS Fixation(1998)'!H51) -> 
I27: =IF('MS Fixation(1998)'!D52="","",'MS Fixation(1998)'!D52) ->  | J27: =IF(I27="","",'MS Fixation(1998)'!E52) ->  | K27: =IF(I27="","",'MS Fixation(1998)'!G52) ->  | L27: =IF(I27="","",'MS Fixation(1998)'!H52) -> 
I28: =IF('MS Fixation(1998)'!D53="","",'MS Fixation(1998)'!D53) ->  | J28: =IF(I28="","",'MS Fixation(1998)'!E53) ->  | K28: =IF(I28="","",'MS Fixation(1998)'!G53) ->  | L28: =IF(I28="","",'MS Fixation(1998)'!H53) -> 
A29: =IF(B29="","","Note") -> 
H31: ='MS Fixation(1998)'!G5 -> EXTRA ASSISTANT COMMISSIONER COLONISATION (ADM), BIKANER
A32: =IF(B32="","","Note") -> 
A33: Letter No | C33: =IF('MS Fixation(1998)'!C64="","",'MS Fixation(1998)'!C64) -> Accounts/2014 | J33: Dated | K33: =IF('MS Fixation(1998)'!E65="","",'MS Fixation(1998)'!E65) -> 2026-05-12
A34: Copy forwarded for information and necessary action :-
A35: =IF(B35="","",1) -> 1900-01-01 | B35: ='Table 1998'!GH20 -> Commissioner Colonisation Deptt. Bikaner
A36: =IF(B36="","",2) -> 1900-01-02 | B36: ='Table 1998'!GH21 -> Treassury Officer , JAISALMER
A37: =IF(B37="","",3) -> 1900-01-03 | B37: ='Table 1998'!GH22 -> Commissioner Colonisation Bikaner
A38: =IF(B38="","",4) -> 1900-01-04 | B38: ='Table 1998'!GH23 -> Pravesh Kumar Sharma ,Designation -- Junior Accountant
A39: =IF(B39="","",5) ->  | B39: ='Table 1998'!GH24 -> 
A40: =IF(B40="","",6) ->  | B40: ='Table 1998'!GH25 -> 
A41: #16.18.1.22.5.19.8√97263.0458756048# | H41: =H31 -> EXTRA ASSISTANT COMMISSIONER COLONISATION (ADM), BIKANER
C63: 2012-07-01 | D63: =YEAR(C63) -> 2012 | E63: =IF(#REF!=D63,"YES","NO") ->  | F63: 366 | G63: =IF(#REF!<7,C63,#REF!) ->  | H63: =IF(E63="YES",#REF!,C63) ->  | I63: =IF(H63>#REF!,H63,#REF!) -> 
C64: 2013-07-01 | D64: =YEAR(C64) -> 2013 | E64: =IF(#REF!=D64,"YES","NO") ->  | F64: 365 | G64: =IF(#REF!<7,C64,#REF!) ->  | H64: =IF(E64="YES",#REF!,C64) ->  | I64: =IF(H64>H63,H64,C63) -> 
G65: =IF(#REF!<7,C65,#REF!) ->  | H65: =IF(E65="YES",#REF!,C65) -> 00:00:00 | I65: =IF(H65>H64,H65,C64) -> 

Sheet Table 1998 (hidden)
A2: Existing old pay scale | D2: ='MS Fixation(1998)'!C8 -> 950-20-1150-25-1400-30-1640-40-1680 | M2: Relevant data of old pay scale 1989 | Q2: Scale No 1 | T2: Scale No 2 | V2: Scale No 3 | Y2: Scale No 4 | AB2: Scale No 5 | AE2: Scale No 6 | AH2: Scale No 7 | AK2: Scale No 8 | AN2: Scale No 9 | AQ2: Scale No 12 | AT2: Scale No 13 | AW2: Scale No 14 | AZ2: Scale No 15 | BC2: Scale No 16 | BF2: Scale No 17 | BI2: Scale No 18 | BL2: Scale No 19 | BO2: Scale No 20 | BR2: Scale No 21 | BU2: Scale No 22 | BX2: Scale No 23 | CA2: Scale No 24 | CD2: Scale No 25 | CG2: Scale No 26 | CJ2: Scale No 27 | CO2: Scale No 1 | CQ2: 1 | CS2: Scale No 2 | CV2: Scale No 3 | CY2: Scale No 4 | DB2: Scale No 5 | DE2: Scale No 6 | DI2: Scale No 7 | DM2: Scale No 8 | DP2: Scale No 9 | DS2: Scale No 9A | DW2: Scale No 10 | EA2: Scale No 11 | ED2: Scale No 12 | EG2: Scale No 12A | EJ2: Scale No 13 | EM2: Scale No 14 | EP2: Scale No 15 | ES2: Scale No 16 | EV2: Scale No 17 | EY2: Scale No 18 | FB2: Scale No 19 | FE2: Scale No 20 | FH2: Scale No 21 | FK2: Scale No 22 | FP2: Name of Treasury | FW2: Details of | FX2: from | FY2: to | FZ2: =CONCATENATE(FW2," ",FS2," ",FX2," ",TEXT(FU2,"dd/mm/yy"), " ", FY2, " ",TEXT(FV2,"dd/mm/yy")) -> Details of from 00/01/00 to 00/01/00
A3: Existing old pay scale no | D3: =INDEX('Table 1998'!$M$4:$M$31,MATCH(D2,'Table 1998'!$N$4:$N$31,0)) -> 6 | G3: =INDEX('Table 1998'!$M$4:$M$31,MATCH(G2,'Table 1998'!$N$4:$N$31,0)) ->  | M3: Scale No | N3: Pay Sacle in 1989 | O3: R. Pay | Q3: Base | R3: Amt | S3: ='Table 1998'!$D$8 -> 1030 | T3: Base | U3: Amt | V3: Base | W3: ='Table 1998'!$D$8 -> 1030 | X3: Amt | Y3: Base | Z3: Amt | AA3: ='Table 1998'!$D$8 -> 1030 | AB3: Base | AC3: Amt | AD3: ='Table 1998'!$D$8 -> 1030 | AE3: Base | AF3: Amt | AG3: ='Table 1998'!$D$8 -> 1030 | AH3: Base | AI3: Amt | AJ3: ='Table 1998'!$D$8 -> 1030 | AK3: Base | AL3: Amt | AM3: ='Table 1998'!$D$8 -> 1030 | AN3: Base | AO3: Amt | AP3: ='Table 1998'!$D$8 -> 1030 | AQ3: Base | AR3: Amt | AS3: ='Table 1998'!$D$8 -> 1030 | AT3: Base | AU3: Amt | AV3: ='Table 1998'!$D$8 -> 1030 | AW3: Base | AX3: Amt | AY3: ='Table 1998'!$D$8 -> 1030 | AZ3: Base | BA3: Amt | BB3: ='Table 1998'!$D$8 -> 1030 | BC3: Base | BD3: Amt | BE3: ='Table 1998'!$D$8 -> 1030 | BF3: Base | BG3: Amt | BH3: ='Table 1998'!$D$8 -> 1030 | BI3: Base | BJ3: Amt | BK3: ='Table 1998'!$D$8 -> 1030 | BL3: Base | BM3: Amt | BN3: ='Table 1998'!$D$8 -> 1030 | BO3: Base | BP3: Amt | BQ3: ='Table 1998'!$D$8 -> 1030 | BR3: Base | BS3: Amt | BT3: ='Table 1998'!$D$8 -> 1030 | BU3: Base | BV3: Amt | BW3: ='Table 1998'!$D$8 -> 1030 | BX3: Base | BY3: Amt | BZ3: ='Table 1998'!$D$8 -> 1030 | CA3: Base | CB3: Amt | CC3: ='Table 1998'!$D$8 -> 1030 | CD3: Base | CE3: Amt | CF3: ='Table 1998'!$D$8 -> 1030 | CG3: Base | CH3: Amt | CI3: ='Table 1998'!$D$8 -> 1030 | CJ3: Base | CK3: Amt | CL3: ='Table 1998'!$D$8 -> 1030 | CO3: Base | CP3: Amt | CQ3: ='MS Fixation(1998)'!$D$17 -> 3169 | CS3: Base | CT3: Amt | CU3: ='MS Fixation(1998)'!$D$17 -> 3169 | CV3: Base | CW3: Amt | CX3: ='MS Fixation(1998)'!$D$17 -> 3169 | CY3: Base | CZ3: Amt | DA3: ='MS Fixation(1998)'!$D$17 -> 3169 | DB3: Base | DC3: Amt | DD3: ='MS Fixation(1998)'!$D$17 -> 3169 | DE3: Base | DF3: Amt | DG3: ='MS Fixation(1998)'!$D$17 -> 3169 | DI3: Base | DJ3: Amt | DK3: ='MS Fixation(1998)'!$D$17 -> 3169 | DM3: Base | DN3: Amt | DO3: ='MS Fixation(1998)'!$D$17 -> 3169 | DP3: Base | DQ3: Amt | DR3: ='MS Fixation(1998)'!$D$17 -> 3169 | DS3: Base | DT3: Amt | DU3: ='MS Fixation(1998)'!$D$17 -> 3169 | DW3: Base | DX3: Amt | DY3: ='MS Fixation(1998)'!$D$17 -> 3169 | EA3: Base | EB3: Amt | EC3: ='MS Fixation(1998)'!$D$17 -> 3169 | ED3: Base | EE3: Amt | EF3: ='MS Fixation(1998)'!$D$17 -> 3169 | EG3: Base | EH3: Amt | EI3: ='MS Fixation(1998)'!$D$17 -> 3169 | EJ3: Base | EK3: Amt | EL3: ='MS Fixation(1998)'!$D$17 -> 3169 | EM3: Base | EN3: Amt | EO3: ='MS Fixation(1998)'!$D$17 -> 3169 | EP3: Base | EQ3: Amt | ER3: ='MS Fixation(1998)'!$D$17 -> 3169 | ES3: Base | ET3: Amt | EU3: ='MS Fixation(1998)'!$D$17 -> 3169 | EV3: Base | EW3: Amt | EX3: ='MS Fixation(1998)'!$D$17 -> 3169 | EY3: Base | EZ3: Amt | FA3: ='MS Fixation(1998)'!$D$17 -> 3169 | FB3: Base | FC3: Amt | FD3: ='MS Fixation(1998)'!$D$17 -> 3169 | FE3: Base | FF3: Amt | FG3: ='MS Fixation(1998)'!$D$17 -> 3169 | FH3: Base | FI3: Amt | FJ3: ='MS Fixation(1998)'!$D$17 -> 3169 | FK3: Base | FL3: Amt | FM3: ='MS Fixation(1998)'!$D$17 -> 3169 | FP3: AJMER | FQ3: 1 | FZ3: =IF(FT2="YES",FZ2,"") -> 
A4: Pay scale upgradation condition | D4: ='MS Fixation(1998)'!C9 -> NO | F4: ='MS Fixation(1998)'!D9 -> 8 | M4: 1 | N4: 750-12-798-13-850-15-940 | O4: =R36 -> 940 | P4: =S36 -> 15 | Q4: 750 | R4: =Q4 -> 750 | S4: =IF($AS$3>R4,1) -> 1 | T4: 775 | U4: =T4 -> 775 | V4: 800 | W4: =IF($AS$3>V4,1) -> 1 | X4: =V4 -> 800 | Y4: 825 | Z4: =Y4 -> 825 | AA4: =IF($AS$3>Z4,1) -> 1 | AB4: 910 | AC4: =AB4 -> 910 | AD4: =IF($AS$3>AC4,1) -> 1 | AE4: 950 | AF4: =AE4 -> 950 | AG4: =IF($AS$3>AF4,1) -> 1 | AH4: 975 | AI4: =AH4 -> 975 | AJ4: =IF($AS$3>AI4,1) -> 1 | AK4: 1025 | AL4: =AK4 -> 1025 | AM4: =IF($AS$3>AL4,1) -> 1 | AN4: 1200 | AO4: =AN4 -> 1200 | AP4: =IF($AS$3>AO4,1) -> FALSE | AQ4: 1400 | AR4: =AQ4 -> 1400 | AS4: =IF($AS$3>AR4,1) -> FALSE | AT4: 1640 | AU4: =AT4 -> 1640 | AV4: =IF($AS$3>AU4,1) -> FALSE | AW4: 2000 | AX4: =AW4 -> 2000 | AY4: =IF($AS$3>AX4,1) -> FALSE | AZ4: 2000 | BA4: =AZ4 -> 2000 | BB4: =IF($AS$3>BA4,1) -> FALSE | BC4: 2200 | BD4: =BC4 -> 2200 | BE4: =IF($AS$3>BD4,1) -> FALSE | BF4: 2500 | BG4: =BF4 -> 2500 | BH4: =IF($AS$3>BG4,1) -> FALSE | BI4: 2650 | BJ4: =BI4 -> 2650 | BK4: =IF($AS$3>BJ4,1) -> FALSE | BL4: 3000 | BM4: =BL4 -> 3000 | BN4: =IF($AS$3>BM4,1) -> FALSE | BO4: 2000 | BP4: =BO4 -> 2000 | BQ4: =IF($AS$3>BP4,1) -> FALSE | BR4: 3000 | BS4: =BR4 -> 3000 | BT4: =IF($AS$3>BS4,1) -> FALSE | BU4: 3450 | BV4: =BU4 -> 3450 | BW4: =IF($AS$3>BV4,1) -> FALSE | BX4: 3700 | BY4: =BX4 -> 3700 | BZ4: =IF($AS$3>BY4,1) -> FALSE | CA4: 4100 | CB4: =CA4 -> 4100 | CC4: =IF($AS$3>CB4,1) -> FALSE | CD4: 4500 | CE4: =CD4 -> 4500 | CF4: =IF($AS$3>CE4,1) -> FALSE | CG4: 5100 | CH4: =CG4 -> 5100 | CI4: =IF($AS$3>CH4,1) -> FALSE | CJ4: 5900 | CK4: =CJ4 -> 5900 | CL4: =IF($AS$3>CK4,1) -> FALSE | CO4: 2550 | CP4: =CO4 -> 2550 | CQ4: =CP4 -> 2550 | CS4: 2610 | CT4: =CS4 -> 2610 | CU4: =CT4 -> 2610 | CV4: 2650 | CW4: =CV4 -> 2650 | CX4: =CW4 -> 2650 | CY4: 2750 | CZ4: =CY4 -> 2750 | DA4: =CZ4 -> 2750 | DB4: 2950 | DC4: =DB4 -> 2950 | DD4: =DC4 -> 2950 | DE4: 3050 | DF4: =DE4 -> 3050 | DG4: =DF4 -> 3050 | DI4: 3200 | DJ4: =DI4 -> 3200 | DK4: =DJ4 -> 3200 | DM4: 3400 | DN4: =DM4 -> 3400 | DO4: =DN4 -> 3400 | DP4: 4000 | DQ4: =DP4 -> 4000 | DR4: =DQ4 -> 4000 | DS4: 4500 | DT4: =DS4 -> 4500 | DU4: =DT4 -> 4500 | DW4: 5000 | DX4: =DW4 -> 5000 | DY4: =DX4 -> 5000 | EA4: 5500 | EB4: =EA4 -> 5500 | EC4: =EB4 -> 5500 | ED4: 6500 | EE4: =ED4 -> 6500 | EF4: =EE4 -> 6500 | EG4: 7500 | EH4: =EG4 -> 7500 | EI4: =EH4 -> 7500 | EJ4: 8000 | EK4: =EJ4 -> 8000 | EL4: =EK4 -> 8000 | EM4: 9000 | EN4: =EM4 -> 9000 | EO4: =EN4 -> 9000 | EP4: 10000 | EQ4: =EP4 -> 10000 | ER4: =EQ4 -> 10000 | ES4: 10650 | ET4: =ES4 -> 10650 | EU4: =ET4 -> 10650 | EV4: 11300 | EW4: =EV4 -> 11300 | EX4: =EW4 -> 11300 | EY4: 12000 | EZ4: =EY4 -> 12000 | FA4: =EZ4 -> 12000 | FB4: 13500 | FC4: =FB4 -> 13500 | FD4: =FC4 -> 13500 | FE4: 14300 | FF4: =FE4 -> 14300 | FG4: =FF4 -> 14300 | FH4: 16400 | FI4: =FH4 -> 16400 | FJ4: =FI4 -> 16400 | FK4: 18400 | FL4: =FK4 -> 18400 | FM4: =FL4 -> 18400 | FP4: ALWAR | FQ4: 2 | FS4: 00:00:00 | FT4: 0 | FU4: =FU2 -> 00:00:00 | FV4: =FV2 -> 00:00:00 | FW4: Details of | FX4: from | FY4: to | FZ4: =CONCATENATE(FW4," ",FS4," ",FX4," ",TEXT(FU4,"dd/mm/yy"), " ", FY4, " ",TEXT(FV4,"dd/mm/yy")) -> Details of 0 from 00/01/00 to 00/01/00
A5: Upgrade pay scale | D5: =IF(D4="NO",D2,INDEX($N$4:$N$31,MATCH(F4,$M$4:$M$31,0))) -> 950-20-1150-25-1400-30-1640-40-1680 | G5: =G2 -> 0 | M5: 2 | N5: 775-13-840-15-1005-20-1025 | O5: =U36 -> 1025 | P5: =V36 -> 0 | Q5: 12 | R5: =R4+Q5 -> 762 | S5: 1 | T5: 13 | U5: =U4+T5 -> 788 | V5: 15 | W5: 1 | X5: =X4+V5 -> 815 | Y5: 15 | Z5: =Z4+Y5 -> 840 | AA5: 1 | AB5: 20 | AC5: =AC4+AB5 -> 930 | AD5: 1 | AE5: 20 | AF5: =AF4+AE5 -> 970 | AG5: 1 | AH5: 25 | AI5: =AI4+AH5 -> 1000 | AJ5: 1 | AK5: 25 | AL5: =AL4+AK5 -> 1050 | AM5: FALSE | AN5: 30 | AO5: =AO4+AN5 -> 1230 | AP5: FALSE | AQ5: 40 | AR5: =AR4+AQ5 -> 1440 | AS5: FALSE | AT5: 60 | AU5: =AU4+AT5 -> 1700 | AV5: FALSE | AW5: 60 | AX5: =AX4+AW5 -> 2060 | AY5: FALSE | AZ5: 60 | BA5: =BA4+AZ5 -> 2060 | BB5: FALSE | BC5: 75 | BD5: =BD4+BC5 -> 2275 | BE5: FALSE | BF5: 75 | BG5: =BG4+BF5 -> 2575 | BH5: FALSE | BI5: 75 | BJ5: =BJ4+BI5 -> 2725 | BK5: FALSE | BL5: 100 | BM5: =BM4+BL5 -> 3100 | BN5: FALSE | BO5: 60 | BP5: =BP4+BO5 -> 2060 | BQ5: FALSE | BR5: 100 | BS5: =BS4+BR5 -> 3100 | BT5: FALSE | BU5: 125 | BV5: =BV4+BU5 -> 3575 | BW5: FALSE | BX5: 125 | BY5: =BY4+BX5 -> 3825 | BZ5: FALSE | CA5: 150 | CB5: =CB4+CA5 -> 4250 | CC5: FALSE | CD5: 150 | CE5: =CE4+CD5 -> 4650 | CF5: FALSE | CG5: 150 | CH5: =CH4+CG5 -> 5250 | CI5: FALSE | CJ5: 200 | CK5: =CK4+CJ5 -> 6100 | CL5: =IF($AS$3>CK5,1) -> FALSE | CO5: 55 | CP5: =CP4+CO5 -> 2605 | CQ5: =IF($CQ$3<CQ4,CQ4,CP5) -> 2605 | CS5: 60 | CT5: =CT4+CS5 -> 2670 | CU5: =IF($CQ$3<CU4,CU4,CT5) -> 2670 | CV5: 65 | CW5: =CW4+CV5 -> 2715 | CX5: =IF($CQ$3<CX4,CX4,CW5) -> 2715 | CY5: 70 | CZ5: =CZ4+CY5 -> 2820 | DA5: =IF($CQ$3<DA4,DA4,CZ5) -> 2820 | DB5: 75 | DC5: =DC4+DB5 -> 3025 | DD5: =IF($CQ$3<DD4,DD4,DC5) -> 3025 | DE5: 75 | DF5: =DF4+DE5 -> 3125 | DG5: =IF($CQ$3<DG4,DG4,DF5) -> 3125 | DI5: 85 | DJ5: =DJ4+DI5 -> 3285 | DK5: =IF($CQ$3<DK4,DK4,DJ5) -> 3200 | DM5: 90 | DN5: =DN4+DM5 -> 3490 | DO5: =IF($CQ$3<DO4,DO4,DN5) -> 3400 | DP5: 100 | DQ5: =DQ4+DP5 -> 4100 | DR5: =IF($CQ$3<DR4,DR4,DQ5) -> 4000 | DS5: 125 | DT5: =DT4+DS5 -> 4625 | DU5: =IF($CQ$3<DU4,DU4,DT5) -> 4500 | DW5: 150 | DX5: =DX4+DW5 -> 5150 | DY5: =IF($CQ$3<DY4,DY4,DX5) -> 5000 | EA5: 175 | EB5: =EB4+EA5 -> 5675 | EC5: =IF($CQ$3<EC4,EC4,EB5) -> 5500 | ED5: 200 | EE5: =EE4+ED5 -> 6700 | EF5: =IF($CQ$3<EF4,EF4,EE5) -> 6500 | EG5: 250 | EH5: =EH4+EG5 -> 7750 | EI5: =IF($CQ$3<EI4,EI4,EH5) -> 7500 | EJ5: 275 | EK5: =EK4+EJ5 -> 8275 | EL5: =IF($CQ$3<EL4,EL4,EK5) -> 8000 | EM5: 300 | EN5: =EN4+EM5 -> 9300 | EO5: =IF($CQ$3<EO4,EO4,EN5) -> 9000 | EP5: 325 | EQ5: =EQ4+EP5 -> 10325 | ER5: =IF($CQ$3<ER4,ER4,EQ5) -> 10000 | ES5: 325 | ET5: =ET4+ES5 -> 10975 | EU5: =IF($CQ$3<EU4,EU4,ET5) -> 10650 | EV5: 350 | EW5: =EW4+EV5 -> 11650 | EX5: =IF($CQ$3<EX4,EX4,EW5) -> 11300 | EY5: 375 | EZ5: =EZ4+EY5 -> 12375 | FA5: =IF($CQ$3<FA4,FA4,EZ5) -> 12000 | FB5: 400 | FC5: =FC4+FB5 -> 13900 | FD5: =IF($CQ$3<FD4,FD4,FC5) -> 13500 | FE5: 400 | FF5: =FF4+FE5 -> 14700 | FG5: =IF($CQ$3<FG4,FG4,FF5) -> 14300 | FH5: 450 | FI5: =FI4+FH5 -> 16850 | FJ5: =IF($CQ$3<FJ4,FJ4,FI5) -> 16400 | FK5: 500 | FL5: =FL4+FK5 -> 18900 | FM5: =IF($CQ$3<FM4,FM4,FL5) -> 18400 | FP5: BANSWARA | FQ5: 3 | FZ5: =IF(FT4="YES",FZ4,"") -> 
A6: Pay in old pay scale | D6: ='MS Fixation(1998)'!I8+'MS Fixation(1998)'!I9 -> 1030 | G6: =D6 -> 1030 | M6: 3 | N6: 800-15-950-20-1250 | O6: =X36 -> 1030 | P6: =Y36 -> 0 | Q6: =Q5 -> 12 | R6: 774 | S6: 1 | T6: =T5 -> 13 | U6: 801 | V6: =V5 -> 15 | W6: 1 | X6: 830 | Y6: =Y5 -> 15 | Z6: 855 | AA6: 1 | AB6: =AB5 -> 20 | AC6: 950 | AD6: 1 | AE6: =AE5 -> 20 | AF6: 990 | AG6: 1 | AH6: =AH5 -> 25 | AI6: 1025 | AJ6: 1 | AK6: =AK5 -> 25 | AL6: 1075 | AM6: FALSE | AN6: =AN5 -> 30 | AO6: 1260 | AP6: FALSE | AQ6: =AQ5 -> 40 | AR6: 1480 | AS6: FALSE | AT6: =AT5 -> 60 | AU6: 1760 | AV6: FALSE | AW6: =AW5 -> 60 | AX6: 2120 | AY6: FALSE | AZ6: =AZ5 -> 60 | BA6: 2120 | BB6: FALSE | BC6: =BC5 -> 75 | BD6: 2350 | BE6: FALSE | BF6: =BF5 -> 75 | BG6: 2650 | BH6: FALSE | BI6: =BI5 -> 75 | BJ6: 2800 | BK6: FALSE | BL6: =BL5 -> 100 | BM6: 3200 | BN6: FALSE | BO6: =BO5 -> 60 | BP6: 2120 | BQ6: FALSE | BR6: =BR5 -> 100 | BS6: 3200 | BT6: FALSE | BU6: =BU5 -> 125 | BV6: 3700 | BW6: FALSE | BX6: =BX5 -> 125 | BY6: 3950 | BZ6: FALSE | CA6: =CA5 -> 150 | CB6: 4400 | CC6: FALSE | CD6: =CD5 -> 150 | CE6: 4800 | CF6: FALSE | CG6: =CG5 -> 150 | CH6: 5400 | CI6: FALSE | CJ6: =CJ5 -> 200 | CK6: =CK5+CJ6 -> 6300 | CL6: =IF($AS$3>CK6,1) -> FALSE | CO6: =CO5 -> 55 | CP6: 2660 | CQ6: 2660 | CS6: =CS5 -> 60 | CT6: 2730 | CU6: 2730 | CV6: =CV5 -> 65 | CW6: 2780 | CX6: 2780 | CY6: =CY5 -> 70 | CZ6: 2890 | DA6: 2890 | DB6: =DB5 -> 75 | DC6: 3100 | DD6: 3100 | DE6: =DE5 -> 75 | DF6: 3200 | DG6: 3200 | DI6: =DI5 -> 85 | DJ6: 3370 | DK6: 3200 | DM6: =DM5 -> 90 | DN6: 3580 | DO6: 3400 | DP6: =DP5 -> 100 | DQ6: 4200 | DR6: 4000 | DS6: =DS5 -> 125 | DT6: 4750 | DU6: 4500 | DW6: =DW5 -> 150 | DX6: 5300 | DY6: 5000 | EA6: =EA5 -> 175 | EB6: 5850 | EC6: 5500 | ED6: =ED5 -> 200 | EE6: 6900 | EF6: 6500 | EG6: =EG5 -> 250 | EH6: 8000 | EI6: 7500 | EJ6: =EJ5 -> 275 | EK6: 8550 | EL6: 8000 | EM6: =EM5 -> 300 | EN6: 9600 | EO6: 9000 | EP6: =EP5 -> 325 | EQ6: 10650 | ER6: 10000 | ES6: =ES5 -> 325 | ET6: 11300 | EU6: 10650 | EV6: =EV5 -> 350 | EW6: 12000 | EX6: 11300 | EY6: =EY5 -> 375 | EZ6: 12750 | FA6: 12000 | FB6: =FB5 -> 400 | FC6: 14300 | FD6: 13500 | FE6: =FE5 -> 400 | FF6: 15100 | FG6: 14300 | FH6: =FH5 -> 450 | FI6: 17300 | FJ6: 16400 | FK6: =FK5 -> 500 | FL6: 19400 | FM6: 18400 | FP6: BARAN | FQ6: 4 | FS6: Data shown in increment order
A7: Upgrade old pay scale no | D7: =INDEX('Table 1998'!$M$4:$M$31,MATCH($D$5,'Table 1998'!$N$4:$N$31,0)) -> 6 | G7: =INDEX('Table 1998'!$M$4:$M$31,MATCH($G$5,'Table 1998'!$N$4:$N$31,0)) ->  | M7: 4 | N7: 825-15-900-20-1200-25-1350 | O7: =Z36 -> 1020 | P7: =AA36 -> 12 | Q7: =Q6 -> 12 | R7: 786 | S7: 1 | T7: =T6 -> 13 | U7: 814 | V7: 15 | W7: 1 | X7: 845 | Y7: =Y6 -> 15 | Z7: 870 | AA7: 1 | AB7: =AB6 -> 20 | AC7: 970 | AD7: 1 | AE7: 20 | AF7: 1010 | AG7: 1 | AH7: =AH6 -> 25 | AI7: 1050 | AJ7: FALSE | AK7: =AK6 -> 25 | AL7: 1100 | AM7: FALSE | AN7: =AN6 -> 30 | AO7: 1290 | AP7: FALSE | AQ7: =AQ6 -> 40 | AR7: 1520 | AS7: FALSE | AT7: 60 | AU7: 1820 | AV7: FALSE | AW7: =AW6 -> 60 | AX7: 2180 | AY7: FALSE | AZ7: =AZ6 -> 60 | BA7: 2180 | BB7: FALSE | BC7: =BC6 -> 75 | BD7: 2425 | BE7: FALSE | BF7: =BF6 -> 75 | BG7: 2725 | BH7: FALSE | BI7: 100 | BJ7: 2900 | BK7: FALSE | BL7: =BL6 -> 100 | BM7: 3300 | BN7: FALSE | BO7: =BO6 -> 60 | BP7: 2180 | BQ7: FALSE | BR7: =BR6 -> 100 | BS7: 3300 | BT7: FALSE | BU7: 125 | BV7: 3825 | BW7: FALSE | BX7: 125 | BY7: 4075 | BZ7: FALSE | CA7: =CA6 -> 150 | CB7: 4550 | CC7: FALSE | CD7: 150 | CE7: 4950 | CF7: FALSE | CG7: =CG6 -> 150 | CH7: 5550 | CI7: FALSE | CJ7: =CJ6 -> 200 | CK7: =CK6+CJ7 -> 6500 | CL7: =IF($AS$3>CK7,1) -> FALSE | CO7: 60 | CP7: 2720 | CQ7: 2720 | CS7: 60 | CT7: 2790 | CU7: 2790 | CV7: 65 | CW7: 2845 | CX7: 2845 | CY7: 70 | CZ7: 2960 | DA7: 2960 | DB7: 75 | DC7: 3175 | DD7: 3175 | DE7: 75 | DF7: 3275 | DG7: 3200 | DI7: 85 | DJ7: 3455 | DK7: 3200 | DM7: 90 | DN7: 3670 | DO7: 3400 | DP7: 100 | DQ7: 4300 | DR7: 4000 | DS7: 125 | DT7: 4875 | DU7: 4500 | DW7: 150 | DX7: 5450 | DY7: 5000 | EA7: 175 | EB7: 6025 | EC7: 5500 | ED7: 200 | EE7: 7100 | EF7: 6500 | EG7: 250 | EH7: 8250 | EI7: 7500 | EJ7: 275 | EK7: 8825 | EL7: 8000 | EM7: 300 | EN7: 9900 | EO7: 9000 | EP7: 325 | EQ7: 10975 | ER7: 10000 | ES7: 325 | ET7: 11625 | EU7: 10650 | EV7: 350 | EW7: 12350 | EX7: 11300 | EY7: 375 | EZ7: 13125 | FA7: 12000 | FB7: 400 | FC7: 14700 | FD7: 13500 | FE7: 400 | FF7: 15500 | FG7: 14300 | FH7: 450 | FI7: 17750 | FJ7: 16400 | FK7: 500 | FL7: 19900 | FM7: 18400 | FP7: BARMER | FQ7: 5 | FS7: No | FT7: Type | FU7: Date | FV7: 3% Incr. | FW7: Grade Pay at start | FX7: Grade pay at end | FY7: Diff. of G.Pay | FZ7: Pay Code | GA7: Pay code before inc. | GB7: Pay at start | GC7: Pay at end | GD7: Condt
A8: Pay in highter pay scale | D8: =INDEX('Table 1998'!$O$4:$O$31,MATCH($D$7,'Table 1998'!$M$4:$M$31,0)) -> 1030 | G8: =INDEX('Table 1998'!$O$4:$O$31,MATCH($D$7,'Table 1998'!$M$4:$M$31,0)) -> 1030 | M8: 5 | N8: 910-20-1150-25-1400-30-1520 | O8: =AC36 -> 1030 | P8: =AD36 -> 6 | Q8: =Q7 -> 12 | R8: 798 | S8: 1 | T8: =T7 -> 13 | U8: 827 | V8: 15 | W8: 1 | X8: 860 | Y8: =Y7 -> 15 | Z8: 885 | AA8: 1 | AB8: =AB7 -> 20 | AC8: 990 | AD8: 1 | AE8: 20 | AF8: 1030 | AG8: FALSE | AH8: =AH7 -> 25 | AI8: 1075 | AJ8: FALSE | AK8: 30 | AL8: 1130 | AM8: FALSE | AN8: =AN7 -> 30 | AO8: 1320 | AP8: FALSE | AQ8: =AQ7 -> 40 | AR8: 1560 | AS8: FALSE | AT8: 60 | AU8: 1880 | AV8: FALSE | AW8: =AW7 -> 60 | AX8: 2240 | AY8: FALSE | AZ8: =AZ7 -> 60 | BA8: 2240 | BB8: FALSE | BC8: =BC7 -> 75 | BD8: 2500 | BE8: FALSE | BF8: =BF7 -> 75 | BG8: 2800 | BH8: FALSE | BI8: =BI7 -> 100 | BJ8: 3000 | BK8: FALSE | BL8: =BL7 -> 100 | BM8: 3400 | BN8: FALSE | BO8: =BO7 -> 60 | BP8: 2240 | BQ8: FALSE | BR8: =BR7 -> 100 | BS8: 3400 | BT8: FALSE | BU8: 125 | BV8: 3950 | BW8: FALSE | BX8: 125 | BY8: 4200 | BZ8: FALSE | CA8: =CA7 -> 150 | CB8: 4700 | CC8: FALSE | CD8: 150 | CE8: 5100 | CF8: FALSE | CG8: =CG7 -> 150 | CH8: 5700 | CI8: FALSE | CJ8: =CJ7 -> 200 | CK8: =CK7+CJ8 -> 6700 | CL8: =IF($AS$3>CK8,1) -> FALSE | CO8: =CO7 -> 60 | CP8: 2780 | CQ8: 2780 | CS8: 60 | CT8: 2850 | CU8: 2850 | CV8: 65 | CW8: 2910 | CX8: 2910 | CY8: 70 | CZ8: 3030 | DA8: 3030 | DB8: 75 | DC8: 3250 | DD8: 3175 | DE8: 75 | DF8: 3350 | DG8: 3200 | DI8: 85 | DJ8: 3540 | DK8: 3200 | DM8: 90 | DN8: 3760 | DO8: 3400 | DP8: 100 | DQ8: 4400 | DR8: 4000 | DS8: 125 | DT8: 5000 | DU8: 4500 | DW8: 150 | DX8: 5600 | DY8: 5000 | EA8: 175 | EB8: 6200 | EC8: 5500 | ED8: 200 | EE8: 7300 | EF8: 6500 | EG8: 250 | EH8: 8500 | EI8: 7500 | EJ8: 275 | EK8: 9100 | EL8: 8000 | EM8: 300 | EN8: 10200 | EO8: 9000 | EP8: 325 | EQ8: 11300 | ER8: 10000 | ES8: 325 | ET8: 11950 | EU8: 10650 | EV8: 350 | EW8: 12700 | EX8: 11300 | EY8: 375 | EZ8: 13500 | FA8: 12000 | FB8: 400 | FC8: 15100 | FD8: 13500 | FE8: 400 | FF8: 15900 | FG8: 14300 | FH8: 450 | FI8: 18200 | FJ8: 16400 | FK8: 500 | FL8: 20400 | FM8: 18400 | FP8: BHARATPUR | FQ8: 6
A9: Personal pay | D9: =D6-D8 -> 0 | G9: =D9 -> 0 | M9: 6 | N9: 950-20-1150-25-1400-30-1640-40-1680 | O9: =AF36 -> 1030 | P9: =AG36 -> 4 | Q9: 13 | R9: 811 | S9: 1 | T9: 13 | U9: 840 | V9: 15 | W9: 1 | X9: 875 | Y9: =Y8 -> 15 | Z9: 900 | AA9: 1 | AB9: =AB8 -> 20 | AC9: 1010 | AD9: 1 | AE9: 20 | AF9: 1050 | AG9: FALSE | AH9: =AH8 -> 25 | AI9: 1100 | AJ9: FALSE | AK9: =AK8 -> 30 | AL9: 1160 | AM9: FALSE | AN9: =AN8 -> 30 | AO9: 1350 | AP9: FALSE | AQ9: =AQ8 -> 40 | AR9: 1600 | AS9: FALSE | AT9: 60 | AU9: 1940 | AV9: FALSE | AW9: =AW8 -> 60 | AX9: 2300 | AY9: FALSE | AZ9: =AZ8 -> 60 | BA9: 2300 | BB9: FALSE | BC9: =BC8 -> 75 | BD9: 2575 | BE9: FALSE | BF9: 100 | BG9: 2900 | BH9: FALSE | BI9: 100 | BJ9: 3100 | BK9: FALSE | BL9: =BL8 -> 100 | BM9: 3500 | BN9: FALSE | BO9: =BO8 -> 60 | BP9: 2300 | BQ9: FALSE | BR9: =BR8 -> 100 | BS9: 3500 | BT9: FALSE | BU9: 125 | BV9: 4075 | BW9: FALSE | BX9: 125 | BY9: 4325 | BZ9: FALSE | CA9: =CA8 -> 150 | CB9: 4850 | CC9: FALSE | CD9: 150 | CE9: 5250 | CF9: FALSE | CG9: 200 | CH9: 5900 | CI9: FALSE | CO9: 60 | CP9: 2840 | CQ9: 2840 | CS9: 60 | CT9: 2910 | CU9: 2910 | CV9: 65 | CW9: 2975 | CX9: 2975 | CY9: 70 | CZ9: 3100 | DA9: 3100 | DB9: 75 | DC9: 3325 | DD9: 3175 | DE9: 75 | DF9: 3425 | DG9: 3200 | DI9: 85 | DJ9: 3625 | DK9: 3200 | DM9: 90 | DN9: 3850 | DO9: 3400 | DP9: 100 | DQ9: 4500 | DR9: 4000 | DS9: 125 | DT9: 5125 | DU9: 4500 | DW9: 150 | DX9: 5750 | DY9: 5000 | EA9: 175 | EB9: 6375 | EC9: 5500 | ED9: 200 | EE9: 7500 | EF9: 6500 | EG9: 250 | EH9: 8750 | EI9: 7500 | EJ9: 275 | EK9: 9375 | EL9: 8000 | EM9: 300 | EN9: 10500 | EO9: 9000 | EP9: 325 | EQ9: 11625 | ER9: 10000 | ES9: 325 | ET9: 12275 | EU9: 10650 | EV9: 350 | EW9: 13050 | EX9: 11300 | EY9: 375 | EZ9: 13875 | FA9: 12000 | FB9: 400 | FC9: 15500 | FD9: 13500 | FE9: 400 | FF9: 16300 | FG9: 14300 | FH9: 450 | FI9: 18650 | FJ9: 16400 | FK9: 500 | FL9: 20900 | FM9: 18400 | FP9: BHILWARA | FQ9: 7 | FS9: I | FW9: =FX9-FY9 ->  | FX9: =INDEX($O$11:$O$25,MATCH($H$35,$Q$11:$Q$25,0)) ->  | FY9: =MAX($Q$11:$Q$25) -> 15 | FZ9: =INDEX($U$11:$U$25,MATCH($H$35,$Q$11:$Q$25,0)) ->  | GA9: =IF(FY9>0,FZ9-1,FZ9) ->  | GB9: =INDEX($P$11:$P$25,MATCH($J$35,$U$11:$U$25,0)) ->  | GC9: =INDEX($P$11:$P$25,MATCH($I$35,$U$11:$U$25,0)) ->  | GD9: 0
A10: Revsied existing pay scale | D10: =D5 -> 950-20-1150-25-1400-30-1640-40-1680 | G10: =IF(G4="YES",G5,G11) ->  | M10: 7 | N10: 975-25-1100-30-1640-40-1720 | O10: =AI36 -> 1025 | P10: =AJ36 -> 3 | Q10: =Q9 -> 13 | R10: 824 | S10: 1 | T10: 15 | U10: 855 | V10: 15 | W10: 1 | X10: 890 | Y10: 20 | Z10: 920 | AA10: 1 | AB10: 20 | AC10: 1030 | AD10: FALSE | AE10: 20 | AF10: 1070 | AG10: FALSE | AH10: 30 | AI10: 1130 | AJ10: FALSE | AK10: 30 | AL10: 1190 | AM10: FALSE | AN10: 30 | AO10: 1380 | AP10: FALSE | AQ10: 50 | AR10: 1650 | AS10: FALSE | AT10: 60 | AU10: 2000 | AV10: FALSE | AW10: 75 | AX10: 2375 | AY10: FALSE | AZ10: 75 | BA10: 2375 | BB10: FALSE | BC10: 75 | BD10: 2650 | BE10: FALSE | BF10: 100 | BG10: 3000 | BH10: FALSE | BI10: 100 | BJ10: 3200 | BK10: FALSE | BL10: 125 | BM10: 3625 | BN10: FALSE | BO10: 75 | BP10: 2375 | BQ10: FALSE | BR10: 125 | BS10: 3625 | BT10: FALSE | BU10: 125 | BV10: 4200 | BW10: FALSE | BX10: 125 | BY10: 4450 | BZ10: FALSE | CA10: =CA9 -> 150 | CB10: 5000 | CC10: FALSE | CD10: 150 | CE10: 5400 | CF10: FALSE | CG10: 200 | CH10: 6100 | CI10: FALSE | CO10: 60 | CP10: 2900 | CQ10: 2900 | CS10: 60 | CT10: 2970 | CU10: 2970 | CV10: 65 | CW10: 3040 | CX10: 3040 | CY10: 70 | CZ10: 3170 | DA10: 3170 | DB10: 75 | DC10: 3400 | DD10: 3175 | DE10: 75 | DF10: 3500 | DG10: 3200 | DI10: 85 | DJ10: 3710 | DK10: 3200 | DM10: 90 | DN10: 3940 | DO10: 3400 | DP10: 100 | DQ10: 4600 | DR10: 4000 | DS10: 125 | DT10: 5250 | DU10: 4500 | DW10: 150 | DX10: 5900 | DY10: 5000 | EA10: 175 | EB10: 6550 | EC10: 5500 | ED10: 200 | EE10: 7700 | EF10: 6500 | EG10: 250 | EH10: 9000 | EI10: 7500 | EJ10: 275 | EK10: 9650 | EL10: 8000 | EM10: 300 | EN10: 10800 | EO10: 9000 | EP10: 325 | EQ10: 11950 | ER10: 10000 | ES10: 325 | ET10: 12600 | EU10: 10650 | EV10: 350 | EW10: 13400 | EX10: 11300 | EY10: 375 | EZ10: 14250 | FA10: 12000 | FB10: 400 | FC10: 15900 | FD10: 13500 | FE10: 400 | FF10: 16700 | FG10: 14300 | FH10: 450 | FI10: 19100 | FJ10: 16400 | FK10: 500 | FL10: 21400 | FM10: 18400 | FP10: BIKANER | FQ10: 8 | FS10: II | FW10: =FX10-FY10 ->  | FX10: =INDEX($O$11:$O$25,MATCH($H$36,$R$11:$R$25,0)) ->  | FY10: =MAX($R$11:$R$25) -> 940 | FZ10: =INDEX($U$11:$U$25,MATCH($H$36,$R$11:$R$25,0)) ->  | GA10: =FZ10-1 ->  | GB10: =INDEX($P$11:$P$25,MATCH($J$36,$U$11:$U$25,0)) ->  | GC10: =INDEX($P$11:$P$25,MATCH($I$36,$U$11:$U$25,0)) ->  | GD10: 0
A11: New pay scale before upgradion | D11: =INDEX('Table 1998'!$N$40:$N$67,MATCH($D$2,'Table 1998'!$N$4:$N$31,0)) -> 3050-75-3950-80-4590 | G11: =INDEX('Table 1998'!$N$40:$N$67,MATCH($G$2,'Table 1998'!$N$4:$N$31,0)) ->  | M11: 8 | N11: 1025-25-1100-30-1640-40-1800 | O11: =AL36 -> 1025 | P11: =AM36 -> 1 | Q11: =Q10 -> 13 | R11: 837 | S11: 1 | T11: =T10 -> 15 | U11: 870 | V11: 15 | W11: 1 | X11: 905 | Y11: =Y10 -> 20 | Z11: 940 | AA11: 1 | AB11: =AB10 -> 20 | AC11: 1050 | AD11: FALSE | AE11: 20 | AF11: 1090 | AG11: FALSE | AH11: =AH10 -> 30 | AI11: 1160 | AJ11: FALSE | AK11: =AK10 -> 30 | AL11: 1220 | AM11: FALSE | AN11: =AN10 -> 30 | AO11: 1410 | AP11: FALSE | AQ11: =AQ10 -> 50 | AR11: 1700 | AS11: FALSE | AT11: 60 | AU11: 2060 | AV11: FALSE | AW11: =AW10 -> 75 | AX11: 2450 | AY11: FALSE | AZ11: =AZ10 -> 75 | BA11: 2450 | BB11: FALSE | BC11: =BC10 -> 75 | BD11: 2725 | BE11: FALSE | BF11: =BF10 -> 100 | BG11: 3100 | BH11: FALSE | BI11: =BI10 -> 100 | BJ11: 3300 | BK11: FALSE | BL11: =BL10 -> 125 | BM11: 3750 | BN11: FALSE | BO11: =BO10 -> 75 | BP11: 2450 | BQ11: FALSE | BR11: =BR10 -> 125 | BS11: 3750 | BT11: FALSE | BU11: 125 | BV11: 4325 | BW11: FALSE | BX11: 125 | BY11: 4575 | BZ11: FALSE | CD11: 150 | CE11: 5550 | CF11: FALSE | CG11: =CG10 -> 200 | CH11: 6300 | CI11: FALSE | CO11: 60 | CP11: 2960 | CQ11: 2960 | CS11: 60 | CT11: 3030 | CU11: 3030 | CV11: 65 | CW11: 3105 | CX11: 3105 | CY11: 70 | CZ11: 3240 | DA11: 3170 | DB11: 75 | DC11: 3475 | DD11: 3175 | DE11: 75 | DF11: 3575 | DG11: 3200 | DI11: 85 | DJ11: 3795 | DK11: 3200 | DM11: 90 | DN11: 4030 | DO11: 3400 | DP11: 100 | DQ11: 4700 | DR11: 4000 | DS11: 125 | DT11: 5375 | DU11: 4500 | DW11: 150 | DX11: 6050 | DY11: 5000 | EA11: 175 | EB11: 6725 | EC11: 5500 | ED11: 200 | EE11: 7900 | EF11: 6500 | EG11: 250 | EH11: 9250 | EI11: 7500 | EJ11: 275 | EK11: 9925 | EL11: 8000 | EM11: 300 | EN11: 11100 | EO11: 9000 | EP11: 325 | EQ11: 12275 | ER11: 10000 | ES11: 325 | ET11: 12925 | EU11: 10650 | EV11: 350 | EW11: 13750 | EX11: 11300 | EY11: 375 | EZ11: 14625 | FA11: 12000 | FB11: 400 | FC11: 16300 | FD11: 13500 | FE11: 400 | FF11: 17100 | FG11: 14300 | FH11: 450 | FI11: 19550 | FJ11: 16400 | FK11: 500 | FL11: 21900 | FM11: 18400 | FP11: BUNDI | FQ11: 9
A12: New pay scale after upgradtion | D12: =INDEX('Table 1998'!$N$40:$N$67,MATCH($D$10,'Table 1998'!$N$4:$N$31,0)) -> 3050-75-3950-80-4590 | G12: =INDEX('Table 1998'!$N$40:$N$67,MATCH($G$10,'Table 1998'!$N$4:$N$31,0)) ->  | M12: 9 | N12: 1200-30-1560-40-2000-50-2050 | O12: =AO36 -> 1030 | P12: =AP36 -> 0 | Q12: =Q11 -> 13 | R12: 850 | S12: 1 | T12: =T11 -> 15 | U12: 885 | V12: 15 | W12: 1 | X12: 920 | Y12: =Y11 -> 20 | Z12: 960 | AA12: 1 | AB12: =AB11 -> 20 | AC12: 1070 | AD12: FALSE | AE12: 20 | AF12: 1110 | AG12: FALSE | AH12: 30 | AI12: 1190 | AJ12: FALSE | AK12: 30 | AL12: 1250 | AM12: FALSE | AN12: 30 | AO12: 1440 | AP12: FALSE | AQ12: 50 | AR12: 1750 | AS12: FALSE | AT12: 60 | AU12: 2120 | AV12: FALSE | AW12: 75 | AX12: 2525 | AY12: FALSE | AZ12: 75 | BA12: 2525 | BB12: FALSE | BC12: =BC11 -> 75 | BD12: 2800 | BE12: FALSE | BF12: 100 | BG12: 3200 | BH12: FALSE | BI12: 100 | BJ12: 3400 | BK12: FALSE | BL12: 125 | BM12: 3875 | BN12: FALSE | BO12: 75 | BP12: 2525 | BQ12: FALSE | BR12: 125 | BS12: 3875 | BT12: FALSE | BU12: 125 | BV12: 4450 | BW12: FALSE | BX12: 125 | BY12: 4700 | BZ12: FALSE | CD12: 150 | CE12: 5700 | CF12: FALSE | CO12: 60 | CP12: 3020 | CQ12: 3020 | CS12: 60 | CT12: 3090 | CU12: 3090 | CV12: 65 | CW12: 3170 | CX12: 3170 | CY12: 70 | CZ12: 3310 | DA12: 3170 | DB12: 75 | DC12: 3550 | DD12: 3175 | DE12: 75 | DF12: 3650 | DG12: 3200 | DI12: 85 | DJ12: 3880 | DK12: 3200 | DM12: 90 | DN12: 4120 | DO12: 3400 | DP12: 100 | DQ12: 4800 | DR12: 4000 | DS12: 125 | DT12: 5500 | DU12: 4500 | DW12: 150 | DX12: 6200 | DY12: 5000 | EA12: 175 | EB12: 6900 | EC12: 5500 | ED12: 200 | EE12: 8100 | EF12: 6500 | EG12: 250 | EH12: 9500 | EI12: 7500 | EJ12: 275 | EK12: 10200 | EL12: 8000 | EM12: 300 | EN12: 11400 | EO12: 9000 | EP12: 325 | EQ12: 12600 | ER12: 10000 | ES12: 325 | ET12: 13250 | EU12: 10650 | EV12: 350 | EW12: 14100 | EX12: 11300 | EY12: 375 | EZ12: 15000 | FA12: 12000 | FB12: 400 | FC12: 16700 | FD12: 13500 | FE12: 400 | FF12: 17500 | FG12: 14300 | FH12: 450 | FI12: 20000 | FJ12: 16400 | FK12: 500 | FL12: 22400 | FM12: 18400 | FP12: CHITTORGARH | FQ12: 10 | FT12: =IF(GD9="YES",FT9,"") -> 
A13: Revsied pay scale no after upgradtion | D13: =INDEX('Table 1998'!$M$40:$M$67,MATCH($D$12,'Table 1998'!$N$40:$N$67,0)) -> 6 | G13: =INDEX('Table 1998'!$M$40:$M$67,MATCH($G$12,'Table 1998'!$N$40:$N$67,0)) ->  | M13: 9 | N13: 1200-30-1560-40-2000-50-2050 | O13: =AO36 -> 1030 | P13: =AP36 -> 0 | Q13: 15 | R13: 865 | S13: 1 | T13: 15 | U13: 900 | V13: 15 | W13: 1 | X13: 935 | Y13: =Y12 -> 20 | Z13: 980 | AA13: 1 | AB13: =AB12 -> 20 | AC13: 1090 | AD13: FALSE | AE13: 20 | AF13: 1130 | AG13: FALSE | AH13: 30 | AI13: 1220 | AJ13: FALSE | AK13: 30 | AL13: 1280 | AM13: FALSE | AN13: 30 | AO13: 1470 | AP13: FALSE | AQ13: 50 | AR13: 1800 | AS13: FALSE | AT13: 60 | AU13: 2180 | AV13: FALSE | AW13: 75 | AX13: 2600 | AY13: FALSE | AZ13: 75 | BA13: 2600 | BB13: FALSE | BC13: 100 | BD13: 2900 | BE13: FALSE | BF13: 100 | BG13: 3300 | BH13: FALSE | BI13: 100 | BJ13: 3500 | BK13: FALSE | BL13: 125 | BM13: 4000 | BN13: FALSE | BO13: 75 | BP13: 2600 | BQ13: FALSE | BR13: 125 | BS13: 4000 | BT13: FALSE | BU13: 125 | BV13: 4575 | BW13: FALSE | BX13: 150 | BY13: 4850 | BZ13: FALSE | CO13: 60 | CP13: 3080 | CQ13: 3080 | CS13: 60 | CT13: 3150 | CU13: 3150 | CV13: 65 | CW13: 3235 | CX13: 3170 | CY13: 70 | CZ13: 3380 | DA13: 3170 | DB13: 75 | DC13: 3625 | DD13: 3175 | DE13: 75 | DF13: 3725 | DG13: 3200 | DI13: 85 | DJ13: 3965 | DK13: 3200 | DM13: 90 | DN13: 4210 | DO13: 3400 | DP13: 100 | DQ13: 4900 | DR13: 4000 | DS13: 125 | DT13: 5625 | DU13: 4500 | DW13: 150 | DX13: 6350 | DY13: 5000 | EA13: 175 | EB13: 7075 | EC13: 5500 | ED13: 200 | EE13: 8300 | EF13: 6500 | EG13: 250 | EH13: 9750 | EI13: 7500 | EJ13: 275 | EK13: 10475 | EL13: 8000 | EM13: 300 | EN13: 11700 | EO13: 9000 | EP13: 325 | EQ13: 12925 | ER13: 10000 | ES13: 325 | ET13: 13575 | EU13: 10650 | EV13: 350 | EW13: 14450 | EX13: 11300 | EY13: 375 | EZ13: 15375 | FA13: 12000 | FB13: 400 | FC13: 17100 | FD13: 13500 | FE13: 400 | FF13: 17900 | FG13: 14300 | FP13: CHURU | FQ13: 11 | FS13: Name of Treasury or sub treasury for dispatch letter
A14: Fixation of pay in revised pay scale | D14: =INDEX('Table 1998'!$O$40:$O$67,MATCH($D$13,'Table 1998'!$M$40:$M$67,0)) -> 3200 | G14: =INDEX('Table 1998'!$O$40:$O$67,MATCH($G$13,'Table 1998'!$M$40:$M$67,0)) ->  | M14: 12 | N14: 1400-40-1600-50-2300-60-2600 | O14: =AR36 -> 1030 | P14: =AS36 -> 0 | Q14: =Q13 -> 15 | R14: 880 | S14: 1 | T14: =T13 -> 15 | U14: 915 | V14: 15 | W14: 1 | X14: 950 | Y14: =Y13 -> 20 | Z14: 1000 | AA14: 1 | AB14: =AB13 -> 20 | AC14: 1110 | AD14: FALSE | AE14: 20 | AF14: 1150 | AG14: FALSE | AH14: 30 | AI14: 1250 | AJ14: FALSE | AK14: 30 | AL14: 1310 | AM14: FALSE | AN14: 30 | AO14: 1500 | AP14: FALSE | AQ14: 50 | AR14: 1850 | AS14: FALSE | AT14: 60 | AU14: 2240 | AV14: FALSE | AW14: 75 | AX14: 2675 | AY14: FALSE | AZ14: 75 | BA14: 2675 | BB14: FALSE | BC14: =BC13 -> 100 | BD14: 3000 | BE14: FALSE | BF14: 100 | BG14: 3400 | BH14: FALSE | BI14: 100 | BJ14: 3600 | BK14: FALSE | BL14: 125 | BM14: 4125 | BN14: FALSE | BO14: 75 | BP14: 2675 | BQ14: FALSE | BR14: 125 | BS14: 4125 | BT14: FALSE | BU14: 125 | BV14: 4700 | BW14: FALSE | BX14: =BX13 -> 150 | BY14: 5000 | BZ14: FALSE | CO14: 60 | CP14: 3140 | CQ14: 3140 | CS14: 65 | CT14: 3215 | CU14: 3215 | CV14: 65 | CW14: 3300 | CX14: 3170 | CY14: 70 | CZ14: 3450 | DA14: 3170 | DB14: 75 | DC14: 3700 | DD14: 3175 | DE14: 75 | DF14: 3800 | DG14: 3200 | DI14: 85 | DJ14: 4050 | DK14: 3200 | DM14: 90 | DN14: 4300 | DO14: 3400 | DP14: 100 | DQ14: 5000 | DR14: 4000 | DS14: 125 | DT14: 5750 | DU14: 4500 | DW14: 150 | DX14: 6500 | DY14: 5000 | EA14: 175 | EB14: 7250 | EC14: 5500 | ED14: 200 | EE14: 8500 | EF14: 6500 | EG14: 250 | EH14: 10000 | EI14: 7500 | EJ14: 275 | EK14: 10750 | EL14: 8000 | EM14: 300 | EN14: 12000 | EO14: 9000 | EP14: 325 | EQ14: 13250 | ER14: 10000 | ES14: 325 | ET14: 13900 | EU14: 10650 | EV14: 350 | EW14: 14800 | EX14: 11300 | EY14: 375 | EZ14: 15750 | FA14: 12000 | FB14: 400 | FC14: 17500 | FD14: 13500 | FE14: 400 | FF14: 18300 | FG14: 14300 | FP14: DAUSA | FQ14: 12 | FS14: Sub Treasury | FT14: ='MS Fixation(1998)'!G64 -> Treasury | FU14: ='MS Fixation(1998)'!H64 -> JAISALMER
A15: Maximum of pay scale | D15: =INDEX('Table 1998'!$X$40:$X$67,MATCH($D$13,'Table 1998'!$M$40:$M$67,0)) -> 1680 | G15: =INDEX('Table 1998'!$X$40:$X$67,MATCH($G$13,'Table 1998'!$M$40:$M$67,0)) ->  | M15: 13 | N15: 1640-60-2600-75-2900 | O15: =AU36 -> 1030 | P15: =AV36 -> 0 | Q15: =Q14 -> 15 | R15: 895 | S15: 1 | T15: 15 | U15: 930 | V15: 20 | W15: 1 | X15: 970 | Y15: 20 | Z15: 1020 | AA15: 1 | AB15: 20 | AC15: 1130 | AD15: FALSE | AE15: 25 | AF15: 1175 | AG15: FALSE | AH15: 30 | AI15: 1280 | AJ15: FALSE | AK15: 30 | AL15: 1340 | AM15: FALSE | AN15: 30 | AO15: 1530 | AP15: FALSE | AQ15: 50 | AR15: 1900 | AS15: FALSE | AT15: 60 | AU15: 2300 | AV15: FALSE | AW15: 75 | AX15: 2750 | AY15: FALSE | AZ15: 75 | BA15: 2750 | BB15: FALSE | BC15: 100 | BD15: 3100 | BE15: FALSE | BF15: 100 | BG15: 3500 | BH15: FALSE | BI15: 100 | BJ15: 3700 | BK15: FALSE | BL15: 125 | BM15: 4250 | BN15: FALSE | BO15: 75 | BP15: 2750 | BQ15: FALSE | BR15: 125 | BS15: 4250 | BT15: FALSE | BU15: 150 | BV15: 4850 | BW15: FALSE | CO15: 60 | CP15: 3200 | CQ15: 3200 | CS15: =CS14 -> 65 | CT15: 3280 | CU15: 3215 | CV15: 70 | CW15: 3370 | CX15: 3170 | CY15: 70 | CZ15: 3520 | DA15: 3170 | DB15: 75 | DC15: 3775 | DD15: 3175 | DE15: 75 | DF15: 3875 | DG15: 3200 | DI15: 85 | DJ15: 4135 | DK15: 3200 | DM15: 90 | DN15: 4390 | DO15: 3400 | DP15: 100 | DQ15: 5100 | DR15: 4000 | DS15: 125 | DT15: 5875 | DU15: 4500 | DW15: 150 | DX15: 6650 | DY15: 5000 | EA15: 175 | EB15: 7425 | EC15: 5500 | ED15: 200 | EE15: 8700 | EF15: 6500 | EG15: 250 | EH15: 10250 | EI15: 7500 | EJ15: 275 | EK15: 11025 | EL15: 8000 | EM15: 300 | EN15: 12300 | EO15: 9000 | EP15: 325 | EQ15: 13575 | ER15: 10000 | ES15: 325 | ET15: 14225 | EU15: 10650 | EV15: 350 | EW15: 15150 | EX15: 11300 | EY15: 375 | EZ15: 16125 | FA15: 12000 | FP15: DHOLPUR | FQ15: 13 | FS15: Treasury | FT15: Treasury | FU15: ='MS Fixation(1998)'!H65 -> Pokaran
A16: Maximum of pay scale campre with fixation of pay in rev.scale (minimum) | D16: =IF(D15>D14,D15,D14) -> 3200 | G16: =IF(G15>G14,G15,G14) ->  | M16: 14 | N16: 2000-60-2300-75-3200 | O16: =AX36 -> 1030 | P16: =AY36 -> 0 | Q16: =Q15 -> 15 | R16: 910 | S16: 1 | T16: 15 | U16: 945 | V16: =V15 -> 20 | W16: 1 | X16: 990 | Y16: =Y15 -> 20 | Z16: 1040 | AA16: FALSE | AB16: =AB15 -> 20 | AC16: 1150 | AD16: FALSE | AE16: =AE15 -> 25 | AF16: 1200 | AG16: FALSE | AH16: 30 | AI16: 1310 | AJ16: FALSE | AK16: 30 | AL16: 1370 | AM16: FALSE | AN16: 30 | AO16: 1560 | AP16: FALSE | AQ16: 50 | AR16: 1950 | AS16: FALSE | AT16: 60 | AU16: 2360 | AV16: FALSE | AW16: 75 | AX16: 2825 | AY16: FALSE | AZ16: 75 | BA16: 2825 | BB16: FALSE | BC16: 100 | BD16: 3200 | BE16: FALSE | BF16: 100 | BG16: 3600 | BH16: FALSE | BI16: 100 | BJ16: 3800 | BK16: FALSE | BL16: 125 | BM16: 4375 | BN16: FALSE | BO16: 75 | BP16: 2825 | BQ16: FALSE | BR16: 125 | BS16: 4375 | BT16: FALSE | BU16: =BU15 -> 150 | BV16: 5000 | BW16: FALSE | CS16: =CS15 -> 65 | CT16: 3345 | CU16: 3215 | CV16: =CV15 -> 70 | CW16: 3440 | CX16: 3170 | CY16: 70 | CZ16: 3590 | DA16: 3170 | DB16: 75 | DC16: 3850 | DD16: 3175 | DE16: 75 | DF16: 3950 | DG16: 3200 | DI16: 85 | DJ16: 4220 | DK16: 3200 | DM16: 90 | DN16: 4480 | DO16: 3400 | DP16: 100 | DQ16: 5200 | DR16: 4000 | DS16: 125 | DT16: 6000 | DU16: 4500 | DW16: 150 | DX16: 6800 | DY16: 5000 | EA16: 175 | EB16: 7600 | EC16: 5500 | ED16: 200 | EE16: 8900 | EF16: 6500 | EG16: 250 | EH16: 10500 | EI16: 7500 | EJ16: 275 | EK16: 11300 | EL16: 8000 | EM16: 300 | EN16: 12600 | EO16: 9000 | EP16: 325 | EQ16: 13900 | ER16: 10000 | ES16: 325 | ET16: 14550 | EU16: 10650 | EV16: 350 | EW16: 15500 | EX16: 11300 | EY16: 375 | EZ16: 16500 | FA16: 12000 | FP16: DUNGARPUR | FQ16: 14 | FT16: =IF(FT14=FS14,FT14,FS15) -> Treasury | FU16: =IF(FT14="Sub Treasury",FU15,FU14) -> JAISALMER
A17: Minimum inc ensured condtion | D17: =INDEX('Table 1998'!$Y$40:$Y$67,MATCH($D$13,'Table 1998'!$M$40:$M$67,0)) -> 3125 | G17: =INDEX('Table 1998'!$Y$40:$Y$67,MATCH($G$13,'Table 1998'!$M$40:$M$67,0)) ->  | M17: 15 | N17: 2000-60-2300-75-3200-100-3500 | O17: =BA36 -> 1030 | P17: =BB36 -> 0 | Q17: =Q16 -> 15 | R17: 925 | S17: 1 | T17: 15 | U17: 960 | V17: 20 | W17: 1 | X17: 1010 | Y17: 20 | Z17: 1060 | AA17: FALSE | AB17: 25 | AC17: 1175 | AD17: FALSE | AE17: 25 | AF17: 1225 | AG17: FALSE | AH17: 30 | AI17: 1340 | AJ17: FALSE | AK17: 30 | AL17: 1400 | AM17: FALSE | AN17: 40 | AO17: 1600 | AP17: FALSE | AQ17: 50 | AR17: 2000 | AS17: FALSE | AT17: 60 | AU17: 2420 | AV17: FALSE | AW17: 75 | AX17: 2900 | AY17: FALSE | AZ17: 75 | BA17: 2900 | BB17: FALSE | BC17: 100 | BD17: 3300 | BE17: FALSE | BF17: 100 | BG17: 3700 | BH17: FALSE | BI17: 100 | BJ17: 3900 | BK17: FALSE | BL17: 125 | BM17: 4500 | BN17: FALSE | BO17: 75 | BP17: 2900 | BQ17: FALSE | BR17: 125 | BS17: 4500 | BT17: FALSE | CS17: =CS16 -> 65 | CT17: 3410 | CU17: 3215 | CV17: 70 | CW17: 3510 | CX17: 3170 | CY17: 70 | CZ17: 3660 | DA17: 3170 | DB17: 75 | DC17: 3925 | DD17: 3175 | DE17: 80 | DF17: 4030 | DG17: 3200 | DI17: 85 | DJ17: 4305 | DK17: 3200 | DM17: 90 | DN17: 4570 | DO17: 3400 | DP17: 100 | DQ17: 5300 | DR17: 4000 | DS17: 125 | DT17: 6125 | DU17: 4500 | DW17: 150 | DX17: 6950 | DY17: 5000 | EA17: 175 | EB17: 7775 | EC17: 5500 | ED17: 200 | EE17: 9100 | EF17: 6500 | EG17: 250 | EH17: 10750 | EI17: 7500 | EJ17: 275 | EK17: 11575 | EL17: 8000 | EM17: 300 | EN17: 12900 | EO17: 9000 | EP17: 325 | EQ17: 14225 | ER17: 10000 | ES17: 325 | ET17: 14875 | EU17: 10650 | EV17: 350 | EW17: 15850 | EX17: 11300 | FP17: GANGANAGAR | FQ17: 15 | FS17: Final name | FT17: =CONCATENATE(FT16," ",FU16) -> Treasury JAISALMER
A18: Pay in old pay scale | D18: ='MS Fixation(1998)'!C11+'MS Fixation(1998)'!D11 -> 1030 | G18: =D18 -> 1030 | Q18: =Q17 -> 15 | R18: 940 | S18: 1 | T18: 15 | U18: 975 | V18: 20 | W18: 1 | X18: 1030 | Y18: 20 | Z18: 1080 | AA18: FALSE | AB18: =AB17 -> 25 | AC18: 1200 | AD18: FALSE | AE18: 25 | AF18: 1250 | AG18: FALSE | AH18: 30 | AI18: 1370 | AJ18: FALSE | AK18: 30 | AL18: 1430 | AM18: FALSE | AN18: =AN17 -> 40 | AO18: 1640 | AP18: FALSE | AQ18: 50 | AR18: 2050 | AS18: FALSE | AT18: 60 | AU18: 2480 | AV18: FALSE | AW18: 75 | AX18: 2975 | AY18: FALSE | AZ18: 75 | BA18: 2975 | BB18: FALSE | BC18: 100 | BD18: 3400 | BE18: FALSE | BF18: 100 | BG18: 3800 | BH18: FALSE | BI18: 100 | BJ18: 4000 | BK18: FALSE | BL18: 125 | BM18: 4625 | BN18: FALSE | BO18: 75 | BP18: 2975 | BQ18: FALSE | BR18: 125 | BS18: 4625 | BT18: FALSE | CS18: =CS17 -> 65 | CT18: 3475 | CU18: 3215 | CV18: 70 | CW18: 3580 | CX18: 3170 | CY18: 70 | CZ18: 3730 | DA18: 3170 | DB18: 75 | DC18: 4000 | DD18: 3175 | DE18: =DE17 -> 80 | DF18: 4110 | DG18: 3200 | DI18: 85 | DJ18: 4390 | DK18: 3200 | DM18: 90 | DN18: 4660 | DO18: 3400 | DP18: 100 | DQ18: 5400 | DR18: 4000 | DS18: 125 | DT18: 6250 | DU18: 4500 | DW18: 150 | DX18: 7100 | DY18: 5000 | EA18: 175 | EB18: 7950 | EC18: 5500 | ED18: 200 | EE18: 9300 | EF18: 6500 | EG18: 250 | EH18: 11000 | EI18: 7500 | EJ18: 275 | EK18: 11850 | EL18: 8000 | EM18: 300 | EN18: 13200 | EO18: 9000 | EP18: 325 | EQ18: 14550 | ER18: 10000 | ES18: 325 | ET18: 15200 | EU18: 10650 | EV18: 350 | EW18: 16200 | EX18: 11300 | FP18: HANUMANGARH | FQ18: 16
A19: Maximum of old pay sacle | D19: =INDEX('Table 1998'!$V$40:$V$67,MATCH($D$13,'Table 1998'!$M$40:$M$67,0)) -> 4590 | G19: =INDEX('Table 1998'!$V$40:$V$67,MATCH($G$13,'Table 1998'!$M$40:$M$67,0)) ->  | M19: 16 | N19: 2200-75-2800-100-4000 | O19: =BD36 -> 1030 | P19: =BE36 -> 0 | T19: 15 | U19: 990 | V19: 20 | W19: 1 | X19: 1050 | Y19: 20 | Z19: 1100 | AA19: FALSE | AB19: 25 | AC19: 1225 | AD19: FALSE | AE19: 25 | AF19: 1275 | AG19: FALSE | AH19: 30 | AI19: 1400 | AJ19: FALSE | AK19: 30 | AL19: 1460 | AM19: FALSE | AN19: 40 | AO19: 1680 | AP19: FALSE | AQ19: 50 | AR19: 2100 | AS19: FALSE | AT19: 60 | AU19: 2540 | AV19: FALSE | AW19: 75 | AX19: 3050 | AY19: FALSE | AZ19: 75 | BA19: 3050 | BB19: FALSE | BC19: 100 | BD19: 3500 | BE19: FALSE | BF19: 100 | BG19: 3900 | BH19: FALSE | BI19: 125 | BJ19: 4125 | BK19: FALSE | BL19: 125 | BM19: 4750 | BN19: FALSE | BO19: 75 | BP19: 3050 | BQ19: FALSE | BR19: 125 | BS19: 4750 | BT19: FALSE | CS19: =CS18 -> 65 | CT19: 3540 | CU19: 3215 | CV19: 70 | CW19: 3650 | CX19: 3170 | CY19: 70 | CZ19: 3800 | DA19: 3170 | DB19: 75 | DC19: 4075 | DD19: 3175 | DE19: 80 | DF19: 4190 | DG19: 3200 | DI19: 85 | DJ19: 4475 | DK19: 3200 | DM19: 90 | DN19: 4750 | DO19: 3400 | DP19: 100 | DQ19: 5500 | DR19: 4000 | DS19: 125 | DT19: 6375 | DU19: 4500 | DW19: 150 | DX19: 7250 | DY19: 5000 | EA19: 175 | EB19: 8125 | EC19: 5500 | ED19: 200 | EE19: 9500 | EF19: 6500 | EG19: 250 | EH19: 11250 | EI19: 7500 | EJ19: 275 | EK19: 12125 | EL19: 8000 | EM19: 300 | EN19: 13500 | EO19: 9000 | EP19: 325 | EQ19: 14875 | ER19: 10000 | ES19: 325 | ET19: 15525 | EU19: 10650 | FP19: JAIPUR | FQ19: 17 | GE19: Condt | GF19: Sort -A | GG19: Sort-B | GH19: Final Value
A20: Maximum of old pay scale applicable | D20: =MIN(D14,D19) -> 3200 | G20: =MIN(G14,G19) ->  | T20: 15 | U20: 1005 | V20: 20 | W20: 1 | X20: 1070 | Y20: 20 | Z20: 1120 | AA20: FALSE | AB20: 25 | AC20: 1250 | AD20: FALSE | AE20: 25 | AF20: 1300 | AG20: FALSE | AH20: 30 | AI20: 1430 | AJ20: FALSE | AK20: 30 | AL20: 1490 | AM20: FALSE | AN20: 40 | AO20: 1720 | AP20: FALSE | AQ20: 50 | AR20: 2150 | AS20: FALSE | AT20: 60 | AU20: 2600 | AV20: FALSE | AW20: 75 | AX20: 3125 | AY20: FALSE | AZ20: 75 | BA20: 3125 | BB20: FALSE | BC20: 100 | BD20: 3600 | BE20: FALSE | BF20: 100 | BG20: 4000 | BH20: FALSE | BI20: =BI19 -> 125 | BJ20: 4250 | BK20: FALSE | BL20: 125 | BM20: 4875 | BN20: FALSE | BO20: 75 | BP20: 3125 | BQ20: FALSE | BR20: 125 | BS20: 4875 | BT20: FALSE | CV20: 70 | CW20: 3720 | CX20: 3170 | CY20: 75 | CZ20: 3875 | DA20: 3170 | DB20: 80 | DC20: 4155 | DD20: 3175 | DE20: 80 | DF20: 4270 | DG20: 3200 | DI20: 85 | DJ20: 4560 | DK20: 3200 | DM20: 90 | DN20: 4840 | DO20: 3400 | DP20: 100 | DQ20: 5600 | DR20: 4000 | DS20: 125 | DT20: 6500 | DU20: 4500 | DW20: 150 | DX20: 7400 | DY20: 5000 | EA20: 175 | EB20: 8300 | EC20: 5500 | ED20: 200 | EE20: 9700 | EF20: 6500 | EG20: 250 | EH20: 11500 | EI20: 7500 | EJ20: 275 | EK20: 12400 | EL20: 8000 | EM20: 300 | EN20: 13800 | EO20: 9000 | EP20: 325 | EQ20: 15200 | ER20: 10000 | ES20: 325 | ET20: 15850 | EU20: 10650 | FP20: JAISALMER | FQ20: 18 | FS20: 1 | FT20: ='MS Fixation(1998)'!B67 -> Commissioner Colonisation Deptt. Bikaner | FY20: =PROPER(FT20) -> Commissioner Colonisation Deptt. Bikaner | GE20: ='MS Fixation(1998)'!E67 -> YES | GF20: =IF(GE20="YES",FY20,"") -> Commissioner Colonisation Deptt. Bikaner | GG20: =INDEX($GF$20:$GF$25,MATCH(0,COUNTIF($GG$19:GG19,$GF$20:$GF$25&""),0)) -> Commissioner Colonisation Deptt. Bikaner | GH20: =IFERROR(GG20,"") -> Commissioner Colonisation Deptt. Bikaner
A21: Difference amt as created PersonalPay | D21: =IF(D20>D17,D14-D19,0) -> -1390 | G21: =IF(G20>G17,G14-G19,0) ->  | M21: 17 | N21: 2500-75-2800-100-4000-125-4250 | O21: =BG36 -> 1030 | P21: =BH36 -> 0 | T21: 20 | U21: 1025 | V21: 20 | W21: 1 | X21: 1090 | Y21: 20 | Z21: 1140 | AA21: FALSE | AB21: 25 | AC21: 1275 | AD21: FALSE | AE21: 25 | AF21: 1325 | AG21: FALSE | AH21: 30 | AI21: 1460 | AJ21: FALSE | AK21: 30 | AL21: 1520 | AM21: FALSE | AN21: 40 | AO21: 1760 | AP21: FALSE | AQ21: 50 | AR21: 2200 | AS21: FALSE | AT21: 75 | AU21: 2675 | AV21: FALSE | AW21: 75 | AX21: 3200 | AY21: FALSE | AZ21: 75 | BA21: 3200 | BB21: FALSE | BC21: 100 | BD21: 3700 | BE21: FALSE | BF21: 125 | BG21: 4125 | BH21: FALSE | BI21: 125 | BJ21: 4375 | BK21: FALSE | BL21: 125 | BM21: 5000 | BN21: FALSE | BO21: 75 | BP21: 3200 | BQ21: FALSE | BR21: 125 | BS21: 5000 | BT21: FALSE | CV21: 70 | CW21: 3790 | CX21: 3170 | CY21: =CY20 -> 75 | CZ21: 3950 | DA21: 3170 | DB21: =DB20 -> 80 | DC21: 4235 | DD21: 3175 | DE21: 80 | DF21: 4350 | DG21: 3200 | DI21: 85 | DJ21: 4645 | DK21: 3200 | DM21: 90 | DN21: 4930 | DO21: 3400 | DP21: 100 | DQ21: 5700 | DR21: 4000 | DS21: 125 | DT21: 6625 | DU21: 4500 | DW21: 150 | DX21: 7550 | DY21: 5000 | EA21: 175 | EB21: 8475 | EC21: 5500 | ED21: 200 | EE21: 9900 | EF21: 6500 | EG21: 250 | EH21: 11750 | EI21: 7500 | EJ21: 275 | EK21: 12675 | EL21: 8000 | EM21: 300 | EN21: 14100 | EO21: 9000 | FP21: JALORE | FQ21: 19 | FS21: 2 | FT21: =IF(FT16="Treasury","Treassury Officer","Sub Treasury Officer") -> Treassury Officer | FW21: =FU16 -> JAISALMER | FY21: =CONCATENATE(FT21," ",","," ",FW21) -> Treassury Officer , JAISALMER | GE21: ='MS Fixation(1998)'!E68 -> YES | GF21: =IF(GE21="YES",FY21,"") -> Treassury Officer , JAISALMER | GG21: =INDEX($GF$20:$GF$25,MATCH(0,COUNTIF($G$19:GG20,$GF$20:$GF$25&""),0)) -> Treassury Officer , JAISALMER | GH21: Treassury Officer , JAISALMER
A22: Finaly fixation of pay in revised pay scale-A | D22: =IF(D21>0,D19,D14) -> 3200 | G22: =IF(G21>0,G19,G14) ->  | M22: 18 | N22: 2650-75-2800-100-4000-125-4500 | O22: =BJ36 -> 1030 | P22: =BK36 -> 0 | V22: 20 | W22: 1 | X22: 1110 | Y22: 20 | Z22: 1160 | AA22: FALSE | AB22: 25 | AC22: 1300 | AD22: FALSE | AE22: 25 | AF22: 1350 | AG22: FALSE | AH22: 30 | AI22: 1490 | AJ22: FALSE | AK22: 30 | AL22: 1550 | AM22: FALSE | AN22: 40 | AO22: 1800 | AP22: FALSE | AQ22: 50 | AR22: 2250 | AS22: FALSE | AT22: =AT21 -> 75 | AU22: 2750 | AV22: FALSE | AZ22: 100 | BA22: 3300 | BB22: FALSE | BC22: 100 | BD22: 3800 | BE22: FALSE | BF22: 125 | BG22: 4250 | BH22: FALSE | BI22: 125 | BJ22: 4500 | BK22: FALSE | BO22: 100 | BP22: 3300 | BQ22: FALSE | CV22: 70 | CW22: 3860 | CX22: 3170 | CY22: 75 | CZ22: 4025 | DA22: 3170 | DB22: =DB21 -> 80 | DC22: 4315 | DD22: 3175 | DE22: 80 | DF22: 4430 | DG22: 3200 | DI22: 85 | DJ22: 4730 | DK22: 3200 | DM22: 90 | DN22: 5020 | DO22: 3400 | DP22: 100 | DQ22: 5800 | DR22: 4000 | DS22: 125 | DT22: 6750 | DU22: 4500 | DW22: =DW21 -> 150 | DX22: 7700 | DY22: 5000 | EA22: 175 | EB22: 8650 | EC22: 5500 | ED22: 200 | EE22: 10100 | EF22: 6500 | EG22: 250 | EH22: 12000 | EI22: 7500 | EJ22: 275 | EK22: 12950 | EL22: 8000 | EM22: 300 | EN22: 14400 | EO22: 9000 | FP22: JHALAWAR | FQ22: 20 | FS22: 3 | FT22: ='MS Fixation(1998)'!B71 -> COMMISSIONER COLONISATION BIKANER | FY22: =PROPER(FT22) -> Commissioner Colonisation Bikaner | GE22: ='MS Fixation(1998)'!E69 -> YES | GF22: Commissioner Colonisation Bikaner | GG22: =INDEX($GF$20:$GF$25,MATCH(0,COUNTIF($G$19:GG21,$GF$20:$GF$25&""),0)) -> Commissioner Colonisation Bikaner | GH22: Commissioner Colonisation Bikaner
A23: Finaly fixation of pay in revised pay scale-B | D23: =MAX(D17:D22) -> 4590 | G23: =MAX(G17:G22) ->  | M23: 19 | N23: 3000-100-3500-125-4500 | O23: =BM36 -> 1030 | P23: =BN36 -> 0 | V23: 20 | W23: 1 | X23: 1130 | Y23: 20 | Z23: 1180 | AA23: FALSE | AB23: 25 | AC23: 1325 | AD23: FALSE | AE23: 25 | AF23: 1375 | AG23: FALSE | AH23: 30 | AI23: 1520 | AJ23: FALSE | AK23: 30 | AL23: 1580 | AM23: FALSE | AN23: 40 | AO23: 1840 | AP23: FALSE | AQ23: 50 | AR23: 2300 | AS23: FALSE | AT23: =AT22 -> 75 | AU23: 2825 | AV23: FALSE | AZ23: =AZ22 -> 100 | BA23: 3400 | BB23: FALSE | BC23: 100 | BD23: 3900 | BE23: FALSE | BO23: 100 | BP23: 3400 | BQ23: FALSE | CV23: 70 | CW23: 3930 | CX23: 3170 | CY23: 75 | CZ23: 4100 | DA23: 3170 | DB23: =DB22 -> 80 | DC23: 4395 | DD23: 3175 | DE23: 80 | DF23: 4510 | DG23: 3200 | DI23: 85 | DJ23: 4815 | DK23: 3200 | DM23: 90 | DN23: 5110 | DO23: 3400 | DP23: 100 | DQ23: 5900 | DR23: 4000 | DS23: 125 | DT23: 6875 | DU23: 4500 | DW23: =DW22 -> 150 | DX23: 7850 | DY23: 5000 | EA23: 175 | EB23: 8825 | EC23: 5500 | ED23: 200 | EE23: 10300 | EF23: 6500 | EG23: 250 | EH23: 12250 | EI23: 7500 | EJ23: 275 | EK23: 13225 | EL23: 8000 | FP23: JHUNJHUNU | FQ23: 21 | FS23: 4 | FT23: Accounts Branch-in two copies for prepration of bill | FY23: =FT23 -> Accounts Branch-in two copies for prepration of bill | GE23: ='MS Fixation(1998)'!E70 -> NO | GG23: =INDEX($GF$20:$GF$25,MATCH(0,COUNTIF($G$19:GG22,$GF$20:$GF$25&""),0)) -> Pravesh Kumar Sharma ,Designation -- Junior Accountant | GH23: Pravesh Kumar Sharma ,Designation -- Junior Accountant
A24: Next date of increment-condition | D24: =IF(D17>D22,"Changed","Unchanged") -> Unchanged | G24: =IF(G17>G22,"Changed","Unchanged") ->  | M24: 21 | N24: 3000-100-3500-125-5000 | O24: =BS36 -> 1030 | P24: =BT36 -> 0 | V24: 20 | W24: 1 | X24: 1150 | Y24: 20 | Z24: 1200 | AA24: FALSE | AB24: 25 | AC24: 1350 | AD24: FALSE | AE24: 25 | AF24: 1400 | AG24: FALSE | AH24: 30 | AI24: 1550 | AJ24: FALSE | AK24: 30 | AL24: 1610 | AM24: FALSE | AN24: 40 | AO24: 1880 | AP24: FALSE | AQ24: 60 | AR24: 2360 | AS24: FALSE | AT24: =AT23 -> 75 | AU24: 2900 | AV24: FALSE | AZ24: =AZ23 -> 100 | BA24: 3500 | BB24: FALSE | BC24: 100 | BD24: 4000 | BE24: FALSE | BO24: 100 | BP24: 3500 | BQ24: FALSE | CV24: 70 | CW24: 4000 | CX24: 3170 | CY24: 75 | CZ24: 4175 | DA24: 3170 | DB24: =DB23 -> 80 | DC24: 4475 | DD24: 3175 | DE24: 80 | DF24: 4590 | DG24: 3200 | DI24: 85 | DJ24: 4900 | DK24: 3200 | DM24: 90 | DN24: 5200 | DO24: 3400 | DP24: 100 | DQ24: 6000 | DR24: 4000 | DS24: 125 | DT24: 7000 | DU24: 4500 | DW24: =DW23 -> 150 | DX24: 8000 | DY24: 5000 | EA24: 175 | EB24: 9000 | EC24: 5500 | ED24: 200 | EE24: 10500 | EF24: 6500 | EG24: 250 | EH24: 12500 | EI24: 7500 | EJ24: 275 | EK24: 13500 | EL24: 8000 | FP24: JODHPUR | FQ24: 22 | FS24: 5 | FT24: =PROPER('MS Fixation(1998)'!C4) -> Pravesh Kumar Sharma | FW24: =PROPER('MS Fixation(1998)'!C5) -> Junior Accountant | FY24: =CONCATENATE(FT24," ",",","Designation"," -- ",FW24," ") -> Pravesh Kumar Sharma ,Designation -- Junior Accountant | GE24: ='MS Fixation(1998)'!E71 -> YES | GF24: Pravesh Kumar Sharma ,Designation -- Junior Accountant | GG24: =INDEX($GF$20:$GF$25,MATCH(0,COUNTIF($G$19:GG23,$GF$20:$GF$25&""),0)) -> 
A25: Next date of increment- | D25: =IF(D24="Changed",'Table 1998'!G37,'Table 1998'!F32) -> 1996-12-13 | M25: 20 | N25: 2000-60-2300-75-3200-100-3500 | O25: =BP36 -> 1030 | P25: =BQ36 -> 0 | V25: 20 | W25: 1 | X25: 1170 | Y25: 25 | Z25: 1225 | AA25: FALSE | AB25: 25 | AC25: 1375 | AD25: FALSE | AE25: 30 | AF25: 1430 | AG25: FALSE | AH25: 30 | AI25: 1580 | AJ25: FALSE | AK25: 30 | AL25: 1640 | AM25: FALSE | AN25: 40 | AO25: 1920 | AP25: FALSE | AQ25: =AQ24 -> 60 | AR25: 2420 | AS25: FALSE | CY25: 75 | CZ25: 4250 | DA25: 3170 | FP25: KARAULI | FQ25: 23 | FS25: 6 | FT25: Personal File/Guard File | FY25: =FT25 -> Personal File/Guard File | GE25: ='MS Fixation(1998)'!E72 -> NO | GG25: =INDEX($GF$20:$GF$25,MATCH(0,COUNTIF($G$19:GG24,$GF$20:$GF$25&""),0)) -> 
A26: Next Ist & IInd increment & scale range | D26: Ist inc. | F26: =INDEX('Table 1998'!$P$40:$P$67,MATCH($D$13,'Table 1998'!$M$40:$M$67,0)) -> 75 | G26: Ist inc. | I26: =INDEX('Table 1998'!$P$40:$P$67,MATCH($G$13,'Table 1998'!$M$40:$M$67,0)) ->  | M26: 22 | N26: 3450-125-4700-150-5000 | O26: =BV36 -> 1030 | P26: =BW36 -> 0 | V26: 20 | W26: 1 | X26: 1190 | Y26: =Y25 -> 25 | Z26: 1250 | AA26: FALSE | AB26: =AB25 -> 25 | AC26: 1400 | AD26: FALSE | AE26: =AE25 -> 30 | AF26: 1460 | AG26: FALSE | AH26: 30 | AI26: 1610 | AJ26: FALSE | AK26: 40 | AL26: 1680 | AM26: FALSE | AN26: 40 | AO26: 1960 | AP26: FALSE | AQ26: =AQ25 -> 60 | AR26: 2480 | AS26: FALSE | CY26: 75 | CZ26: 4325 | DA26: 3170 | FP26: KOTA | FQ26: 24 | FS26: Design & prepared by Pravesh Kumar Sharma-9460100093 | GB26: 16.18.1.22.5.19.8√97263.0458756048
D27: Iind inc. | F27: =INDEX('Table 1998'!$Q$40:$Q$67,MATCH($D$13,'Table 1998'!$M$40:$M$67,0)) -> 80 | G27: Iind inc. | I27: =INDEX('Table 1998'!$Q$40:$Q$67,MATCH($G$13,'Table 1998'!$M$40:$M$67,0)) ->  | M27: 23 | N27: 3700-125-4700-150-5000 | O27: =BY36 -> 1030 | P27: =BZ36 -> 0 | V27: 20 | W27: 1 | X27: 1210 | Y27: =Y26 -> 25 | Z27: 1275 | AA27: FALSE | AB27: 30 | AC27: 1430 | AD27: FALSE | AE27: 30 | AF27: 1490 | AG27: FALSE | AH27: 30 | AI27: 1640 | AJ27: FALSE | AK27: =AK26 -> 40 | AL27: 1720 | AM27: FALSE | AN27: 40 | AO27: 2000 | AP27: FALSE | AQ27: =AQ26 -> 60 | AR27: 2540 | AS27: FALSE | CY27: 75 | CZ27: 4400 | DA27: 3170 | FP27: NAGAUR | FQ27: 25 | FR27: TEXT SHOWN IN ACP ORDER AS SELECTED ACP TYPE
D28: Next Ragne | F28: =INDEX('Table 1998'!$R$40:$R$67,MATCH($D$13,'Table 1998'!$M$40:$M$67,0)) -> 3950 | G28: Next Ragne | I28: =INDEX('Table 1998'!$R$40:$R$67,MATCH($G$13,'Table 1998'!$M$40:$M$67,0)) ->  | M28: 24 | N28: 4100-150-5300 | O28: =CB36 -> 1030 | P28: =CC36 -> 0 | V28: 20 | W28: 1 | X28: 1230 | Y28: =Y27 -> 25 | Z28: 1300 | AA28: FALSE | AB28: =AB27 -> 30 | AC28: 1460 | AD28: FALSE | AE28: 30 | AF28: 1520 | AG28: FALSE | AH28: 40 | AI28: 1680 | AJ28: FALSE | AK28: =AK27 -> 40 | AL28: 1760 | AM28: FALSE | AN28: 50 | AO28: 2050 | AP28: FALSE | AQ28: 60 | AR28: 2600 | AS28: FALSE | FP28: PALI | FQ28: 26 | FR28: TYPE I | FS28: Code | FT28: ACP type show in acp order
D29: Last range | F29: =INDEX('Table 1998'!$V$40:$V$67,MATCH($D$13,'Table 1998'!$M$40:$M$67,0)) -> 4590 | G29: Last range | I29: =INDEX('Table 1998'!$V$40:$V$67,MATCH($G$13,'Table 1998'!$M$40:$M$67,0)) ->  | M29: 25 | N29: 4500-150-5700 | O29: =CE36 -> 1030 | P29: =CF36 -> 0 | V29: 20 | W29: 1 | X29: 1250 | Y29: =Y28 -> 25 | Z29: 1325 | AA29: FALSE | AB29: =AB28 -> 30 | AC29: 1490 | AD29: FALSE | AE29: 30 | AF29: 1550 | AG29: FALSE | AH29: =AH28 -> 40 | AI29: 1720 | AJ29: FALSE | AK29: =AK28 -> 40 | AL29: 1800 | CQ29: =MAX(CQ10:CQ28) -> 3200 | CU29: =MAX(CU10:CU28) -> 3215 | CX29: =MAX(CX10:CX28) -> 3170 | DA29: =MAX(DA10:DA28) -> 3170 | DD29: =MAX(DD10:DD28) -> 3175 | DG29: =MAX(DG10:DG28) -> 3200 | DK29: =MAX(DK10:DK28) -> 3200 | DO29: =MAX(DO10:DO28) -> 3400 | DR29: =MAX(DR10:DR28) -> 4000 | DU29: =MAX(DU10:DU28) -> 4500 | DY29: =MAX(DY10:DY28) -> 5000 | EC29: =MAX(EC10:EC28) -> 5500 | EF29: =MAX(EF10:EF28) -> 6500 | EI29: =MAX(EI10:EI28) -> 7500 | EL29: =MAX(EL10:EL28) -> 8000 | EO29: =MAX(EO10:EO28) -> 9000 | ER29: =MAX(ER10:ER28) -> 10000 | EU29: =MAX(EU10:EU28) -> 10650 | EX29: =MAX(EX10:EX28) -> 11300 | FA29: =MAX(FA10:FA28) -> 12000 | FD29: =MAX(FD10:FD28) -> 13500 | FG29: =MAX(FG10:FG28) -> 14300 | FJ29: =MAX(FJ10:FJ28) -> 16400 | FM29: =MAX(FM10:FM28) -> 18400 | FP29: PRATAPGARH | FS29: A | FT29: X | FU29: 9 years | FV29: Ist ACP | FW29: =FU30 -> 18 years | FX29: =FV30 -> IInd ACP | FY29: =FW30 -> 27 years | FZ29: =FX30 -> IIIrd ACP | GA29: =CONCATENATE(FU35," ","-",FV35) ->  | GB29: =CONCATENATE(FU29,"-",FV29) -> 9 years-Ist ACP | GC29: =IF(FS35="B",FU29,IF(FS35="A",FU29,IF(FS35="C",FU29,FU32))) ->  | GD29: =IF(FS35="B",FU30,IF(FS35="A",FU30,IF(FS35="C",$L$44,FU33))) -> 
M30: 26 | N30: 5100-150-5700-200-6300 | O30: =CH36 -> 1030 | P30: =CI36 -> 0 | Y30: =Y29 -> 25 | Z30: 1350 | AA30: FALSE | AB30: =AB29 -> 30 | AC30: 1520 | AD30: FALSE | AE30: 30 | AF30: 1580 | AG30: FALSE | CQ30: =MAX(CQ3,CQ29) -> 3200 | CU30: =MAX(CU3,CU29) -> 3215 | CX30: =MAX(CX3,CX29) -> 3170 | DA30: =MAX(DA3,DA29) -> 3170 | DD30: =MAX(DD3,DD29) -> 3175 | DG30: =MAX(DG3,DG29) -> 3200 | DK30: =MAX(DK3,DK29) -> 3200 | DO30: =MAX(DO3,DO29) -> 3400 | DR30: =MAX(DR3,DR29) -> 4000 | DU30: =MAX(DU3,DU29) -> 4500 | DY30: =MAX(DY3,DY29) -> 5000 | EC30: =MAX(EC3,EC29) -> 5500 | EF30: =MAX(EF3,EF29) -> 6500 | EI30: =MAX(EI3,EI29) -> 7500 | EL30: =MAX(EL3,EL29) -> 8000 | EO30: =MAX(EO3,EO29) -> 9000 | ER30: =MAX(ER3,ER29) -> 10000 | EU30: =MAX(EU3,EU29) -> 10650 | EX30: =MAX(EX3,EX29) -> 11300 | FA30: =MAX(FA3,FA29) -> 12000 | FD30: =MAX(FD3,FD29) -> 13500 | FG30: =MAX(FG3,FG29) -> 14300 | FJ30: =MAX(FJ3,FJ29) -> 16400 | FM30: =MAX(FM3,FM29) -> 18400 | FP30: RAJSAMAND | FQ30: 27 | FS30: B | FT30: Y | FU30: 18 years | FV30: IInd ACP | FW30: =FU31 -> 27 years | FX30: =FV31 -> IIIrd ACP | FY30: =FW31 -> Not allowed | GA30: =CONCATENATE(FW35," ","-",FX29) ->  | GB30: 18 years-IInd ACP
B31: Canged effect of date of increment | M31: 27 | N31: 5900-200-6700 | O31: =CK36 -> 1030 | P31: =CL36 -> 0 | AE31: 30 | AF31: 1610 | AG31: FALSE | FP31: SAWAI MADHOPUR | FQ31: 28 | FS31: C | FT31: Z | FU31: 27 years | FV31: IIIrd ACP | FW31: Not allowed | FY31: Not allowed | GB31: 27 years-IIIrd ACP
B32: Opted date | E32: ='MS Fixation(1998)'!$D$3 -> 1995-12-13 | F32: =DATE(YEAR(E32),MONTH(E32)+12,DAY(E32)) -> 1996-12-13 | AE32: 30 | AF32: 1640 | AG32: FALSE | FP32: SIKAR | FQ32: 29 | FS32: D | FT32: X | FU32: 10 year | FV32: Ist ACP | FW32: =FU33 -> 20 year | FX32: =FV33 -> IInd ACP | FY32: =FW33 -> 30 year | FZ32: =FX33 -> IIIrd ACP | GA32: =CONCATENATE(FY35," ","-",FZ29) ->  | GB32: 10 year-Ist ACP
E33: Date | F33: Month | G33: Year | S33: =IF($AS$3>R33,1) -> 1 | AE33: 40 | AF33: 1680 | AG33: FALSE | FP33: SIROHI | FQ33: 30 | FS33: E | FT33: Y | FU33: 20 year | FV33: IInd ACP | FW33: =FU34 -> 30 year | FX33: =FV34 -> IIIrd ACP | FY33: Not allowed | GB33: 20 year-IInd ACP
E34: =DAY(E32) -> 13 | F34: =MONTH(E32) -> 12 | G34: =YEAR(E32) -> 1995 | R34: =IF(LOOKUP('Table 1998'!$D$6,R4:R33)>0,LOOKUP('Table 1998'!$D$6,R4:R33),'Table 1998'!$D$6) -> 940 | U34: =LOOKUP('Table 1998'!$D$6,U4:U33) -> 1025 | X34: =LOOKUP('Table 1998'!$D$6,X4:X33) -> 1030 | Z34: =LOOKUP('Table 1998'!$D$6,Z4:Z33) -> 1020 | AC34: =LOOKUP('Table 1998'!$D$6,AC4:AC33) -> 1030 | AF34: =LOOKUP('Table 1998'!$D$6,AF4:AF33) -> 1030 | AI34: =LOOKUP('Table 1998'!$D$6,AI4:AI33) -> 1025 | AL34: =LOOKUP('Table 1998'!$D$6,AL4:AL33) -> 1025 | AO34: =LOOKUP('Table 1998'!$D$6,AO4:AO33) ->  | AR34: =LOOKUP('Table 1998'!$D$6,AR4:AR33) ->  | AU34: =LOOKUP('Table 1998'!$D$6,AU4:AU33) ->  | AX34: =LOOKUP('Table 1998'!$D$6,AX4:AX33) ->  | BA34: =LOOKUP('Table 1998'!$D$6,BA4:BA33) ->  | BD34: =LOOKUP('Table 1998'!$D$6,BD4:BD33) ->  | BG34: =LOOKUP('Table 1998'!$D$6,BG4:BG33) ->  | BJ34: =LOOKUP('Table 1998'!$D$6,BJ4:BJ33) ->  | BM34: =LOOKUP('Table 1998'!$D$6,BM4:BM33) ->  | BP34: =LOOKUP('Table 1998'!$D$6,BP4:BP33) ->  | BS34: =LOOKUP('Table 1998'!$D$6,BS4:BS33) ->  | BV34: =LOOKUP('Table 1998'!$D$6,BV4:BV33) ->  | BY34: =LOOKUP('Table 1998'!$D$6,BY4:BY33) ->  | CB34: =LOOKUP('Table 1998'!$D$6,CB4:CB33) ->  | CE34: =LOOKUP('Table 1998'!$D$6,CE4:CE33) ->  | CH34: =LOOKUP('Table 1998'!$D$6,CH4:CH33) ->  | CK34: =LOOKUP('Table 1998'!$D$6,CK4:CK33) ->  | FP34: TONK | FQ34: 31 | FS34: F | FT34: Z | FU34: 30 year | FV34: IIIrd ACP | FW34: Not allowed | FY34: Not allowed | GB34: 30 year-IIIrd ACP
B35: Add | E35: 0 | F35: 0 | G35: 1 | R35: =ISERROR(R34) -> FALSE | U35: =ISERROR(U34) -> FALSE | X35: =ISERROR(X34) -> FALSE | Z35: =ISERROR(Z34) -> FALSE | AC35: =ISERROR(AC34) -> FALSE | AF35: =ISERROR(AF34) -> FALSE | AI35: =ISERROR(AI34) -> FALSE | AL35: =ISERROR(AL34) -> FALSE | AO35: =ISERROR(AO34) -> TRUE | AR35: =ISERROR(AR34) -> TRUE | AU35: =ISERROR(AU34) -> TRUE | AX35: =ISERROR(AX34) -> TRUE | BA35: =ISERROR(BA34) -> TRUE | BD35: =ISERROR(BD34) -> TRUE | BG35: =ISERROR(BG34) -> TRUE | BJ35: =ISERROR(BJ34) -> TRUE | BM35: =ISERROR(BM34) -> TRUE | BP35: =ISERROR(BP34) -> TRUE | BS35: =ISERROR(BS34) -> TRUE | BV35: =ISERROR(BV34) -> TRUE | BY35: =ISERROR(BY34) -> TRUE | CB35: =ISERROR(CB34) -> TRUE | CE35: =ISERROR(CE34) -> TRUE | CH35: =ISERROR(CH34) -> TRUE | CK35: =ISERROR(CK34) -> TRUE | FP35: UDAIPUR | FQ35: 32 | FS35: =INDEX(FS29:FS34,MATCH(FU35,FU29:FU34,0)) ->  | FT35: =INDEX(FT29:FT34,MATCH(FS35,FS29:FS34,0)) ->  | FV35: =INDEX(FV29:FV34,MATCH(FU35,FU29:FU34,0)) ->  | FW35: =INDEX(FW29:FW34,MATCH(FU35,FU29:FU34,0)) ->  | FY35: =INDEX(FY29:FY34,MATCH(FU35,FU29:FU34,0)) ->  | FZ35: 0 | GB35: =INDEX(GB29:GB34,MATCH(FS35,FS29:FS34,0)) -> 
B36: New | E36: =E34+E35 -> 13 | F36: =F34+F35 -> 12 | G36: =G34+G35 -> 1996 | R36: =IF(R35=TRUE,'Table 1998'!$D$6,R34) -> 940 | S36: =COUNT(S4:S28) -> 15 | U36: =IF(U35=TRUE,'Table 1998'!$D$6,U34) -> 1025 | W36: =COUNT(W4:W28) -> 25 | X36: =IF(X35=TRUE,'Table 1998'!$D$6,X34) -> 1030 | Z36: =IF(Z35=TRUE,'Table 1998'!$D$6,Z34) -> 1020 | AA36: =COUNT(AA4:AA28) -> 12 | AC36: =IF(AC35=TRUE,'Table 1998'!$D$6,AC34) -> 1030 | AD36: =COUNT(AD4:AD28) -> 6 | AF36: =IF(AF35=TRUE,'Table 1998'!$D$6,AF34) -> 1030 | AG36: =COUNT(AG4:AG28) -> 4 | AI36: =IF(AI35=TRUE,'Table 1998'!$D$6,AI34) -> 1025 | AJ36: =COUNT(AJ4:AJ28) -> 3 | AL36: =IF(AL35=TRUE,'Table 1998'!$D$6,AL34) -> 1025 | AM36: =COUNT(AM4:AM28) -> 1 | AO36: =IF(AO35=TRUE,'Table 1998'!$D$6,AO34) -> 1030 | AP36: =COUNT(AP4:AP28) -> 0 | AR36: =IF(AR35=TRUE,'Table 1998'!$D$6,AR34) -> 1030 | AS36: =COUNT(AS4:AS28) -> 0 | AU36: =IF(AU35=TRUE,'Table 1998'!$D$6,AU34) -> 1030 | AV36: =COUNT(AV4:AV28) -> 0 | AX36: =IF(AX35=TRUE,'Table 1998'!$D$6,AX34) -> 1030 | AY36: =COUNT(AY4:AY28) -> 0 | BA36: =IF(BA35=TRUE,'Table 1998'!$D$6,BA34) -> 1030 | BB36: =COUNT(BB4:BB28) -> 0 | BD36: =IF(BD35=TRUE,'Table 1998'!$D$6,BD34) -> 1030 | BE36: =COUNT(BE4:BE28) -> 0 | BG36: =IF(BG35=TRUE,'Table 1998'!$D$6,BG34) -> 1030 | BH36: =COUNT(BH4:BH28) -> 0 | BJ36: =IF(BJ35=TRUE,'Table 1998'!$D$6,BJ34) -> 1030 | BK36: =COUNT(BK4:BK28) -> 0 | BM36: =IF(BM35=TRUE,'Table 1998'!$D$6,BM34) -> 1030 | BN36: =COUNT(BN4:BN28) -> 0 | BP36: =IF(BP35=TRUE,'Table 1998'!$D$6,BP34) -> 1030 | BQ36: =COUNT(BQ4:BQ28) -> 0 | BS36: =IF(BS35=TRUE,'Table 1998'!$D$6,BS34) -> 1030 | BT36: =COUNT(BT4:BT28) -> 0 | BV36: =IF(BV35=TRUE,'Table 1998'!$D$6,BV34) -> 1030 | BW36: =COUNT(BW4:BW28) -> 0 | BY36: =IF(BY35=TRUE,'Table 1998'!$D$6,BY34) -> 1030 | BZ36: =COUNT(BZ4:BZ28) -> 0 | CB36: =IF(CB35=TRUE,'Table 1998'!$D$6,CB34) -> 1030 | CC36: =COUNT(CC4:CC28) -> 0 | CE36: =IF(CE35=TRUE,'Table 1998'!$D$6,CE34) -> 1030 | CF36: =COUNT(CF4:CF28) -> 0 | CH36: =IF(CH35=TRUE,'Table 1998'!$D$6,CH34) -> 1030 | CI36: =COUNT(CI4:CI28) -> 0 | CK36: =IF(CK35=TRUE,'Table 1998'!$D$6,CK34) -> 1030 | CL36: =COUNT(CL4:CL28) -> 0 | FR36: TYPE I | FS36: Code | FT36: ACP type show in acp order
G37: 1997-09-01 | Q37: =Q2 -> Scale No 1 | T37: =T2 -> Scale No 2 | W37: =V2 -> Scale No 3 | Z37: =Y2 -> Scale No 4 | AC37: =AB2 -> Scale No 5 | AF37: =AE2 -> Scale No 6 | AI37: =AH2 -> Scale No 7 | AL37: =AK2 -> Scale No 8 | AO37: =AN2 -> Scale No 9 | AR37: =AQ2 -> Scale No 12 | AU37: =AT2 -> Scale No 13 | AX37: =AW2 -> Scale No 14 | BA37: =AZ2 -> Scale No 15 | BD37: =BC2 -> Scale No 16 | BG37: =BF2 -> Scale No 17 | BJ37: =BI2 -> Scale No 18 | BM37: =BL2 -> Scale No 19 | BP37: =BO2 -> Scale No 20 | BS37: =BR2 -> Scale No 21 | BV37: =BU2 -> Scale No 22 | BY37: =BX2 -> Scale No 23 | CB37: =CA2 -> Scale No 24 | CE37: =CD2 -> Scale No 25 | CH37: =CG2 -> Scale No 26 | CK37: =CJ2 -> Scale No 27 | FS37: A | FT37: X | FU37: 9 years | FV37: Ist ACP | FW37: =FU38 -> 18 years | FX37: =FV38 -> IInd ACP | FY37: =FW38 -> 27 years | FZ37: =FX38 -> IIIrd ACP | GA37: =CONCATENATE(FU43," ","-",FV43) ->  | GB37: =CONCATENATE(FU37,"-",FV37) -> 9 years-Ist ACP | GC37: =IF(FS43="B",FU37,IF(FS43="A",FU37,IF(FS43="C",FU37,FU40))) ->  | GD37: =IF(FS43="B",FU38,IF(FS43="A",FU38,IF(FS43="C",$L$44,FU41))) -> 
E38: =DAY(G37) -> 1 | F38: =MONTH(G37) -> 9 | G38: =YEAR(G37) -> 1997 | M38: Relevant data of new pay scale 1998 | FS38: B | FT38: Y | FU38: 18 years | FV38: IInd ACP | FW38: =FU39 -> 27 years | FX38: =FV39 -> IIIrd ACP | FY38: =FW39 -> Not allowed | GA38: =CONCATENATE(FW43," ","-",FX37) ->  | GB38: 18 years-IInd ACP
M39: Scale No | N39: Pay Sacle in 1998 | O39: Revised Pay | P39: Ist incr. amt | Q39: IInd incr. amt | S39: Incr. due in new scale | T39: Pay scale start range | U39: Pay scale end range | V39: Pay scale end in value | W39: Mini Scale in old scale | X39: Pay scale end in value | Y39: Fix amt in new scale | Z39: NEW PAY SCALE NO FOR ACP | FS39: C | FT39: Z | FU39: 27 years | FV39: IIIrd ACP | FW39: Not allowed | FY39: Not allowed | GB39: 27 years-IIIrd ACP
M40: 1 | N40: 2550-55-2660-60-3200 | O40: ='Table 1998'!CQ30 -> 3200 | P40: 55 | Q40: 60 | R40: 2660 | S40: =IF(ROUND('Table 1998'!P4/3,0)>=3,3,ROUND('Table 1998'!P4/3,0)) -> 3 | T40: =LEFT(N40,4) -> 2550 | U40: =RIGHT(N40,4) -> 3200 | V40: 3200 | W40: =RIGHT('Table 1998'!N4,3) -> 940 | X40: 940 | Y40: =T40+P40*S40 -> 2715 | AA40: ='MS Fixation(1998)'!C23 -> 3050-75-3950-80-4590 | FS40: D | FT40: X | FU40: 10 year | FV40: Ist ACP | FW40: =FU41 -> 20 year | FX40: =FV41 -> IInd ACP | FY40: =FW41 -> 30 year | FZ40: =FX41 -> IIIrd ACP | GA40: =CONCATENATE(FY43," ","-",FZ37) ->  | GB40: 10 year-Ist ACP
M41: 2 | N41: 2610-60-3150-65-3540 | O41: ='Table 1998'!CU30 -> 3215 | P41: 60 | Q41: 65 | R41: 3150 | S41: =IF(ROUND('Table 1998'!P5/3,0)>=3,3,ROUND('Table 1998'!P5/3,0)) -> 0 | T41: 2610 | U41: 3540 | V41: 3540 | W41: =RIGHT('Table 1998'!N5,4) -> 1025 | X41: 1025 | Y41: 2610 | Z41: =M40 -> 1 | AA41: ='MS Fixation(1998)'!F21+'MS Fixation(1998)'!F22 -> 3200 | FS41: E | FT41: Y | FU41: 20 year | FV41: IInd ACP | FW41: =FU42 -> 30 year | FX41: =FV42 -> IIIrd ACP | FY41: Not allowed | GB41: 20 year-IInd ACP
M42: 3 | N42: 2650-65-3300-70-4000 | O42: ='Table 1998'!CX30 -> 3170 | P42: 65 | Q42: 70 | R42: 3300 | S42: =IF(ROUND('Table 1998'!P6/3,0)>=3,3,ROUND('Table 1998'!P6/3,0)) -> 0 | T42: 2650 | U42: 4000 | V42: 4000 | W42: =RIGHT('Table 1998'!N6,4) -> 1250 | X42: 1250 | Y42: 2650 | Z42: 2 | FS42: F | FT42: Z | FU42: 30 year | FV42: IIIrd ACP | FW42: Not allowed | FY42: Not allowed | GB42: 30 year-IIIrd ACP
M43: 4 | N43: 2750-70-3800-75-4400 | O43: ='Table 1998'!DA30 -> 3170 | P43: 70 | Q43: 75 | R43: 3800 | S43: =IF(ROUND('Table 1998'!P7/3,0)>=3,3,ROUND('Table 1998'!P7/3,0)) -> 3 | T43: 2750 | U43: 4400 | V43: 4400 | W43: =RIGHT('Table 1998'!N7,4) -> 1350 | X43: 1350 | Y43: 2960 | Z43: 3 | FS43: =INDEX(FS37:FS42,MATCH(FU43,FU37:FU42,0)) ->  | FT43: =INDEX(FT37:FT42,MATCH(FS43,FS37:FS42,0)) ->  | FV43: =INDEX(FV37:FV42,MATCH(FU43,FU37:FU42,0)) ->  | FW43: =INDEX(FW37:FW42,MATCH(FU43,FU37:FU42,0)) ->  | FY43: =INDEX(FY37:FY42,MATCH(FU43,FU37:FU42,0)) ->  | FZ43: 0 | GB43: =INDEX(GB37:GB42,MATCH(FS43,FS37:FS42,0)) -> 
M44: 5 | N44: 2950-75-4075-80-4475 | O44: ='Table 1998'!DD30 -> 3175 | P44: 75 | Q44: 80 | R44: 4075 | S44: =IF(ROUND('Table 1998'!P8/3,0)>=3,3,ROUND('Table 1998'!P8/3,0)) -> 2 | T44: 2950 | U44: 4475 | V44: 4475 | W44: =RIGHT('Table 1998'!N8,4) -> 1520 | X44: 1520 | Y44: 3100 | Z44: 4
M45: 6 | N45: 3050-75-3950-80-4590 | O45: ='Table 1998'!DG30 -> 3200 | P45: 75 | Q45: 80 | R45: 3950 | S45: =IF(ROUND('Table 1998'!P9/3,0)>=3,3,ROUND('Table 1998'!P9/3,0)) -> 1 | T45: 3050 | U45: 4590 | V45: 4590 | W45: =RIGHT('Table 1998'!N9,4) -> 1680 | X45: 1680 | Y45: 3125 | Z45: 5 | FR45: Write office order lanague
M46: 7 | N46: 3200-85-4900 | O46: ='Table 1998'!DK30 -> 3200 | P46: 85 | Q46: 85 | R46: 4900 | S46: =IF(ROUND('Table 1998'!P10/3,0)>=3,3,ROUND('Table 1998'!P10/3,0)) -> 1 | T46: 3200 | U46: 4900 | V46: 4900 | W46: =RIGHT('Table 1998'!N10,4) -> 1720 | X46: 1720 | Y46: 3285 | Z46: 6 | FR46: Type I
M47: 8 | N47: 3400-90-5200 | O47: ='Table 1998'!DO30 -> 3400 | P47: 90 | Q47: 90 | R47: 5200 | S47: =IF(ROUND('Table 1998'!P11/3,0)>=3,3,ROUND('Table 1998'!P11/3,0)) -> 0 | T47: 3400 | U47: 5200 | V47: 5200 | W47: =RIGHT('Table 1998'!N11,4) -> 1800 | X47: 1800 | Y47: 3400 | Z47: 7
M48: 9 | N48: 4000-100-6000 | O48: ='Table 1998'!DR30 -> 4000 | P48: 100 | Q48: 100 | R48: 6000 | S48: =IF(ROUND('Table 1998'!P12/3,0)>=3,3,ROUND('Table 1998'!P12/3,0)) -> 0 | T48: 4000 | U48: 6000 | V48: 6000 | W48: =RIGHT('Table 1998'!N12,4) -> 2050 | X48: 2050 | Y48: 4000 | Z48: 8
M49: 9A | N49: 4500-125-7000 | O49: ='Table 1998'!DU30 -> 4500 | P49: 125 | Q49: 125 | R49: 7000 | S49: =IF(ROUND('Table 1998'!P13/3,0)>=3,3,ROUND('Table 1998'!P13/3,0)) -> 0 | T49: 4500 | U49: 7000 | V49: 7000 | W49: =RIGHT('Table 1998'!N13,4) -> 2050 | X49: 2050 | Y49: 4500 | Z49: 9
M50: 10 | N50: 5000-150-8000 | O50: ='Table 1998'!DY30 -> 5000 | P50: 150 | Q50: 150 | R50: 8000 | S50: =IF(ROUND('Table 1998'!P14/3,0)>=3,3,ROUND('Table 1998'!P14/3,0)) -> 0 | T50: 5000 | U50: 8000 | V50: 8000 | W50: =RIGHT('Table 1998'!N14,4) -> 2600 | X50: 2600 | Y50: 5000 | Z50: 9A
M51: 11 | N51: 5500-175-9000 | O51: ='Table 1998'!EC30 -> 5500 | P51: 175 | Q51: 175 | R51: 9000 | S51: =IF(ROUND('Table 1998'!P15/3,0)>=3,3,ROUND('Table 1998'!P15/3,0)) -> 0 | T51: 5500 | U51: 9000 | V51: 9000 | W51: =RIGHT('Table 1998'!N15,4) -> 2900 | X51: 2900 | Y51: 5500 | Z51: 10
M52: 12 | N52: 6500-200-10500 | O52: ='Table 1998'!EF30 -> 6500 | P52: 200 | Q52: 200 | R52: 10500 | S52: =IF(ROUND('Table 1998'!P16/3,0)>=3,3,ROUND('Table 1998'!P16/3,0)) -> 0 | T52: 6500 | U52: =RIGHT(N52,5) -> 10500 | V52: 10500 | W52: =RIGHT('Table 1998'!N16,4) -> 3200 | X52: 3200 | Y52: 6500 | Z52: 11 | FR52: Type II
M54: 12A | N54: 7500-250-12000 | O54: ='Table 1998'!EI30 -> 7500 | P54: 250 | Q54: 250 | R54: 12000 | S54: =IF(ROUND('Table 1998'!P18/3,0)>=3,3,ROUND('Table 1998'!P18/3,0)) -> 0 | T54: =LEFT(N54,4) -> 7500 | U54: =RIGHT(N54,5) -> 12000 | V54: 12000 | W54: =RIGHT('Table 1998'!N17,4) -> 3500 | X54: 3500 | Y54: =T54+P54*S54 -> 7500 | Z54: =M52 -> 12
M55: 13 | N55: 8000-275-13500 | O55: ='Table 1998'!EL30 -> 8000 | P55: 275 | Q55: 275 | R55: 13500 | S55: =IF(ROUND('Table 1998'!P19/3,0)>=3,3,ROUND('Table 1998'!P19/3,0)) -> 0 | T55: =LEFT(N55,4) -> 8000 | U55: =RIGHT(N55,5) -> 13500 | V55: 13500 | W55: =RIGHT('Table 1998'!N19,4) -> 4000 | X55: 4000 | Y55: =T55+P55*S55 -> 8000 | Z55: 12A
M56: 13 NEW | N56: 8000-275-13500 | O56: =O55 -> 8000 | P56: 275 | Q56: 275 | R56: 13500 | S56: =IF(ROUND('Table 1998'!P20/3,0)>=3,3,ROUND('Table 1998'!P20/3,0)) -> 0 | T56: =LEFT(N56,4) -> 8000 | U56: =RIGHT(N56,5) -> 13500 | V56: 13500 | Y56: =T56+P56*S56 -> 8000 | Z56: 13
M57: 14 | N57: 9000-300-14400 | O57: ='Table 1998'!EO30 -> 9000 | P57: 300 | Q57: 300 | R57: 14400 | S57: =IF(ROUND('Table 1998'!P21/3,0)>=3,3,ROUND('Table 1998'!P21/3,0)) -> 0 | T57: =LEFT(N57,4) -> 9000 | U57: =RIGHT(N57,5) -> 14400 | V57: 14400 | W57: =RIGHT('Table 1998'!N21,4) -> 4250 | X57: 4250 | Y57: =T57+P57*S57 -> 9000 | Z57: 13 NEW
W58: =RIGHT('Table 1998'!N22,4) -> 4500 | X58: 4500 | FR58: Applicable of selection grade
M59: 15 | N59: 10000-325-15200 | O59: ='Table 1998'!ER30 -> 10000 | P59: 325 | Q59: 325 | R59: 15200 | S59: =IF(ROUND('Table 1998'!P23/3,0)>=3,3,ROUND('Table 1998'!P23/3,0)) -> 0 | T59: =LEFT(N59,5) -> 10000 | U59: =RIGHT(N59,5) -> 15200 | V59: 15200 | W59: =RIGHT('Table 1998'!N23,4) -> 4500 | X59: 4500 | Y59: =T59+P59*S59 -> 10000 | Z59: =M57 -> 14 | FU59: Sep. Year
W60: =RIGHT('Table 1998'!N24,4) -> 5000 | X60: 5000 | FR60: Date of Joining | FT60: 1990-04-16 | FU60: =YEAR(FT60) -> 1990 | FV60: 9 years | FW60: 9
M61: 16 | N61: 10650-325-15850 | O61: ='Table 1998'!EU30 -> 10650 | P61: 325 | Q61: 325 | R61: 15850 | S61: =IF(ROUND('Table 1998'!P25/3,0)>=3,3,ROUND('Table 1998'!P25/3,0)) -> 0 | T61: =LEFT(N61,5) -> 10650 | U61: =RIGHT(N61,5) -> 15850 | V61: 15850 | W61: =RIGHT('Table 1998'!N25,4) -> 3500 | X61: 3500 | Y61: =T61+P61*S61 -> 10650 | Z61: =M59 -> 15 | FR61: Selection Grade | FT61: 18 years | FU61: =FW66 -> 18 | FV61: 18 years | FW61: 18
M62: 17 | N62: 11300-350-16200 | O62: ='Table 1998'!EX30 -> 11300 | P62: 350 | Q62: 350 | R62: 16200 | S62: =IF(ROUND('Table 1998'!P26/3,0)>=3,3,ROUND('Table 1998'!P26/3,0)) -> 0 | T62: 11300 | U62: 16200 | V62: 16200 | W62: =RIGHT('Table 1998'!N26,4) -> 5000 | X62: 5000 | Y62: 11300 | Z62: 16 | FR62: Add | FT62: =DATE(YEAR(FT60)+FU61,MONTH(FT60),DAY(FT60)) -> 2008-04-16 | FU62: =FU60+FU61 -> 2008 | FV62: 27 years | FW62: 27
M63: 18 | N63: 12000-375-16500 | O63: ='Table 1998'!FA30 -> 12000 | P63: 375 | Q63: 375 | R63: 16500 | S63: =IF(ROUND('Table 1998'!P27/3,0)>=3,3,ROUND('Table 1998'!P27/3,0)) -> 0 | T63: 12000 | U63: 16500 | V63: 16500 | W63: =RIGHT('Table 1998'!N27,4) -> 5000 | X63: 5000 | Y63: 12000 | Z63: 17 | FV63: 10 year | FW63: 10
M64: 19 | N64: 13500-400-17500 | O64: ='Table 1998'!FD30 -> 13500 | P64: 400 | Q64: 400 | R64: 17500 | S64: =IF(ROUND('Table 1998'!P28/3,0)>=3,3,ROUND('Table 1998'!P28/3,0)) -> 0 | T64: 13500 | U64: 17500 | V64: 17500 | W64: =RIGHT('Table 1998'!N28,4) -> 5300 | X64: 5300 | Y64: 13500 | Z64: 18 | FV64: 20 year | FW64: 20
M65: 20 | N65: 14300-400-18300 | O65: ='Table 1998'!FG30 -> 14300 | P65: 400 | Q65: 400 | R65: 18300 | S65: =IF(ROUND('Table 1998'!P29/3,0)>=3,3,ROUND('Table 1998'!P29/3,0)) -> 0 | T65: 14300 | U65: 18300 | V65: 18300 | W65: =RIGHT('Table 1998'!N29,4) -> 5700 | X65: 5700 | Y65: 14300 | Z65: 19 | FV65: 30 year | FW65: 30
M66: 21 | N66: 16400-450-20000 | O66: ='Table 1998'!FJ30 -> 16400 | P66: 450 | Q66: 450 | R66: 20000 | S66: =IF(ROUND('Table 1998'!P30/3,0)>=3,3,ROUND('Table 1998'!P30/3,0)) -> 0 | T66: 16400 | U66: 20000 | V66: 20000 | W66: =RIGHT('Table 1998'!N30,4) -> 6300 | X66: 6300 | Y66: 16400 | Z66: 20 | FV66: =FT61 -> 18 years | FW66: =INDEX($FW$60:$FW$65,MATCH(FV66,$FV$60:$FV$65,0)) -> 18
M67: 22 | N67: 18400-500-22400 | O67: ='Table 1998'!FM30 -> 18400 | P67: 500 | Q67: 500 | R67: 22400 | S67: =IF(ROUND('Table 1998'!P31/3,0)>=3,3,ROUND('Table 1998'!P31/3,0)) -> 0 | T67: 18400 | U67: 22400 | V67: 22400 | W67: =RIGHT('Table 1998'!N31,4) -> 6700 | X67: 6700 | Y67: 18400 | Z67: 21
M72: Pay Sacle in 1989 | O72: Pay Sacle in 1998
M73: 750-12-798-13-850-15-940 | O73: 2550-55-2660-60-3200
H74: Pay_Sacle_in_1998 | M74: 775-13-840-15-1005-20-1025 | O74: 2610-60-3150-65-3540
H75: Pay_Sacle_in_1998 | M75: 800-15-950-20-1250 | O75: 2650-65-3300-70-4000
M76: 825-15-900-20-1200-25-1350 | O76: 2750-70-3800-75-4400
M77: 910-20-1150-25-1400-30-1520 | O77: 2950-75-4075-80-4475
M78: 950-20-1150-25-1400-30-1640-40-1680 | O78: 3050-75-3950-80-4590
M79: 975-25-1100-30-1640-40-1720 | O79: 3200-85-4900
M80: 1025-25-1100-30-1640-40-1800 | O80: 3400-90-5200
M81: 1200-30-1560-40-2000-50-2050 | O81: 4000-100-6000
M82: 1200-30-1560-40-2000-50-2050 | O82: 4500-125-7000
M83: 1400-40-1600-50-2300-60-2600 | O83: 5000-150-8000
M84: 1640-60-2600-75-2900 | O84: 5500-175-9000
M85: 2000-60-2300-75-3200 | O85: 6500-200-10500
M86: 2000-60-2300-75-3200-100-3500 | O86: 7500-250-12000
M87: 2200-75-2800-100-4000 | O87: 8000-275-13500
M88: 2500-75-2800-100-4000-125-4250 | O88: 8000-275-13500
M89: 2650-75-2800-100-4000-125-4500 | O89: 9000-300-14400
M90: 3000-100-3500-125-4500 | O90: 10000-325-15200
M91: 3000-100-3500-125-5000 | O91: 10650-325-15850
M92: 2000-60-2300-75-3200-100-3500 | O92: 11300-350-16200
M93: 3450-125-4700-150-5000 | O93: 12000-375-16500
M94: 3700-125-4700-150-5000 | O94: 13500-400-17500
M95: 4100-150-5300 | O95: 14300-400-18300
M96: 4500-150-5700 | O96: 16400-450-20000
M97: 5100-150-5700-200-6300 | O97: 18400-500-22400
M98: 5900-200-6700 | AB98: SECOND SELECTION GRADE
AA99: FIRST SELECTION GRADE
AE100: New Scale & No.
J103: Pay Scale | K103: ='Table 1998'!$D$3 -> 6
AI104: =INDEX($AO$147:$BN$171,MATCH(BK104,$AO$147:$AO$171,0),MATCH($Z$142,$AO$147:$BN$147,0)) -> 
F105: Pay Range | G105: =INDEX($J$105:$AH$135,MATCH(I106,$J$105:$AH$105,0),MATCH($K$103,$J$105:$AH$105,0)) -> 6 | J105: 1 | K105: 2 | L105: 3 | M105: 4 | N105: 5 | O105: 6 | P105: 7 | Q105: 8 | R105: 9 | S105: 12 | T105: 13 | U105: 14 | V105: 15 | W105: 16 | X105: 17 | Y105: 18 | Z105: 19 | AA105: 20 | AB105: 21 | AC105: 22 | AD105: 23 | AE105: 24 | AF105: 25 | AG105: 26 | AH105: 27 | AI105: 28 | AJ105: 29 | AK105: 30 | AL105: 31 | AM105: 32
A106: =IF($K$103=$J$105,J106,IF($K$103=$K$105,K106,IF($K$103=$L$105,L106,IF($K$103=$M$105,M106,IF($K$103=$N$105,N106,IF($K$103=$O$105,O106,IF($K$103=$P$105,P106,IF($K$103=$Q$105,Q106)))))))) -> 950 | B106: =IF($K$103=$R$105,R106,IF($K$103=$S$105,S106,IF($K$103=$T$105=T106,IF($K$103=$U$105,U106,IF($K$103=$V$105,V106,IF($K$103=$W$105,W106,IF($K$103=$X$105,X106))))))) -> FALSE | C106: =IF($K$103=$U$105,U106,IF($K$103=$V$105,V106,IF($K$103=$W$105,W106,IF($K$103=$X$105,X106)))) -> FALSE | D106: =IF($K$103=$Y$105,Y105,IF($K$103=$Z$105,Z106,IF($K$103=$AA$105,AA106,IF($K$103=$AB$105,AB106)))) -> FALSE | E106: =IF($K$103=$AC$105,AC106,IF($K$103=$AD$105,AD106,IF($K$103=$AE$105,AE106,IF($K$103=$AF$105,AF106,IF($K$103=$AG$105,AG106,IF($K$103=$AH$105,AH106,0)))))) -> 0 | F106: =MAX(A106:E106) -> 950 | G106: =INDEX($J$105:$AM$135,MATCH(I107,$J$105:$AM$105,0),MATCH($K$103,$J$105:$AM$105,0)) -> 950 | H106: =IFERROR(G106,0) -> 950 | I106: 1 | J106: 750 | K106: 775 | L106: 800 | M106: 825 | N106: 910 | O106: 950 | P106: 975 | Q106: 1025 | R106: 1200 | S106: 1400 | T106: 1640 | U106: 2000 | V106: 2000 | W106: 2200 | X106: 2500 | Y106: 2650 | Z106: 3000 | AA106: 2000 | AB106: 3000 | AC106: 3450 | AD106: 3700 | AE106: 4100 | AF106: 4500 | AG106: 5100 | AH106: 5900
A107: 970 | B107: FALSE | C107: FALSE | D107: FALSE | E107: 0 | F107: 970 | G107: 970 | H107: =IFERROR(G107,0) -> 970 | I107: 2 | J107: 762 | K107: 788 | L107: 815 | M107: 840 | N107: 930 | O107: 970 | P107: 1000 | Q107: 1050 | R107: 1230 | S107: 1440 | T107: 1700 | U107: 2060 | V107: 2060 | W107: 2275 | X107: 2575 | Y107: 2725 | Z107: 3100 | AA107: 2060 | AB107: 3100 | AC107: 3575 | AD107: 3825 | AE107: 4250 | AF107: 4650 | AG107: 5250 | AH107: 6100
A108: 990 | B108: FALSE | C108: FALSE | D108: FALSE | E108: 0 | F108: 990 | G108: 990 | H108: 990 | I108: 3 | J108: 774 | K108: 801 | L108: 830 | M108: 855 | N108: 950 | O108: 990 | P108: 1025 | Q108: 1075 | R108: 1260 | S108: 1480 | T108: 1760 | U108: 2120 | V108: 2120 | W108: 2350 | X108: 2650 | Y108: 2800 | Z108: 3200 | AA108: 2120 | AB108: 3200 | AC108: 3700 | AD108: 3950 | AE108: 4400 | AF108: 4800 | AG108: 5400 | AH108: 6300
A109: 1010 | B109: FALSE | C109: FALSE | D109: FALSE | E109: 0 | F109: 1010 | G109: 1010 | H109: 1010 | I109: 4 | J109: 786 | K109: 814 | L109: 845 | M109: 870 | N109: 970 | O109: 1010 | P109: 1050 | Q109: 1100 | R109: 1290 | S109: 1520 | T109: 1820 | U109: 2180 | V109: 2180 | W109: 2425 | X109: 2725 | Y109: 2900 | Z109: 3300 | AA109: 2180 | AB109: 3300 | AC109: 3825 | AD109: 4075 | AE109: 4550 | AF109: 4950 | AG109: 5550 | AH109: 6500
A110: 1030 | B110: FALSE | C110: FALSE | D110: FALSE | E110: 0 | F110: 1030 | G110: 1030 | H110: 1030 | I110: 5 | J110: 798 | K110: 827 | L110: 860 | M110: 885 | N110: 990 | O110: 1030 | P110: 1075 | Q110: 1130 | R110: 1320 | S110: 1560 | T110: 1880 | U110: 2240 | V110: 2240 | W110: 2500 | X110: 2800 | Y110: 3000 | Z110: 3400 | AA110: 2240 | AB110: 3400 | AC110: 3950 | AD110: 4200 | AE110: 4700 | AF110: 5100 | AG110: 5700 | AH110: 6700
A111: 1050 | B111: FALSE | C111: FALSE | D111: FALSE | E111: 0 | F111: 1050 | G111: 1050 | H111: 1050 | I111: 6 | J111: 811 | K111: 840 | L111: 875 | M111: 900 | N111: 1010 | O111: 1050 | P111: 1100 | Q111: 1160 | R111: 1350 | S111: 1600 | T111: 1940 | U111: 2300 | V111: 2300 | W111: 2575 | X111: 2900 | Y111: 3100 | Z111: 3500 | AA111: 2300 | AB111: 3500 | AC111: 4075 | AD111: 4325 | AE111: 4850 | AF111: 5250 | AG111: 5900
A112: 1070 | B112: FALSE | C112: FALSE | D112: FALSE | E112: 0 | F112: 1070 | G112: 1070 | H112: 1070 | I112: 7 | J112: 824 | K112: 855 | L112: 890 | M112: 920 | N112: 1030 | O112: 1070 | P112: 1130 | Q112: 1190 | R112: 1380 | S112: 1650 | T112: 2000 | U112: 2375 | V112: 2375 | W112: 2650 | X112: 3000 | Y112: 3200 | Z112: 3625 | AA112: 2375 | AB112: 3625 | AC112: 4200 | AD112: 4450 | AE112: 5000 | AF112: 5400 | AG112: 6100
A113: 1090 | B113: FALSE | C113: FALSE | D113: FALSE | E113: 0 | F113: 1090 | G113: 1090 | H113: 1090 | I113: 8 | J113: 837 | K113: 870 | L113: 905 | M113: 940 | N113: 1050 | O113: 1090 | P113: 1160 | Q113: 1220 | R113: 1410 | S113: 1700 | T113: 2060 | U113: 2450 | V113: 2450 | W113: 2725 | X113: 3100 | Y113: 3300 | Z113: 3750 | AA113: 2450 | AB113: 3750 | AC113: 4325 | AD113: 4575 | AE113: 5150 | AF113: 5550 | AG113: 6300
A114: 1110 | B114: FALSE | C114: FALSE | D114: FALSE | E114: 0 | F114: 1110 | G114: 1110 | H114: 1110 | I114: 9 | J114: 850 | K114: 885 | L114: 920 | M114: 960 | N114: 1070 | O114: 1110 | P114: 1190 | Q114: 1250 | R114: 1440 | S114: 1750 | T114: 2120 | U114: 2525 | V114: 2525 | W114: 2800 | X114: 3200 | Y114: 3400 | Z114: 3875 | AA114: 2525 | AB114: 3875 | AC114: 4450 | AD114: 4700 | AE114: 5300 | AF114: 5700
A115: 1130 | B115: FALSE | C115: FALSE | D115: FALSE | E115: 0 | F115: 1130 | G115: 1130 | H115: 1130 | I115: 12 | J115: 865 | K115: 900 | L115: 935 | M115: 980 | N115: 1090 | O115: 1130 | P115: 1220 | Q115: 1280 | R115: 1470 | S115: 1800 | T115: 2180 | U115: 2600 | V115: 2600 | W115: 2900 | X115: 3300 | Y115: 3500 | Z115: 4000 | AA115: 2600 | AB115: 4000 | AC115: 4575 | AD115: 4850
A116: 1150 | B116: FALSE | C116: FALSE | D116: FALSE | E116: 0 | F116: 1150 | G116: 1150 | H116: 1150 | I116: 13 | J116: 880 | K116: 915 | L116: 950 | M116: 1000 | N116: 1110 | O116: 1150 | P116: 1250 | Q116: 1310 | R116: 1500 | S116: 1850 | T116: 2240 | U116: 2675 | V116: 2675 | W116: 3000 | X116: 3400 | Y116: 3600 | Z116: 4125 | AA116: 2675 | AB116: 4125 | AC116: 4700 | AD116: 5000
A117: 1175 | B117: FALSE | C117: FALSE | D117: FALSE | E117: 0 | F117: 1175 | G117: 1175 | H117: 1175 | I117: 14 | J117: 895 | K117: 930 | L117: 970 | M117: 1020 | N117: 1130 | O117: 1175 | P117: 1280 | Q117: 1340 | R117: 1530 | S117: 1900 | T117: 2300 | U117: 2750 | V117: 2750 | W117: 3100 | X117: 3500 | Y117: 3700 | Z117: 4250 | AA117: 2750 | AB117: 4250 | AC117: 4850
A118: 1200 | B118: FALSE | C118: FALSE | D118: FALSE | E118: 0 | F118: 1200 | G118: 1200 | H118: 1200 | I118: 15 | J118: 910 | K118: 945 | L118: 990 | M118: 1040 | N118: 1150 | O118: 1200 | P118: 1310 | Q118: 1370 | R118: 1560 | S118: 1950 | T118: 2360 | U118: 2825 | V118: 2825 | W118: 3200 | X118: 3600 | Y118: 3800 | Z118: 4375 | AA118: 2825 | AB118: 4375 | AC118: 5000
A119: 1225 | B119: FALSE | C119: FALSE | D119: FALSE | E119: 0 | F119: 1225 | G119: 1225 | H119: 1225 | I119: 16 | J119: 925 | K119: 960 | L119: 1010 | M119: 1060 | N119: 1175 | O119: 1225 | P119: 1340 | Q119: 1400 | R119: 1600 | S119: 2000 | T119: 2420 | U119: 2900 | V119: 2900 | W119: 3300 | X119: 3700 | Y119: 3900 | Z119: 4500 | AA119: 2900 | AB119: 4500
A120: 1250 | B120: FALSE | C120: FALSE | D120: FALSE | E120: 0 | F120: 1250 | G120: 1250 | H120: 1250 | I120: 17 | J120: 940 | K120: 975 | L120: 1030 | M120: 1080 | N120: 1200 | O120: 1250 | P120: 1370 | Q120: 1430 | R120: 1640 | S120: 2050 | T120: 2480 | U120: 2975 | V120: 2975 | W120: 3400 | X120: 3800 | Y120: 4000 | AA120: 2975 | AB120: 4625
A121: 1275 | B121: FALSE | C121: FALSE | D121: FALSE | E121: 0 | F121: 1275 | G121: 1275 | H121: 1275 | I121: 18 | K121: 990 | L121: 1050 | M121: 1100 | N121: 1225 | O121: 1275 | P121: 1400 | Q121: 1460 | R121: 1680 | S121: 2100 | T121: 2540 | U121: 3050 | V121: 3050 | W121: 3500 | X121: 3900 | Y121: 4125 | AA121: 3050 | AB121: 4750
A122: 1300 | B122: FALSE | C122: FALSE | D122: FALSE | E122: 0 | F122: 1300 | G122: 1300 | H122: 1300 | I122: 19 | K122: 1005 | L122: 1070 | M122: 1120 | N122: 1250 | O122: 1300 | P122: 1430 | Q122: 1490 | R122: 1720 | S122: 2150 | T122: 2600 | U122: 3125 | V122: 3125 | W122: 3600 | X122: 4000 | Y122: 4250 | AA122: 3125 | AB122: 4875
A123: 1325 | B123: FALSE | C123: FALSE | D123: FALSE | E123: 0 | F123: 1325 | G123: 1325 | H123: 1325 | I123: 20 | K123: 1025 | L123: 1090 | M123: 1140 | N123: 1275 | O123: 1325 | P123: 1460 | Q123: 1520 | R123: 1760 | S123: 2200 | T123: 2675 | U123: 3200 | V123: 3200 | W123: 3700 | X123: 4125 | Y123: 4375 | AA123: 3200 | AB123: 5000
A124: 1350 | B124: FALSE | C124: FALSE | D124: FALSE | E124: 0 | F124: 1350 | G124: 1350 | H124: 1350 | I124: 21 | L124: 1110 | M124: 1160 | N124: 1300 | O124: 1350 | P124: 1490 | Q124: 1550 | R124: 1800 | S124: 2250 | T124: 2750 | V124: 3300 | W124: 3800 | X124: 4250 | Y124: 4500 | AA124: 3300
A125: 1375 | B125: FALSE | C125: FALSE | D125: FALSE | E125: 0 | F125: 1375 | G125: 1375 | H125: 1375 | I125: 22 | L125: 1130 | M125: 1180 | N125: 1325 | O125: 1375 | P125: 1520 | Q125: 1580 | R125: 1840 | S125: 2300 | T125: 2825 | V125: 3400 | W125: 3900 | AA125: 3400
A126: 1400 | B126: FALSE | C126: FALSE | D126: FALSE | E126: 0 | F126: 1400 | G126: 1400 | H126: 1400 | I126: 23 | L126: 1150 | M126: 1200 | N126: 1350 | O126: 1400 | P126: 1550 | Q126: 1610 | R126: 1880 | S126: 2360 | T126: 2900 | V126: 3500 | W126: 4000 | AA126: 3500
A127: 1430 | B127: FALSE | C127: FALSE | D127: FALSE | E127: 0 | F127: 1430 | G127: 1430 | H127: 1430 | I127: 24 | L127: 1170 | M127: 1225 | N127: 1375 | O127: 1430 | P127: 1580 | Q127: 1640 | R127: 1920 | S127: 2420
A128: 1460 | B128: FALSE | C128: FALSE | D128: FALSE | E128: 0 | F128: 1460 | G128: 1460 | H128: 1460 | I128: 25 | L128: 1190 | M128: 1250 | N128: 1400 | O128: 1460 | P128: 1610 | Q128: 1680 | R128: 1960 | S128: 2480
A129: 1490 | B129: FALSE | C129: FALSE | D129: FALSE | E129: 0 | F129: 1490 | G129: 1490 | H129: 1490 | I129: 26 | L129: 1210 | M129: 1275 | N129: 1430 | O129: 1490 | P129: 1640 | Q129: 1720 | R129: 2000 | S129: 2540
A130: 1520 | B130: FALSE | C130: FALSE | D130: FALSE | E130: 0 | F130: 1520 | G130: 1520 | H130: 1520 | I130: 27 | L130: 1230 | M130: 1300 | N130: 1460 | O130: 1520 | P130: 1680 | Q130: 1760 | R130: 2050 | S130: 2600
A131: 1550 | B131: FALSE | C131: FALSE | D131: FALSE | E131: 0 | F131: 1550 | G131: 1550 | H131: 1550 | I131: 28 | L131: 1250 | M131: 1325 | N131: 1490 | O131: 1550 | P131: 1720 | Q131: 1800
A132: 1580 | B132: FALSE | C132: FALSE | D132: FALSE | E132: 0 | F132: 1580 | G132: 1580 | H132: 1580 | I132: 29 | M132: 1350 | N132: 1520 | O132: 1580
A133: 1610 | B133: FALSE | C133: FALSE | D133: FALSE | E133: 0 | F133: 1610 | G133: 1610 | H133: 1610 | I133: 30 | O133: 1610
A134: 1640 | B134: FALSE | C134: FALSE | D134: FALSE | E134: 0 | F134: 1640 | G134: 1640 | H134: 1640 | I134: 31 | O134: 1640
A135: 1680 | B135: FALSE | C135: FALSE | D135: FALSE | E135: 0 | F135: 1680 | H135: 0 | I135: 32 | O135: 1680
G136: =SMALL($D$148:$D$171,ROW(A1)) -> 1997-12-13 | J136: 940 | K136: 1025 | L136: 1250 | M136: 1350 | N136: 1520 | O136: 1680 | P136: 1720 | Q136: 1800 | R136: 2050 | S136: 2600 | T136: 2900 | U136: 3200 | V136: 3500 | W136: 4000 | X136: 4250 | Y136: 4500 | Z136: 5000 | AA136: 3500 | AB136: 5000 | AC136: 5000 | AD136: 5000 | AE136: 5300 | AF136: 5700 | AG136: 6300 | AH136: 6700
G137: 1998-12-13
G138: 1999-04-16
G139: 1999-12-13 | N139: FIRST SELECTION GRADE | R139: ='MS Fixation(1998)'!C22 -> YES | T139: SECOND SELECTION GRADE | X139: ='MS Fixation(1998)'!E32 -> YES
G140: 2000-12-13 | K140: Parametre | N140: Existing Data | Q140: New Data | T140: Existing Data | W140: New Data | Z140: Regular Pay Scale
B141: Orignal due date | G141: 2001-12-13 | K141: Pay Scale | N141: ='MS Fixation(1998)'!C24 -> 3400-90-5200 | Q141: =INDEX($N$40:$N$67,MATCH(N142,$Z$40:$Z$67,0)) -> 4000-100-6000 | T141: ='MS Fixation(1998)'!B31 -> 3400-90-5200 | W141: ='MS Fixation(1998)'!B32 -> 4000-100-6000 | Z141: ='MS Fixation(1998)'!C24 -> 3400-90-5200
B142: Input due date | C142: ='MS Fixation(1998)'!C21 -> 2005-05-11 | G142: 2002-12-13 | K142: Scale No. | N142: =INDEX($M$40:$M$67,MATCH(N141,$N$40:$N$67,0)) -> 8 | Q142: =INDEX($M$40:$M$67,MATCH(Q141,$N$40:$N$67,0)) -> 9 | T142: =INDEX($M$40:$M$67,MATCH(T141,$N$40:$N$67,0)) -> 8 | W142: =INDEX($M$40:$M$67,MATCH(W141,$N$40:$N$67,0)) -> 9 | Z142: =INDEX($M$40:$M$67,MATCH(Z141,$N$40:$N$67,0)) -> 8
B143: Condition | C143: ='MS Fixation(1998)'!C22 -> YES | D143: =C142-C143 ->  | G143: 2003-12-13 | K143: Minimum/Maximum of scale | N143: =LEFT(N141,4) -> 3400 | O143: =INDEX($V$40:$V$67,MATCH(N142,$M$40:$M$67,0)) -> 5200 | Q143: =LEFT(Q141,4) -> 4000 | R143: =INDEX($V$40:$V$67,MATCH(Q142,$M$40:$M$67,0)) -> 6000 | T143: =LEFT(T141,4) -> 3400 | U143: =INDEX($V$40:$V$67,MATCH(T142,$M$40:$M$67,0)) -> 5200 | W143: =LEFT(W141,4) -> 4000 | X143: =INDEX($V$40:$V$67,MATCH(W142,$M$40:$M$67,0)) -> 6000 | Z143: Present Pay | AB143: ='MS Fixation(1998)'!I21+'MS Fixation(1998)'!I22 -> 3670
B144: Final Due date | C144: =IF(C143="YES",C142,"") -> 2005-05-11 | G144: 2004-12-13 | I144: =MAX(($D$148:$D$171<TODAY())*D148:D171) ->  | K144: Pay | N144: =AB146 -> 4390 | Q144: =MAX($Q$148:$Q$171) -> 4480 | T144: ='MS Fixation(1998)'!$E$34 -> 4390 | W144: =MAX($V$148:$V$171) -> 4480 | Z144: Incr. date | AA144: ='MS Fixation(1998)'!H25 -> 2005-12-13 | AB144: =INDEX($K$148:$K$171,MATCH(AB143,$K$148:$K$171,0)+1) -> 3760
B145: Start date: | C145: =MAX(D170,'MS Fixation(1998)'!H19) -> 1997-12-13 | D145: End date: | E145: ='MS Fixation(1998)'!I19 -> 2005-12-31 | K145: Next stage | N145: =T155 ->  | Q145: 1967-03-18 | R145: =IF(S145="YES",'Table 1998'!C144,Q145) -> 2005-05-11 | S145: ='MS Fixation(1998)'!C22 -> YES | T145: =Y155 -> 4500 | X145: ='MS Fixation(1998)'!E31 -> 1999-04-16 | Z145: ACP date | AA145: =R145 -> 2005-05-11 | AB145: ACP PAY
B146: Date_list | C146: SHORT DATE (A) | I146: =INDEX($D$148:$D$171,MATCH(MIN(ABS($D$148:$D$171-$C$141)),ABS($D$148:$D$171-$C$141),0)) ->  | J146: =IF(ROWS(J146:$O$148)<=COUNT($N$148:$N$171)+COUNTIF($N$148:$N$171,"*?"),INDEX($N$148:$N$171,SMALL(IF($N$148:$N$171<>"",ROW($N$148:$N$171)-ROW($O$148)+1),ROWS(J146:$O$148))),"") ->  | K146: Regular Pay Scale | P146: Value in Ist selection grade | U146: Value in IInd selection grade | Z146: Last close | AA146: =IF(S145="YES",LARGE($J$148:$J$171,COUNTIF($J$148:$J$171,">"&AA145)+2),LARGE($J$148:$J$171,COUNTIF($J$148:$J$171,">"&AA145)+1)) -> 2004-12-13 | AB146: =INDEX($AA$148:$AA$171,MATCH(AA146,$J$148:$J$169,0)) -> 4390
B147: Regular incr. date | D147: Update date | E147: First base date for regular incre. | F147: Change Date | G147: Change Condition | H147: Change Date (a) | I147: Change Date (b) | J147: Final Date | K147: Pay value in regular scale | M147: Rank | N147: Adjt. Value | O147: Final value in reg. scale | P147: Existing Stage (A) | Q147: Next Stage in existing scale | R147: New Stage (B) | S147: New Stage in new scale | T147: Final Value | U147: Existing Stage (C) | V147: Next Stage in existing scale | W147: New Stage (D) | X147: New Stage in new scale | Y147: Final Value | Z147: Selection Grade condt. | AA147: Regular Value for exist status | AB147: Value in selection scale, if due | AC147: ACP due condt. | AD147: Regular value in selection scale(A) | AE147: Regular value in selection scale(B) | AF147: Final value after adjusting acp condition | AG147: Incre. Condition | AH147: Value after incr. condt. | AI147: ='MS Fixation(1998)'!I21+'MS Fixation(1998)'!I22 -> 3670 | AJ147: Relaed | AP147: 1 | AQ147: 2 | AR147: 3 | AS147: 4 | AT147: 5 | AU147: 6 | AV147: 7 | AW147: 8 | AX147: 9 | AY147: 9A | AZ147: 10 | BA147: 11 | BB147: 12 | BC147: 12A | BD147: 13 | BE147: 14 | BF147: 15 | BG147: 16 | BH147: 17 | BI147: 18 | BJ147: 19 | BK147: 20 | BL147: 21 | BM147: 22 | BN147: 27
A148: 1 | B148: =D148 -> 1997-12-13 | C148: =COUNTIF($D$148:$D$169,"<="&D148) -> 1 | D148: =Date_start1998 -> 1997-12-13 | E148: =IFERROR(INDEX($D$148:$D$168,MATCH(0,INDEX(COUNTIF($D$148:$D$168,"<"&$D$148:$D$168)-SUMPRODUCT(COUNTIF($D$147:D147,$D$148:$D$168)),),0)),"") -> 1997-12-13 | F148: ='MS Fixation(1998)'!B38 -> 1997-12-13 | G148: ='MS Fixation(1998)'!C38 -> NO | H148: =IF(G148="YES",F148,E148) -> 1997-12-13 | I148: =IF(ISERROR(H148),"",H148) -> 1997-12-13 | J148: =H148 -> 1997-12-13 | K148: =INDEX($AO$147:$BN$171,MATCH(AO148,$AO$147:$AO$171,0),MATCH($Z$142,$AO$147:$BN$147,0)) -> 3400 | L148: =IF(L147>0,K148,IF($AB$144=K148,K148,0)) -> 0 | M148: =RANK(L148,$L$148:$L$171,0) -> 18 | N148: =SMALL($L$148:$L$171,ROW(L148)-ROW($L$148)+1) -> 0 | O148: =IFERROR(INDEX($N$148:$N$171,MATCH(SMALL(NOT($N$148:$N$171="")*IF(ISNUMBER($N$148:$N$171),COUNTIF($N$148:$N$171,"<="&$N$148:$N$171),COUNTIF($N$148:$N$171,"<="&$N$148:$N$171)+SUM(--ISNUMBER($N$148:$N$171))),ROWS($N$148:N148)+SUM(--ISBLANK($N$148:$N$171))),NOT($N$148:$N$171="")*IF(ISNUMBER($N$148:$N$171),COUNTIF($N$148:$N$171,"<="&$N$148:$N$171),COUNTIF($N$148:$N$171,"<="&$N$148:$N$171)+SUM(--ISNUMBER($N$148:$N$171))),0)),"") -> 0 | P148: =INDEX($AO$147:$BN$171,MATCH(AO148,$AO$147:$AO$171,0),MATCH($N$142,$AO$147:$BN$147,0)) -> 3400 | Q148: =IF($N$144>=N144,P149,0) -> 3490 | R148: =INDEX($AO$147:$BN$171,MATCH(AO148,$AO$147:$AO$171,0),MATCH($Q$142,$AO$147:$BN$147,0)) -> 4000 | S148: =SMALL($R$148:$R$171,1+COUNTIF($R$148:$R$171,"<="&Q148)) -> 4000 | T148: =LARGE($S$148:$S$171,1) -> 4500 | U148: =INDEX($AO$147:$BN$171,MATCH(AO148,$AO$147:$AO$171,0),MATCH($T$142,$AO$147:$BN$147,0)) -> 3400 | V148: =IF($T$144>=R144,U149,0) -> 3490 | W148: =INDEX($AO$147:$BN$171,MATCH(AO148,$AO$147:$AO$171,0),MATCH($W$142,$AO$147:$BN$147,0)) -> 4000 | X148: =SMALL($W$148:$W$171,1+COUNTIF($W$148:$W$171,"<="&V148)) -> 4000 | Y148: =LARGE($X$148:$X$171,1) -> 4500 | Z148: =IF($R$145=J148,"1",IF($X$145=J148,"2","NO")) -> NO | AA148: =INDEX($K$148:$K$171,MATCH($AB$144,$K$148:$K$171,0)) -> 3760 | AB148: =IF(Z147="1",0,IF(Z148="1",$T$148,IF(Z148="2",$Y$148,0))) -> 0 | AC148: =IF(AB148>0,"YES","NO") -> NO | AD148: =IF(AB148>0,AB148,AA148) -> 3760 | AE148: =SMALL($R$148:$R$171,1+COUNTIF($R$148:$R$171,"<"&AD148)) -> 4000 | AF148: =IF(AC148="YES",AE148,AD148) -> 3760 | AG148: =IF('MS Fixation(1998)'!F38="YES",1,0) -> 1 | AH148: =AF148 -> 3760 | AI148: =IF(AG148=0,0,AH148-AI147) -> 90 | AJ148: ='MS Fixation(1998)'!I38 -> 0 | AL148: =COUNTIF($AG$148:$AG$171,"<="&AG148) -> 21 | AM148: =INDEX($AE$148:$AE$171,MATCH(ROWS($AL$148:AL148),$AL$148:$AL$171,0)) -> 4200 | AN148: =AM148 -> 4200 | AO148: 1 | AP148: 2550 | AQ148: 2610 | AR148: 2650 | AS148: 2750 | AT148: 2950 | AU148: 3050 | AV148: 3200 | AW148: 3400 | AX148: 4000 | AY148: 4500 | AZ148: 5000 | BA148: 5500 | BB148: 6500 | BC148: 7500 | BD148: 8000 | BE148: 9000 | BF148: 10000 | BG148: 10650 | BH148: 11300 | BI148: 12000 | BJ148: 13500 | BK148: 14300 | BL148: 16400 | BM148: 18400 | BN148: 5900 | BR148: =INDEX($L$148:$L$171,MATCH(ROWS($M$148:M148),$M$148:$M$171,1)) -> 
A149: 2 | B149: =DATE(YEAR(B148),MONTH(B148)+12,DAY(B148)) -> 1998-12-13 | C149: 2 | D149: =IF($E$145>D148,DATE(YEAR(D148),MONTH(D148)+12,DAY(D148)),"") -> 1998-12-13 | E149: =IFERROR(INDEX($D$148:$D$168,MATCH(0,INDEX(COUNTIF($D$148:$D$168,"<"&$D$148:$D$168)-SUMPRODUCT(COUNTIF($D$147:D148,$D$148:$D$168)),),0)),"") -> 1998-12-13 | F149: ='MS Fixation(1998)'!B39 -> 1998-12-13 | G149: ='MS Fixation(1998)'!C39 -> NO | H149: 1998-12-13 | I149: 1998-12-13 | J149: =IF(J148="","",IF($E$145>=I149,I149,"")) -> 1998-12-13 | K149: 3490 | L149: 0 | M149: 18 | N149: 0 | O149: =IFERROR(INDEX($N$148:$N$171,MATCH(SMALL(NOT($N$148:$N$171="")*IF(ISNUMBER($N$148:$N$171),COUNTIF($N$148:$N$171,"<="&$N$148:$N$171),COUNTIF($N$148:$N$171,"<="&$N$148:$N$171)+SUM(--ISNUMBER($N$148:$N$171))),ROWS($N$148:N149)+SUM(--ISBLANK($N$148:$N$171))),NOT($N$148:$N$171="")*IF(ISNUMBER($N$148:$N$171),COUNTIF($N$148:$N$171,"<="&$N$148:$N$171),COUNTIF($N$148:$N$171,"<="&$N$148:$N$171)+SUM(--ISNUMBER($N$148:$N$171))),0)),"") -> 0 | P149: 3490 | Q149: =IF($N$144>P148,P150,0) -> 3580 | R149: 4100 | S149: 4000 | T149: Change value | U149: 3490 | V149: =IF($T$144>U148,U150,0) -> 3580 | W149: 4100 | X149: 4000 | Y149: Change value | Z149: NO | AA149: =INDEX($K$148:$K$171,MATCH(AA148,$K$148:$K$171,0)+1) -> 3850 | AB149: 0 | AC149: =IF(AC148="YES","YES",IF(AB149>0,"YES","NO")) -> NO | AD149: 3850 | AE149: 4000 | AF149: 3850 | AG149: =IF('MS Fixation(1998)'!F39="YES",1,0) -> 1 | AH149: =IF(AG149=0,AH148,SMALL($AF$148:$AF$171,1+COUNTIF($AF$148:$AF$171,"<="&AH148))) -> 3850 | AI149: =IF(Z149="1","Sel.Scale ",AJ149+AH149-AH148) -> 90 | AJ149: ='MS Fixation(1998)'!I39 -> 0 | AL149: =IF(AG149=AG148,COUNTIF($AG$148:$AG$171,"<="&AG148),COUNTIF($AG$148:$AG$171,"<="&AG149)) -> 21 | AM149: =INDEX($AE$148:$AE$171,MATCH(ROWS($AL$148:AL149),$AL$148:$AL$171,0)) ->  | AN149: =INDEX($R$148:$R$171,MATCH(MIN(ABS($R$148:$R$171-AN148)),ABS($R$148:$R$171-AN148),0)) ->  | AO149: 2 | AP149: 2605 | AQ149: 2670 | AR149: 2715 | AS149: 2820 | AT149: 3025 | AU149: 3125 | AV149: 3285 | AW149: 3490 | AX149: 4100 | AY149: 4625 | AZ149: 5150 | BA149: 5675 | BB149: 6700 | BC149: 7750 | BD149: 8275 | BE149: 9300 | BF149: 10325 | BG149: 10975 | BH149: 11650 | BI149: 12375 | BJ149: 13900 | BK149: 14700 | BL149: 16850 | BM149: 18900 | BN149: 6100 | BR149: =INDEX($L$148:$L$171,MATCH(ROWS($M$148:M149),$M$148:$M$171,1)) -> 
A150: 3 | B150: 1999-12-13 | C150: 4 | D150: 1999-12-13 | E150: =IFERROR(INDEX($D$148:$D$168,MATCH(0,INDEX(COUNTIF($D$148:$D$168,"<"&$D$148:$D$168)-SUMPRODUCT(COUNTIF($D$147:D149,$D$148:$D$168)),),0)),"") -> 1999-12-13 | F150: ='MS Fixation(1998)'!B40 -> 1999-12-13 | G150: ='MS Fixation(1998)'!C40 -> NO | H150: 1999-12-13 | I150: 1999-12-13 | J150: 1999-12-13 | K150: 3580 | L150: 0 | M150: 18 | N150: 0 | O150: =IFERROR(INDEX($N$148:$N$171,MATCH(SMALL(NOT($N$148:$N$171="")*IF(ISNUMBER($N$148:$N$171),COUNTIF($N$148:$N$171,"<="&$N$148:$N$171),COUNTIF($N$148:$N$171,"<="&$N$148:$N$171)+SUM(--ISNUMBER($N$148:$N$171))),ROWS($N$148:N150)+SUM(--ISBLANK($N$148:$N$171))),NOT($N$148:$N$171="")*IF(ISNUMBER($N$148:$N$171),COUNTIF($N$148:$N$171,"<="&$N$148:$N$171),COUNTIF($N$148:$N$171,"<="&$N$148:$N$171)+SUM(--ISNUMBER($N$148:$N$171))),0)),"") -> 0 | P150: 3580 | Q150: 3670 | R150: 4200 | S150: 4000 | U150: 3580 | V150: 3670 | W150: 4200 | X150: 4000 | Z150: NO | AA150: 3940 | AB150: 0 | AC150: NO | AD150: 3940 | AE150: 4000 | AF150: 3940 | AG150: =IF('MS Fixation(1998)'!F40="YES",1,0) -> 1 | AH150: 3940 | AI150: =IF(Z150="1","Sel.Scale ",AJ150+AH150-AH149) -> 90 | AJ150: ='MS Fixation(1998)'!I40 -> 0 | AL150: =IF(AG150=AG149,COUNTIF($AG$148:$AG$171,"<="&AG149),COUNTIF($AG$148:$AG$171,"<="&AG150)) -> 21 | AM150: =INDEX($AE$148:$AE$171,MATCH(ROWS($AL$148:AL150),$AL$148:$AL$171,0)) -> 0 | AN150: =INDEX($R$148:$R$171,MATCH(MIN(ABS($R$148:$R$171-AN149)),ABS($R$148:$R$171-AN149),0)) ->  | AO150: 3 | AP150: 2660 | AQ150: 2730 | AR150: 2780 | AS150: 2890 | AT150: 3100 | AU150: 3200 | AV150: 3370 | AW150: 3580 | AX150: 4200 | AY150: 4750 | AZ150: 5300 | BA150: 5850 | BB150: 6900 | BC150: 8000 | BD150: 8550 | BE150: 9600 | BF150: 10650 | BG150: 11300 | BH150: 12000 | BI150: 12750 | BJ150: 14300 | BK150: 15100 | BL150: 17300 | BM150: 19400 | BN150: 6300 | BR150: =INDEX($L$148:$L$171,MATCH(ROWS($M$148:M150),$M$148:$M$171,1)) -> 
A151: 4 | B151: 2000-12-13 | C151: 5 | D151: 2000-12-13 | E151: =IFERROR(INDEX($D$148:$D$168,MATCH(0,INDEX(COUNTIF($D$148:$D$168,"<"&$D$148:$D$168)-SUMPRODUCT(COUNTIF($D$147:D150,$D$148:$D$168)),),0)),"") -> 2000-12-13 | F151: ='MS Fixation(1998)'!B41 -> 2000-12-13 | G151: ='MS Fixation(1998)'!C41 -> NO | H151: 2000-12-13 | I151: 2000-12-13 | J151: 2000-12-13 | K151: 3670 | L151: 0 | M151: 18 | N151: 0 | O151: =IFERROR(INDEX($N$148:$N$171,MATCH(SMALL(NOT($N$148:$N$171="")*IF(ISNUMBER($N$148:$N$171),COUNTIF($N$148:$N$171,"<="&$N$148:$N$171),COUNTIF($N$148:$N$171,"<="&$N$148:$N$171)+SUM(--ISNUMBER($N$148:$N$171))),ROWS($N$148:N151)+SUM(--ISBLANK($N$148:$N$171))),NOT($N$148:$N$171="")*IF(ISNUMBER($N$148:$N$171),COUNTIF($N$148:$N$171,"<="&$N$148:$N$171),COUNTIF($N$148:$N$171,"<="&$N$148:$N$171)+SUM(--ISNUMBER($N$148:$N$171))),0)),"") -> 0 | P151: 3670 | Q151: 3760 | R151: 4300 | S151: 4000 | T151: ='MS Fixation(1998)'!#REF! ->  | U151: 3670 | V151: 3760 | W151: 4300 | X151: 4000 | Y151: ='MS Fixation(1998)'!I32 -> 4600 | Z151: NO | AA151: 4030 | AB151: 0 | AC151: NO | AD151: 4030 | AE151: 4100 | AF151: 4030 | AG151: =IF('MS Fixation(1998)'!F41="YES",1,0) -> 1 | AH151: 4030 | AI151: 90 | AJ151: ='MS Fixation(1998)'!I41 -> 0 | AL151: =IF(AG151=AG150,COUNTIF($AG$148:$AG$171,"<="&AG150),COUNTIF($AG$148:$AG$171,"<="&AG151)) -> 21 | AM151: =INDEX($AE$148:$AE$171,MATCH(ROWS($AL$148:AL151),$AL$148:$AL$171,0)) ->  | AN151: =INDEX($R$148:$R$171,MATCH(MIN(ABS($R$148:$R$171-AN150)),ABS($R$148:$R$171-AN150),0)) ->  | AO151: 4 | AP151: 2720 | AQ151: 2790 | AR151: 2845 | AS151: 2960 | AT151: 3175 | AU151: 3275 | AV151: 3455 | AW151: 3670 | AX151: 4300 | AY151: 4875 | AZ151: 5450 | BA151: 6025 | BB151: 7100 | BC151: 8250 | BD151: 8825 | BE151: 9900 | BF151: 10975 | BG151: 11625 | BH151: 12350 | BI151: 13125 | BJ151: 14700 | BK151: 15500 | BL151: 17750 | BM151: 19900 | BN151: 6500 | BR151: =INDEX($L$148:$L$171,MATCH(ROWS($M$148:M151),$M$148:$M$171,1)) -> 
A152: 5 | B152: 2001-12-13 | C152: 6 | D152: 2001-12-13 | E152: =IFERROR(INDEX($D$148:$D$168,MATCH(0,INDEX(COUNTIF($D$148:$D$168,"<"&$D$148:$D$168)-SUMPRODUCT(COUNTIF($D$147:D151,$D$148:$D$168)),),0)),"") -> 2001-12-13 | F152: ='MS Fixation(1998)'!B42 -> 2001-12-13 | G152: ='MS Fixation(1998)'!C42 -> NO | H152: 2001-12-13 | I152: 2001-12-13 | J152: 2001-12-13 | K152: 3760 | L152: 3760 | M152: 17 | N152: 0 | O152: =IFERROR(INDEX($N$148:$N$171,MATCH(SMALL(NOT($N$148:$N$171="")*IF(ISNUMBER($N$148:$N$171),COUNTIF($N$148:$N$171,"<="&$N$148:$N$171),COUNTIF($N$148:$N$171,"<="&$N$148:$N$171)+SUM(--ISNUMBER($N$148:$N$171))),ROWS($N$148:N152)+SUM(--ISBLANK($N$148:$N$171))),NOT($N$148:$N$171="")*IF(ISNUMBER($N$148:$N$171),COUNTIF($N$148:$N$171,"<="&$N$148:$N$171),COUNTIF($N$148:$N$171,"<="&$N$148:$N$171)+SUM(--ISNUMBER($N$148:$N$171))),0)),"") -> 0 | P152: 3760 | Q152: 3850 | R152: 4400 | S152: 4000 | T152: Change Condition | U152: 3760 | V152: 3850 | W152: 4400 | X152: 4000 | Y152: Change Condition | Z152: NO | AA152: 4120 | AB152: 0 | AC152: NO | AD152: 4120 | AE152: 4200 | AF152: 4120 | AG152: =IF('MS Fixation(1998)'!F42="YES",1,0) -> 1 | AH152: 4120 | AI152: 90 | AJ152: ='MS Fixation(1998)'!I42 -> 0 | AL152: =IF(AG152=AG151,COUNTIF($AG$148:$AG$171,"<="&AG152-1),COUNTIF($AG$148:$AG$171,"<="&AG152)) -> 1 | AM152: =INDEX($AE$148:$AE$171,MATCH(ROWS($AL$148:AL152),$AL$148:$AL$171,0)) ->  | AN152: =INDEX($R$148:$R$171,MATCH(MIN(ABS($R$148:$R$171-AN151)),ABS($R$148:$R$171-AN151),0)) ->  | AO152: 5 | AP152: 2780 | AQ152: 2850 | AR152: 2910 | AS152: 3030 | AT152: 3250 | AU152: 3350 | AV152: 3540 | AW152: 3760 | AX152: 4400 | AY152: 5000 | AZ152: 5600 | BA152: 6200 | BB152: 7300 | BC152: 8500 | BD152: 9100 | BE152: 10200 | BF152: 11300 | BG152: 11950 | BH152: 12700 | BI152: 13500 | BJ152: 15100 | BK152: 15900 | BL152: 18200 | BM152: 20400 | BN152: 6700 | BR152: =INDEX($L$148:$L$171,MATCH(ROWS($M$148:M152),$M$148:$M$171,1)) -> 
A153: 6 | B153: 2002-12-13 | C153: 7 | D153: 2002-12-13 | E153: =IFERROR(INDEX($D$148:$D$168,MATCH(0,INDEX(COUNTIF($D$148:$D$168,"<"&$D$148:$D$168)-SUMPRODUCT(COUNTIF($D$147:D152,$D$148:$D$168)),),0)),"") -> 2002-12-13 | F153: ='MS Fixation(1998)'!B43 -> 2002-12-13 | G153: ='MS Fixation(1998)'!C43 -> NO | H153: 2002-12-13 | I153: 2002-12-13 | J153: 2002-12-13 | K153: 3850 | L153: 3850 | M153: 16 | N153: 0 | O153: =IFERROR(INDEX($N$148:$N$171,MATCH(SMALL(NOT($N$148:$N$171="")*IF(ISNUMBER($N$148:$N$171),COUNTIF($N$148:$N$171,"<="&$N$148:$N$171),COUNTIF($N$148:$N$171,"<="&$N$148:$N$171)+SUM(--ISNUMBER($N$148:$N$171))),ROWS($N$148:N153)+SUM(--ISBLANK($N$148:$N$171))),NOT($N$148:$N$171="")*IF(ISNUMBER($N$148:$N$171),COUNTIF($N$148:$N$171,"<="&$N$148:$N$171),COUNTIF($N$148:$N$171,"<="&$N$148:$N$171)+SUM(--ISNUMBER($N$148:$N$171))),0)),"") -> 0 | P153: 3850 | Q153: 3940 | R153: 4500 | S153: 4000 | U153: 3850 | V153: 3940 | W153: 4500 | X153: 4000 | Z153: NO | AA153: 4210 | AB153: 0 | AC153: NO | AD153: 4210 | AE153: 4300 | AF153: 4210 | AG153: =IF('MS Fixation(1998)'!F43="YES",1,0) -> 1 | AH153: 4210 | AI153: 90 | AJ153: ='MS Fixation(1998)'!I43 -> 0 | AL153: =COUNTIF($AG$148:$AG$171,"<="&AG153) -> 21 | AM153: =INDEX($AE$148:$AE$171,MATCH(ROWS($AL$148:AL153),$AL$148:$AL$171,0)) ->  | AN153: =INDEX($R$148:$R$171,MATCH(MIN(ABS($R$148:$R$171-AN152)),ABS($R$148:$R$171-AN152),0)) ->  | AO153: 6 | AP153: 2840 | AQ153: 2910 | AR153: 2975 | AS153: 3100 | AT153: 3325 | AU153: 3425 | AV153: 3625 | AW153: 3850 | AX153: 4500 | AY153: 5125 | AZ153: 5750 | BA153: 6375 | BB153: 7500 | BC153: 8750 | BD153: 9375 | BE153: 10500 | BF153: 11625 | BG153: 12275 | BH153: 13050 | BI153: 13875 | BJ153: 15500 | BK153: 16300 | BL153: 18650 | BM153: 20900 | BR153: =INDEX($L$148:$L$171,MATCH(ROWS($M$148:M153),$M$148:$M$171,1)) -> 
A154: 7 | B154: 2003-12-13 | C154: 8 | D154: 2003-12-13 | E154: =IFERROR(INDEX($D$148:$D$168,MATCH(0,INDEX(COUNTIF($D$148:$D$168,"<"&$D$148:$D$168)-SUMPRODUCT(COUNTIF($D$147:D153,$D$148:$D$168)),),0)),"") -> 2003-12-13 | F154: ='MS Fixation(1998)'!B44 -> 2003-12-13 | G154: ='MS Fixation(1998)'!C44 -> NO | H154: 2003-12-13 | I154: 2003-12-13 | J154: 2003-12-13 | K154: 3940 | L154: 3940 | M154: 15 | N154: 0 | O154: =IFERROR(INDEX($N$148:$N$171,MATCH(SMALL(NOT($N$148:$N$171="")*IF(ISNUMBER($N$148:$N$171),COUNTIF($N$148:$N$171,"<="&$N$148:$N$171),COUNTIF($N$148:$N$171,"<="&$N$148:$N$171)+SUM(--ISNUMBER($N$148:$N$171))),ROWS($N$148:N154)+SUM(--ISBLANK($N$148:$N$171))),NOT($N$148:$N$171="")*IF(ISNUMBER($N$148:$N$171),COUNTIF($N$148:$N$171,"<="&$N$148:$N$171),COUNTIF($N$148:$N$171,"<="&$N$148:$N$171)+SUM(--ISNUMBER($N$148:$N$171))),0)),"") -> 0 | P154: 3940 | Q154: 4030 | R154: 4600 | S154: 4100 | T154: ='MS Fixation(1998)'!#REF! ->  | U154: 3940 | V154: 4030 | W154: 4600 | X154: 4100 | Y154: ='MS Fixation(1998)'!H33 -> NO | Z154: NO | AA154: 4300 | AB154: 0 | AC154: NO | AD154: 4300 | AE154: 4300 | AF154: 4300 | AG154: =IF('MS Fixation(1998)'!F44="YES",1,0) -> 1 | AH154: 4300 | AI154: 240 | AJ154: ='MS Fixation(1998)'!I44 -> 150 | AL154: 21 | AM154: =INDEX($AE$148:$AE$171,MATCH(ROWS($AL$148:AL154),$AL$148:$AL$171,0)) ->  | AO154: 7 | AP154: 2900 | AQ154: 2970 | AR154: 3040 | AS154: 3170 | AT154: 3400 | AU154: 3500 | AV154: 3710 | AW154: 3940 | AX154: 4600 | AY154: 5250 | AZ154: 5900 | BA154: 6550 | BB154: 7700 | BC154: 9000 | BD154: 9650 | BE154: 10800 | BF154: 11950 | BG154: 12600 | BH154: 13400 | BI154: 14250 | BJ154: 15900 | BK154: 16700 | BL154: 19100 | BM154: 21400 | BR154: =INDEX($L$148:$L$171,MATCH(ROWS($M$148:M154),$M$148:$M$171,1)) -> 
A155: 8 | B155: 2004-12-13 | C155: 9 | D155: 2004-12-13 | E155: =IFERROR(INDEX($D$148:$D$168,MATCH(0,INDEX(COUNTIF($D$148:$D$168,"<"&$D$148:$D$168)-SUMPRODUCT(COUNTIF($D$147:D154,$D$148:$D$168)),),0)),"") -> 2004-12-13 | F155: ='MS Fixation(1998)'!B45 -> 2004-12-13 | G155: ='MS Fixation(1998)'!C45 -> NO | H155: 2004-12-13 | I155: 2004-12-13 | J155: 2004-12-13 | K155: 4030 | L155: 4030 | M155: 14 | N155: 3760 | O155: =IFERROR(INDEX($N$148:$N$171,MATCH(SMALL(NOT($N$148:$N$171="")*IF(ISNUMBER($N$148:$N$171),COUNTIF($N$148:$N$171,"<="&$N$148:$N$171),COUNTIF($N$148:$N$171,"<="&$N$148:$N$171)+SUM(--ISNUMBER($N$148:$N$171))),ROWS($N$148:N155)+SUM(--ISBLANK($N$148:$N$171))),NOT($N$148:$N$171="")*IF(ISNUMBER($N$148:$N$171),COUNTIF($N$148:$N$171,"<="&$N$148:$N$171),COUNTIF($N$148:$N$171,"<="&$N$148:$N$171)+SUM(--ISNUMBER($N$148:$N$171))),0)),"") -> 3760 | P155: 4030 | Q155: 4120 | R155: 4700 | S155: 4200 | T155: =IF(T154="YES",T151,T148) ->  | U155: 4030 | V155: 4120 | W155: 4700 | X155: 4200 | Y155: =IF(Y154="YES",Y151,Y148) -> 4500 | Z155: NO | AA155: 4390 | AB155: 0 | AC155: NO | AD155: 4390 | AE155: 4400 | AF155: 4390 | AG155: =IF('MS Fixation(1998)'!F45="YES",1,0) -> 1 | AH155: 4390 | AI155: 90 | AJ155: ='MS Fixation(1998)'!I45 -> 0 | AL155: 21 | AM155: =INDEX($AE$148:$AE$171,MATCH(ROWS($AL$148:AL155),$AL$148:$AL$171,0)) ->  | AO155: 8 | AP155: 2960 | AQ155: 3030 | AR155: 3105 | AS155: 3240 | AT155: 3475 | AU155: 3575 | AV155: 3795 | AW155: 4030 | AX155: 4700 | AY155: 5375 | AZ155: 6050 | BA155: 6725 | BB155: 7900 | BC155: 9250 | BD155: 9925 | BE155: 11100 | BF155: 12275 | BG155: 12925 | BH155: 13750 | BI155: 14625 | BJ155: 16300 | BK155: 17100 | BL155: 19550 | BM155: 21900 | BR155: =INDEX($L$148:$L$171,MATCH(ROWS($M$148:M155),$M$148:$M$171,1)) -> 
A156: 9 | B156: 2005-12-13 | C156: 11 | D156: 2005-12-13 | E156: =IFERROR(INDEX($D$148:$D$168,MATCH(0,INDEX(COUNTIF($D$148:$D$168,"<"&$D$148:$D$168)-SUMPRODUCT(COUNTIF($D$147:D155,$D$148:$D$168)),),0)),"") -> 2005-05-11 | F156: ='MS Fixation(1998)'!B46 -> 2005-05-11 | G156: ='MS Fixation(1998)'!C46 -> NO | H156: 2005-05-11 | I156: 2005-05-11 | J156: 2005-05-11 | K156: 4120 | L156: 4120 | M156: 13 | N156: 3850 | O156: =IFERROR(INDEX($N$148:$N$171,MATCH(SMALL(NOT($N$148:$N$171="")*IF(ISNUMBER($N$148:$N$171),COUNTIF($N$148:$N$171,"<="&$N$148:$N$171),COUNTIF($N$148:$N$171,"<="&$N$148:$N$171)+SUM(--ISNUMBER($N$148:$N$171))),ROWS($N$148:N156)+SUM(--ISBLANK($N$148:$N$171))),NOT($N$148:$N$171="")*IF(ISNUMBER($N$148:$N$171),COUNTIF($N$148:$N$171,"<="&$N$148:$N$171),COUNTIF($N$148:$N$171,"<="&$N$148:$N$171)+SUM(--ISNUMBER($N$148:$N$171))),0)),"") -> 3850 | P156: 4120 | Q156: 4210 | R156: 4800 | S156: 4300 | U156: 4120 | V156: 4210 | W156: 4800 | X156: 4300 | Z156: 1 | AA156: 4480 | AB156: 4500 | AC156: YES | AD156: 4500 | AE156: 4500 | AF156: 4500 | AG156: =IF('MS Fixation(1998)'!F46="YES",1,0) -> 1 | AH156: 4500 | AI156: Sel.Scale | AJ156: ='MS Fixation(1998)'!I46 -> 0 | AL156: 21 | AM156: =INDEX($AE$148:$AE$171,MATCH(ROWS($AL$148:AL156),$AL$148:$AL$171,0)) ->  | AO156: 9 | AP156: 3020 | AQ156: 3090 | AR156: 3170 | AS156: 3310 | AT156: 3550 | AU156: 3650 | AV156: 3880 | AW156: 4120 | AX156: 4800 | AY156: 5500 | AZ156: 6200 | BA156: 6900 | BB156: 8100 | BC156: 9500 | BD156: 10200 | BE156: 11400 | BF156: 12600 | BG156: 13250 | BH156: 14100 | BI156: 15000 | BJ156: 16700 | BK156: 17500 | BL156: 20000 | BM156: 22400 | BR156: =INDEX($L$148:$L$171,MATCH(ROWS($M$148:M156),$M$148:$M$171,1)) -> 
A157: 10 | B157: 2006-12-13 | C157: 12 | D157: 2006-12-13 | E157: =IFERROR(INDEX($D$148:$D$168,MATCH(0,INDEX(COUNTIF($D$148:$D$168,"<"&$D$148:$D$168)-SUMPRODUCT(COUNTIF($D$147:D156,$D$148:$D$168)),),0)),"") -> 2005-12-13 | F157: ='MS Fixation(1998)'!B47 -> 2005-12-13 | G157: ='MS Fixation(1998)'!C47 -> NO | H157: 2005-12-13 | I157: 2005-12-13 | J157: 2005-12-13 | K157: 4210 | L157: 4210 | M157: 12 | N157: 3940 | O157: =IFERROR(INDEX($N$148:$N$171,MATCH(SMALL(NOT($N$148:$N$171="")*IF(ISNUMBER($N$148:$N$171),COUNTIF($N$148:$N$171,"<="&$N$148:$N$171),COUNTIF($N$148:$N$171,"<="&$N$148:$N$171)+SUM(--ISNUMBER($N$148:$N$171))),ROWS($N$148:N157)+SUM(--ISBLANK($N$148:$N$171))),NOT($N$148:$N$171="")*IF(ISNUMBER($N$148:$N$171),COUNTIF($N$148:$N$171,"<="&$N$148:$N$171),COUNTIF($N$148:$N$171,"<="&$N$148:$N$171)+SUM(--ISNUMBER($N$148:$N$171))),0)),"") -> 3940 | P157: 4210 | Q157: 4300 | R157: 4900 | S157: 4400 | U157: 4210 | V157: 4300 | W157: 4900 | X157: 4400 | Z157: NO | AA157: 4570 | AB157: 0 | AC157: YES | AD157: 4570 | AE157: 4600 | AF157: 4600 | AG157: =IF('MS Fixation(1998)'!F47="YES",1,0) -> 1 | AH157: 4600 | AI157: 100 | AJ157: ='MS Fixation(1998)'!I47 -> 0 | AL157: 21 | AM157: =INDEX($AE$148:$AE$171,MATCH(ROWS($AL$148:AL157),$AL$148:$AL$171,0)) ->  | AO157: 9A | AP157: 3080 | AQ157: 3150 | AR157: 3235 | AS157: 3380 | AT157: 3625 | AU157: 3725 | AV157: 3965 | AW157: 4210 | AX157: 4900 | AY157: 5625 | AZ157: 6350 | BA157: 7075 | BB157: 8300 | BC157: 9750 | BD157: 10475 | BE157: 11700 | BF157: 12925 | BG157: 13575 | BH157: 14450 | BI157: 15375 | BJ157: 17100 | BK157: 17900 | BR157: =INDEX($L$148:$L$171,MATCH(ROWS($M$148:M157),$M$148:$M$171,1)) -> 4390
A158: 11 | B158: 2007-12-13 | C158: 0 | E158: =IFERROR(INDEX($D$148:$D$168,MATCH(0,INDEX(COUNTIF($D$148:$D$168,"<"&$D$148:$D$168)-SUMPRODUCT(COUNTIF($D$147:D157,$D$148:$D$168)),),0)),"") -> 2006-12-13 | F158: ='MS Fixation(1998)'!B48 ->  | G158: ='MS Fixation(1998)'!C48 -> NO | H158: 2006-12-13 | I158: 2006-12-13 | K158: 4300 | L158: 4300 | M158: 11 | N158: 4030 | O158: =IFERROR(INDEX($N$148:$N$171,MATCH(SMALL(NOT($N$148:$N$171="")*IF(ISNUMBER($N$148:$N$171),COUNTIF($N$148:$N$171,"<="&$N$148:$N$171),COUNTIF($N$148:$N$171,"<="&$N$148:$N$171)+SUM(--ISNUMBER($N$148:$N$171))),ROWS($N$148:N158)+SUM(--ISBLANK($N$148:$N$171))),NOT($N$148:$N$171="")*IF(ISNUMBER($N$148:$N$171),COUNTIF($N$148:$N$171,"<="&$N$148:$N$171),COUNTIF($N$148:$N$171,"<="&$N$148:$N$171)+SUM(--ISNUMBER($N$148:$N$171))),0)),"") -> 4030 | P158: 4300 | Q158: 4390 | R158: 5000 | S158: 4400 | U158: 4300 | V158: 4390 | W158: 5000 | X158: 4400 | Z158: NO | AA158: 4660 | AB158: 0 | AC158: YES | AD158: 4660 | AE158: 4700 | AF158: 4700 | AG158: =IF('MS Fixation(1998)'!F48="YES",1,0) -> 1 | AH158: 4700 | AI158: 100 | AJ158: ='MS Fixation(1998)'!I48 -> 0 | AL158: 21 | AM158: =INDEX($AE$148:$AE$171,MATCH(ROWS($AL$148:AL158),$AL$148:$AL$171,0)) ->  | AO158: 10 | AP158: 3140 | AQ158: 3215 | AR158: 3300 | AS158: 3450 | AT158: 3700 | AU158: 3800 | AV158: 4050 | AW158: 4300 | AX158: 5000 | AY158: 5750 | AZ158: 6500 | BA158: 7250 | BB158: 8500 | BC158: 10000 | BD158: 10750 | BE158: 12000 | BF158: 13250 | BG158: 13900 | BH158: 14800 | BI158: 15750 | BJ158: 17500 | BK158: 18300 | BR158: =INDEX($L$148:$L$171,MATCH(ROWS($M$148:M158),$M$148:$M$171,1)) -> 5200
A159: 12 | B159: 2008-12-13 | C159: 0 | E159: =IFERROR(INDEX($D$148:$D$168,MATCH(0,INDEX(COUNTIF($D$148:$D$168,"<"&$D$148:$D$168)-SUMPRODUCT(COUNTIF($D$147:D158,$D$148:$D$168)),),0)),"") ->  | F159: ='MS Fixation(1998)'!B49 ->  | G159: ='MS Fixation(1998)'!C49 -> NO | K159: 4390 | L159: 4390 | M159: 10 | N159: 4120 | O159: =IFERROR(INDEX($N$148:$N$171,MATCH(SMALL(NOT($N$148:$N$171="")*IF(ISNUMBER($N$148:$N$171),COUNTIF($N$148:$N$171,"<="&$N$148:$N$171),COUNTIF($N$148:$N$171,"<="&$N$148:$N$171)+SUM(--ISNUMBER($N$148:$N$171))),ROWS($N$148:N159)+SUM(--ISBLANK($N$148:$N$171))),NOT($N$148:$N$171="")*IF(ISNUMBER($N$148:$N$171),COUNTIF($N$148:$N$171,"<="&$N$148:$N$171),COUNTIF($N$148:$N$171,"<="&$N$148:$N$171)+SUM(--ISNUMBER($N$148:$N$171))),0)),"") -> 4120 | P159: 4390 | Q159: 4480 | R159: 5100 | S159: 4500 | U159: 4390 | V159: 4480 | W159: 5100 | X159: 4500 | Z159: NO | AA159: 4750 | AB159: 0 | AC159: YES | AD159: 4750 | AE159: 4800 | AF159: 4800 | AG159: =IF('MS Fixation(1998)'!F49="YES",1,0) -> 1 | AH159: 4800 | AI159: 100 | AJ159: ='MS Fixation(1998)'!I49 -> 0 | AL159: 21 | AM159: =INDEX($AE$148:$AE$171,MATCH(ROWS($AL$148:AL159),$AL$148:$AL$171,0)) ->  | AO159: 11 | AP159: 3200 | AQ159: 3280 | AR159: 3370 | AS159: 3520 | AT159: 3775 | AU159: 3875 | AV159: 4135 | AW159: 4390 | AX159: 5100 | AY159: 5875 | AZ159: 6650 | BA159: 7425 | BB159: 8700 | BC159: 10250 | BD159: 11025 | BE159: 12300 | BF159: 13575 | BG159: 14225 | BH159: 15150 | BI159: 16125 | BR159: =INDEX($L$148:$L$171,MATCH(ROWS($M$148:M159),$M$148:$M$171,1)) -> 5200
A160: 13 | B160: 2009-12-13 | C160: 0 | E160: =IFERROR(INDEX($D$148:$D$168,MATCH(0,INDEX(COUNTIF($D$148:$D$168,"<"&$D$148:$D$168)-SUMPRODUCT(COUNTIF($D$147:D159,$D$148:$D$168)),),0)),"") ->  | F160: ='MS Fixation(1998)'!B50 ->  | G160: ='MS Fixation(1998)'!C50 -> NO | K160: 4480 | L160: 4480 | M160: 9 | N160: 4210 | O160: =IFERROR(INDEX($N$148:$N$171,MATCH(SMALL(NOT($N$148:$N$171="")*IF(ISNUMBER($N$148:$N$171),COUNTIF($N$148:$N$171,"<="&$N$148:$N$171),COUNTIF($N$148:$N$171,"<="&$N$148:$N$171)+SUM(--ISNUMBER($N$148:$N$171))),ROWS($N$148:N160)+SUM(--ISBLANK($N$148:$N$171))),NOT($N$148:$N$171="")*IF(ISNUMBER($N$148:$N$171),COUNTIF($N$148:$N$171,"<="&$N$148:$N$171),COUNTIF($N$148:$N$171,"<="&$N$148:$N$171)+SUM(--ISNUMBER($N$148:$N$171))),0)),"") -> 4210 | P160: 4480 | Q160: 0 | R160: 5200 | S160: 4000 | U160: 4480 | V160: 0 | W160: 5200 | X160: 4000 | Z160: NO | AA160: 4840 | AB160: 0 | AC160: YES | AD160: 4840 | AE160: 4900 | AF160: 4900 | AG160: =IF('MS Fixation(1998)'!F50="YES",1,0) -> 1 | AH160: =IF(AF161=0,AF160,IF(AG160=0,AH159,SMALL($AF$148:$AF$171,1+COUNTIF($AF$148:$AF$171,"<="&AH159)))) -> 4900 | AI160: 100 | AJ160: ='MS Fixation(1998)'!I50 -> 0 | AL160: 21 | AM160: =INDEX($AE$148:$AE$171,MATCH(ROWS($AL$148:AL160),$AL$148:$AL$171,0)) ->  | AO160: 12 | AQ160: 3345 | AR160: 3440 | AS160: 3590 | AT160: 3850 | AU160: 3950 | AV160: 4220 | AW160: 4480 | AX160: 5200 | AY160: 6000 | AZ160: 6800 | BA160: 7600 | BB160: 8900 | BC160: 10500 | BD160: 11300 | BE160: 12600 | BF160: 13900 | BG160: 14550 | BH160: 15500 | BI160: 16500 | BR160: =INDEX($L$148:$L$171,MATCH(ROWS($M$148:M160),$M$148:$M$171,1)) -> 5200
A161: 14 | B161: 2010-12-13 | C161: 0 | E161: =IFERROR(INDEX($D$148:$D$168,MATCH(0,INDEX(COUNTIF($D$148:$D$168,"<"&$D$148:$D$168)-SUMPRODUCT(COUNTIF($D$147:D160,$D$148:$D$168)),),0)),"") ->  | F161: ='MS Fixation(1998)'!B51 ->  | G161: ='MS Fixation(1998)'!C51 -> NO | K161: 4570 | L161: 4570 | M161: 8 | N161: 4300 | O161: =IFERROR(INDEX($N$148:$N$171,MATCH(SMALL(NOT($N$148:$N$171="")*IF(ISNUMBER($N$148:$N$171),COUNTIF($N$148:$N$171,"<="&$N$148:$N$171),COUNTIF($N$148:$N$171,"<="&$N$148:$N$171)+SUM(--ISNUMBER($N$148:$N$171))),ROWS($N$148:N161)+SUM(--ISBLANK($N$148:$N$171))),NOT($N$148:$N$171="")*IF(ISNUMBER($N$148:$N$171),COUNTIF($N$148:$N$171,"<="&$N$148:$N$171),COUNTIF($N$148:$N$171,"<="&$N$148:$N$171)+SUM(--ISNUMBER($N$148:$N$171))),0)),"") -> 4300 | P161: 4570 | Q161: 0 | R161: 5300 | S161: 4000 | U161: 4570 | V161: 0 | W161: 5300 | X161: 4000 | Z161: NO | AA161: 4930 | AB161: 0 | AC161: YES | AD161: 4930 | AE161: 5000 | AF161: 5000 | AG161: =IF('MS Fixation(1998)'!F51="YES",1,0) -> 1 | AH161: 5000 | AI161: 100 | AJ161: ='MS Fixation(1998)'!I51 -> 0 | AL161: 21 | AO161: 12A | AQ161: 3410 | AR161: 3510 | AS161: 3660 | AT161: 3925 | AU161: 4030 | AV161: 4305 | AW161: 4570 | AX161: 5300 | AY161: 6125 | AZ161: 6950 | BA161: 7775 | BB161: 9100 | BC161: 10750 | BD161: 11575 | BE161: 12900 | BF161: 14225 | BG161: 14875 | BH161: 15850 | BR161: =INDEX($L$148:$L$171,MATCH(ROWS($M$148:M161),$M$148:$M$171,1)) -> 5200
A162: 15 | B162: 2011-12-13 | C162: 0 | E162: =IFERROR(INDEX($D$148:$D$168,MATCH(0,INDEX(COUNTIF($D$148:$D$168,"<"&$D$148:$D$168)-SUMPRODUCT(COUNTIF($D$147:D161,$D$148:$D$168)),),0)),"") ->  | F162: ='MS Fixation(1998)'!B52 ->  | G162: ='MS Fixation(1998)'!C52 -> NO | K162: 4660 | L162: 4660 | M162: 7 | N162: 4390 | O162: =IFERROR(INDEX($N$148:$N$171,MATCH(SMALL(NOT($N$148:$N$171="")*IF(ISNUMBER($N$148:$N$171),COUNTIF($N$148:$N$171,"<="&$N$148:$N$171),COUNTIF($N$148:$N$171,"<="&$N$148:$N$171)+SUM(--ISNUMBER($N$148:$N$171))),ROWS($N$148:N162)+SUM(--ISBLANK($N$148:$N$171))),NOT($N$148:$N$171="")*IF(ISNUMBER($N$148:$N$171),COUNTIF($N$148:$N$171,"<="&$N$148:$N$171),COUNTIF($N$148:$N$171,"<="&$N$148:$N$171)+SUM(--ISNUMBER($N$148:$N$171))),0)),"") -> 4390 | P162: 4660 | Q162: 0 | R162: 5400 | S162: 4000 | U162: 4660 | V162: 0 | W162: 5400 | X162: 4000 | Z162: NO | AA162: 5020 | AB162: 0 | AC162: YES | AD162: 5020 | AE162: 5100 | AF162: 5100 | AG162: =IF('MS Fixation(1998)'!F52="YES",1,0) -> 1 | AH162: 5100 | AI162: 100 | AJ162: ='MS Fixation(1998)'!I52 -> 0 | AL162: 21 | AO162: 13 | AQ162: 3475 | AR162: 3580 | AS162: 3730 | AT162: 4000 | AU162: 4110 | AV162: 4390 | AW162: 4660 | AX162: 5400 | AY162: 6250 | AZ162: 7100 | BA162: 7950 | BB162: 9300 | BC162: 11000 | BD162: 11850 | BE162: 13200 | BF162: 14550 | BG162: 15200 | BH162: 16200 | BR162: =INDEX($L$148:$L$171,MATCH(ROWS($M$148:M162),$M$148:$M$171,1)) -> 5200
A163: 16 | B163: 2012-12-13 | C163: 0 | E163: =IFERROR(INDEX($D$148:$D$168,MATCH(0,INDEX(COUNTIF($D$148:$D$168,"<"&$D$148:$D$168)-SUMPRODUCT(COUNTIF($D$147:D162,$D$148:$D$168)),),0)),"") ->  | F163: ='MS Fixation(1998)'!B53 ->  | G163: ='MS Fixation(1998)'!C53 -> NO | K163: 4750 | L163: 4750 | M163: 6 | N163: 4480 | O163: =IFERROR(INDEX($N$148:$N$171,MATCH(SMALL(NOT($N$148:$N$171="")*IF(ISNUMBER($N$148:$N$171),COUNTIF($N$148:$N$171,"<="&$N$148:$N$171),COUNTIF($N$148:$N$171,"<="&$N$148:$N$171)+SUM(--ISNUMBER($N$148:$N$171))),ROWS($N$148:N163)+SUM(--ISBLANK($N$148:$N$171))),NOT($N$148:$N$171="")*IF(ISNUMBER($N$148:$N$171),COUNTIF($N$148:$N$171,"<="&$N$148:$N$171),COUNTIF($N$148:$N$171,"<="&$N$148:$N$171)+SUM(--ISNUMBER($N$148:$N$171))),0)),"") -> 4480 | P163: 4750 | Q163: 0 | R163: 5500 | S163: 4000 | U163: 4750 | V163: 0 | W163: 5500 | X163: 4000 | Z163: NO | AA163: 5110 | AB163: 0 | AC163: YES | AD163: 5110 | AE163: 5200 | AF163: 5200 | AG163: =IF('MS Fixation(1998)'!F53="YES",1,0) -> 1 | AH163: 5200 | AI163: 100 | AJ163: ='MS Fixation(1998)'!I53 -> 0 | AL163: 21 | AO163: 14 | AQ163: 3540 | AR163: 3650 | AS163: 3800 | AT163: 4075 | AU163: 4190 | AV163: 4475 | AW163: 4750 | AX163: 5500 | AY163: 6375 | AZ163: 7250 | BA163: 8125 | BB163: 9500 | BC163: 11250 | BD163: 12125 | BE163: 13500 | BF163: 14875 | BG163: 15525 | BR163: =INDEX($L$148:$L$171,MATCH(ROWS($M$148:M163),$M$148:$M$171,1)) -> 5200
A164: 17 | B164: 2013-12-13 | C164: 0 | E164: =IFERROR(INDEX($D$148:$D$168,MATCH(0,INDEX(COUNTIF($D$148:$D$168,"<"&$D$148:$D$168)-SUMPRODUCT(COUNTIF($D$147:D163,$D$148:$D$168)),),0)),"") ->  | F164: ='MS Fixation(1998)'!B54 ->  | G164: ='MS Fixation(1998)'!C54 -> NO | K164: 4840 | L164: 4840 | M164: 5 | N164: 4570 | O164: =IFERROR(INDEX($N$148:$N$171,MATCH(SMALL(NOT($N$148:$N$171="")*IF(ISNUMBER($N$148:$N$171),COUNTIF($N$148:$N$171,"<="&$N$148:$N$171),COUNTIF($N$148:$N$171,"<="&$N$148:$N$171)+SUM(--ISNUMBER($N$148:$N$171))),ROWS($N$148:N164)+SUM(--ISBLANK($N$148:$N$171))),NOT($N$148:$N$171="")*IF(ISNUMBER($N$148:$N$171),COUNTIF($N$148:$N$171,"<="&$N$148:$N$171),COUNTIF($N$148:$N$171,"<="&$N$148:$N$171)+SUM(--ISNUMBER($N$148:$N$171))),0)),"") -> 4570 | P164: 4840 | Q164: 0 | R164: 5600 | S164: 4000 | U164: 4840 | V164: 0 | W164: 5600 | X164: 4000 | Z164: NO | AA164: 5200 | AB164: 0 | AC164: YES | AD164: 5200 | AE164: 5200 | AF164: 5200 | AG164: =IF('MS Fixation(1998)'!F54="YES",1,0) -> 1 | AH164: 5200 | AI164: 0 | AJ164: ='MS Fixation(1998)'!I54 -> 0 | AL164: 21 | AO164: 15 | AR164: 3720 | AS164: 3875 | AT164: 4155 | AU164: 4270 | AV164: 4560 | AW164: 4840 | AX164: 5600 | AY164: 6500 | AZ164: 7400 | BA164: 8300 | BB164: 9700 | BC164: 11500 | BD164: 12400 | BE164: 13800 | BF164: 15200 | BG164: 15850 | BR164: =INDEX($L$148:$L$171,MATCH(ROWS($M$148:M164),$M$148:$M$171,1)) -> 5200
A165: 18 | B165: 2014-12-13 | C165: 0 | E165: =IFERROR(INDEX($D$148:$D$168,MATCH(0,INDEX(COUNTIF($D$148:$D$168,"<"&$D$148:$D$168)-SUMPRODUCT(COUNTIF($D$147:D164,$D$148:$D$168)),),0)),"") ->  | F165: ='MS Fixation(1998)'!B55 ->  | G165: ='MS Fixation(1998)'!C55 -> NO | K165: 4930 | L165: 4930 | M165: 4 | N165: 4660 | O165: =IFERROR(INDEX($N$148:$N$171,MATCH(SMALL(NOT($N$148:$N$171="")*IF(ISNUMBER($N$148:$N$171),COUNTIF($N$148:$N$171,"<="&$N$148:$N$171),COUNTIF($N$148:$N$171,"<="&$N$148:$N$171)+SUM(--ISNUMBER($N$148:$N$171))),ROWS($N$148:N165)+SUM(--ISBLANK($N$148:$N$171))),NOT($N$148:$N$171="")*IF(ISNUMBER($N$148:$N$171),COUNTIF($N$148:$N$171,"<="&$N$148:$N$171),COUNTIF($N$148:$N$171,"<="&$N$148:$N$171)+SUM(--ISNUMBER($N$148:$N$171))),0)),"") -> 4660 | P165: 4930 | Q165: 0 | R165: 5700 | S165: 4000 | U165: 4930 | V165: 0 | W165: 5700 | X165: 4000 | Z165: NO | AA165: 0 | AB165: 0 | AC165: YES | AD165: 0 | AE165: 0 | AF165: 0 | AG165: =IF('MS Fixation(1998)'!F55="YES",1,0) -> 1 | AH165: 0 | AI165: -5200 | AJ165: ='MS Fixation(1998)'!I55 -> 0 | AL165: 21 | AO165: 16 | AR165: 3790 | AS165: 3950 | AT165: 4235 | AU165: 4350 | AV165: 4645 | AW165: 4930 | AX165: 5700 | AY165: 6625 | AZ165: 7550 | BA165: 8475 | BB165: 9900 | BC165: 11750 | BD165: 12675 | BE165: 14100 | BR165: =INDEX($L$148:$L$171,MATCH(ROWS($M$148:M165),$M$148:$M$171,1)) -> 0
A166: 19 | B166: 2015-12-13 | C166: 0 | E166: =IFERROR(INDEX($D$148:$D$168,MATCH(0,INDEX(COUNTIF($D$148:$D$168,"<"&$D$148:$D$168)-SUMPRODUCT(COUNTIF($D$147:D165,$D$148:$D$168)),),0)),"") ->  | F166: ='MS Fixation(1998)'!B56 ->  | G166: ='MS Fixation(1998)'!C56 -> NO | K166: 5020 | L166: 5020 | M166: 3 | N166: 4750 | O166: =IFERROR(INDEX($N$148:$N$171,MATCH(SMALL(NOT($N$148:$N$171="")*IF(ISNUMBER($N$148:$N$171),COUNTIF($N$148:$N$171,"<="&$N$148:$N$171),COUNTIF($N$148:$N$171,"<="&$N$148:$N$171)+SUM(--ISNUMBER($N$148:$N$171))),ROWS($N$148:N166)+SUM(--ISBLANK($N$148:$N$171))),NOT($N$148:$N$171="")*IF(ISNUMBER($N$148:$N$171),COUNTIF($N$148:$N$171,"<="&$N$148:$N$171),COUNTIF($N$148:$N$171,"<="&$N$148:$N$171)+SUM(--ISNUMBER($N$148:$N$171))),0)),"") -> 4750 | P166: 5020 | Q166: 0 | R166: 5800 | S166: 4000 | U166: 5020 | V166: 0 | W166: 5800 | X166: 4000 | Z166: NO | AA166: 0 | AB166: 0 | AC166: YES | AD166: 0 | AE166: 0 | AF166: 0 | AG166: =IF('MS Fixation(1998)'!F56="YES",1,0) -> 1 | AH166: 0 | AI166: 0 | AJ166: ='MS Fixation(1998)'!I56 -> 0 | AL166: 21 | AO166: 17 | AR166: 3860 | AS166: 4025 | AT166: 4315 | AU166: 4430 | AV166: 4730 | AW166: 5020 | AX166: 5800 | AY166: 6750 | AZ166: 7700 | BA166: 8650 | BB166: 10100 | BC166: 12000 | BD166: 12950 | BE166: 14400 | BR166: =INDEX($L$148:$L$171,MATCH(ROWS($M$148:M166),$M$148:$M$171,1)) -> 0
A167: 20 | B167: 2016-12-13 | C167: 0 | E167: =IFERROR(INDEX($D$148:$D$168,MATCH(0,INDEX(COUNTIF($D$148:$D$168,"<"&$D$148:$D$168)-SUMPRODUCT(COUNTIF($D$147:D166,$D$148:$D$168)),),0)),"") ->  | F167: ='MS Fixation(1998)'!B57 ->  | G167: ='MS Fixation(1998)'!C57 -> NO | K167: 5110 | L167: 5110 | M167: 2 | N167: 4840 | O167: =IFERROR(INDEX($N$148:$N$171,MATCH(SMALL(NOT($N$148:$N$171="")*IF(ISNUMBER($N$148:$N$171),COUNTIF($N$148:$N$171,"<="&$N$148:$N$171),COUNTIF($N$148:$N$171,"<="&$N$148:$N$171)+SUM(--ISNUMBER($N$148:$N$171))),ROWS($N$148:N167)+SUM(--ISBLANK($N$148:$N$171))),NOT($N$148:$N$171="")*IF(ISNUMBER($N$148:$N$171),COUNTIF($N$148:$N$171,"<="&$N$148:$N$171),COUNTIF($N$148:$N$171,"<="&$N$148:$N$171)+SUM(--ISNUMBER($N$148:$N$171))),0)),"") -> 4840 | P167: 5110 | Q167: =IF($P$173=$P$174,$P$177,IF($N$144>P166,P168,0)) -> 0 | R167: 5900 | S167: 4000 | U167: 5110 | V167: 0 | W167: 5900 | X167: 4000 | Z167: NO | AA167: 0 | AB167: 0 | AC167: YES | AD167: 0 | AE167: =LARGE($R$148:$R$171,COUNTIF($R$148:$R$171,">"&AD167)+1) -> 0 | AF167: 0 | AG167: =IF('MS Fixation(1998)'!F57="YES",1,0) -> 1 | AH167: 0 | AI167: 0 | AJ167: ='MS Fixation(1998)'!I57 -> 0 | AL167: 21 | AO167: 18 | AR167: 3930 | AS167: 4100 | AT167: 4395 | AU167: 4510 | AV167: 4815 | AW167: 5110 | AX167: 5900 | AY167: 6875 | AZ167: 7850 | BA167: 8825 | BB167: 10300 | BC167: 12250 | BD167: 13225 | BR167: =INDEX($L$148:$L$171,MATCH(ROWS($M$148:M167),$M$148:$M$171,1)) -> 0
A168: 21 | B168: 2017-12-13 | C168: 10 | D168: =IF('MS Fixation(1998)'!$C$22="YES",'Table 1998'!$C$144,"") -> 2005-05-11 | E168: =IFERROR(INDEX($D$148:$D$168,MATCH(0,INDEX(COUNTIF($D$148:$D$168,"<"&$D$148:$D$168)-SUMPRODUCT(COUNTIF($D$147:D167,$D$148:$D$168)),),0)),"") ->  | F168: ='MS Fixation(1998)'!B58 -> 00:00:00 | G168: ='MS Fixation(1998)'!C58 -> 00:00:00 | K168: 5200 | L168: 5200 | M168: 1 | N168: 4930 | O168: =IFERROR(INDEX($N$148:$N$171,MATCH(SMALL(NOT($N$148:$N$171="")*IF(ISNUMBER($N$148:$N$171),COUNTIF($N$148:$N$171,"<="&$N$148:$N$171),COUNTIF($N$148:$N$171,"<="&$N$148:$N$171)+SUM(--ISNUMBER($N$148:$N$171))),ROWS($N$148:N168)+SUM(--ISBLANK($N$148:$N$171))),NOT($N$148:$N$171="")*IF(ISNUMBER($N$148:$N$171),COUNTIF($N$148:$N$171,"<="&$N$148:$N$171),COUNTIF($N$148:$N$171,"<="&$N$148:$N$171)+SUM(--ISNUMBER($N$148:$N$171))),0)),"") -> 4930 | P168: 5200 | Q168: =IF($P$173=$P$174,$P$177,IF($N$144>P167,P169,0)) -> 0 | R168: 6000 | S168: 4000 | U168: 5200 | V168: 0 | W168: 6000 | X168: 4000 | Z168: NO | AA168: 0 | AB168: 0 | AC168: YES | AD168: 0 | AE168: =LARGE($R$148:$R$171,COUNTIF($R$148:$R$171,">"&AD168)+1) -> 0 | AF168: 0 | AG168: =IF('MS Fixation(1998)'!E58="YES",1,0) -> 0 | AH168: 0 | AI168: 0 | AJ168: ='MS Fixation(1998)'!I58 -> 0 | AL168: 1 | AO168: 19 | AR168: 4000 | AS168: 4175 | AT168: 4475 | AU168: 4590 | AV168: 4815 | AW168: 5200 | AX168: 6000 | AY168: 7000 | AZ168: 8000 | BA168: 9000 | BB168: 10500 | BC168: 12500 | BD168: 13500 | BR168: =INDEX($L$148:$L$171,MATCH(ROWS($M$148:M168),$M$148:$M$171,1)) -> 0
A169: 22 | B169: 2018-12-13 | C169: 3 | D169: =IF('MS Fixation(1998)'!$E$32="YES",'MS Fixation(1998)'!$E$31,"") -> 1999-04-16 | E169: =IFERROR(INDEX($D$148:$D$168,MATCH(SMALL(NOT($D$148:$D$168="")*IF(ISNUMBER($D$148:$D$168),COUNTIF($D$148:$D$168,"<="&$D$148:$D$168),COUNTIF($D$148:$D$168,"<="&$D$148:$D$168)+SUM(--ISNUMBER($D$148:$D$168))),ROWS($D$148:D169)+SUM(--ISBLANK($D$148:$D$168))),NOT($D$148:$D$168="")*IF(ISNUMBER($D$148:$D$168),COUNTIF($D$148:$D$168,"<="&$D$148:$D$168),COUNTIF($D$148:$D$168,"<="&$D$148:$D$168)+SUM(--ISNUMBER($D$148:$D$168))),0)),"") ->  | F169: ='MS Fixation(1998)'!B62 -> 00:00:00 | G169: ='MS Fixation(1998)'!C62 -> 00:00:00 | K169: 0 | L169: 0 | M169: 18 | N169: 5020 | O169: =IFERROR(INDEX($N$148:$N$171,MATCH(SMALL(NOT($N$148:$N$171="")*IF(ISNUMBER($N$148:$N$171),COUNTIF($N$148:$N$171,"<="&$N$148:$N$171),COUNTIF($N$148:$N$171,"<="&$N$148:$N$171)+SUM(--ISNUMBER($N$148:$N$171))),ROWS($N$148:N169)+SUM(--ISBLANK($N$148:$N$171))),NOT($N$148:$N$171="")*IF(ISNUMBER($N$148:$N$171),COUNTIF($N$148:$N$171,"<="&$N$148:$N$171),COUNTIF($N$148:$N$171,"<="&$N$148:$N$171)+SUM(--ISNUMBER($N$148:$N$171))),0)),"") -> 5020 | P169: 0 | Q169: =IF($P$173=$P$174,$P$177,IF($N$144>P168,P170,0)) -> 0 | R169: 0 | S169: 4000 | U169: 0 | V169: 0 | W169: 0 | X169: 4000 | Z169: NO | AA169: 0 | AB169: 0 | AC169: YES | AD169: 0 | AE169: =LARGE($R$148:$R$171,COUNTIF($R$148:$R$171,">"&AD169)+1) -> 0 | AF169: 0 | AG169: =IF('MS Fixation(1998)'!#REF!="YES",1,0) ->  | AH169: 0 | AI169: 0 | AJ169: ='MS Fixation(1998)'!I59 -> 0 | AL169: 3 | AO169: 20 | AS169: 4250 | BR169: =INDEX($L$148:$L$171,MATCH(ROWS($M$148:M169),$M$148:$M$171,1)) -> 0
A170: 23 | B170: 2019-12-13 | C170: =COUNTIF($D$148:$D$171,"<="&C172) -> 0 | E170: =IF(E169=$C$172,$D$172,SMALL($D$148:$D$171,ROW(A23))) ->  | F170: ='MS Fixation(1998)'!#REF! ->  | G170: ='MS Fixation(1998)'!#REF! ->  | K170: 0 | L170: 0 | M170: 18 | N170: 5110 | O170: =IFERROR(INDEX($N$148:$N$171,MATCH(SMALL(NOT($N$148:$N$171="")*IF(ISNUMBER($N$148:$N$171),COUNTIF($N$148:$N$171,"<="&$N$148:$N$171),COUNTIF($N$148:$N$171,"<="&$N$148:$N$171)+SUM(--ISNUMBER($N$148:$N$171))),ROWS($N$148:N170)+SUM(--ISBLANK($N$148:$N$171))),NOT($N$148:$N$171="")*IF(ISNUMBER($N$148:$N$171),COUNTIF($N$148:$N$171,"<="&$N$148:$N$171),COUNTIF($N$148:$N$171,"<="&$N$148:$N$171)+SUM(--ISNUMBER($N$148:$N$171))),0)),"") -> 5110 | P170: 0 | Q170: =IF($P$173=$P$174,$P$177,IF($N$144>P169,P171,0)) -> 0 | R170: 0 | S170: 4000 | U170: 0 | V170: 0 | W170: 0 | X170: 4000 | Z170: NO | AA170: 0 | AB170: 0 | AC170: YES | AD170: 0 | AE170: =LARGE($R$148:$R$171,COUNTIF($R$148:$R$171,">"&AD170)+1) -> 0 | AF170: 0 | AG170: =IF('MS Fixation(1998)'!#REF!="YES",1,0) ->  | AH170: 0 | AI170: 0 | AJ170: ='MS Fixation(1998)'!I60 -> 0 | AL170: 3 | AO170: 21 | AS170: 4325 | BR170: =INDEX($L$148:$L$171,MATCH(ROWS($M$148:M170),$M$148:$M$171,1)) -> 0
A171: 24 | B171: 2020-12-13 | C171: =COUNTIF($D$148:$D$171,"<="&D173) -> 0 | F171: ='MS Fixation(1998)'!#REF! ->  | G171: ='MS Fixation(1998)'!#REF! ->  | H171: =IF(E171=$D$172,$C$172,IF(G171="YES",F171,E171)) ->  | K171: 0 | L171: 0 | M171: 18 | N171: 5200 | O171: =IFERROR(INDEX($N$148:$N$171,MATCH(SMALL(NOT($N$148:$N$171="")*IF(ISNUMBER($N$148:$N$171),COUNTIF($N$148:$N$171,"<="&$N$148:$N$171),COUNTIF($N$148:$N$171,"<="&$N$148:$N$171)+SUM(--ISNUMBER($N$148:$N$171))),ROWS($N$148:N171)+SUM(--ISBLANK($N$148:$N$171))),NOT($N$148:$N$171="")*IF(ISNUMBER($N$148:$N$171),COUNTIF($N$148:$N$171,"<="&$N$148:$N$171),COUNTIF($N$148:$N$171,"<="&$N$148:$N$171)+SUM(--ISNUMBER($N$148:$N$171))),0)),"") -> 5200 | P171: 0 | Q171: =IF($P$173=$P$174,$P$177,IF($N$144>P170,P172,0)) -> 0 | R171: 0 | S171: 4000 | U171: 0 | V171: 0 | W171: 0 | X171: 4000 | Z171: NO | AA171: 0 | AB171: 0 | AC171: YES | AD171: 0 | AE171: =LARGE($R$148:$R$171,COUNTIF($R$148:$R$171,">"&AD171)+1) -> 0 | AF171: 0 | AG171: =IF('MS Fixation(1998)'!#REF!="YES",1,0) ->  | AH171: 0 | AI171: 0 | AJ171: ='MS Fixation(1998)'!I61 -> 0 | AL171: 3 | AO171: 22 | AS171: 4400 | BR171: =INDEX($L$148:$L$171,MATCH(ROWS($M$148:M171),$M$148:$M$171,1)) -> 0
B172: =COUNTIF(D148:D167,D168) -> 0 | C172: =IF(B172>0,D168,"") ->  | D172: =IF(C172="","",IF(B172>0,C172+1,E172)) ->  | E172: 2027-03-18 | S172: =SMALL($R$148:$R$171,COUNTIF($R$148:$R$171,"<"&Q177)+2) -> 4100 | X172: =SMALL($R$148:$R$171,COUNTIF($R$148:$R$171,"<"&V178)+2) -> 0 | AG172: end
N173: Selected | P173: =N144 -> 4390 | Q173: =N144 -> 4390 | S173: Selected | U173: =T144 -> 4390 | V173: =T144 -> 4390
N174: Large 1 | P174: =LARGE(P148:P171,1) -> 5200 | Q174: =LARGE(Q148:Q171,1) -> 4480 | S174: Large 1 | U174: =LARGE(U148:U171,1) -> 5200 | V174: =LARGE(V148:V171,1) -> 4480
C175: =COUNTIF($D$175:$D$198,"<="&D175) -> 11 | D175: 500 | N175: Large 2 | P175: =LARGE(P148:P171,2) -> 5110 | Q175: =LARGE(Q148:Q171,2) -> 4390 | S175: Large 2 | U175: =LARGE(U148:U171,2) -> 5110 | V175: =LARGE(V148:V171,2) -> 4390
C176: 10 | D176: 250 | N176: Diff | P176: =IF(P174>P173,0,P174-P175) -> 0 | Q176: =IF(Q174>Q173,0,Q174-Q175) -> 0 | S176: Diff | U176: =IF(U174>U173,0,U174-U175) -> 0 | V176: =IF(V174>V173,0,V174-V175) -> 0
C177: 9 | D177: 0 | N177: Maxi | P177: =IF(P176>0,P174+P176,O143) -> 5200 | Q177: =LARGE(Q148:Q171,1)-(LARGE(Q148:Q171,2)) -> 90 | S177: Maxi | U177: =IF(U176>0,U174+U176,U143) -> 5200 | V177: =LARGE(V148:V171,1)-(LARGE(V148:V171,2)) -> 90
C178: 9 | D178: 0 | N178: Effect of date of incriment | S178: Effect of date of incriment
C179: 9 | D179: 0
C180: 9 | D180: 0 | N180: Minimum of New Scale | Q180: =VALUE(Q143) -> 4000 | S180: Minimum of New Scale | V180: =VALUE(W143) -> 4000
C181: 9 | D181: 0 | N181: Selected pay in existing scale | Q181: =T148 -> 4500 | S181: Selected pay in existing scale | V181: =Y148 -> 4500
C182: 9 | D182: 0 | N182: Minimum stage condition | Q182: =IF(Q181=Q180,"YES","NO") -> NO | S182: Minimum stage condition | V182: =IF(V181=V180,"YES","NO") -> NO
C183: 12 | D183: 3650 | N183: Pay in existing scale | Q183: =N144 -> 4390 | S183: Pay in existing scale | V183: =T144 -> 4390
C184: 13 | D184: 3725 | N184: Next stage in existing scale | Q184: =Q144 -> 4480 | S184: Next stage in existing scale | V184: =W144 -> 4480
C185: 14 | D185: 3800 | N185: First incr. in new scale | Q185: =R149-R148 -> 100 | S185: First incr. in new scale | V185: =W149-W148 -> 100
C186: 15 | D186: 3875 | N186: New value in new scale | Q186: =Q184+Q185 -> 4580 | S186: New value in new scale | V186: =V184+V185 -> 4580
C187: 16 | D187: 3950 | N187: Date of increment change condt. | Q187: =IF(Q181>=Q186,"Changed","Unchanged") -> Unchanged | S187: Date of increment change condt. | V187: =IF(V181>=V186,"Changed","Unchanged") -> Unchanged
C188: 17 | D188: 4030 | N188: Existing date of increment | Q188: ='MS Fixation(1998)'!H19 -> 1997-12-13 | S188: Existing date of increment | V188: ='MS Fixation(1998)'!H19 -> 1997-12-13
C189: 18 | D189: 4110 | N189: New date of increment | Q189: =IF(Q187="Changed",P194,Q188) -> 1997-12-13 | S189: New date of increment | V189: =IF(V187="Changed",U194,V188) -> 1997-12-13
C190: 19 | D190: 4190 | N190: Date | O190: Month | P190: Year | S190: Date | T190: Month | U190: Year
C191: 20 | D191: 4270 | N191: =DAY(Q188) -> 13 | O191: =MONTH(Q188) -> 12 | P191: =YEAR(Q188) -> 1997 | S191: =DAY(V188) -> 13 | T191: =MONTH(V188) -> 12 | U191: =YEAR(V188) -> 1997
C192: 21 | D192: 4350 | N192: 0 | O192: 0 | P192: 1 | S192: 0 | T192: 0 | U192: 1
C193: 22 | D193: 4430 | N193: =N191+N192 -> 13 | O193: =O191+O192 -> 12 | P193: =P191+P192 -> 1998 | S193: =S191+S192 -> 13 | T193: =T191+T192 -> 12 | U193: =U191+U192 -> 1998
C194: 23 | D194: 4510 | P194: =Q188+365 -> 1998-12-13 | U194: =V188+365 -> 1998-12-13
C195: 24 | D195: 4590 | N195: =DAY(P194) -> 13 | O195: =MONTH(P194) -> 12 | P195: =YEAR(P194) -> 1998 | S195: =DAY(U194) -> 13 | T195: =MONTH(U194) -> 12 | U195: =YEAR(U194) -> 1998
A196: 1 | B196: =C145 -> 1997-12-13 | C196: 9 | D196: 0
A197: 2 | B197: =DATE(YEAR(B196),MONTH(B196)+12,DAY(B196)) -> 1998-12-13 | C197: 9 | D197: 0 | N197: Select existing date of increment
A198: 3 | B198: 1999-12-13 | C198: 9 | D198: 0 | N198: (A) | O198: selection date | Q198: ='Table 1998'!C144 -> 2005-05-11
A199: 4 | B199: 2000-12-13 | C199: 0 | N199: (B) | O199: Next incr. date | Q199: =INDEX($J$148:$J$169,MATCH(Q198,$J$148:$J$169)+1) -> 2005-12-13
A200: 5 | B200: 2001-12-13 | C200: 0
A201: 6 | B201: 2002-12-13 | C201: 0
A202: 7 | B202: 2003-12-13 | C202: 0
A203: 8 | B203: 2004-12-13 | C203: 0
A204: 9 | B204: 2005-12-13 | C204: =SMALL(IF((Date_list1998<=Date_end1998)*(Date_list1998>=Date_start1998),Date_list1998,"A"),ROW(A9)) -> 
A205: 10 | B205: 2006-12-13
A206: 11 | B206: 2007-12-13
A207: 12 | B207: 2008-12-13
A208: 13 | B208: 2009-12-13
... 14 more rows

Sheet Incr MS
A1: Increment Order | C1: ACP-I Order | E1: ACP-II Order | H1: Home-VI PC
A2: Design & prepared by Pravesh Kumar Sharma-9460100093
A3: Employee ID/Code | B3: 5 | D3: Hint | E3: Name of Office | G3: =PROPER(INDEX(Data!$E$3:$E$101,MATCH($B$3,Data!$B$3:$B$101,0))) -> Tehsildar Colonisation Nachana No. 2
A4: Name of employee | B4: =PROPER(INDEX(Data!$C$3:$C$101,MATCH($B$3,Data!$B$3:$B$101,0))) -> Mahesh Chand Sharma
A5: Designation | B5: =INDEX(Data!$D$3:$D$101,MATCH($B$3,Data!$B$3:$B$101,0)) -> CLASS IV | E5: Name of person who singed on order | G5: =PROPER(INDEX(Data!$F$3:$F$101,MATCH($B$3,Data!$B$3:$B$101,0))) -> Tehsildar Colonisation Nachana No. 2
A6: Pay Scale type and Pay Scale/Band | B6: New Pay Scale | D6: YES
B7: 9300-34800 | D7: Use only unhighlited cells (i.e. white colour cells) for proper use of this sheet
A8: Base Pay data for determination of Increment Amt. and Pay after increment
A9: Increment start date | B9: 2007-07-01 | C9: Base Basic Pay (without G.Pay) | E9: 5680 | F9: Grade Pay | G9: 1900 | H9: Basic Pay(with G.Pay)
A10: Increment end date | B10: 2017-07-01 | H10: =E9+G9 -> 7580
A11: Regular Increment Date | B11: Change Date | C11: Condition | D11: Final Date | E11: Increment Condition | F11: Increment amount | G11: Running Pay | H11: Change amt of Grade Pay | I11: Pay after Increment
A12: ='Incr Table'!A11 -> 2007-07-01 | B12: =A12 -> 2007-07-01 | C12: NO | D12: ='Incr Table'!G11 -> 2007-07-01 | E12: YES | F12: =IF(D12="","",'Incr Table'!J11) -> 230 | G12: =IF(D12="","",'Incr Table'!I11) -> 7580 | H12: =IF(D12="","",'Incr Table'!O11) -> 1900 | I12: =IF(D12="","",'Incr Table'!P11) -> 7810
A13: =IF(D13="","",'Incr Table'!A12) -> 2008-07-01 | B13: 2008-07-01 | C13: NO | D13: ='Incr Table'!G12 -> 2008-07-01 | E13: YES | F13: =IF(D13="","",'Incr Table'!J12) -> 240 | G13: =IF(D13="","",'Incr Table'!I12) -> 7810 | H13: =IF(D13="","",'Incr Table'!O12) -> 1900 | I13: =IF(D13="","",'Incr Table'!P12) -> 8050
A14: =IF(D14="","",'Incr Table'!A13) -> 2008-09-01 | B14: 2008-09-01 | C14: NO | D14: ='Incr Table'!G13 -> 2008-09-01 | E14: YES | F14: =IF(D14="","",'Incr Table'!J13) -> 250 | G14: =IF(D14="","",'Incr Table'!I13) -> 8050 | H14: =IF(D14="","",'Incr Table'!O13) -> 5400 | I14: =IF(D14="","",'Incr Table'!P13) -> 11800
A15: =IF(D15="","",'Incr Table'!A14) -> 2009-07-01 | B15: 2009-07-01 | C15: NO | D15: ='Incr Table'!G14 -> 2009-07-01 | E15: YES | F15: =IF(D15="","",'Incr Table'!J14) -> 360 | G15: =IF(D15="","",'Incr Table'!I14) -> 11800 | H15: =IF(D15="","",'Incr Table'!O14) -> 5400 | I15: =IF(D15="","",'Incr Table'!P14) -> 12160
A16: =IF(D16="","",'Incr Table'!A15) -> 2010-07-01 | B16: 2010-07-01 | C16: NO | D16: ='Incr Table'!G15 -> 2010-07-01 | E16: YES | F16: =IF(D16="","",'Incr Table'!J15) -> 370 | G16: =IF(D16="","",'Incr Table'!I15) -> 12160 | H16: =IF(D16="","",'Incr Table'!O15) -> 5400 | I16: =IF(D16="","",'Incr Table'!P15) -> 12530
A17: =IF(D17="","",'Incr Table'!A16) -> 2010-09-01 | B17: 2010-09-01 | C17: NO | D17: ='Incr Table'!G16 -> 2010-09-01 | E17: YES | F17: =IF(D17="","",'Incr Table'!J16) -> 380 | G17: =IF(D17="","",'Incr Table'!I16) -> 12530 | H17: =IF(D17="","",'Incr Table'!O16) -> 6000 | I17: =IF(D17="","",'Incr Table'!P16) -> 13510
A18: =IF(D18="","",'Incr Table'!A17) -> 2011-07-01 | B18: 2011-07-01 | C18: NO | D18: ='Incr Table'!G17 -> 2011-07-01 | E18: YES | F18: =IF(D18="","",'Incr Table'!J17) -> 410 | G18: =IF(D18="","",'Incr Table'!I17) -> 13510 | H18: =IF(D18="","",'Incr Table'!O17) -> 6000 | I18: =IF(D18="","",'Incr Table'!P17) -> 13920
A19: =IF(D19="","",'Incr Table'!A18) -> 2012-07-01 | B19: 2012-07-01 | C19: NO | D19: ='Incr Table'!G18 -> 2012-07-01 | E19: YES | F19: =IF(D19="","",'Incr Table'!J18) -> 420 | G19: =IF(D19="","",'Incr Table'!I18) -> 13920 | H19: =IF(D19="","",'Incr Table'!O18) -> 6000 | I19: =IF(D19="","",'Incr Table'!P18) -> 14340
A20: =IF(D20="","",'Incr Table'!A19) -> 2013-07-01 | B20: 2013-07-01 | C20: NO | D20: ='Incr Table'!G19 -> 2013-07-01 | E20: YES | F20: =IF(D20="","",'Incr Table'!J19) -> 430 | G20: =IF(D20="","",'Incr Table'!I19) -> 14340 | H20: =IF(D20="","",'Incr Table'!O19) -> 6000 | I20: =IF(D20="","",'Incr Table'!P19) -> 14770
A21: =IF(D21="","",'Incr Table'!A20) -> 2014-07-01 | B21: 2014-07-01 | C21: NO | D21: ='Incr Table'!G20 -> 2014-07-01 | E21: YES | F21: =IF(D21="","",'Incr Table'!J20) -> 450 | G21: =IF(D21="","",'Incr Table'!I20) -> 14770 | H21: =IF(D21="","",'Incr Table'!O20) -> 6000 | I21: =IF(D21="","",'Incr Table'!P20) -> 15220
A22: =IF(D22="","",'Incr Table'!A21) -> 2015-07-01 | B22: 2015-07-01 | C22: NO | D22: ='Incr Table'!G21 -> 2015-07-01 | E22: YES | F22: =IF(D22="","",'Incr Table'!J21) -> 460 | G22: =IF(D22="","",'Incr Table'!I21) -> 15220 | H22: =IF(D22="","",'Incr Table'!O21) -> 6000 | I22: =IF(D22="","",'Incr Table'!P21) -> 15680
A23: =IF(D23="","",'Incr Table'!A22) -> 2016-07-01 | B23: 2016-07-01 | C23: NO | D23: ='Incr Table'!G22 -> 2016-07-01 | E23: YES | F23: =IF(D23="","",'Incr Table'!J22) -> 470 | G23: =IF(D23="","",'Incr Table'!I22) -> 15680 | H23: =IF(D23="","",'Incr Table'!O22) -> 6000 | I23: =IF(D23="","",'Incr Table'!P22) -> 16150
A24: =IF(D24="","",'Incr Table'!A23) -> 2017-07-01 | B24: 2017-07-01 | C24: NO | D24: ='Incr Table'!G23 -> 2017-07-01 | E24: YES | F24: =IF(D24="","",'Incr Table'!J23) -> 490 | G24: =IF(D24="","",'Incr Table'!I23) -> 16150 | H24: =IF(D24="","",'Incr Table'!O23) -> 6000 | I24: =IF(D24="","",'Incr Table'!P23) -> 16640
A25: =IF(D25="","",'Incr Table'!A24) ->  | C25: NO | D25: ='Incr Table'!G24 ->  | E25: YES | F25: =IF(D25="","",'Incr Table'!J24) ->  | G25: =IF(D25="","",'Incr Table'!I24) ->  | H25: =IF(D25="","",'Incr Table'!O24) ->  | I25: =IF(D25="","",'Incr Table'!P24) -> 
A26: =IF(D26="","",'Incr Table'!A25) ->  | C26: NO | D26: ='Incr Table'!G25 ->  | E26: YES | F26: =IF(D26="","",'Incr Table'!J25) ->  | G26: =IF(D26="","",'Incr Table'!I25) ->  | H26: =IF(D26="","",'Incr Table'!O25) ->  | I26: =IF(D26="","",'Incr Table'!P25) -> 
A27: =IF(D27="","",'Incr Table'!A26) ->  | B27: =A27 ->  | C27: NO | D27: ='Incr Table'!G26 ->  | E27: YES | F27: =IF(D27="","",'Incr Table'!J26) ->  | G27: =IF(D27="","",'Incr Table'!I26) ->  | H27: =IF(D27="","",'Incr Table'!O26) ->  | I27: =IF(D27="","",'Incr Table'!P26) -> 
A28: =IF(D28="","",'Incr Table'!A27) ->  | C28: NO | D28: ='Incr Table'!G27 ->  | E28: YES | F28: =IF(D28="","",'Incr Table'!J27) ->  | G28: =IF(D28="","",'Incr Table'!I27) ->  | H28: =IF(D28="","",'Incr Table'!O27) ->  | I28: =IF(D28="","",'Incr Table'!P27) -> 
A29: Applicability of ACP/Promotion (This calculation sheet calculate only two ACP/Promotion)
A30: Select(Type)-I | B30: REGULAR ACP | D30: 18 years | E30: Select(Type)-II | G30: REGULAR ACP | I30: 30 year
A31: =IF(B30="PROMOTION","Name of authority who issue Promotion order ","Name of authority who issue ACP order") -> Name of authority who issue ACP order | E31: =IF(G30="PROMOTION","Name of authority who issue Promotion order ","Name of authority who issue ACP order") -> Name of authority who issue ACP order
A32: COMMISSIONER COLONISATION BIKANER | E32: COMMISSIONER COLONISATION BIKANER
A33: =IF(B30="PROMOTION","Promotion order No","ACP order No") -> ACP order No | C33: account/pension | E33: =IF(G30="PROMOTION","Promotion order No","ACP order No") -> ACP order No | H33: accounts
A34: =IF(B30="PROMOTION","Promotion order date","ACP order date") -> ACP order date | C34: 2016-06-30 | E34: =IF(G30="PROMOTION","Promotion order date","ACP order No date") -> ACP order No date | H34: 2014-02-28
A35: =IF(B30="PROMOTION","Promotion due date","ACPdue Date") -> ACPdue Date | C35: 2008-09-01 | E35: =IF(G30="PROMOTION","Promotion date","ACP Date") -> ACP Date | H35: 2010-09-01
A36: =IF(B30="PROMOTION","Promotion Grade Pay","ACP Grade Pay") -> ACP Grade Pay | C36: 5400 | E36: =IF(G30="PROMOTION","Promotion Grade Pay","ACP Grade Pay") -> ACP Grade Pay | H36: 6000
A37: =IF(B30="REGULAR ACP","Pay Band after ACP","Pay Band after Promotion") -> Pay Band after ACP | C37: 9300-34800 | E37: =IF(G30="REGULAR ACP","Pay Band after ACP","Pay Band after Promotion") -> Pay Band after ACP | H37: 15600-39100
A38: Condition | C38: YES | E38: Condition | H38: YES
A39: Mannually Change Grade Pay between two opted periods (viz. as on 01-07-2013 … so as) | D39: Changed Period | F39: Changed Grade Pay | H39: Process for calculation
D40: 2013-07-01 | F40: 2400 | H40: NO
A41: Write official language of officer order of ACP/PROMOTION
A42: ='Incr Table'!C66 -> Write official langauge of REGULAR ACP 18 years issued by COMMISSIONER COLONISATION BIKANER vide ACP order No account/pension and ACP order date 30/06/16 which is due on dated 01/09/08 | E42: ='Incr Table'!C68 -> Write official langauge of REGULAR ACP 30 year issued by COMMISSIONER COLONISATION BIKANER vide ACP order No accounts and ACP order No date 28/02/14 which is due on dated 01/09/10
A47: In reference of Finance Department order number F.14(88)FD(Rules)/08 dated 06-04-2013 and dated 28-06-2013 with inclusive of explainary noted issued on dated 05-07-2013 ,the revised increments/ACP/Promotion determination in Rajasthan Civil Services (Revised Pay Scale) Rule 2008 is ascertain on the basis of already sanctioned ACP/Promotion as following manner- | E47: ACP
A54: If any note required to display in increment order for (leave blank,if no data to input) INCREMENT/ACP/PROMOTION
A55: jjjk
A57: Details of dispatch no/order date, and name of parties for copy of order is forwarded | F57: Concerning Try. Name for order dispatch purpose | I57: Final Name
A59: Letter No/File Number for Office order,date for order dispatch purpose | C59: Accounts/2014 | E59: Order date | F59: Select Try/Sub Try | G59: Treasury | H59: BIKANER | I59: ='Incr Table'!C52 -> Treasury Bikaner
E60: =TODAY() -> 2026-05-12 | H60: Nokha
A61: S.N. | B61: Name of Parties | E61: Process | F61: The parties name will be shown in order as under
A62: 1 | B62: Concerning Sub/Treasury (Mandentary) | E62: YES | F62: =IF(E62="yes",I59,"") -> Treasury Bikaner
A63: 2 | B63: Incumbent (i.e. Concerning employee.. Mandantary) | E63: YES | F63: =IF(E63="yes",'Incr Table'!H55,"") -> Mahesh Chand Sharma ,Designation -- Class Iv
A64: 3 | B64: Accounts Branch (suggested to select "yes") | E64: NO | F64: =IF(E64="yes",'Incr Table'!H56,"") -> 
A65: 4 | B65: Accounts Officer, Colonosiation, Bikaner | E65: NO | F65: =IF(E65="yes",'Incr Table'!H57,"") -> 
A66: 5 | B66: Personal File/Gurd File | E66: YES | F66: =IF(E66="yes",'Incr Table'!H58,"") -> Personal File/Gurd File
A67: 5 | B67: Estt. Branch | E67: YES | F67: =IF(E67="yes",'Incr Table'!H59,"") -> Estt. Branch

Sheet Incr Table (hidden)
B1: Increment start date | D1: ='Incr MS'!B9 -> 2007-07-01 | E1: Code | F1: ACP date | G1: ACP CONDT | H1: Grade Pay | L1: Grade Pay | M1: Condt. | N1: Code | P1: Final G.P.
B2: Increment end date | D2: ='Incr MS'!B10 -> 2017-07-01 | E2: A | F2: =IF('Incr MS'!C38="NO","",IF('Incr MS'!C35="",'Incr Table'!D1,'Incr MS'!C35)) -> 2008-09-01 | G2: =IF(D1=F2,"NO","YES") -> YES | H2: ='Incr MS'!C36 -> 5400 | J2: ACP/Promotion | L2: ='Incr MS'!C36 -> 5400 | M2: ='Incr MS'!C38 -> YES | N2: 1 | P2: =IF(M2="YES",L2,0) -> 5400
B3: Base Pay | D3: ='Incr MS'!E9 -> 5680 | E3: B | F3: =IF('Incr MS'!H38="NO","",IF('Incr MS'!H35="",'Incr Table'!D1,'Incr MS'!H35)) -> 2010-09-01 | G3: 2006-07-01 | H3: ='Incr MS'!H36 -> 6000 | J3: ACP/Promotion | L3: ='Incr MS'!H36 -> 6000 | M3: ='Incr MS'!H38 -> YES | N3: 2 | P3: =IF(M3="YES",L3,0) -> 6000
B4: Increment Rate | D4: 0.03 | E4: C | F4: Base G.Pay | G4: =IF(E11<G3,"YES","NO") -> NO | H4: ='Incr MS'!G9 -> 1900 | I4: =IF(G4="YES",H2,'Incr MS'!G9) -> 1900
B5: BASE DATE FOR START POINT | D5: =IF(M2="YES",IF(F2<=D1,F2,D1)) -> 2007-07-01 | E5: =IF(D5=FALSE,D1,D5) -> 2007-07-01
B6: Change Grade Pay Period | D6: ='Incr MS'!D40 -> 2013-07-01
B7: Amt | D7: ='Incr MS'!F40 -> 2400
B8: Cont | D8: ='Incr MS'!H40 -> NO | AG8: 2006-01-01
A9: Calculation | X9: Start date: | Y9: =D1 -> 2007-07-01 | Z9: End date: | AA9: 2020-07-01 | AE9: Month code | AG9: Cal date | AI9: Base Date | AJ9: Final Month Code | AL9: Final Cal Date | AP9: Old Pay Scale | AR9: New Pay Scale | AS9: Grade Pay | AU9: AJMER | AV9: 1
A10: Next Date of Increement | B10: Next Date of Increement | C10: Change Date | D10: Condition | E10: Change date after condt. | F10: Close Date | G10: Final Date for further cal. | H10: Incr. Condt. | I10: Pay at start | J10: Incr. amt | K10: Change Grade Pay | L10: Change G.P. due to ACP/Promt | M10: Grade Pay (a) | N10: GradePay (b) | O10: Final Grade Pay for cal | P10: Pay at end | Q10: Diff of G.Pay (I) | R10: Diff of G.Pay (II) | S10: 3% Incr. (I) | T10: 3% Incr. (II) | U10: Pay Code (I) | W10: S.N. | X10: Date_list | Y10: SHORT DATE (A) | AE10: =IF(AG10="","",1) ->  | AG10: =IF(F2="","",IF(F2<AG11,F2,"")) ->  | AN10: =AE10 ->  | AP10: 2550-55-2660-60-3200 | AR10: 5200-20200 | AS10: 0 | AU10: ALWAR | AV10: 2
A11: =AC11 -> 2007-07-01 | B11: =A11 -> 2007-07-01 | C11: ='Incr MS'!B12 -> 2007-07-01 | D11: ='Incr MS'!C12 -> NO | E11: =IF(D11="YES",C11,A11) -> 2007-07-01 | F11: =D2 -> 2017-07-01 | G11: =E11 -> 2007-07-01 | H11: =IF(F11<=E11,"NO",'Incr MS'!E12) -> YES | I11: ='Incr MS'!H10 -> 7580 | J11: =IF(G11=F2,0,IF(H11="NO",0,IF(K11>0,ROUNDUP(ROUND(I11*$D$4,0),-1),IF(H11="YES",ROUNDUP(ROUND(I11*$D$4,0),-1),0)))) -> 230 | K11: =IF($F$2=G11,"1",IF($F$3=G11,"2","NO")) -> NO | L11: =IF(K11="1",$P$2,IF(K11="2",$P$3,0)) -> 0 | M11: =H4 -> 1900 | N11: =IF($D$8="YES",IF($D$6=G11,$D$7,0)) -> FALSE | O11: =IF(N11>0,MAX(M11:N11),M11) -> 1900 | P11: =IF(J11>0,I11+J11+L11,I11) -> 7810 | Q11: =IF(K11="YES",I4-H4,0) -> 0 | R11: 0 | S11: =IF(K11="YES",J11,0) -> 0 | T11: 0 | U11: 1 | W11: 1 | X11: =Y9 -> 2007-07-01 | Y11: =SMALL(IF((Date_list<=Date_end)*(Date_list>=Date_start),Date_list,"A"),ROW('Incr Table'!X1)) -> 2007-07-01 | Z11: ='Incr MS'!B12 -> 2007-07-01 | AA11: ='Incr MS'!C12 -> NO | AB11: =IF(AA11="YES",Z11,Y11) -> 2007-07-01 | AC11: =IFERROR(AB11,"") -> 2007-07-01 | AD11: 1 | AE11: =IF(AG11="","",(MAX(AE$9:AE10)+1)) -> 1 | AF11: =D1 -> 2007-07-01 | AG11: =AI11 -> 2007-07-01 | AH11: =AG11 -> 2007-07-01 | AI11: =IF(D1<=$AG$8,$AG$8,D1) -> 2007-07-01 | AJ11: 1 | AK11: =IF(ISNA(VLOOKUP(AE11,AD$9:AF$72,3,FALSE))," ",(VLOOKUP(AE11,AD$9:AF$72,3,FALSE))) -> 2007-07-01 | AL11: =IF(ISNA(VLOOKUP(AJ11,AE$9:AG$72,3,FALSE))," ",(VLOOKUP(AJ11,AE$9:AG$72,3,FALSE))) -> 2007-07-01 | AM11: =AL11 -> 2007-07-01 | AN11: 1 | AP11: 2610-60-3150-65-3540 | AR11: 9300-34800 | AS11: 1300 | AU11: BANSWARA | AV11: 3
A12: =IF($E$5=$D$2,"",AC12) -> 2008-07-01 | B12: =IF(A12="","","01/07/"&(IF(MONTH(A12)<=6,YEAR(A12),(YEAR(A12)+1)))) -> 01/07/2009 | C12: ='Incr MS'!B13 -> 2008-07-01 | D12: ='Incr MS'!C13 -> NO | E12: 2008-07-01 | F12: =F11 -> 2017-07-01 | G12: =IF(G11="","",IF(F12>=E12,E12,"")) -> 2008-07-01 | H12: =IF(F12<E12,"NO",'Incr MS'!E13) -> YES | I12: =P11 -> 7810 | J12: =IF(H12="YES",ROUNDUP(ROUND(I12*$D$4,0),-1),0) -> 240 | K12: NO | L12: 0 | M12: =IF(L12>0,L12,M11) -> 1900 | N12: FALSE | O12: =IF(N12=FALSE,M12,IF(O11>M11,O11,IF(N12>0,N12,M12))) -> 1900 | P12: =IF(H12="YES",I12+J12+(O12-O11),I12) -> 8050 | Q12: =IF(K12="1",M12-M11,0) -> 0 | R12: =IF(K12="2",M12-M11,0) -> 0 | S12: =IF(K12="1",J12,0) -> 0 | T12: =IF(K12="2",J12,0) -> 0 | U12: 2 | W12: 2 | X12: =DATE(YEAR(X11),MONTH(X11)+12,DAY(X11)) -> 2008-07-01 | Y12: =SMALL(IF((Date_list<=Date_end)*(Date_list>=Date_start),Date_list,"A"),ROW('Incr Table'!X2)) -> 2008-07-01 | Z12: ='Incr MS'!B13 -> 2008-07-01 | AA12: ='Incr MS'!C13 -> NO | AB12: 2008-07-01 | AC12: 2008-07-01 | AE12: =IF(AH12="","",AE11) ->  | AG12: =IF(AND($F$2>=AG11,$F$2<=AG14),$F$2,IF(AND($F$3>=AG11,$F$3<=AG14),$F$3,IF(AND($F$4>=AG11,$F$4<=AG14),$F$4,""))) ->  | AH12: =IF(AG12=AG11,"",AG12) ->  | AI12: =DATE(YEAR(AI11)+1,MONTH(AI11),DAY(AI11)) -> 2008-07-01 | AJ12: 2 | AL12: 2008-07-01 | AM12: =IF(AK12>0,AK14,AK12) -> 2008-07-01 | AP12: 2650-65-3300-70-4000 | AR12: 15600-39100 | AS12: 1400 | AU12: BARAN | AV12: 4
A13: =IF($E$5=$D$2,"",AC13) -> 2008-09-01 | B13: 01/07/2009 | C13: ='Incr MS'!B14 -> 2008-09-01 | D13: ='Incr MS'!C14 -> NO | E13: 2008-09-01 | F13: 2017-07-01 | G13: 2008-09-01 | H13: =IF(F13<E13,"NO",'Incr MS'!E14) -> YES | I13: 8050 | J13: 250 | K13: 1 | L13: 5400 | M13: 5400 | N13: FALSE | O13: =IF(N13=FALSE,M13,IF(O12>M12,O12,IF(N13>0,N13,M13))) -> 5400 | P13: 11800 | Q13: 3500 | R13: 0 | S13: 250 | T13: 0 | U13: 3 | W13: 3 | X13: 2009-07-01 | Y13: =SMALL(IF((Date_list<=Date_end)*(Date_list>=Date_start),Date_list,"A"),ROW('Incr Table'!X3)) -> 2008-09-01 | Z13: ='Incr MS'!B14 -> 2008-09-01 | AA13: ='Incr MS'!C14 -> NO | AB13: 2008-09-01 | AC13: 2008-09-01 | AE13: =IF(AH13="","",MAX(AE11:AE12)) ->  | AG13: =IF(AND($F$2>=AG12,$F$2<=AG15),$F$2,IF(AND($F$3>=AG12,$F$3<=AG15),$F$3,IF(AND($F$4>=AG12,$F$4<=AG15),$F$4,""))) ->  | AH13: =IF(AG13=AG12,"",AG13) ->  | AI13: =DATE(YEAR(AI12)+1,MONTH(AI12),DAY(AI12)) -> 2009-07-01 | AJ13: 3 | AL13: 2009-07-01 | AM13: =IF(AK13>0,AK17,AK13) -> 2009-07-01 | AP13: 2750-70-3800-75-4400 | AR13: 37400-67000 | AS13: 1650 | AU13: BARMER | AV13: 5
A14: 2009-07-01 | B14: 01/07/2010 | C14: ='Incr MS'!B15 -> 2009-07-01 | D14: ='Incr MS'!C15 -> NO | E14: 2009-07-01 | F14: 2017-07-01 | G14: 2009-07-01 | H14: =IF(F14<E14,"NO",'Incr MS'!E15) -> YES | I14: 11800 | J14: 360 | K14: NO | L14: 0 | M14: 5400 | N14: FALSE | O14: 5400 | P14: 12160 | Q14: 0 | R14: 0 | S14: 0 | T14: 0 | U14: 4 | W14: 4 | X14: 2010-07-01 | Y14: =SMALL(IF((Date_list<=Date_end)*(Date_list>=Date_start),Date_list,"A"),ROW('Incr Table'!X4)) -> 2009-07-01 | Z14: ='Incr MS'!B15 -> 2009-07-01 | AA14: ='Incr MS'!C15 -> NO | AB14: 2009-07-01 | AC14: 2009-07-01 | AD14: 2 | AE14: =IF(AG14="","",(MAX(AE$9:AE13)+1)) -> 2 | AF14: =DATE(YEAR(AF11)+1,MONTH(AF11),DAY(AF11)) -> 2008-07-01 | AG14: =DATE(YEAR(AG11)+1,MONTH(AG11),DAY(AG11)) -> 2008-07-01 | AH14: =AG14 -> 2008-07-01 | AI14: =DATE(YEAR(AI12)+1,MONTH(AI12),DAY(AI12)) -> 2009-07-01 | AJ14: 4 | AK14: 2008-07-01 | AL14: 2010-07-01 | AM14: =IF(AK14>0,AK18,AK14) ->  | AN14: 2 | AP14: 2950-75-4075-80-4475 | AS14: 1700 | AU14: BHARATPUR | AV14: 6
A15: 2010-07-01 | B15: 01/07/2011 | C15: ='Incr MS'!B16 -> 2010-07-01 | D15: ='Incr MS'!C16 -> NO | E15: 2010-07-01 | F15: 2017-07-01 | G15: 2010-07-01 | H15: =IF(F15<E15,"NO",'Incr MS'!E16) -> YES | I15: 12160 | J15: 370 | K15: NO | L15: 0 | M15: 5400 | N15: FALSE | O15: 5400 | P15: 12530 | Q15: 0 | R15: 0 | S15: 0 | T15: 0 | U15: 5 | W15: 5 | X15: 2011-07-01 | Y15: =SMALL(IF((Date_list<=Date_end)*(Date_list>=Date_start),Date_list,"A"),ROW('Incr Table'!X5)) -> 2010-07-01 | Z15: ='Incr MS'!B16 -> 2010-07-01 | AA15: ='Incr MS'!C16 -> NO | AB15: 2010-07-01 | AC15: 2010-07-01 | AE15: =IF(AH15="","",AE14) -> 2 | AG15: =IF(AND($F$2>=AG14,$F$2<=AG17),$F$2,IF(AND($F$3>=AG14,$F$3<=AG17),$F$3,IF(AND($F$4>=AG14,$F$4<=AG17),$F$4,""))) -> 2008-09-01 | AH15: =IF(AG15=AG13,"",AG15) -> 2008-09-01 | AI15: =DATE(YEAR(AI14)+1,MONTH(AI14),DAY(AI14)) -> 2010-07-01 | AJ15: 5 | AK15: 2008-07-01 | AL15: 2011-07-01 | AM15: =IF(AK15>0,AK19,AK15) ->  | AN15: 2 | AP15: 3050-75-3950-80-4590 | AS15: 1750 | AU15: BHILWARA | AV15: 7
A16: 2010-09-01 | B16: 01/07/2011 | C16: ='Incr MS'!B17 -> 2010-09-01 | D16: ='Incr MS'!C17 -> NO | E16: 2010-09-01 | F16: 2017-07-01 | G16: 2010-09-01 | H16: =IF(F16<E16,"NO",'Incr MS'!E17) -> YES | I16: 12530 | J16: 380 | K16: 2 | L16: 6000 | M16: 6000 | N16: FALSE | O16: 6000 | P16: 13510 | Q16: 0 | R16: 600 | S16: 0 | T16: 380 | U16: 6 | W16: 6 | X16: 2012-07-01 | Y16: =SMALL(IF((Date_list<=Date_end)*(Date_list>=Date_start),Date_list,"A"),ROW('Incr Table'!X6)) -> 2010-09-01 | Z16: ='Incr MS'!B17 -> 2010-09-01 | AA16: ='Incr MS'!C17 -> NO | AB16: 2010-09-01 | AC16: 2010-09-01 | AE16: =IF(AH16="","",MAX(AE14:AE15)) -> 2 | AG16: =IF(AND($F$2>=AG15,$F$2<=AG18),$F$2,IF(AND($F$3>=AG15,$F$3<=AG18),$F$3,IF(AND($F$4>=AG15,$F$4<=AG18),$F$4,""))) -> 2008-09-01 | AH16: =IF(AG16=AG14,"",AG16) -> 2008-09-01 | AI16: =DATE(YEAR(AI15)+1,MONTH(AI15),DAY(AI15)) -> 2011-07-01 | AJ16: 6 | AK16: 2008-07-01 | AL16: 2012-07-01 | AM16: =IF(AK16>0,AK20,AK16) -> 2010-07-01 | AN16: 2 | AP16: 3200-85-4900 | AS16: 1800 | AU16: BIKANER | AV16: 8
A17: 2011-07-01 | B17: 01/07/2012 | C17: ='Incr MS'!B18 -> 2011-07-01 | D17: ='Incr MS'!C18 -> NO | E17: 2011-07-01 | F17: 2017-07-01 | G17: 2011-07-01 | H17: =IF(F17<E17,"NO",'Incr MS'!E18) -> YES | I17: 13510 | J17: 410 | K17: NO | L17: 0 | M17: 6000 | N17: FALSE | O17: 6000 | P17: 13920 | Q17: 0 | R17: 0 | S17: 0 | T17: 0 | U17: 7 | W17: 7 | X17: 2013-07-01 | Y17: =SMALL(IF((Date_list<=Date_end)*(Date_list>=Date_start),Date_list,"A"),ROW('Incr Table'!X7)) -> 2011-07-01 | Z17: ='Incr MS'!B18 -> 2011-07-01 | AA17: ='Incr MS'!C18 -> NO | AB17: 2011-07-01 | AC17: 2011-07-01 | AD17: 3 | AE17: =IF(AG17="","",(MAX(AE$9:AE16)+1)) -> 3 | AF17: =DATE(YEAR(AF14)+1,MONTH(AF14),DAY(AF14)) -> 2009-07-01 | AG17: =DATE(YEAR(AG14)+1,MONTH(AG14),DAY(AG14)) -> 2009-07-01 | AH17: =AG17 -> 2009-07-01 | AI17: =DATE(YEAR(AI15)+1,MONTH(AI15),DAY(AI15)) -> 2011-07-01 | AJ17: 7 | AK17: 2009-07-01 | AL17: 2013-07-01 | AM17: =IF(AL17=$AI$10,DATE(YEAR(AM15)+1,MONTH(AM15),DAY(AM15)),AL17) -> 2013-07-01 | AN17: 3 | AP17: 3400-90-5200 | AS17: 1850 | AU17: BUNDI | AV17: 9
A18: 2012-07-01 | B18: 01/07/2013 | C18: ='Incr MS'!B19 -> 2012-07-01 | D18: ='Incr MS'!C19 -> NO | E18: 2012-07-01 | F18: 2017-07-01 | G18: 2012-07-01 | H18: =IF(F18<E18,"NO",'Incr MS'!E19) -> YES | I18: 13920 | J18: 420 | K18: NO | L18: 0 | M18: 6000 | N18: FALSE | O18: 6000 | P18: 14340 | Q18: 0 | R18: 0 | S18: 0 | T18: 0 | U18: 8 | W18: 8 | X18: 2014-07-01 | Y18: =SMALL(IF((Date_list<=Date_end)*(Date_list>=Date_start),Date_list,"A"),ROW('Incr Table'!X8)) -> 2012-07-01 | Z18: ='Incr MS'!B19 -> 2012-07-01 | AA18: ='Incr MS'!C19 -> NO | AB18: 2012-07-01 | AC18: 2012-07-01 | AE18: =IF(AH18="","",AE17) ->  | AG18: =IF(AND($F$2>=AG17,$F$2<=AG20),$F$2,IF(AND($F$3>=AG17,$F$3<=AG20),$F$3,IF(AND($F$4>=AG17,$F$4<=AG20),$F$4,""))) ->  | AH18: =IF(AG18=AG16,"",AG18) ->  | AI18: =DATE(YEAR(AI17)+1,MONTH(AI17),DAY(AI17)) -> 2012-07-01 | AJ18: 8 | AL18: 2014-07-01 | AM18: =IF(AL18=$AI$10,DATE(YEAR(AM17)+1,MONTH(AM17),DAY(AM17)),AL18) -> 2014-07-01 | AP18: 4000-100-6000 | AS18: 1900 | AU18: CHITTORGARH | AV18: 10
A19: 2013-07-01 | B19: 01/07/2014 | C19: ='Incr MS'!B20 -> 2013-07-01 | D19: ='Incr MS'!C20 -> NO | E19: 2013-07-01 | F19: 2017-07-01 | G19: 2013-07-01 | H19: =IF(F19<E19,"NO",'Incr MS'!E20) -> YES | I19: 14340 | J19: 430 | K19: NO | L19: 0 | M19: 6000 | N19: FALSE | O19: 6000 | P19: 14770 | Q19: 0 | R19: 0 | S19: 0 | T19: 0 | U19: 9 | W19: 9 | X19: 2015-07-01 | Y19: =SMALL(IF((Date_list<=Date_end)*(Date_list>=Date_start),Date_list,"A"),ROW('Incr Table'!X9)) -> 2013-07-01 | Z19: ='Incr MS'!B20 -> 2013-07-01 | AA19: ='Incr MS'!C20 -> NO | AB19: 2013-07-01 | AC19: 2013-07-01 | AE19: =IF(AH19="","",MAX(AE17:AE18)) ->  | AG19: =IF(AND($F$2>=AG18,$F$2<=AG21),$F$2,IF(AND($F$3>=AG18,$F$3<=AG21),$F$3,IF(AND($F$4>=AG18,$F$4<=AG21),$F$4,""))) ->  | AH19: =IF(AG19=AG17,"",AG19) ->  | AI19: =DATE(YEAR(AI18)+1,MONTH(AI18),DAY(AI18)) -> 2013-07-01 | AJ19: 9 | AL19: 2015-07-01 | AM19: =IF(AL19=$AI$10,DATE(YEAR(AM18)+1,MONTH(AM18),DAY(AM18)),AL19) -> 2015-07-01 | AP19: 4500-125-7000 | AS19: 2000 | AU19: CHURU | AV19: 11
A20: 2014-07-01 | B20: =IF(A20="","","01/07/"&YEAR(A20)+1) -> 01/07/2015 | C20: ='Incr MS'!B21 -> 2014-07-01 | D20: ='Incr MS'!C21 -> NO | E20: 2014-07-01 | F20: 2017-07-01 | G20: 2014-07-01 | H20: =IF(F20<E20,"NO",'Incr MS'!E21) -> YES | I20: 14770 | J20: 450 | K20: NO | L20: 0 | M20: 6000 | N20: FALSE | O20: 6000 | P20: 15220 | Q20: 0 | R20: 0 | S20: 0 | T20: 0 | U20: 10 | W20: 10 | X20: 2016-07-01 | Y20: =SMALL(IF((Date_list<=Date_end)*(Date_list>=Date_start),Date_list,"A"),ROW('Incr Table'!X10)) -> 2014-07-01 | Z20: ='Incr MS'!B21 -> 2014-07-01 | AA20: ='Incr MS'!C21 -> NO | AB20: 2014-07-01 | AC20: 2014-07-01 | AD20: 4 | AE20: =IF(AG20="","",(MAX(AE$9:AE19)+1)) -> 4 | AF20: =DATE(YEAR(AF17)+1,MONTH(AF17),DAY(AF17)) -> 2010-07-01 | AG20: =DATE(YEAR(AG17)+1,MONTH(AG17),DAY(AG17)) -> 2010-07-01 | AH20: =AG20 -> 2010-07-01 | AI20: =DATE(YEAR(AI18)+1,MONTH(AI18),DAY(AI18)) -> 2013-07-01 | AJ20: 10 | AK20: 2010-07-01 | AL20: 2016-07-01 | AM20: =IF(AL20=$AI$10,DATE(YEAR(AM18)+1,MONTH(AM18),DAY(AM18)),AL20) -> 2016-07-01 | AN20: 4 | AP20: 5000-150-8000 | AS20: 2100 | AU20: DAUSA | AV20: 12
A21: 2015-07-01 | B21: 01/07/2016 | C21: ='Incr MS'!B22 -> 2015-07-01 | D21: ='Incr MS'!C22 -> NO | E21: 2015-07-01 | F21: 2017-07-01 | G21: 2015-07-01 | H21: =IF(F21<E21,"NO",'Incr MS'!E22) -> YES | I21: 15220 | J21: 460 | K21: NO | L21: 0 | M21: 6000 | N21: FALSE | O21: 6000 | P21: 15680 | Q21: 0 | R21: 0 | S21: 0 | T21: 0 | U21: 11 | W21: 11 | X21: 2017-07-01 | Y21: =SMALL(IF((Date_list<=Date_end)*(Date_list>=Date_start),Date_list,"A"),ROW('Incr Table'!X11)) -> 2015-07-01 | Z21: ='Incr MS'!B22 -> 2015-07-01 | AA21: ='Incr MS'!C22 -> NO | AB21: 2015-07-01 | AC21: 2015-07-01 | AE21: =IF(AH21="","",AE20) -> 4 | AG21: =IF(AND($F$2>=AG20,$F$2<=AG23),$F$2,IF(AND($F$3>=AG20,$F$3<=AG23),$F$3,IF(AND($F$4>=AG20,$F$4<=AG23),$F$4,""))) -> 2010-09-01 | AH21: =IF(AG21=AG19,"",AG21) -> 2010-09-01 | AI21: =DATE(YEAR(AI20)+1,MONTH(AI20),DAY(AI20)) -> 2014-07-01 | AJ21: 11 | AK21: 2010-07-01 | AL21: 2017-07-01 | AM21: =IF(AL21=$AI$10,DATE(YEAR(AM20)+1,MONTH(AM20),DAY(AM20)),AL21) -> 2017-07-01 | AN21: 4 | AP21: 5500-175-9000 | AS21: 2400 | AU21: DHOLPUR | AV21: 13
A22: 2016-07-01 | B22: 01/07/2017 | C22: ='Incr MS'!B23 -> 2016-07-01 | D22: ='Incr MS'!C23 -> NO | E22: 2016-07-01 | F22: 2017-07-01 | G22: 2016-07-01 | H22: =IF(F22<E22,"NO",'Incr MS'!E23) -> YES | I22: 15680 | J22: 470 | K22: NO | L22: 0 | M22: 6000 | N22: FALSE | O22: 6000 | P22: 16150 | Q22: 0 | R22: 0 | S22: 0 | T22: 0 | U22: 12 | W22: 12 | X22: 2018-07-01 | Y22: =SMALL(IF((Date_list<=Date_end)*(Date_list>=Date_start),Date_list,"A"),ROW('Incr Table'!X12)) -> 2016-07-01 | Z22: ='Incr MS'!B23 -> 2016-07-01 | AA22: ='Incr MS'!C23 -> NO | AB22: 2016-07-01 | AC22: 2016-07-01 | AE22: =IF(AH22="","",MAX(AE20:AE21)) -> 4 | AG22: =IF(AND($F$2>=AG21,$F$2<=AG24),$F$2,IF(AND($F$3>=AG21,$F$3<=AG24),$F$3,IF(AND($F$4>=AG21,$F$4<=AG24),$F$4,""))) -> 2010-09-01 | AH22: =IF(AG22=AG20,"",AG22) -> 2010-09-01 | AI22: =DATE(YEAR(AI21)+1,MONTH(AI21),DAY(AI21)) -> 2015-07-01 | AJ22: 12 | AK22: 2010-07-01 | AL22: 2018-07-01 | AM22: =IF(AL22=$AI$10,DATE(YEAR(AM21)+1,MONTH(AM21),DAY(AM21)),AL22) -> 2018-07-01 | AN22: 4 | AP22: 6500-200-10500 | AS22: 2800 | AU22: DUNGARPUR | AV22: 14
A23: 2017-07-01 | B23: 01/07/2018 | C23: ='Incr MS'!B24 -> 2017-07-01 | D23: ='Incr MS'!C24 -> NO | E23: 2017-07-01 | F23: 2017-07-01 | G23: 2017-07-01 | H23: =IF(F23<E23,"NO",'Incr MS'!E24) -> YES | I23: 16150 | J23: 490 | K23: NO | L23: 0 | M23: 6000 | N23: FALSE | O23: 6000 | P23: 16640 | Q23: 0 | R23: 0 | S23: 0 | T23: 0 | U23: 13 | W23: 13 | X23: 2019-07-01 | Y23: =SMALL(IF((Date_list<=Date_end)*(Date_list>=Date_start),Date_list,"A"),ROW('Incr Table'!X13)) -> 2017-07-01 | Z23: ='Incr MS'!B24 -> 2017-07-01 | AA23: ='Incr MS'!C24 -> NO | AB23: 2017-07-01 | AC23: 2017-07-01 | AD23: 5 | AE23: =IF(AG23="","",(MAX(AE$9:AE22)+1)) -> 5 | AF23: =DATE(YEAR(AF20)+1,MONTH(AF20),DAY(AF20)) -> 2011-07-01 | AG23: =DATE(YEAR(AG20)+1,MONTH(AG20),DAY(AG20)) -> 2011-07-01 | AH23: =AG23 -> 2011-07-01 | AI23: =DATE(YEAR(AI21)+1,MONTH(AI21),DAY(AI21)) -> 2015-07-01 | AJ23: 13 | AK23: 2011-07-01 | AL23: 2019-07-01 | AM23: =IF(AL23=$AI$10,DATE(YEAR(AM21)+1,MONTH(AM21),DAY(AM21)),AL23) -> 2019-07-01 | AN23: 5 | AP23: 7500-250-12000 | AS23: 3200 | AU23: GANGANAGAR | AV23: 15
A24: 2018-07-01 | B24: 01/07/2019 | C24: ='Incr MS'!B25 ->  | D24: ='Incr MS'!C25 -> NO | E24: 2018-07-01 | F24: 2017-07-01 | H24: =IF(F24<E24,"NO",'Incr MS'!E25) -> NO | I24: 16640 | J24: 0 | K24: NO | L24: 0 | M24: 6000 | N24: FALSE | O24: 6000 | P24: 16640 | Q24: 0 | R24: 0 | S24: 0 | T24: 0 | U24: 14 | W24: 14 | X24: 2020-07-01 | Y24: =SMALL(IF((Date_list<=Date_end)*(Date_list>=Date_start),Date_list,"A"),ROW('Incr Table'!X14)) -> 2018-07-01 | Z24: ='Incr MS'!B25 ->  | AA24: ='Incr MS'!C25 -> NO | AB24: 2018-07-01 | AC24: 2018-07-01 | AE24: =IF(AH24="","",AE23) ->  | AG24: =IF(AND($F$2>=AG23,$F$2<=AG26),$F$2,IF(AND($F$3>=AG23,$F$3<=AG26),$F$3,IF(AND($F$4>=AG23,$F$4<=AG26),$F$4,""))) ->  | AH24: =IF(AG24=AG22,"",AG24) ->  | AI24: =DATE(YEAR(AI23)+1,MONTH(AI23),DAY(AI23)) -> 2016-07-01 | AJ24: 14 | AM24: =IF(AL24=$AI$10,DATE(YEAR(AM23)+1,MONTH(AM23),DAY(AM23)),AL24) ->  | AP24: 8000-275-13500 | AS24: 3600 | AU24: HANUMANGARH | AV24: 16
C25: ='Incr MS'!B26 ->  | D25: ='Incr MS'!C26 -> NO | F25: 2017-07-01 | H25: =IF(F25<E25,"NO",'Incr MS'!E26) -> NO | I25: 16640 | J25: 0 | K25: NO | L25: 0 | M25: 6000 | N25: FALSE | O25: 6000 | P25: 16640 | Q25: 0 | R25: 0 | S25: 0 | T25: 0 | U25: 15 | W25: 15 | X25: 2021-07-01 | Y25: =SMALL(IF((Date_list<=Date_end)*(Date_list>=Date_start),Date_list,"A"),ROW('Incr Table'!X15)) ->  | Z25: ='Incr MS'!B26 ->  | AA25: ='Incr MS'!C26 -> NO | AE25: =IF(AH25="","",MAX(AE23:AE24)) ->  | AG25: =IF(AND($F$2>=AG24,$F$2<=AG27),$F$2,IF(AND($F$3>=AG24,$F$3<=AG27),$F$3,IF(AND($F$4>=AG24,$F$4<=AG27),$F$4,""))) ->  | AH25: =IF(AG25=AG23,"",AG25) ->  | AI25: =DATE(YEAR(AI24)+1,MONTH(AI24),DAY(AI24)) -> 2017-07-01 | AJ25: 15 | AM25: =IF(AL25=$AI$10,DATE(YEAR(AM24)+1,MONTH(AM24),DAY(AM24)),AL25) ->  | AO25: =MIN(AG25:AH25) -> 00:00:00 | AP25: 8000-275-13500N | AS25: 4200 | AU25: JAIPUR | AV25: 17
A26: =IF($E$5=$D$2,"",AC26) -> 2020-07-01 | B26: =IF(A26="","","01/07/"&YEAR(A26)+1) -> 01/07/2021 | C26: ='Incr MS'!B27 ->  | D26: ='Incr MS'!C27 -> NO | E26: =IF(D26="YES",C26,A26) -> 2020-07-01 | F26: 2017-07-01 | G26: =IF(G25="","",IF(F26>=E26,E26,"")) ->  | H26: =IF(F26<E26,"NO",'Incr MS'!E27) -> NO | I26: =P25 -> 16640 | J26: =IF(H26="YES",ROUNDUP(ROUND(I26*$D$4,0),-1),0) -> 0 | K26: =IF($F$2=G26,"1",IF($F$3=G26,"2","NO")) -> NO | L26: =IF(K26="1",$P$2,IF(K26="2",$P$3,0)) -> 0 | M26: =IF(L26>0,L26,M25) -> 6000 | N26: =IF($D$8="YES",IF($D$6=G26,$D$7,0)) -> FALSE | O26: =IF(N26=FALSE,M26,IF(O25>M25,O25,IF(N26>0,N26,M26))) -> 6000 | P26: =IF(H26="YES",I26+J26+(O26-O25),I26) -> 16640 | Q26: =IF(K26="1",M26-M25,0) -> 0 | R26: =IF(K26="2",M26-M25,0) -> 0 | S26: =IF(K26="1",J26,0) -> 0 | T26: =IF(K26="2",J26,0) -> 0 | U26: 15 | W26: 16 | X26: =IF('Incr MS'!$C$38="YES",'Incr MS'!$C$35,"") -> 2008-09-01 | Y26: =SMALL(IF((Date_list<=Date_end)*(Date_list>=Date_start),Date_list,"A"),ROW('Incr Table'!X16)) -> 2020-07-01 | Z26: ='Incr MS'!B29 -> 00:00:00 | AA26: ='Incr MS'!C29 -> 00:00:00 | AB26: 2020-07-01 | AC26: 2020-07-01 | AD26: 6 | AE26: =IF(AG26="","",(MAX(AE$9:AE25)+1)) -> 6 | AF26: =DATE(YEAR(AF23)+1,MONTH(AF23),DAY(AF23)) -> 2012-07-01 | AG26: =DATE(YEAR(AG23)+1,MONTH(AG23),DAY(AG23)) -> 2012-07-01 | AH26: =AG26 -> 2012-07-01 | AI26: =DATE(YEAR(AI24)+1,MONTH(AI24),DAY(AI24)) -> 2017-07-01 | AJ26: 16 | AK26: 2012-07-01 | AM26: =IF(AL26=$AI$10,DATE(YEAR(AM24)+1,MONTH(AM24),DAY(AM24)),AL26) ->  | AN26: 6 | AP26: 9000-300-14400 | AS26: 4800 | AU26: JAISALMER | AV26: 18
A27: 2021-07-01 | B27: 01/07/2022 | C27: ='Incr MS'!B28 ->  | D27: ='Incr MS'!C28 -> NO | E27: 2021-07-01 | F27: 2017-07-01 | H27: =IF(F27<E27,"NO",'Incr MS'!E28) -> NO | I27: 16640 | J27: 0 | K27: NO | L27: 0 | M27: 6000 | N27: FALSE | O27: 6000 | P27: 16640 | Q27: 0 | R27: 0 | S27: 0 | T27: 0 | U27: 15 | W27: 17 | X27: =IF('Incr MS'!$H$38="YES",'Incr MS'!$H$35,"") -> 2010-09-01 | Y27: =SMALL(IF((Date_list<=Date_end)*(Date_list>=Date_start),Date_list,"A"),ROW('Incr Table'!X17)) -> 2021-07-01 | Z27: ='Incr MS'!B30 -> REGULAR ACP | AA27: ='Incr MS'!C30 -> 00:00:00 | AB27: 2021-07-01 | AC27: 2021-07-01 | AE27: =IF(AH27="","",AE26) ->  | AG27: =IF(AND($F$2>=AG26,$F$2<=AG29),$F$2,IF(AND($F$3>=AG26,$F$3<=AG29),$F$3,IF(AND($F$4>=AG26,$F$4<=AG29),$F$4,""))) ->  | AH27: =IF(AG27=AG25,"",AG27) ->  | AI27: =DATE(YEAR(AI26)+1,MONTH(AI26),DAY(AI26)) -> 2018-07-01 | AJ27: 17 | AM27: =IF(AL27=$AI$10,DATE(YEAR(AM26)+1,MONTH(AM26),DAY(AM26)),AL27) ->  | AP27: 10000-325-15200 | AS27: 5400 | AU27: JALORE | AV27: 19
AE28: =IF(AH28="","",MAX(AE26:AE27)) ->  | AG28: =IF(AND($F$2>=AG27,$F$2<=AG30),$F$2,IF(AND($F$3>=AG27,$F$3<=AG30),$F$3,IF(AND($F$4>=AG27,$F$4<=AG30),$F$4,""))) ->  | AH28: =IF(AG28=AG26,"",AG28) ->  | AI28: =DATE(YEAR(AI27)+1,MONTH(AI27),DAY(AI27)) -> 2019-07-01 | AJ28: 18 | AM28: =IF(AL28=$AI$10,DATE(YEAR(AM27)+1,MONTH(AM27),DAY(AM27)),AL28) ->  | AP28: 10650-325-15850 | AS28: 6000 | AU28: JHALAWAR | AV28: 20
AD29: 7 | AE29: =IF(AG29="","",(MAX(AE$9:AE28)+1)) -> 7 | AF29: =DATE(YEAR(AF26)+1,MONTH(AF26),DAY(AF26)) -> 2013-07-01 | AG29: =DATE(YEAR(AG26)+1,MONTH(AG26),DAY(AG26)) -> 2013-07-01 | AH29: =AG29 -> 2013-07-01 | AI29: =DATE(YEAR(AI27)+1,MONTH(AI27),DAY(AI27)) -> 2019-07-01 | AJ29: =AE29 -> 7 | AK29: 2013-07-01 | AL29: 2013-07-01 | AM29: =IF(AL29=$AI$10,DATE(YEAR(AM27)+1,MONTH(AM27),DAY(AM27)),AL29) -> 2013-07-01 | AN29: 7 | AP29: 11300-350-16200 | AS29: 6600 | AU29: JHUNJHUNU | AV29: 21
AE30: =IF(AH30="","",AE29) ->  | AG30: =IF(AND($F$2>=AG29,$F$2<=AG32),$F$2,IF(AND($F$3>=AG29,$F$3<=AG32),$F$3,IF(AND($F$4>=AG29,$F$4<=AG32),$F$4,""))) ->  | AH30: =IF(AG30=AG28,"",AG30) ->  | AI30: =DATE(YEAR(AI29)+1,MONTH(AI29),DAY(AI29)) -> 2020-07-01 | AM30: =IF(AL30=$AI$10,DATE(YEAR(AM29)+1,MONTH(AM29),DAY(AM29)),AL30) -> 2014-07-01 | AP30: 12000-375-16500 | AS30: 6800 | AU30: JODHPUR | AV30: 22
AE31: =IF(AH31="","",MAX(AE29:AE30)) ->  | AG31: =IF(AND($F$2>=AG30,$F$2<=AG33),$F$2,IF(AND($F$3>=AG30,$F$3<=AG33),$F$3,IF(AND($F$4>=AG30,$F$4<=AG33),$F$4,""))) ->  | AH31: =IF(AG31=AG29,"",AG31) ->  | AI31: =DATE(YEAR(AI30)+1,MONTH(AI30),DAY(AI30)) -> 2021-07-01 | AM31: =IF(AL31=$AI$10,DATE(YEAR(AM30)+1,MONTH(AM30),DAY(AM30)),AL31) -> 2015-07-01 | AP31: 13500-400-17500 | AS31: 7200 | AU31: KARAULI | AV31: 23
AD32: 8 | AE32: =IF(AG32="","",(MAX(AE$9:AE31)+1)) -> 8 | AF32: =DATE(YEAR(AF29)+1,MONTH(AF29),DAY(AF29)) -> 2014-07-01 | AG32: =DATE(YEAR(AG29)+1,MONTH(AG29),DAY(AG29)) -> 2014-07-01 | AH32: =AG32 -> 2014-07-01 | AI32: =DATE(YEAR(AI30)+1,MONTH(AI30),DAY(AI30)) -> 2021-07-01 | AJ32: 8 | AK32: 2014-07-01 | AL32: 2014-07-01 | AM32: =IF(AL32=$AI$10,DATE(YEAR(AM30)+1,MONTH(AM30),DAY(AM30)),AL32) -> 2014-07-01 | AN32: 8 | AP32: 14300-400-18300 | AS32: 7600 | AU32: KOTA | AV32: 24
AE33: =IF(AH33="","",AE32) ->  | AG33: =IF(AND($F$2>=AG32,$F$2<=AG35),$F$2,IF(AND($F$3>=AG32,$F$3<=AG35),$F$3,IF(AND($F$4>=AG32,$F$4<=AG35),$F$4,""))) ->  | AH33: =IF(AG33=AG31,"",AG33) ->  | AM33: =IF(AL33=$AI$10,DATE(YEAR(AM32)+1,MONTH(AM32),DAY(AM32)),AL33) -> 2015-07-01 | AP33: 16400-450-20000 | AS33: 8200 | AU33: NAGAUR | AV33: 25
B34: ='Incr MS'!B30 -> REGULAR ACP | C34: ='Incr MS'!C38 -> YES | D34: ='Incr MS'!B9 -> 2007-07-01 | E34: ='Incr MS'!B10 -> 2017-07-01 | F34: Details of | G34: from | H34: to | I34: =CONCATENATE(F34," ",B34," ",G34," ",TEXT(D34,"dd/mm/yy"), " ", H34, " ",TEXT(E34,"dd/mm/yy")) -> Details of REGULAR ACP from 01/07/07 to 01/07/17 | AE34: =IF(AH34="","",MAX(AE32:AE33)) ->  | AG34: =IF(AND($F$2>=AG33,$F$2<=AG36),$F$2,IF(AND($F$3>=AG33,$F$3<=AG36),$F$3,IF(AND($F$4>=AG33,$F$4<=AG36),$F$4,""))) ->  | AH34: =IF(AG34=AG32,"",AG34) ->  | AM34: =IF(AL34=$AI$10,DATE(YEAR(AM33)+1,MONTH(AM33),DAY(AM33)),AL34) -> 2016-07-01 | AP34: 18400-500-22400 | AS34: 8700 | AU34: PALI | AV34: 26
I35: =IF(C34="YES",I34,"") -> Details of REGULAR ACP from 01/07/07 to 01/07/17 | AD35: 9 | AE35: =IF(AG35="","",(MAX(AE$9:AE34)+1)) -> 9 | AF35: =DATE(YEAR(AF32)+1,MONTH(AF32),DAY(AF32)) -> 2015-07-01 | AG35: =DATE(YEAR(AG32)+1,MONTH(AG32),DAY(AG32)) -> 2015-07-01 | AH35: =AG35 -> 2015-07-01 | AJ35: 9 | AK35: 2015-07-01 | AL35: 2015-07-01 | AM35: =IF(AL35=$AI$10,DATE(YEAR(AM33)+1,MONTH(AM33),DAY(AM33)),AL35) -> 2015-07-01 | AN35: 9 | AS35: 8900 | AU35: PRATAPGARH
B36: ='Incr MS'!G30 -> REGULAR ACP | C36: ='Incr MS'!H38 -> YES | D36: =D34 -> 2007-07-01 | E36: =E34 -> 2017-07-01 | F36: Details of | G36: from | H36: to | I36: =CONCATENATE(F36," ",B36," ",G36," ",TEXT(D36,"dd/mm/yy"), " ", H36, " ",TEXT(E36,"dd/mm/yy")) -> Details of REGULAR ACP from 01/07/07 to 01/07/17 | AE36: =IF(AH36="","",AE35) ->  | AG36: =IF(AND($F$2>=AG35,$F$2<=AG38),$F$2,IF(AND($F$3>=AG35,$F$3<=AG38),$F$3,IF(AND($F$4>=AG35,$F$4<=AG38),$F$4,""))) ->  | AH36: =IF(AG36=AG34,"",AG36) ->  | AM36: =IF(AL36=$AI$10,DATE(YEAR(AM35)+1,MONTH(AM35),DAY(AM35)),AL36) -> 2016-07-01 | AS36: 9500 | AU36: RAJSAMAND | AV36: 27
I37: =IF(C36="YES",I36,"") -> Details of REGULAR ACP from 01/07/07 to 01/07/17 | AE37: =IF(AH37="","",MAX(AE35:AE36)) ->  | AG37: =IF(AND($F$2>=AG36,$F$2<=AG39),$F$2,IF(AND($F$3>=AG36,$F$3<=AG39),$F$3,IF(AND($F$4>=AG36,$F$4<=AG39),$F$4,""))) ->  | AH37: =IF(AG37=AG35,"",AG37) ->  | AM37: =IF(AL37=$AI$10,DATE(YEAR(AM36)+1,MONTH(AM36),DAY(AM36)),AL37) -> 2017-07-01 | AS37: 10000 | AU37: SAWAI MADHOPUR | AV37: 28
AD38: 10 | AE38: =IF(AG38="","",(MAX(AE$9:AE37)+1)) -> 10 | AF38: =DATE(YEAR(AF35)+1,MONTH(AF35),DAY(AF35)) -> 2016-07-01 | AG38: =DATE(YEAR(AG35)+1,MONTH(AG35),DAY(AG35)) -> 2016-07-01 | AH38: =AG38 -> 2016-07-01 | AJ38: 10 | AK38: 2016-07-01 | AL38: 2016-07-01 | AM38: =IF(AL38=$AI$10,DATE(YEAR(AM36)+1,MONTH(AM36),DAY(AM36)),AL38) -> 2016-07-01 | AN38: 10 | AU38: SIKAR | AV38: 29
B39: Data shown in increment order | AE39: =IF(AH39="","",AE38) ->  | AG39: =IF(AND($F$2>=AG38,$F$2<=AG41),$F$2,IF(AND($F$3>=AG38,$F$3<=AG41),$F$3,IF(AND($F$4>=AG38,$F$4<=AG41),$F$4,""))) ->  | AH39: =IF(AG39=AG37,"",AG39) ->  | AM39: =IF(AL39=$AI$10,DATE(YEAR(AM38)+1,MONTH(AM38),DAY(AM38)),AL39) -> 2017-07-01 | AU39: SIROHI | AV39: 30
B40: No | C40: Type | D40: Date | E40: 3% Incr. | F40: Grade Pay at start | G40: Grade pay at end | H40: Diff. of G.Pay | I40: Pay Code | J40: Pay code before inc. | K40: Pay at start | L40: Pay at end | M40: Condt | AE40: =IF(AH40="","",MAX(AE38:AE39)) ->  | AG40: =IF(AND($F$2>=AG39,$F$2<=AG42),$F$2,IF(AND($F$3>=AG39,$F$3<=AG42),$F$3,IF(AND($F$4>=AG39,$F$4<=AG42),$F$4,""))) ->  | AH40: =IF(AG40=AG38,"",AG40) ->  | AM40: =IF(AL40=$AI$10,DATE(YEAR(AM39)+1,MONTH(AM39),DAY(AM39)),AL40) -> 2018-07-01 | AU40: TONK | AV40: 31
AD41: 11 | AE41: =IF(AG41="","",(MAX(AE$9:AE40)+1)) -> 11 | AF41: =DATE(YEAR(AF38)+1,MONTH(AF38),DAY(AF38)) -> 2017-07-01 | AG41: =DATE(YEAR(AG38)+1,MONTH(AG38),DAY(AG38)) -> 2017-07-01 | AH41: =AG41 -> 2017-07-01 | AJ41: 11 | AK41: 2017-07-01 | AL41: 2017-07-01 | AM41: =IF(AL41=$AI$10,DATE(YEAR(AM39)+1,MONTH(AM39),DAY(AM39)),AL41) -> 2017-07-01 | AN41: 11 | AU41: UDAIPUR | AV41: 32
B42: I | C42: ='Incr MS'!B30 -> REGULAR ACP | D42: ='Incr MS'!C35 -> 2008-09-01 | E42: =MAX($S$11:$S$25) -> 250 | F42: =G42-H42 -> 1900 | G42: =INDEX($O$11:$O$25,MATCH($H$42,$Q$11:$Q$25,0)) -> 5400 | H42: =MAX($Q$11:$Q$25) -> 3500 | I42: =INDEX($U$11:$U$25,MATCH($H$42,$Q$11:$Q$25,0)) -> 3 | J42: =IF(H42>0,I42-1,I42) -> 2 | K42: =INDEX($P$11:$P$25,MATCH($J$42,$U$11:$U$25,0)) -> 8050 | L42: =INDEX($P$11:$P$25,MATCH($I$42,$U$11:$U$25,0)) -> 11800 | M42: ='Incr MS'!C38 -> YES | AE42: =IF(AH42="","",AE41) ->  | AG42: =IF(AND($F$2>=AG41,$F$2<=AG44),$F$2,IF(AND($F$3>=AG41,$F$3<=AG44),$F$3,IF(AND($F$4>=AG41,$F$4<=AG44),$F$4,""))) ->  | AH42: =IF(AG42=AG40,"",AG42) ->  | AM42: =IF(AL42=$AI$10,DATE(YEAR(AM41)+1,MONTH(AM41),DAY(AM41)),AL42) -> 2018-07-01
B43: II | C43: ='Incr MS'!G30 -> REGULAR ACP | D43: ='Incr MS'!H35 -> 2010-09-01 | E43: =MAX($T$11:$T$25) -> 380 | F43: =G43-H43 -> 5400 | G43: =INDEX($O$11:$O$25,MATCH($H$43,$R$11:$R$25,0)) -> 6000 | H43: =MAX($R$11:$R$25) -> 600 | I43: =INDEX($U$11:$U$25,MATCH($H$43,$R$11:$R$25,0)) -> 6 | J43: =I43-1 -> 5 | K43: =INDEX($P$11:$P$25,MATCH($J$43,$U$11:$U$25,0)) -> 12530 | L43: =INDEX($P$11:$P$25,MATCH($I$43,$U$11:$U$25,0)) -> 13510 | M43: ='Incr MS'!H38 -> YES | AE43: =IF(AH43="","",MAX(AE41:AE42)) ->  | AG43: =IF(AND($F$2>=AG42,$F$2<=AG45),$F$2,IF(AND($F$3>=AG42,$F$3<=AG45),$F$3,IF(AND($F$4>=AG42,$F$4<=AG45),$F$4,""))) ->  | AH43: =IF(AG43=AG41,"",AG43) ->  | AM43: =IF(AL43=$AI$10,DATE(YEAR(AM42)+1,MONTH(AM42),DAY(AM42)),AL43) -> 2019-07-01
AD44: 12 | AE44: =IF(AG44="","",(MAX(AE$9:AE43)+1)) -> 12 | AF44: =DATE(YEAR(AF41)+1,MONTH(AF41),DAY(AF41)) -> 2018-07-01 | AG44: =DATE(YEAR(AG41)+1,MONTH(AG41),DAY(AG41)) -> 2018-07-01 | AH44: =AG44 -> 2018-07-01 | AJ44: 12 | AK44: 2018-07-01 | AL44: 2018-07-01 | AM44: =IF(AL44=$AI$10,DATE(YEAR(AM42)+1,MONTH(AM42),DAY(AM42)),AL44) -> 2018-07-01 | AN44: 12
C45: =IF(M42="YES",C42,"") -> REGULAR ACP | AE45: =IF(AH45="","",AE44) ->  | AH45: =IF(AG45=AG43,"",AG45) ->  | AM45: =IF(AL45=$AI$10,DATE(YEAR(AM44)+1,MONTH(AM44),DAY(AM44)),AL45) -> 2019-07-01
AE46: =IF(AH46="","",MAX(AE44:AE45)) -> 12 | AH46: =IF(AG46=AG44,"",AG46) -> 00:00:00 | AJ46: 12 | AK46: 2018-07-01 | AL46: 2018-07-01 | AM46: =IF(AL46=$AI$10,DATE(YEAR(AM45)+1,MONTH(AM45),DAY(AM45)),AL46) -> 2018-07-01 | AN46: 12
AE47: =IF(AG47="","",(MAX(AE$9:AE46)+1)) -> 13 | AF47: =DATE(YEAR(AF44)+1,MONTH(AF44),DAY(AF44)) -> 2019-07-01 | AG47: =DATE(YEAR(AG44)+1,MONTH(AG44),DAY(AG44)) -> 2019-07-01 | AH47: =AG47 -> 2019-07-01 | AJ47: 13 | AL47: 2019-07-01 | AM47: =IF(AL47=$AI$10,DATE(YEAR(AM45)+1,MONTH(AM45),DAY(AM45)),AL47) -> 2019-07-01 | AN47: 13
B48: Name of Treasury or sub treasury for dispatch letter
B49: Sub Treasury | C49: ='Incr MS'!G59 -> Treasury | D49: =PROPER('Incr MS'!H59) -> Bikaner
B50: Treasury | C50: Treasury | D50: ='Incr MS'!H60 -> Nokha
C51: =IF(C49=B49,C49,B50) -> Treasury | D51: =IF(C49="Sub Treasury",D50,D49) -> Bikaner
B52: Final name | C52: =CONCATENATE(C51," ",D51) -> Treasury Bikaner
N53: Condt | O53: Sort -A | P53: Sort-B | Q53: Final Value
B54: 1 | C54: =IF(C51="Treasury","Treassury Officer","Sub Treasury Officer") -> Treassury Officer | F54: =D51 -> Bikaner | H54: =CONCATENATE(C54," ",","," ",F54) -> Treassury Officer , Bikaner | N54: ='Incr MS'!E62 -> YES | O54: =IF(N54="YES",H54,"") -> Treassury Officer , Bikaner | P54: =INDEX($O$54:$O$59,MATCH(0,COUNTIF($N53:N$53,$O$54:$O$59&""),0)) -> Treassury Officer , Bikaner | Q54: =IFERROR(P54,"") -> Treassury Officer , Bikaner
B55: 2 | C55: =PROPER('Incr MS'!B4) -> Mahesh Chand Sharma | F55: =PROPER('Incr MS'!B5) -> Class Iv | H55: =CONCATENATE(C55," ",",","Designation"," -- ",F55," ") -> Mahesh Chand Sharma ,Designation -- Class Iv | N55: ='Incr MS'!E63 -> YES | O55: =IF(N55="YES",H55,"") -> Mahesh Chand Sharma ,Designation -- Class Iv | P55: =INDEX($O$54:$O$59,MATCH(0,COUNTIF($N$5:P54,$O$54:$O$59&""),0)) -> Mahesh Chand Sharma ,Designation -- Class Iv | Q55: Mahesh Chand Sharma ,Designation -- Class Iv
B56: 3 | C56: Accounts Branch-in two copies for prepration of bill | H56: =C56 -> Accounts Branch-in two copies for prepration of bill | N56: ='Incr MS'!E64 -> NO | P56: =INDEX($O$54:$O$59,MATCH(0,COUNTIF($N$5:P55,$O$54:$O$59&""),0)) -> Personal File/Gurd File | Q56: Personal File/Gurd File
B57: 4 | C57: ='Incr MS'!B65 -> Accounts Officer, Colonosiation, Bikaner | H57: =C57 -> Accounts Officer, Colonosiation, Bikaner | N57: ='Incr MS'!E65 -> NO | P57: =INDEX($O$54:$O$59,MATCH(0,COUNTIF($N$5:P56,$O$54:$O$59&""),0)) -> Estt. Branch | Q57: Estt. Branch
B58: 5 | C58: ='Incr MS'!B66 -> Personal File/Gurd File | H58: =C58 -> Personal File/Gurd File | N58: ='Incr MS'!E66 -> YES | O58: Personal File/Gurd File | P58: =INDEX($O$54:$O$59,MATCH(0,COUNTIF($N$5:P57,$O$54:$O$59&""),0)) -> 
B59: 6 | C59: ='Incr MS'!B67 -> Estt. Branch | H59: =C59 -> Estt. Branch | N59: ='Incr MS'!E67 -> YES | O59: Estt. Branch | P59: =INDEX($O$54:$O$59,MATCH(0,COUNTIF($N$5:P58,$O$54:$O$59&""),0)) -> 
A60: Write office order lanague
A61: Type I | B61: =CONCATENATE("Write official langauge of "," ",'Incr MS'!B30," ",('Incr MS'!D30)," ","issued by"," ",'Incr MS'!A32," ","vide ",'Incr MS'!A33," ",'Incr MS'!C33," ","and "," ",'Incr MS'!A34," ",TEXT('Incr MS'!C34,"dd/mm/yy")," ","which is due on dated"," ",TEXT('Incr MS'!C35,"dd/mm/yy")) -> Write official langauge of REGULAR ACP 18 years issued by COMMISSIONER COLONISATION BIKANER vide ACP order No account/pension and ACP order date 30/06/16 which is due on dated 01/09/08
A63: Type II | B63: =CONCATENATE("Write official langauge of "," ",'Incr MS'!G30," ",('Incr MS'!I30)," ","issued by"," ",'Incr MS'!E32," ","vide ",'Incr MS'!E33," ",'Incr MS'!H33," ","and "," ",'Incr MS'!E34," ",TEXT('Incr MS'!H34,"dd/mm/yy")," ","which is due on dated"," ",TEXT('Incr MS'!H35,"dd/mm/yy")) -> Write official langauge of REGULAR ACP 30 year issued by COMMISSIONER COLONISATION BIKANER vide ACP order No accounts and ACP order No date 28/02/14 which is due on dated 01/09/10
A66: Type I | B66: ='Incr MS'!C38 -> YES | C66: =IF(B66="YES",B61,"") -> Write official langauge of REGULAR ACP 18 years issued by COMMISSIONER COLONISATION BIKANER vide ACP order No account/pension and ACP order date 30/06/16 which is due on dated 01/09/08
A68: Type II | B68: ='Incr MS'!H38 -> YES | C68: =IF(B68="YES",B63,"") -> Write official langauge of REGULAR ACP 30 year issued by COMMISSIONER COLONISATION BIKANER vide ACP order No accounts and ACP order No date 28/02/14 which is due on dated 01/09/10
B72: Design & prepared by Pravesh Kumar Sharma-9460100093 | K72: 16.18.1.22.5.19.8√97263.0458756048
A73: TEXT SHOWN IN ACP ORDER AS SELECTED ACP TYPE
A74: TYPE I | B74: Code | C74: ACP type show in acp order
B75: A | C75: X | D75: 9 years | E75: Ist ACP | F75: =D76 -> 18 years | G75: =E76 -> IInd ACP | H75: =F76 -> 27 years | I75: =G76 -> IIIrd ACP | J75: =CONCATENATE(D81," ","-",E81) -> 18 years -IInd ACP | K75: =CONCATENATE(D75,"-",E75) -> 9 years-Ist ACP | L75: =IF(B81="B",D75,IF(B81="A",D75,IF(B81="C",D75,D78))) -> 9 years | M75: =IF(B81="B",D76,IF(B81="A",D76,IF(B81="C",#REF!,D79))) -> 18 years
B76: B | C76: Y | D76: 18 years | E76: IInd ACP | F76: =D77 -> 27 years | G76: =E77 -> IIIrd ACP | H76: =F77 -> Not allowed | J76: =CONCATENATE(F81," ","-",G75) -> 27 years -IInd ACP | K76: 18 years-IInd ACP
B77: C | C77: Z | D77: 27 years | E77: IIIrd ACP | F77: Not allowed | H77: Not allowed | K77: 27 years-IIIrd ACP
B78: D | C78: X | D78: 10 year | E78: Ist ACP | F78: =D79 -> 20 year | G78: =E79 -> IInd ACP | H78: =F79 -> 30 year | I78: =G79 -> IIIrd ACP | J78: =CONCATENATE(H81," ","-",I75) -> Not allowed -IIIrd ACP | K78: 10 year-Ist ACP
B79: E | C79: Y | D79: 20 year | E79: IInd ACP | F79: =D80 -> 30 year | G79: =E80 -> IIIrd ACP | H79: Not allowed | K79: 20 year-IInd ACP
B80: F | C80: Z | D80: 30 year | E80: IIIrd ACP | F80: Not allowed | H80: Not allowed | K80: 30 year-IIIrd ACP
B81: =INDEX(B75:B80,MATCH(D81,D75:D80,0)) -> B | C81: =INDEX(C75:C80,MATCH(B81,B75:B80,0)) -> Y | D81: ='Incr MS'!D30 -> 18 years | E81: =INDEX(E75:E80,MATCH(D81,D75:D80,0)) -> IInd ACP | F81: =INDEX(F75:F80,MATCH(D81,D75:D80,0)) -> 27 years | H81: =INDEX(H75:H80,MATCH(D81,D75:D80,0)) -> Not allowed | K81: =INDEX(K75:K80,MATCH(B81,B75:B80,0)) -> 18 years-IInd ACP
A82: TYPE I | B82: Code | C82: ACP type show in acp order
B83: A | C83: X | D83: 9 years | E83: Ist ACP | F83: =D84 -> 18 years | G83: =E84 -> IInd ACP | H83: =F84 -> 27 years | I83: =G84 -> IIIrd ACP | J83: =CONCATENATE(D89," ","-",E89) -> 30 year -IIIrd ACP | K83: =CONCATENATE(D83,"-",E83) -> 9 years-Ist ACP | L83: =IF(B89="B",D83,IF(B89="A",D83,IF(B89="C",D83,D86))) -> 10 year | M83: =IF(B89="B",D84,IF(B89="A",D84,IF(B89="C",#REF!,D87))) -> 20 year
B84: B | C84: Y | D84: 18 years | E84: IInd ACP | F84: =D85 -> 27 years | G84: =E85 -> IIIrd ACP | H84: =F85 -> Not allowed | J84: =CONCATENATE(F89," ","-",G83) -> Not allowed -IInd ACP | K84: 18 years-IInd ACP
B85: C | C85: Z | D85: 27 years | E85: IIIrd ACP | F85: Not allowed | H85: Not allowed | K85: 27 years-IIIrd ACP
B86: D | C86: X | D86: 10 year | E86: Ist ACP | F86: =D87 -> 20 year | G86: =E87 -> IInd ACP | H86: =F87 -> 30 year | I86: =G87 -> IIIrd ACP | J86: =CONCATENATE(H89," ","-",I83) -> Not allowed -IIIrd ACP | K86: 10 year-Ist ACP
B87: E | C87: Y | D87: 20 year | E87: IInd ACP | F87: =D88 -> 30 year | G87: =E88 -> IIIrd ACP | H87: Not allowed | K87: 20 year-IInd ACP
B88: F | C88: Z | D88: 30 year | E88: IIIrd ACP | F88: Not allowed | H88: Not allowed | K88: 30 year-IIIrd ACP
B89: =INDEX(B83:B88,MATCH(D89,D83:D88,0)) -> F | C89: =INDEX(C83:C88,MATCH(B89,B83:B88,0)) -> Z | D89: ='Incr MS'!I30 -> 30 year | E89: =INDEX(E83:E88,MATCH(D89,D83:D88,0)) -> IIIrd ACP | F89: =INDEX(F83:F88,MATCH(D89,D83:D88,0)) -> Not allowed | H89: =INDEX(H83:H88,MATCH(D89,D83:D88,0)) -> Not allowed | K89: =INDEX(K83:K88,MATCH(B89,B83:B88,0)) -> 30 year-IIIrd ACP
B98: Start date: | C98: ='Incr MS'!B9 -> 2007-07-01 | D98: End date: | E98: ='Incr MS'!B10 -> 2017-07-01
B99: Date_list | C99: SHORT DATE (A) | J99: =IF(ROWS(J99:$O$155)<=COUNT($N$155:$N$178)+COUNTIF($N$155:$N$178,"*?"),INDEX($N$155:$N$178,SMALL(IF($N$155:$N$178<>"",ROW($N$155:$N$178)-ROW($O$155)+1),ROWS(J99:$O$155))),"") -> 
B100: Regular incr. date | D100: Update date | E100: First base date for regular incre. | F100: Change Date | G100: Change Condition | H100: Change Date (a) | I100: Change Date (b) | J100: Final Date
A101: 1 | B101: =D101 -> 2006-07-01 | C101: =COUNTIF($D$101:$D$122,"<="&D101) -> 1 | D101: 2006-07-01 | E101: =SMALL($D$101:$D$124,ROW(A1)) -> 2006-07-01 | F101: =IF('Incr MS'!A12="","",'Incr MS'!B12) -> 2007-07-01 | G101: =IF('Incr MS'!A12="","",'Incr MS'!C12) -> NO | H101: =IF(G101="YES",F101,E101) -> 2006-07-01 | I101: =IF(ISERROR(H101),"",H101) -> 2006-07-01 | J101: =H101 -> 2006-07-01
A102: 2 | B102: =DATE(YEAR(B101),MONTH(B101)+12,DAY(B101)) -> 2007-07-01 | C102: =COUNTIF($D$101:$D$122,"<="&D102) -> 2 | D102: =IF($E$98>D101,DATE(YEAR(D101),MONTH(D101)+12,DAY(D101)),"") -> 2007-07-01 | E102: =IF(E101=$C$125,$D$125,SMALL($D$101:$D$124,ROW(A2))) -> 2007-07-01 | F102: =IF('Incr MS'!A13="","",'Incr MS'!B13) -> 2008-07-01 | G102: =IF('Incr MS'!A13="","",'Incr MS'!C13) -> NO | H102: 2007-07-01 | I102: 2007-07-01 | J102: =IF(J101="","",IF($E$98>=I102,I102,"")) -> 2007-07-01
A103: 3 | B103: 2008-07-01 | C103: 3 | D103: =IF($E$98>D102,DATE(YEAR(D102),MONTH(D102)+12,DAY(D102)),"") -> 2008-07-01 | E103: 2008-07-01 | F103: =IF('Incr MS'!A14="","",'Incr MS'!B14) -> 2008-09-01 | G103: =IF('Incr MS'!A14="","",'Incr MS'!C14) -> NO | H103: 2008-07-01 | I103: 2008-07-01 | J103: =IF(J102="","",IF($E$98>=I103,I103,"")) -> 2008-07-01
A104: 4 | B104: 2009-07-01 | C104: 5 | D104: 2009-07-01 | E104: 2008-09-01 | F104: =IF('Incr MS'!A15="","",'Incr MS'!B15) -> 2009-07-01 | G104: =IF('Incr MS'!A15="","",'Incr MS'!C15) -> NO | H104: 2008-09-01 | I104: 2008-09-01 | J104: 2008-09-01
A105: 5 | B105: 2010-07-01 | C105: 6 | D105: 2010-07-01 | E105: 2009-07-01 | F105: =IF('Incr MS'!A16="","",'Incr MS'!B16) -> 2010-07-01 | G105: =IF('Incr MS'!A16="","",'Incr MS'!C16) -> NO | H105: 2009-07-01 | I105: 2009-07-01 | J105: 2009-07-01
A106: 6 | B106: 2011-07-01 | C106: 8 | D106: 2011-07-01 | E106: 2010-07-01 | F106: =IF('Incr MS'!A17="","",'Incr MS'!B17) -> 2010-09-01 | G106: =IF('Incr MS'!A17="","",'Incr MS'!C17) -> NO | H106: 2010-07-01 | I106: 2010-07-01 | J106: 2010-07-01
A107: 7 | B107: 2012-07-01 | C107: 9 | D107: 2012-07-01 | E107: 2010-09-01 | F107: =IF('Incr MS'!A18="","",'Incr MS'!B18) -> 2011-07-01 | G107: =IF('Incr MS'!A18="","",'Incr MS'!C18) -> NO | H107: 2010-09-01 | I107: 2010-09-01 | J107: 2010-09-01
A108: 8 | B108: 2013-07-01 | C108: 10 | D108: 2013-07-01 | E108: 2011-07-01 | F108: =IF('Incr MS'!A19="","",'Incr MS'!B19) -> 2012-07-01 | G108: =IF('Incr MS'!A19="","",'Incr MS'!C19) -> NO | H108: 2011-07-01 | I108: 2011-07-01 | J108: 2011-07-01
A109: 9 | B109: 2014-07-01 | C109: 11 | D109: 2014-07-01 | E109: 2012-07-01 | F109: =IF('Incr MS'!A20="","",'Incr MS'!B20) -> 2013-07-01 | G109: =IF('Incr MS'!A20="","",'Incr MS'!C20) -> NO | H109: 2012-07-01 | I109: 2012-07-01 | J109: 2012-07-01
A110: 10 | B110: 2015-07-01 | C110: 12 | D110: 2015-07-01 | E110: 2013-07-01 | F110: =IF('Incr MS'!A21="","",'Incr MS'!B21) -> 2014-07-01 | G110: =IF('Incr MS'!A21="","",'Incr MS'!C21) -> NO | H110: 2013-07-01 | I110: 2013-07-01 | J110: 2013-07-01
A111: 11 | B111: 2016-07-01 | C111: 13 | D111: 2016-07-01 | E111: 2014-07-01 | F111: =IF('Incr MS'!A22="","",'Incr MS'!B22) -> 2015-07-01 | G111: =IF('Incr MS'!A22="","",'Incr MS'!C22) -> NO | H111: 2014-07-01 | I111: 2014-07-01 | J111: 2014-07-01
A112: 12 | B112: 2017-07-01 | C112: 14 | D112: 2017-07-01 | E112: 2015-07-01 | F112: =IF('Incr MS'!A23="","",'Incr MS'!B23) -> 2016-07-01 | G112: =IF('Incr MS'!A23="","",'Incr MS'!C23) -> NO | H112: 2015-07-01 | I112: 2015-07-01 | J112: 2015-07-01
A113: 13 | B113: 2018-07-01 | C113: 0 | E113: 2016-07-01 | F113: =IF('Incr MS'!A24="","",'Incr MS'!B24) -> 2017-07-01 | G113: =IF('Incr MS'!A24="","",'Incr MS'!C24) -> NO | H113: 2016-07-01 | I113: 2016-07-01 | J113: 2016-07-01
A114: 14 | B114: 2019-07-01 | C114: 0 | E114: 2017-07-01 | F114: =IF('Incr MS'!A25="","",'Incr MS'!B25) ->  | G114: =IF('Incr MS'!A25="","",'Incr MS'!C25) ->  | H114: 2017-07-01 | I114: 2017-07-01 | J114: 2017-07-01
A115: 15 | B115: 2020-07-01 | C115: 0 | F115: =IF('Incr MS'!A26="","",'Incr MS'!B26) ->  | G115: =IF('Incr MS'!A26="","",'Incr MS'!C26) -> 
A116: 16 | B116: 2021-07-01 | C116: 0 | F116: =IF('Incr MS'!A29="","",'Incr MS'!B29) -> 00:00:00 | G116: =IF('Incr MS'!A29="","",'Incr MS'!C29) -> 00:00:00
A117: 17 | B117: 2022-07-01 | C117: 0 | F117: =IF('Incr MS'!A30="","",'Incr MS'!B30) -> REGULAR ACP | G117: =IF('Incr MS'!A30="","",'Incr MS'!C30) -> 00:00:00
A118: 18 | B118: 2023-07-01 | C118: 0 | F118: =IF('Incr MS'!A31="","",'Incr MS'!B31) -> 00:00:00 | G118: =IF('Incr MS'!A31="","",'Incr MS'!C31) -> 00:00:00
A119: 19 | B119: 2024-07-01 | C119: 0 | F119: =IF('Incr MS'!A32="","",'Incr MS'!B32) -> 00:00:00 | G119: =IF('Incr MS'!A32="","",'Incr MS'!C32) -> 00:00:00
A120: 20 | B120: 2025-07-01 | C120: 0 | F120: =IF('Incr MS'!A33="","",'Incr MS'!B33) -> 00:00:00 | G120: =IF('Incr MS'!A33="","",'Incr MS'!C33) -> account/pension
A121: 21 | B121: 2026-07-01 | C121: 4 | D121: =IF('Incr MS'!$C$38="YES",'Incr MS'!$C$35,"") -> 2008-09-01 | F121: =IF('Incr MS'!A34="","",'Incr MS'!B34) -> 00:00:00 | G121: =IF('Incr MS'!A34="","",'Incr MS'!C34) -> 2016-06-30
A122: 22 | B122: 2027-07-01 | C122: 7 | D122: =IF('Incr MS'!$H$38="YES",'Incr MS'!$H$35,"") -> 2010-09-01 | F122: =IF('Incr MS'!A35="","",'Incr MS'!B35) -> 00:00:00 | G122: =IF('Incr MS'!A35="","",'Incr MS'!C35) -> 2008-09-01
A123: 23 | B123: 2028-07-01 | C123: 0 | F123: =IF('Incr MS'!A36="","",'Incr MS'!B36) -> 00:00:00 | G123: =IF('Incr MS'!A36="","",'Incr MS'!C36) -> 1914-10-13
A124: 24 | B124: 2029-07-01 | C124: 0 | F124: =IF('Incr MS'!A37="","",'Incr MS'!B37) -> 00:00:00 | G124: =IF('Incr MS'!A37="","",'Incr MS'!C37) -> 9300-34800 | H124: =IF(E124=$D$179,$C$179,IF(G124="YES",F124,E124)) -> 
B125: =COUNTIF(D101:D120,D121) -> 0 | C125: =IF(B125>0,D121,"") ->  | D125: =IF(C125="","",IF(B125>0,C125+1,E125)) ->  | E125: 2027-03-18

Sheet Sheet2 (hidden)
A1: Stop Increments Without cumulative effect | B1: 1 | C1: 1986-08-13
A2: Stop Increments Without cumulative effect | B2: 1 | C2: 1990-04-17
A3: Stop Increments With cumulative effect | B3: 1 | C3: 1991-11-11
A4: Stop Increments With cumulative effect | B4: 2 | C4: 1997-06-24
A5: Stop Increments With cumulative effect | B5: 3 | C5: 1998-12-28

Sheet Incr Order
A1: Home-VI PC | C1: Increment Master | F1: ACP-I Order | J1: ACP-II Order
B2: Employee code | C2: ='Incr MS'!B3 -> 5 | M2: GA 92 | N2: Home-VI PC
A3: =UPPER('Incr MS'!G3) -> TEHSILDAR COLONISATION NACHANA NO. 2
A4: Periodic Salalry Increment Certificate
A5: 1 | B5: Certified that the Government servents named below have earned the prescribed periodical increments from the date cited in column 9 having been the incumbent of the posts specified not less than year from the date in column 9 after deducting period of suspension for misconduct etc. and absence on leave without pay & the case of those holding the post in officiating capacity, all other kinds of leave.
A8: 2 | B8: Certified that the Government servents named below have earned/will earn periodical increments from the date cited for reasons stated in the explanatory memo attached here to.
A10: S.No | B10: Name of Incumbent | C10: Post | D10: Pay Scale as on | E10: Present Pay And Grade Pay as on | H10: Date From Present Pay is being taken | I10: Date of Increment | J10: Annual Increment Amount
E11: =D12 -> 2007-07-01 | J11: Increment amount @ 3% | K11: Running Pay | L11: Grade Pay | M11: Total Basic Pay
D12: ='Incr MS'!B9 -> 2007-07-01 | E12: Running Pay | F12: Grade Pay | G12: Total Basic Pay
A13: 1 | B13: 2 | C13: 3 | D13: 4 | E13: 5 | F13: 6 | G13: 7(5+6) | H13: 8 | I13: 9 | J13: 10 | K13: 11 | L13: 12 | M13: 13 (11+12) | N13: Before ACP | O13: ACP | P13: After ACP
A14: 1 | B14: =IF('Incr MS'!A2='Incr Table'!B72,PROPER('Incr MS'!B4),"The footer code is corrupt,pl. check it") -> Mahesh Chand Sharma | C14: =+UPPER('Incr MS'!B5) -> CLASS IV | D14: ='Incr MS'!B7 -> 9300-34800 | E14: ='Incr MS'!E9 -> 5680 | F14: ='Incr MS'!G9 -> 1900 | G14: =E14+F14 -> 7580 | H14: =D12 -> 2007-07-01 | I14: ='Incr MS'!D12 -> 2007-07-01 | J14: ='Incr MS'!F12 -> 230 | K14: =IF(M14="","",M14-L14) -> 5910 | L14: ='Incr MS'!H12 -> 1900 | M14: ='Incr MS'!I12 -> 7810 | N14: Amount | O14: Amount | P14: Amount
H15: =IF(I15="","",I14) -> 2007-07-01 | I15: ='Incr MS'!D13 -> 2008-07-01 | J15: ='Incr MS'!F13 -> 240 | K15: 6150 | L15: ='Incr MS'!H13 -> 1900 | M15: ='Incr MS'!I13 -> 8050 | N15: 9050 | O15: =N20 -> 9830 | P15: =O20 -> 10130 | Q15: =P20 -> 10440
B16: ='Incr Table'!I35 -> Details of REGULAR ACP from 01/07/07 to 01/07/17 | H16: 2008-07-01 | I16: ='Incr MS'!D14 -> 2008-09-01 | J16: ='Incr MS'!F14 -> 250 | K16: 6400 | L16: ='Incr MS'!H14 -> 5400 | M16: ='Incr MS'!I14 -> 11800 | N16: =ROUNDUP(ROUND(N15*3%,0),-1) -> 280 | O16: =ROUNDUP(ROUND(O15*3%,0),-1) -> 300 | P16: =ROUNDUP(ROUND(P15*3%,0),-1) -> 310 | Q16: =ROUNDUP(ROUND(Q15*3%,0),-1) -> 320
B17: =IF('Incr MS'!C38="NO","",IF('Incr MS'!B30="PROMOTION","Promotion due date","ACP due date")) -> ACP due date | C17: =IF($B$16="","","Pay in Pay Band") -> Pay in Pay Band | D17: =IF($B$16="","","3% incr. on existing Pay") -> 3% incr. on existing Pay | E17: =IF($B$16="","","Grade Pay Diff.") -> Grade Pay Diff. | F17: =IF('Incr MS'!C38="NO","",IF('Incr MS'!B30="PROMOTION","Pay after Promotion","Pay after ACP")) -> Pay after ACP | H17: 2008-09-01 | I17: ='Incr MS'!D15 -> 2009-07-01 | J17: ='Incr MS'!F15 -> 360 | K17: 6760 | L17: ='Incr MS'!H15 -> 5400 | M17: ='Incr MS'!I15 -> 12160 | N17: 0 | O17: 0 | P17: 0 | Q17: 0
C18: =IF('Incr MS'!C38="YES",'Incr MS'!C37,"") -> 9300-34800 | H18: 2009-07-01 | I18: ='Incr MS'!D16 -> 2010-07-01 | J18: ='Incr MS'!F16 -> 370 | K18: 7130 | L18: ='Incr MS'!H16 -> 5400 | M18: ='Incr MS'!I16 -> 12530 | N18: 500 | O18: 0 | P18: 0 | Q18: 0
B19: =IF('Incr Table'!M42="YES",'Incr Table'!D42,"") -> 2008-09-01 | C19: =IF('Incr MS'!$C$38="YES",'Incr Table'!$K$42,"") -> 8050 | D19: =IF('Incr Table'!$M$42="YES",'Incr Table'!$E$42,"") -> 250 | E19: =IF('Incr Table'!$M$42="YES",'Incr Table'!$H$42,"") -> 3500 | F19: =IF('Incr MS'!$C$38="YES",'Incr Table'!$L$42,"") -> 11800 | H19: 2010-07-01 | I19: ='Incr MS'!D17 -> 2010-09-01 | J19: ='Incr MS'!F17 -> 380 | K19: 7510 | L19: ='Incr MS'!H17 -> 6000 | M19: ='Incr MS'!I17 -> 13510 | N19: =N18-N17 -> 500 | O19: =O18-O17 -> 0 | P19: =P18-P17 -> 0 | Q19: =Q18-Q17 -> 0
B20: ='Incr Table'!I37 -> Details of REGULAR ACP from 01/07/07 to 01/07/17 | H20: 2010-09-01 | I20: ='Incr MS'!D18 -> 2011-07-01 | J20: ='Incr MS'!F18 -> 410 | K20: 7920 | L20: ='Incr MS'!H18 -> 6000 | M20: ='Incr MS'!I18 -> 13920 | N20: =N15+N16+N19 -> 9830 | O20: =O15+O16+O19 -> 10130 | P20: =P15+P16+P19 -> 10440 | Q20: =Q15+Q16+Q19 -> 10760
B21: =IF('Incr MS'!H38="NO","",IF('Incr MS'!G30="PROMOTION","Promotion due date","ACP due date")) -> ACP due date | C21: =IF($B$20="","","Pay in Pay Band") -> Pay in Pay Band | D21: =IF($B$20="","","3% incr. on existing Pay") -> 3% incr. on existing Pay | E21: =IF($B$20="","","Grade Pay Diff.") -> Grade Pay Diff. | F21: =IF('Incr MS'!H38="NO","",IF('Incr MS'!C38="PROMOTION","Pay after Promotion","Pay after ACP")) -> Pay after ACP | H21: 2011-07-01 | I21: ='Incr MS'!D19 -> 2012-07-01 | J21: ='Incr MS'!F19 -> 420 | K21: 8340 | L21: ='Incr MS'!H19 -> 6000 | M21: ='Incr MS'!I19 -> 14340
C22: =IF('Incr MS'!H38="YES",'Incr MS'!H37,"") -> 15600-39100 | H22: 2012-07-01 | I22: ='Incr MS'!D20 -> 2013-07-01 | J22: ='Incr MS'!F20 -> 430 | K22: 8770 | L22: ='Incr MS'!H20 -> 6000 | M22: ='Incr MS'!I20 -> 14770
B23: =IF('Incr Table'!M43="YES",'Incr Table'!D43,"") -> 2010-09-01 | C23: =IF('Incr MS'!$H$38="YES",'Incr Table'!$K$43,"") -> 12530 | D23: =IF('Incr Table'!$M$43="YES",'Incr Table'!$E$43,"") -> 380 | E23: =IF('Incr Table'!$M$43="YES",'Incr Table'!$H$43,"") -> 600 | F23: =IF('Incr MS'!$H$38="YES",'Incr Table'!$L$43,"") -> 13510 | H23: 2013-07-01 | I23: ='Incr MS'!D21 -> 2014-07-01 | J23: ='Incr MS'!F21 -> 450 | K23: 9220 | L23: ='Incr MS'!H21 -> 6000 | M23: ='Incr MS'!I21 -> 15220
B24: =IF(B25="","","Remark/Note") -> Remark/Note | H24: 2014-07-01 | I24: ='Incr MS'!D22 -> 2015-07-01 | J24: ='Incr MS'!F22 -> 460 | K24: 9680 | L24: ='Incr MS'!H22 -> 6000 | M24: ='Incr MS'!I22 -> 15680
B25: =IF('Incr MS'!A55>0,'Incr MS'!A55,"") -> jjjk | H25: 2015-07-01 | I25: ='Incr MS'!D23 -> 2016-07-01 | J25: ='Incr MS'!F23 -> 470 | K25: 10150 | L25: ='Incr MS'!H23 -> 6000 | M25: ='Incr MS'!I23 -> 16150
H26: 2016-07-01 | I26: ='Incr MS'!D24 -> 2017-07-01 | J26: ='Incr MS'!F24 -> 490 | K26: 10640 | L26: ='Incr MS'!H24 -> 6000 | M26: ='Incr MS'!I24 -> 16640
I27: ='Incr MS'!D25 ->  | J27: ='Incr MS'!F25 ->  | L27: ='Incr MS'!H25 ->  | M27: ='Incr MS'!I25 -> 
H28: =IF(I28="","",I27) ->  | I28: ='Incr MS'!D26 ->  | J28: ='Incr MS'!F26 ->  | K28: =IF(M28="","",M28-L28) ->  | L28: ='Incr MS'!H26 ->  | M28: ='Incr MS'!I26 -> 
I29: ='Incr MS'!D27 ->  | J29: ='Incr MS'!F27 ->  | L29: ='Incr MS'!H27 ->  | M29: ='Incr MS'!I27 -> 
I30: ='Incr MS'!D28 ->  | J30: ='Incr MS'!F28 ->  | L30: ='Incr MS'!H28 ->  | M30: ='Incr MS'!I28 -> 
H32: ='Incr MS'!G5 -> Tehsildar Colonisation Nachana No. 2
A33: =IF(B33="","","Note") -> 
A34: Serial No | C34: =IF('Incr MS'!C59>0,'Incr MS'!C59,"") -> Accounts/2014 | J34: Dated | K34: =IF('Incr MS'!E60>0,'Incr MS'!E60,"") -> 2026-05-12
A35: Copy forwarded for information and necessary action :-
A36: =IF(B36="","",1) -> 1900-01-01 | B36: ='Incr Table'!Q54 -> Treassury Officer , Bikaner
A37: =IF(B37="","",2) -> 1900-01-02 | B37: ='Incr Table'!Q55 -> Mahesh Chand Sharma ,Designation -- Class Iv
A38: =IF(B38="","",3) -> 1900-01-03 | B38: ='Incr Table'!Q56 -> Personal File/Gurd File
A39: =IF(B39="","",4) -> 1900-01-04 | B39: ='Incr Table'!Q57 -> Estt. Branch
A40: =IF(B40="","",5) ->  | B40: ='Incr Table'!Q58 -> 
A41: =IF(B41="","",6) ->  | B41: ='Incr Table'!Q59 -> 
A42: =IF('Incr MS'!D6="YES","#16.18.1.22.5.19.8√97263.0458756048#","16.18.1.22.5.19.8√97263.0458756048") -> #16.18.1.22.5.19.8√97263.0458756048# | H42: =H32 -> Tehsildar Colonisation Nachana No. 2
C64: 2012-07-01 | D64: =YEAR(C64) -> 2012 | E64: =IF(#REF!=D64,"YES","NO") ->  | F64: 366 | G64: =IF(#REF!<7,C64,#REF!) ->  | H64: =IF(E64="YES",#REF!,C64) ->  | I64: =IF(H64>#REF!,H64,#REF!) -> 
C65: 2013-07-01 | D65: =YEAR(C65) -> 2013 | E65: =IF(#REF!=D65,"YES","NO") ->  | F65: 365 | G65: =IF(#REF!<7,C65,#REF!) ->  | H65: =IF(E65="YES",#REF!,C65) ->  | I65: =IF(H65>H64,H65,C64) -> 
G66: =IF(#REF!<7,C66,#REF!) ->  | H66: =IF(E66="YES",#REF!,C66) -> 00:00:00 | I66: =IF(H66>H65,H66,C65) -> 

Sheet ACP-1
L1: ='Incr MS'!C38 -> YES
C2: Increment Order | F2: Fixation Master-1998 | K2: Home-VI PC
A3: Govtt of Rajasthan
A4: =UPPER('Incr MS'!G3) -> TEHSILDAR COLONISATION NACHANA NO. 2
A5: S.N. | B5: ='Incr Order'!C34 -> Accounts/2014 | I5: Dated | J5: ='Incr Order'!K34 -> 2026-05-12
A6: :Office Order:
A7: ='Incr MS'!A47 -> In reference of Finance Department order number F.14(88)FD(Rules)/08 dated 06-04-2013 and dated 28-06-2013 with inclusive of explainary noted issued on dated 05-07-2013 ,the revised increments/ACP/Promotion determination in Rajasthan Civil Services (Revised Pay Scale) Rule 2008 is ascertain on the basis of already sanctioned ACP/Promotion as following manner-
A11: S.N. | B11: Name of Authority | F11: =IF('Incr MS'!B30="PROMOTION","Promotion order No","ACP order no") -> ACP order no | H11: =IF('Incr MS'!B30="PROMOTION","Promotion order date","ACP order date") -> ACP order date | J11: Type of ACP | K11: =IF('Incr MS'!B30="PROMOTION","Promotion due date","ACP due date") -> ACP due date
A12: 1 | B12: =IF('Incr MS'!$A$32>0,'Incr MS'!$A$32,"") -> COMMISSIONER COLONISATION BIKANER | F12: =IF('Incr MS'!$A$32>0,'Incr MS'!$C$33,"") -> account/pension | H12: =IF('Incr MS'!$A$32>0,'Incr MS'!$C$34,"") -> 2016-06-30 | J12: =IF('Incr MS'!$B$30="PROMOTION","N.A.",IF('Incr MS'!$C$38="YES",'Incr MS'!$D$30,"")) -> 18 years | K12: =IF('Incr MS'!$A$32>0,'Incr MS'!$C$35,"") -> 2008-09-01
B15: Now, the pay is ascertained of shree | E15: =D17 -> Mahesh Chand Sharma | H15: is as under
B17: Name of employee | D17: =PROPER('Incr MS'!B4) -> Mahesh Chand Sharma | G17: Designation, | I17: =UPPER('Incr MS'!B5) -> CLASS IV | M17: =LEN(I17) -> 8
U18: =K11 -> ACP due date
A19: Status | C19: Existing Status | E19: Proposed Status | G19: Pay Structure | K19: Amount | M19: =A19 & REPT(" ",50-LEN(A19)) -> Status | U19: =IF(#REF!="YES",'Incr MS'!C34,"N.A.") -> 
A20: Pay Band | C20: ='Incr MS'!B7 -> 9300-34800 | E20: =IF('Incr Table'!M42="YES",'Incr MS'!C37,"N.A.") -> 9300-34800 | G20: Pay in Pay Band | K20: ='Incr Table'!K42 -> 8050
A21: Grade Pay | C21: =IF('Incr Table'!M42="YES",'Incr Table'!F42,"N.A.") -> 1900 | E21: =IF('Incr Table'!M42="YES",'Incr Table'!G42,"N.A.") -> 5400 | G21: =IF('Incr MS'!B30="PROMOTION","3% Increment on Promotion","3% Increment on ACP") -> 3% Increment on ACP | K21: ='Incr Table'!E42 -> 250 | U21: =#REF! ->  | X21: =#REF! -> 
A22: =IF('Incr MS'!B30="PROMOTION","Promotion of post ",'Incr Table'!J75) -> 18 years -IInd ACP | E22: due on | F22: =K12 -> 2008-09-01 | G22: Difference of Grade Pay | K22: ='Incr Table'!H42 -> 3500 | U22: N.A. | X22: N.A.
G23: =IF('Incr MS'!B30="PROMOTION","Pay after Promotion benefit","Pay after ACP benefit") -> Pay after ACP benefit | K23: ='Incr Table'!L42 -> 11800 | U23: N.A. | X23: N.A.
A25: Note- | B25: No arrear of difference amount of grade pay thereon, on any account, shall accure to employee , for the period upto 30-06-2013
G27: =IF($A$36='Incr Table'!K72,'Incr Order'!H32,"Author code is deleted") -> Tehsildar Colonisation Nachana No. 2
A29: Copy forwarded for information and necessary action :-
A30: ='Incr Order'!A36 -> 1 | B30: ='Incr Order'!B36 -> Treassury Officer , Bikaner
A31: ='Incr Order'!A37 -> 2 | B31: ='Incr Order'!B37 -> Mahesh Chand Sharma ,Designation -- Class Iv
A32: ='Incr Order'!A38 -> 3 | B32: ='Incr Order'!B38 -> Personal File/Gurd File
A33: ='Incr Order'!A39 -> 4 | B33: ='Incr Order'!B39 -> Estt. Branch
A34: ='Incr Order'!A41 ->  | B34: ='Incr Order'!B41 -> 
G35: =G27 -> Tehsildar Colonisation Nachana No. 2
A36: 16.18.1.22.5.19.8√97263.0458756048

Sheet ACP-2
A1: PRAVESH | G1: RETIREMENT STATUS | J1: ACP STATUS | L1: ='Incr MS'!H38 -> YES | M1: =LEN(A5)-LEN(SUBSTITUTE(A5,A1,"")) -> 0
C2: Increment Order | F2: Increment Master | K2: Home-VI PC
A3: Govtt of Rajasthan
A4: =UPPER('Incr MS'!G3) -> TEHSILDAR COLONISATION NACHANA NO. 2
A5: S.N. | B5: ='Incr Order'!C34 -> Accounts/2014 | I5: Dated | J5: ='Incr Order'!K34 -> 2026-05-12 | O5: Home-VI PC
A6: :Office Order:
A7: =LOWER('Incr MS'!E47) -> acp
A11: S.N. | B11: Name of Authority | F11: =IF('Incr MS'!G30="PROMOTION","Promotion order No","ACP order no") -> ACP order no | H11: =IF('Incr MS'!G30="PROMOTION","Promotion order date","ACP order date") -> ACP order date | J11: Type of ACP | K11: =IF('Incr MS'!G30="PROMOTION","Promotion due date","ACP due date") -> ACP due date
A12: 1 | B12: =IF('Incr MS'!$E$32>0,'Incr MS'!$E$32,"") -> COMMISSIONER COLONISATION BIKANER | F12: =IF('Incr MS'!$E$32>0,'Incr MS'!$H$33,"") -> accounts | H12: =IF('Incr MS'!$E$32>0,'Incr MS'!$H$34,"") -> 2014-02-28 | J12: =IF('Incr MS'!$G$30="PROMOTION","N.A.",IF('Incr MS'!$H$38="YES",'Incr MS'!$I$30,"")) -> 30 year | K12: =IF('Incr MS'!$E$32>0,'Incr MS'!$H$35,"") -> 2010-09-01
B15: Now, the pay is ascertained of shree | E15: =D17 -> Mahesh Chand Sharma | H15: is as under
B17: Name of employee | D17: =PROPER('Incr MS'!B4) -> Mahesh Chand Sharma | G17: Designation, | I17: =PROPER('Incr MS'!B5) -> Class Iv | M17: =LEN(I17) -> 8
U18: =K11 -> ACP due date
A19: Status | C19: Existing Status | E19: Proposed Status | G19: Pay Structure | K19: Amount | M19: =A19 & REPT(" ",50-LEN(A19)) -> Status | U19: =IF(#REF!="YES",'Incr MS'!C34,"N.A.") -> 
A20: Pay Band | C20: ='Incr MS'!B7 -> 9300-34800 | E20: =IF('Incr Table'!M43="YES",'Incr MS'!H37,"N.A.") -> 15600-39100 | G20: Pay in Pay Band | K20: ='Incr Table'!K43 -> 12530
A21: Grade Pay | C21: =IF('Incr Table'!M43="YES",'Incr Table'!F43,"N.A.") -> 5400 | E21: =IF('Incr Table'!M43="YES",'Incr Table'!G43,"N.A.") -> 6000 | G21: =IF('Incr MS'!B30="PROMOTION","3% Increment on Promotion","3% Increment on ACP") -> 3% Increment on ACP | K21: ='Incr Table'!E43 -> 380 | U21: =#REF! ->  | X21: =#REF! -> 
A22: =IF('Incr MS'!B30="PROMOTION","Promotion of post ",'Incr Table'!J83) -> 30 year -IIIrd ACP | E22: due on | F22: =K12 -> 2010-09-01 | G22: Difference of Grade Pay | K22: ='Incr Table'!H43 -> 600 | U22: N.A. | X22: N.A.
G23: =IF('Incr MS'!B30="PROMOTION","Pay after Promotion benefit","Pay after ACP benefit") -> Pay after ACP benefit | K23: ='Incr Table'!L43 -> 13510 | U23: N.A. | X23: N.A.
A25: Note- | B25: No arrear of difference amount of grade pay thereon, on any account, shall accure to employee , for the period upto 30-06-2013
G27: =IF($A$36='Incr Table'!K72,'Incr Order'!H32,"Author code is deleted") -> Tehsildar Colonisation Nachana No. 2
A29: Copy forwarded for information and necessary action :-
A30: ='Incr Order'!A36 -> 1 | B30: ='Incr Order'!B36 -> Treassury Officer , Bikaner
A31: ='Incr Order'!A37 -> 2 | B31: ='Incr Order'!B37 -> Mahesh Chand Sharma ,Designation -- Class Iv
A32: ='Incr Order'!A38 -> 3 | B32: ='Incr Order'!B38 -> Personal File/Gurd File
A33: ='Incr Order'!A39 -> 4 | B33: ='Incr Order'!B39 -> Estt. Branch
A34: ='Incr Order'!A41 ->  | B34: ='Incr Order'!B41 -> 
G35: =G27 -> Tehsildar Colonisation Nachana No. 2
A36: 16.18.1.22.5.19.8√97263.0458756048

Sheet ACP-I-2008
L1: ='MS Fixation (2008)'!$C$62 -> YES
A2: Govtt of Rajasthan | O2: Home-VI PC
A3: =UPPER('Incr MS'!G3) -> TEHSILDAR COLONISATION NACHANA NO. 2
A4: S.N. | B4: ='MS Fixation (2008)'!C103 -> Accounts/2014 | I4: Dated | J4: ='MS Fixation (2008)'!E104 -> 2026-05-12
A5: :Office Order:
A6: ='Incr MS'!A47 -> In reference of Finance Department order number F.14(88)FD(Rules)/08 dated 06-04-2013 and dated 28-06-2013 with inclusive of explainary noted issued on dated 05-07-2013 ,the revised increments/ACP/Promotion determination in Rajasthan Civil Services (Revised Pay Scale) Rule 2008 is ascertain on the basis of already sanctioned ACP/Promotion as following manner-
A10: S.N. | B10: Name of Authority | F10: =IF('MS Fixation (2008)'!B54="PROMOTION","Promotion order No","ACP order no") -> ACP order no | H10: =IF('MS Fixation (2008)'!B54="PROMOTION","Promotion order date","ACP order date") -> ACP order date | J10: Type of ACP | K10: =IF('MS Fixation (2008)'!B54="PROMOTION","Promotion due date","ACP due date") -> ACP due date
A11: 1 | B11: =IF('MS Fixation (2008)'!$A$56>0,'MS Fixation (2008)'!$A$56,"") -> COMMISSIONER COLONISATION BIKANER | F11: =IF('MS Fixation (2008)'!A56>0,'MS Fixation (2008)'!C57,"") -> 2423-66 | H11: =IF('MS Fixation (2008)'!$A$56>0,'MS Fixation (2008)'!$C$58,"") -> 2008-04-17 | J11: =IF('MS Fixation (2008)'!B54="PROMOTION","N.A.",IF('MS Fixation (2008)'!$C$62="YES",'MS Fixation (2008)'!$D$54,"")) -> 9 years | K11: =IF('MS Fixation (2008)'!$A$56>0,'MS Fixation (2008)'!$C$59,"") -> 2006-10-11
B14: Now, the pay is ascertained of shree | E14: =D16 -> Mahesh Chand Sharma | H14: is as under
B16: Name of employee | D16: =PROPER('Incr MS'!B4) -> Mahesh Chand Sharma | G16: Designation, | I16: =UPPER('Incr MS'!B5) -> CLASS IV | M16: =LEN(I16) -> 8
O17: Fixation Master-2008 | U17: =K10 -> ACP due date
A18: Status | C18: Existing Status | E18: Proposed Status | G18: Pay Structure | K18: Amount | M18: =A18 & REPT(" ",50-LEN(A18)) -> Status | U18: =IF(#REF!="YES",'Incr MS'!C34,"N.A.") -> 
A19: Pay Band | C19: ='MS Fixation (2008)'!$F$40 -> 9300-34800 | E19: ='MS Fixation (2008)'!$C$61 -> 5200-20200 | G19: Pay in Pay Band | K19: ='Table-2008'!K226 -> 12410
A20: Grade Pay | C20: =IF('Table-2008'!$M$226="YES",'Table-2008'!$F$226,"N.A.") -> 2400 | E20: =IF('Table-2008'!$M$226="YES",'Table-2008'!$G$226,"N.A.") -> 2400 | G20: =IF('Incr MS'!B30="PROMOTION","3% Increment on Promotion","3% Increment on ACP") -> 3% Increment on ACP | K20: ='Table-2008'!E226 -> 380 | U20: =#REF! ->  | X20: =#REF! -> 
A21: =IF('MS Fixation (2008)'!$B$54="PROMOTION","Promotion of post ",'Table-2008'!$J$259) -> 9 years -Ist ACP | E21: due on | F21: =K11 -> 2006-10-11 | G21: Difference of Grade Pay | K21: ='Table-2008'!H226 -> 500 | O21: Increment Order-2008 | U21: N.A. | X21: N.A.
G22: =IF('Incr MS'!B30="PROMOTION","Pay after Promotion benefit","Pay after ACP benefit") -> Pay after ACP benefit | K22: ='Table-2008'!L226 -> 13290 | U22: N.A. | X22: N.A.
A24: Note- | B24: No arrear of difference amount of grade pay thereon, on any account, shall accure to employee , for the period upto 30-06-2013
G26: =IF($A$35='Incr Table'!K72,'MS Fixation (2008)'!C10,"Author code is deleted") -> EXTRA ASSISTANT COMMISSIONER COLONISATION (ADM), BIKANER
A28: Copy forwarded for information and necessary action :-
A29: ='Incr Order (2008)'!A37 -> 1 | B29: ='Incr Order (2008)'!B37 -> Treassury Officer , JAISALMER
A30: ='Incr Order (2008)'!A38 -> 2 | B30: ='Incr Order (2008)'!B38 -> Sr. Accounts Officer, Colonosiation, Bikaner
A31: ='Incr Order (2008)'!A39 -> 3 | B31: ='Incr Order (2008)'!B39 -> Pravesh Kumar Sharma ,Designation -- JUNIOR ACCOUNTANT
A32: ='Incr Order (2008)'!A40 -> 4 | B32: ='Incr Order (2008)'!B40 -> Accounts Branch-in two copies for prepration of bill
A33: ='Incr Order (2008)'!A41 -> 5 | B33: ='Incr Order (2008)'!B41 -> Personal File/Gurd File
A34: ='Incr Order (2008)'!A42 ->  | B34: ='Incr Order (2008)'!B42 ->  | G34: =G26 -> EXTRA ASSISTANT COMMISSIONER COLONISATION (ADM), BIKANER
A35: 16.18.1.22.5.19.8√97263.0458756048

Sheet ACP-II-2008
A1: PRAVESH | G1: RETIREMENT STATUS | J1: ACP STATUS | L1: ='MS Fixation (2008)'!H62 -> NO | M1: =LEN(A4)-LEN(SUBSTITUTE(A4,A1,"")) -> 0
A2: Govtt of Rajasthan
A3: =UPPER('Incr MS'!G3) -> TEHSILDAR COLONISATION NACHANA NO. 2
A4: S.N. | B4: ='MS Fixation (2008)'!C103 -> Accounts/2014 | I4: Dated | J4: ='MS Fixation (2008)'!E104 -> 2026-05-12 | O4: Home-VI PC
A5: :Office Order:
A6: =LOWER('MS Fixation (2008)'!E91) -> acp
A10: S.N. | B10: Name of Authority | F10: =IF('MS Fixation (2008)'!G54="PROMOTION","Promotion order No","ACP order no") -> ACP order no | H10: =IF('MS Fixation (2008)'!G54="PROMOTION","Promotion order date","ACP order date") -> ACP order date | J10: Type of ACP | K10: =IF('MS Fixation (2008)'!G54="PROMOTION","Promotion due date","ACP due date") -> ACP due date
A11: 1 | B11: =IF('MS Fixation (2008)'!$E$56>0,'MS Fixation (2008)'!$E$56,"") -> COMMISSIONER COLONISATION BIKANER | F11: =IF('MS Fixation (2008)'!A56>0,'MS Fixation (2008)'!H57,"") -> accounts | H11: =IF('MS Fixation (2008)'!$A$56>0,'MS Fixation (2008)'!$H$58,"") -> 2014-02-28 | J11: =IF('MS Fixation (2008)'!G54="PROMOTION","N.A.",IF('MS Fixation (2008)'!$C$62="YES",'MS Fixation (2008)'!$I$54,"")) -> 18 years | K11: =IF('MS Fixation (2008)'!$A$56>0,'MS Fixation (2008)'!$H$59,"") -> 2015-10-11
B14: Now, the pay is ascertained of shree | E14: =D16 -> Pravesh Kumar Sharma | H14: is as under
B16: Name of employee | D16: =PROPER('MS Fixation (2008)'!$C$7) -> Pravesh Kumar Sharma | G16: Designation, | I16: =PROPER('MS Fixation (2008)'!$I$7) -> Junior Accountant | M16: =LEN(I16) -> 17
U17: =K10 -> ACP due date
A18: Status | C18: Existing Status | E18: Proposed Status | G18: Pay Structure | K18: Amount | M18: =A18 & REPT(" ",50-LEN(A18)) -> Status | O18: Fixation Master-2008 | U18: =IF(#REF!="YES",'Incr MS'!C34,"N.A.") -> 
A19: Pay Band | C19: ='MS Fixation (2008)'!$F$40 -> 9300-34800 | E19: ='MS Fixation (2008)'!$H$61 -> 5200-20200 | G19: Pay in Pay Band | K19: ='Table-2008'!K227 -> 16780
A20: Grade Pay | C20: =IF('Table-2008'!$M$227="YES",'Table-2008'!$F$227,"N.A.") -> N.A. | E20: =IF('Table-2008'!$M$227="YES",'Table-2008'!$G$227,"N.A.") -> N.A. | G20: =IF('Incr MS'!B30="PROMOTION","3% Increment on Promotion","3% Increment on ACP") -> 3% Increment on ACP | K20: ='Table-2008'!E227 -> 0 | U20: =#REF! ->  | X20: =#REF! -> 
A21: =IF('MS Fixation (2008)'!G54="PROMOTION","Promotion of post ",'MS Fixation (2008)'!I54) -> 18 years | E21: due on | F21: =K11 -> 2015-10-11 | G21: Difference of Grade Pay | K21: ='Table-2008'!H227 ->  | U21: N.A. | X21: N.A.
G22: =IF('Incr MS'!B30="PROMOTION","Pay after Promotion benefit","Pay after ACP benefit") -> Pay after ACP benefit | K22: ='Table-2008'!L227 -> 16780 | O22: Increment Order-2008 | U22: N.A. | X22: N.A.
A24: Note- | B24: No arrear of difference amount of grade pay thereon, on any account, shall accure to employee , for the period upto 30-06-2013
G26: ='ACP-I-2008'!G26:L27 -> EXTRA ASSISTANT COMMISSIONER COLONISATION (ADM), BIKANER
A28: Copy forwarded for information and necessary action :-
A29: ='Incr Order (2008)'!A37 -> 1 | B29: ='Incr Order (2008)'!B37 -> Treassury Officer , JAISALMER
A30: ='Incr Order (2008)'!A38 -> 2 | B30: ='Incr Order (2008)'!B38 -> Sr. Accounts Officer, Colonosiation, Bikaner
A31: ='Incr Order (2008)'!A39 -> 3 | B31: ='Incr Order (2008)'!B39 -> Pravesh Kumar Sharma ,Designation -- JUNIOR ACCOUNTANT
A32: ='Incr Order (2008)'!A40 -> 4 | B32: ='Incr Order (2008)'!B40 -> Accounts Branch-in two copies for prepration of bill
A33: ='Incr Order (2008)'!A41 -> 5 | B33: ='Incr Order (2008)'!B41 -> Personal File/Gurd File
A34: ='Incr Order (2008)'!A42 ->  | B34: ='Incr Order (2008)'!B42 ->  | G34: =G26 -> EXTRA ASSISTANT COMMISSIONER COLONISATION (ADM), BIKANER
A35: 16.18.1.22.5.19.8√97263.0458756048

Sheet MS Fixation (2008)
B1: Fixation Statement-2008 | D1: Increment Order-2008 | E1: ACP-I (2008) | G1: ACP-II (2008) | I1: Home-VI PC | M1: Option Form | P1: Fixation Master-2008
A3: Fixation Master in Pay Scale-2008 | F3: Design & prepared by Pravesh Kumar Sharma-9460100093
A4: Employee Code/ID | B4: 647805 | C4: Place at (for option form) | F4: NACHANA | G4: Date on (for option form) | I4: 2006-01-01
A5: Employee status (i.e. Regular employee or Employee join in service on or after 01-01-2006, Retirement or Probationer) | F5: ='Table-2008'!K183 -> A | G5: Regular Employee in service before 01-01-2006
F6: =IF(F5="D","YES","NO") -> NO | K6: Pension
A7: NAME OF EMPLOYEE | C7: =INDEX(Data!$C$3:$C$101,MATCH($B$4,Data!$B$3:$B$101,0)) -> PRAVESH KUMAR SHARMA | G7: DESIGNATION | I7: =INDEX(Data!$D$3:$D$101,MATCH($B$4,Data!$B$3:$B$101,0)) -> JUNIOR ACCOUNTANT
A8: NAME OF OFFICE | C8: =INDEX(Data!$E$3:$E$101,MATCH($B$4,Data!$B$3:$B$101,0)) -> COMMISSIONER COLONISATION BIKANER | G8: Date of last incre. In old scale | I8: =INDEX(Data!$J$3:$J$101,MATCH($B$4,Data!$B$3:$B$101,0)) -> 2006-01-01
A9: =UPPER("Name of Department") -> NAME OF DEPARTMENT | C9: =INDEX(Data!$G$3:$G$101,MATCH($B$4,Data!$B$3:$B$101,0)) -> COLONISATION | G9: Name of services | I9: =INDEX(Data!$H$3:$H$101,MATCH($B$4,Data!$B$3:$B$101,0)) -> Rajasthan Subordinate Accounts Services
A10: Signature Authority | C10: =INDEX(Data!$F$3:$F$101,MATCH($B$4,Data!$B$3:$B$101,0)) -> EXTRA ASSISTANT COMMISSIONER COLONISATION (ADM), BIKANER | G10: Type of post/services | I10: =INDEX(Data!$I$3:$I$101,MATCH($B$4,Data!$B$3:$B$101,0)) -> Substantive
A11: ADDRESS FOR PENSIONERS | C11: =INDEX(Data!$Q$3:$Q$101,MATCH($B$4,Data!$B$3:$B$101,0)) -> Near Jail well water Tank, Bikaner | G11: Date of fixation option | I11: 2005-10-12
A12: ADDITIONAL INFORMATION FOR PENSIONERS (if employee status is not applicable cell H12, use it )
A13: Service end date and type of pension | C13: Pension office place where pensioners belonging | F13: =INDEX(Data!$P$3:$P$101,MATCH('MS Fixation (2008)'!$B$4,Data!$B$3:$B$101,0)) -> Bikaner | G13: Data for LPC
A14: =INDEX(Data!$M$3:$M$101,MATCH('MS Fixation (2008)'!$B$4,Data!$B$3:$B$101,0)) -> Retirement | B14: =INDEX(Data!$N$3:$N$101,MATCH('MS Fixation (2008)'!$B$4,Data!$B$3:$B$101,0)) -> 2012-04-25 | G14: HRA Rate | H14: CCA city | I14: SP. Pay | J14: Other Allow.
A15: Last Pay | B15: =INDEX(Data!$R$3:$R$101,MATCH('MS Fixation (2008)'!$B$4,Data!$B$3:$B$101,0)) -> 26630 | C15: PPO Number for LPC/Letter send | F15: =INDEX(Data!$O$3:$O$101,MATCH('MS Fixation (2008)'!$B$4,Data!$B$3:$B$101,0)) -> 99 | G15: 0.1 | H15: B2 | I15: 0 | J15: 0
A16: Revised Pay | B16: ='Table-2008'!$R$212 -> 16780 | C16: =PROPER("LAST INCR.DUE DATE") -> Last Incr.Due Date | E16: ='Table-2008'!E280 -> 0.65 | F16: ='Table-2008'!K184 -> 2013-07-01 | G16: =ROUND(B16*G15,0) -> 1678 | H16: ='Table-2008'!K290 -> 240 | I16: Partical Pay | J16: YES
A18: Select your applicable option for proposed fixation under Revised Pay sacle w.e.f. 01-07-2013 | I18: Option Form
A19: hereby elect the Running Pay Band and Grade Pay with effect from 01-01-2006. | F19: Code for option | G19: ='Table-2008'!BQ10 -> A | H19: Value in Date (A & B ) | I19: 2005-12-13
F20: Input value in | G20: ='Table-2008'!BR10 -> DATE | H20: Value in Amount ( C) | I20: 6500
F21: Process | G21: YES | H21: Value in Pay Sacle(D,E)
A22: Fixation in Revised Pay Scale 2008
A23: Determination of Fixation/ACP (Applicable only for regular employee i.e. in service before 01-01-2006)
A24: OLD PAY STRUCTURE
A25: Employee status(i.e. Regular employee or probrationer) | F25: Probationer
A26: Fixation calculation period | F26: Before 01-07-2013
A27: Particular | C27: Fixation condition as on 01-01-06 | H27: Fixation condition as on 01-09-06
A28: Old Pay ,Pay Scale & Table No | C28: =I8 -> 2006-01-01 | D28: ='Table-2008'!$BI$44 -> 17 | E28: 5000-150-8000 | H28: 2005-12-13 | I28: =E28 -> 5000-150-8000
A29: Pay as on Fixation day in old scale & Personal Pay (if any) | E29: 5600 | F29: 0 | G29: ='Table-2008'!FU174 -> 150 | H29: =E29+F29 -> 5600
A30: If date of incr. comes between 02-Jan to 30 June 06 | E30: NO | F30: =E29-G29 -> 5450 | G30: =IF($F$3='Table-2008'!A176,F30,"Follow the inst.") -> 5450 | H30: NO | I30: =IF(H30="YES",'Table-2008'!G172,"N.A.") -> N.A.
A31: Revised Basic Pay as on 01-01-2006 after adjusting incr. comes between 02-Jan to 30 June 06 - Final Status "Not applicable" or other condition | E31: =IF(E30="YES",'Table-2008'!FQ182,"NIL") -> NIL | F31: =IF(E30="YES",F29+G30+E31,F29+G30) -> 5450 | H31: N.A. | I31: N.A.
E32: =IF(E30="YES",'Table-2008'!FV155,"NOT APPICABLE") -> NOT APPICABLE | H32: N.A.
A34: Difference of Grade Pay applicable | E34: NO | F34: From 01-07-2013 | H34: N.A.
A35: Post have been upgraded-condition (Rule 12(1)(B) | E35: NO | H35: =E37 -> NO
H36: N.A. | I36: N.A.
A37: Post have been upgraded-upgraded scale | E37: NO | H37: =F37 -> 0
A38: Old Pay Scale No and New Fixation Table | E38: =INDEX('Table-2008'!$A$50:$A$77,MATCH($E$28,'Table-2008'!$B$50:$B$77,0)) -> 10 | F38: TABLE | G38: ='Table-2008'!BI44 -> 17 | H38: =E38 -> 10 | I38: =F38 -> TABLE | J38: =G38 -> 17
A39: NEW PAY STRUCTURE
A40: PAY BAND & RUNNING PAY BAND | D40: YES | E40: ='Table-2008'!T35 -> PB-2 | F40: =IF(D40="YES",'Table-2008'!M36,'Table-2008'!J36) -> 9300-34800 | H40: =E40 -> PB-2 | I40: =F40 -> 9300-34800
A41: SELECT GRADE PAY NO (multiple g.pay) | E41: 11 | F41: ='Table-2008'!T37 -> 11 | G41: ='Table-2008'!T38 -> 3200 | H41: =F41 -> 11 | I41: =G41 -> 3200
A42: PAY IN THE RUNNING PAY BAND | E42: =ROUND(F31*1.86,0) -> 10137 | H42: =ROUND(H29*1.86,0) -> 10416
A43: PAY IN THE RUNNING PB ROUNDED | E43: =ROUNDUP(ROUND(E42,0),-1) -> 10140 | H43: =ROUNDUP(ROUND(H42,0),-1) -> 10420
A44: ENTRY BASIC PAY AS ON 01-01-2006 | E44: =IF('MS Fixation (2008)'!$F$3='Table-2008'!A176,E43+G41,9999) -> 13340 | H44: =H43+I41 -> 13620
A45: Increment Rate & Base Year | E45: 0.03 | F45: =I11 -> 2005-10-12 | H45: 0.03 | I45: 2006-09-01
A46: Select Fixation based date | F46: =IF(G46="A","01-July-2006","01-July-2007") -> 01-July-2006 | G46: =IF(MONTH(H46)=1,"A","B") -> A | H46: 2006-01-01
A47: Mannually Change Grade Pay between two opted periods (viz. as on 01-07-2013 … so as) | C47: Changed Period | E47: =CONCATENATE("Change Grade Pay as on"," ",TEXT(H46,"dd/mm/yyyy")," ") -> Change Grade Pay as on 01/01/2006 | G47: Manuual Change in Grade Pay | I47: Final Grade Pay
C48: 2013-07-01 | E48: =IF($G$46="A",'Table-2008'!$H$185,"No Change applicable") -> 2400 | G48: 2800 | H48: YES | I48: ='Table-2008'!$I$185 -> 2800
A49: One Time Increase in Running Pay Band upto Grade Pay No 10 (as on 01-07-13) | F49: ='Table-2008'!X42 -> 0 | G49: Edit in Amt | H49: Condition | I49: Final Value
G50: 150 | H50: NO | I50: =IF(G46="B",0,IF(H50="YES",G50,0)) -> 0
A51: Running Pay Band | B51: Pay Band | C51: Grade Pay | D51: Pay in Running Pay Band | F51: Pay in Running Pay Band (r/o) | G51: Table No | H51: =CONCATENATE("Entry Basic Pay as on"," ",TEXT(H46,"dd/mm/yyyy")) -> Entry Basic Pay as on 01/01/2006
A52: =F40 -> 9300-34800 | B52: =E40 -> PB-2 | C52: =G41 -> 3200 | D52: =IF($G$46="A",E42,H42) -> 10137 | F52: =IF($G$46="A",E43,H43) -> 10140 | G52: =G38 -> 17 | H52: =IF($G$46="A",$E$44,$H$44) -> 13340
A53: Applicability of ACP/Promotion (This calculation sheet calculate only two ACP/Promotion)
A54: Select(Type)-I | B54: REGULAR ACP | D54: 9 years | E54: Select(Type)-II | G54: REGULAR ACP | I54: 18 years
A55: =IF(B54="PROMOTION","Name of authority who issue Promotion order ","Name of authority who issue ACP order") -> Name of authority who issue ACP order | E55: =IF(G54="PROMOTION","Name of authority who issue Promotion order ","Name of authority who issue ACP order") -> Name of authority who issue ACP order
A56: COMMISSIONER COLONISATION BIKANER | E56: COMMISSIONER COLONISATION BIKANER
A57: =IF(B54="PROMOTION","Promotion order No","ACP order No") -> ACP order No | C57: 2423-66 | E57: =IF(G54="PROMOTION","Promotion order No","ACP order No") -> ACP order No | H57: accounts
A58: =IF(B54="PROMOTION","Promotion order date","ACP order date") -> ACP order date | C58: 2008-04-17 | E58: =IF(G54="PROMOTION","Promotion order date","ACP order No date") -> ACP order No date | H58: 2014-02-28
A59: =IF(B54="PROMOTION","Promotion due date","ACPdue Date") -> ACPdue Date | C59: 2006-10-11 | E59: =IF(G54="PROMOTION","Promotion date","ACP Date") -> ACP Date | H59: 2015-10-11
A60: =IF(B54="PROMOTION","Promotion Grade Pay","ACP Grade Pay") -> ACP Grade Pay | C60: 2400 | E60: =IF(G54="PROMOTION","Promotion Grade Pay","ACP Grade Pay") -> ACP Grade Pay | H60: 3200
A61: =IF(B54="REGULAR ACP","Pay Band after ACP","Pay Band after Promotion") -> Pay Band after ACP | C61: 5200-20200 | E61: =IF(G54="REGULAR ACP","Pay Band after ACP","Pay Band after Promotion") -> Pay Band after ACP | H61: 5200-20200
A62: Condition | C62: YES | E62: Condition | H62: NO
A63: Base Pay data for determination of Increment Amt. and Pay after increment (including ACP effect)
A64: Increment start date | B64: 2006-07-01 | C64: Base Basic Pay (without G.Pay) | E64: =IF(G46="A",E43,H43) -> 10140 | F64: Grade Pay | G64: 1900 | H64: Basic Pay(with G.Pay)
A65: Increment end date | B65: 2014-04-01 | H65: =E64+G64 -> 12040
A66: Regular Increment Date | B66: Change Date | C66: Condition | D66: Final Date | E66: Increment Condition | F66: Increment amount | G66: Running Pay | H66: Change amt of Grade Pay | I66: Pay after Increment
A67: ='Table-2008'!A195 -> 2006-01-01 | B67: 2006-09-01 | C67: NO | D67: ='Table-2008'!G195 -> 2006-01-01 | E67: NO | F67: =IF(D67="","",IF(I67="N.A.","N.A.",'Table-2008'!J195)) -> 0 | G67: =IF(D67="","",IF(I67="N.A.","N.A.",'Table-2008'!I195)) -> 12040 | H67: =IF(D67="","",IF(I67="N.A.","N.A.",'Table-2008'!O195)) -> 1900 | I67: =IF(D67="","",'Table-2008'!R195) -> 12040
A68: =IF(D68="","",'Table-2008'!A196) -> 2006-07-01 | B68: =A68 -> 2006-07-01 | C68: NO | D68: ='Table-2008'!G196 -> 2006-07-01 | E68: YES | F68: =IF(D68="","",IF(I68="N.A.","N.A.",'Table-2008'!J196)) -> 370 | G68: =IF(D68="","",IF(I68="N.A.","N.A.",'Table-2008'!I196)) -> 12040 | H68: =IF(D68="","",IF(I68="N.A.","N.A.",'Table-2008'!O196)) -> 1900 | I68: =IF(D68="","",'Table-2008'!R196) -> 12410
A69: =IF(D69="","",'Table-2008'!A197) -> 2006-10-11 | B69: 2006-10-11 | C69: NO | D69: ='Table-2008'!G197 -> 2006-10-11 | E69: YES | F69: =IF(D69="","",IF(I69="N.A.","N.A.",'Table-2008'!J197)) -> 380 | G69: =IF(D69="","",IF(I69="N.A.","N.A.",'Table-2008'!I197)) -> 12410 | H69: =IF(D69="","",IF(I69="N.A.","N.A.",'Table-2008'!O197)) -> 2400 | I69: =IF(D69="","",'Table-2008'!R197) -> 13290
A70: =IF(D70="","",'Table-2008'!A198) -> 2007-07-01 | B70: 2007-07-01 | C70: NO | D70: ='Table-2008'!G198 -> 2007-07-01 | E70: YES | F70: =IF(D70="","",IF(I70="N.A.","N.A.",'Table-2008'!J198)) -> 400 | G70: =IF(D70="","",IF(I70="N.A.","N.A.",'Table-2008'!I198)) -> 13290 | H70: =IF(D70="","",IF(I70="N.A.","N.A.",'Table-2008'!O198)) -> 2400 | I70: =IF(D70="","",'Table-2008'!R198) -> 13690
A71: =IF(D71="","",'Table-2008'!A199) -> 2008-07-01 | B71: 2008-07-01 | C71: NO | D71: ='Table-2008'!G199 -> 2008-07-01 | E71: YES | F71: =IF(D71="","",IF(I71="N.A.","N.A.",'Table-2008'!J199)) -> 420 | G71: =IF(D71="","",IF(I71="N.A.","N.A.",'Table-2008'!I199)) -> 13690 | H71: =IF(D71="","",IF(I71="N.A.","N.A.",'Table-2008'!O199)) -> 2400 | I71: =IF(D71="","",'Table-2008'!R199) -> 14110
A72: =IF(D72="","",'Table-2008'!A200) -> 2009-07-01 | B72: 2009-07-01 | C72: NO | D72: ='Table-2008'!G200 -> 2009-07-01 | E72: YES | F72: =IF(D72="","",IF(I72="N.A.","N.A.",'Table-2008'!J200)) -> 430 | G72: =IF(D72="","",IF(I72="N.A.","N.A.",'Table-2008'!I200)) -> 14110 | H72: =IF(D72="","",IF(I72="N.A.","N.A.",'Table-2008'!O200)) -> 2400 | I72: =IF(D72="","",'Table-2008'!R200) -> 14540
A73: =IF(D73="","",'Table-2008'!A201) -> 2010-07-01 | B73: 2010-07-01 | C73: NO | D73: ='Table-2008'!G201 -> 2010-07-01 | E73: YES | F73: =IF(D73="","",IF(I73="N.A.","N.A.",'Table-2008'!J201)) -> 440 | G73: =IF(D73="","",IF(I73="N.A.","N.A.",'Table-2008'!I201)) -> 14540 | H73: =IF(D73="","",IF(I73="N.A.","N.A.",'Table-2008'!O201)) -> 2400 | I73: =IF(D73="","",'Table-2008'!R201) -> 14980
A74: =IF(D74="","",'Table-2008'!A202) -> 2011-07-01 | B74: 2011-07-01 | C74: NO | D74: ='Table-2008'!G202 -> 2011-07-01 | E74: YES | F74: =IF(D74="","",IF(I74="N.A.","N.A.",'Table-2008'!J202)) -> 450 | G74: =IF(D74="","",IF(I74="N.A.","N.A.",'Table-2008'!I202)) -> 14980 | H74: =IF(D74="","",IF(I74="N.A.","N.A.",'Table-2008'!O202)) -> 2400 | I74: =IF(D74="","",'Table-2008'!R202) -> 15430
A75: =IF(D75="","",'Table-2008'!A203) -> 2012-07-01 | B75: 2012-07-01 | C75: NO | D75: ='Table-2008'!G203 -> 2012-07-01 | E75: YES | F75: =IF(D75="","",IF(I75="N.A.","N.A.",'Table-2008'!J203)) -> 470 | G75: =IF(D75="","",IF(I75="N.A.","N.A.",'Table-2008'!I203)) -> 15430 | H75: =IF(D75="","",IF(I75="N.A.","N.A.",'Table-2008'!O203)) -> 2400 | I75: =IF(D75="","",'Table-2008'!R203) -> 15900
A76: =IF(D76="","",'Table-2008'!A204) -> 2013-07-01 | B76: 2013-07-01 | C76: NO | D76: ='Table-2008'!G204 -> 2013-07-01 | E76: YES | F76: =IF(D76="","",IF(I76="N.A.","N.A.",'Table-2008'!J204)) -> 480 | G76: =IF(D76="","",IF(I76="N.A.","N.A.",'Table-2008'!I204)) -> 15900 | H76: =IF(D76="","",IF(I76="N.A.","N.A.",'Table-2008'!O204)) -> 2800 | I76: =IF(D76="","",'Table-2008'!R204) -> 16780
A77: =IF(D77="","",'Table-2008'!A205) ->  | C77: NO | D77: ='Table-2008'!G205 ->  | E77: YES | F77: =IF(D77="","",IF(I77="N.A.","N.A.",'Table-2008'!J205)) ->  | G77: =IF(D77="","",IF(I77="N.A.","N.A.",'Table-2008'!I205)) ->  | H77: =IF(D77="","",IF(I77="N.A.","N.A.",'Table-2008'!O205)) ->  | I77: =IF(D77="","",'Table-2008'!R205) -> 
A78: =IF(D78="","",'Table-2008'!A206) ->  | C78: NO | D78: ='Table-2008'!G206 ->  | E78: YES | F78: =IF(D78="","",IF(I78="N.A.","N.A.",'Table-2008'!J206)) ->  | G78: =IF(D78="","",IF(I78="N.A.","N.A.",'Table-2008'!I206)) ->  | H78: =IF(D78="","",IF(I78="N.A.","N.A.",'Table-2008'!O206)) ->  | I78: =IF(D78="","",'Table-2008'!R206) -> 
A79: =IF(D79="","",'Table-2008'!A207) ->  | C79: NO | D79: ='Table-2008'!G207 ->  | E79: YES | F79: =IF(D79="","",IF(I79="N.A.","N.A.",'Table-2008'!J207)) ->  | G79: =IF(D79="","",IF(I79="N.A.","N.A.",'Table-2008'!I207)) ->  | H79: =IF(D79="","",IF(I79="N.A.","N.A.",'Table-2008'!O207)) ->  | I79: =IF(D79="","",'Table-2008'!R207) -> 
A80: =IF(D80="","",'Table-2008'!A208) ->  | C80: NO | D80: ='Table-2008'!G208 ->  | E80: YES | F80: =IF(D80="","",IF(I80="N.A.","N.A.",'Table-2008'!J208)) ->  | G80: =IF(D80="","",IF(I80="N.A.","N.A.",'Table-2008'!I208)) ->  | H80: =IF(D80="","",IF(I80="N.A.","N.A.",'Table-2008'!O208)) ->  | I80: =IF(D80="","",'Table-2008'!R208) -> 
A81: =IF(D81="","",'Table-2008'!A209) ->  | C81: NO | D81: ='Table-2008'!G209 ->  | E81: YES | F81: =IF(D81="","",IF(I81="N.A.","N.A.",'Table-2008'!J209)) ->  | G81: =IF(D81="","",IF(I81="N.A.","N.A.",'Table-2008'!I209)) ->  | H81: =IF(D81="","",IF(I81="N.A.","N.A.",'Table-2008'!O209)) ->  | I81: =IF(D81="","",'Table-2008'!R209) -> 
A82: =IF(D82="","",'Table-2008'!A210) ->  | C82: NO | D82: ='Table-2008'!G210 ->  | E82: YES | F82: =IF(D82="","",IF(I82="N.A.","N.A.",'Table-2008'!J210)) ->  | G82: =IF(D82="","",IF(I82="N.A.","N.A.",'Table-2008'!I210)) ->  | H82: =IF(D82="","",IF(I82="N.A.","N.A.",'Table-2008'!O210)) ->  | I82: =IF(D82="","",'Table-2008'!R210) -> 
A83: =IF(D83="","",'Table-2008'!A211) ->  | C83: NO | D83: ='Table-2008'!G211 ->  | E83: YES | F83: =IF(D83="","",IF(I83="N.A.","N.A.",'Table-2008'!J211)) ->  | G83: =IF(D83="","",IF(I83="N.A.","N.A.",'Table-2008'!I211)) ->  | H83: =IF(D83="","",IF(I83="N.A.","N.A.",'Table-2008'!O211)) ->  | I83: =IF(D83="","",'Table-2008'!R211) -> 
A85: Write official language of officer order of ACP/PROMOTION
A86: ='Table-2008'!B245 -> Write official langauge of REGULAR ACP issued by COMMISSIONER COLONISATION BIKANER vide ACP order No 2423-66 and ACP order date 17/04/08 which is due on dated 11/10/06 | E86: ='Table-2008'!B247 -> Write official langauge of REGULAR ACP issued by COMMISSIONER COLONISATION BIKANER vide ACP order No accounts and ACP order No date 28/02/14 which is due on dated 11/10/15
A91: In reference of Finance Department order number F.14(88)FD(Rules)/08 dated 06-04-2013 and dated 28-06-2013 with inclusive of explainary noted issued on dated 05-07-2013 ,the revised increments/ACP/Promotion determination in Rajasthan Civil Services (Revised Pay Scale) Rule 2008 is ascertain on the basis of already sanctioned ACP/Promotion as following manner- | E91: ACP
A98: If any note required to display in increment order for (leave blank,if no data to input) INCREMENT/ACP/PROMOTION
A101: Details of dispatch no/order date, and name of parties for copy of order is forwarded | F101: Concerning Try. Name for order dispatch purpose | I101: Final Name
A103: Letter No/File Number for Office order,date for order dispatch purpose | C103: Accounts/2014 | E103: Order date | F103: Select Try/Sub Try | G103: Treasury | H103: JAISALMER | I103: ='Table-2008'!C236 -> Treasury JAISALMER
E104: =TODAY() -> 2026-05-12 | H104: Pokaran
A105: S.N. | B105: Name of Parties | E105: Process | F105: The parties name will be shown in order as under
A106: 1 | B106: COMMISSIONER COLONISATION DEPTT. BIKANER | E106: NO | F106: ='Table-2008'!O238 -> 
A107: 2 | B107: Concerning Sub/Treasury (Mandentary) | E107: YES | F107: ='Table-2008'!O239 -> Treassury Officer , JAISALMER
A108: 3 | B108: Sr. Accounts Officer, Colonosiation, Bikaner | E108: YES | F108: ='Table-2008'!O240 -> Sr. Accounts Officer, Colonosiation, Bikaner
A109: 4 | B109: =C7 -> PRAVESH KUMAR SHARMA | E109: YES | F109: ='Table-2008'!O241 -> Pravesh Kumar Sharma ,Designation -- JUNIOR ACCOUNTANT
A110: 5 | B110: Accounts Branch (suggested to select "yes") | E110: YES | F110: ='Table-2008'!O242 -> Accounts Branch-in two copies for prepration of bill
A111: 5 | B111: Personal File/Gurd File | E111: YES | F111: ='Table-2008'!O243 -> Personal File/Gurd File

Sheet FS 2008
A1: Employee code | D1: ='MS Fixation (2008)'!B4 -> 647805 | H1: =CONCATENATE("Statement based on"," ",TEXT('MS Fixation (2008)'!H46,"dd/mm/yyyy")," ") -> Statement based on 01/01/2006
A2: STATEMENT OF FIXATION OF PAY IN THE REVISED PAY SCALE 2008
A4: Name of the Department/ Office | H4: =+PROPER('MS Fixation (2008)'!C8) -> Commissioner Colonisation Bikaner
M5: Home-VI PC
A6: 1. | B6: Name and designation of Government servant | H6: =+PROPER('MS Fixation (2008)'!$C$7) -> Pravesh Kumar Sharma
H7: =+UPPER('MS Fixation (2008)'!I7) -> JUNIOR ACCOUNTANT
A8: 2. | B8: For substantive / officiating post | I8: ='MS Fixation (2008)'!I10 -> Substantive | M8: Increment Order-2008
A9: 3. | B9: (i) | C9: Existing Pay Scale | I9: ='MS Fixation (2008)'!$E$28 -> 5000-150-8000
B10: (ii) | C10: Date of last increment in the existing pay scale . | I10: =IF('MS Fixation (2008)'!$G$46="A",'MS Fixation (2008)'!$C$28,'MS Fixation (2008)'!$H$28) -> 2006-01-01
A11: 4. | B11: Revised Pay Sacle | I11: ='MS Fixation (2008)'!A52 -> 9300-34800 | M11: Fixation Master-2008
B12: (ii) | C12: Grade Pay | I12: ='MS Fixation (2008)'!C52 -> 3200
A13: 5. | B13: Date from which running pay band and grade pay opted, if permissible as per rules | I13: ='MS Fixation (2008)'!$H$46 -> 2006-01-01 | M13: ACP-I Order
A15: 6. | B15: Details of Pre-revised emoluments as defined in Rule 5(4):
B16: (A) | C16: =IF('MS Fixation (2008)'!$G$46="A","Basic Pay as defined in Rule 5(3) as on 01-01-2006","Basic Pay as defined in Rule 5(3) as on 01-09-2006") -> Basic Pay as defined in Rule 5(3) as on 01-01-2006 | I16: =IF('MS Fixation (2008)'!G46="A",'MS Fixation (2008)'!G30,'MS Fixation (2008)'!H29) -> 5450 | M16: ACP-II Order
C17: =IF('MS Fixation (2008)'!$G$46="B","","[If increments date falls between 02-01-2006 to 30-06-2006, allow one increments in old pay sacle]") -> [If increments date falls between 02-01-2006 to 30-06-2006, allow one increments in old pay sacle] | I17: =IF('MS Fixation (2008)'!G46="A",'MS Fixation (2008)'!E31,"") -> NIL
B19: (B) | C19: Personal Pay, if any | I19: ='MS Fixation (2008)'!F29 -> 0
C20: [Total emoluments (A+B)] | I20: =SUM(I16:J19) -> 5450
B21: ( C) | C21: 50% Dearness Pay on Basic Pay.(A+B) | I21: =ROUND(I20*0.5,0) -> 2725
B22: (D) | C22: Dearness allowance at the rate of 24% on the total of | I22: =ROUND(SUM(I20:J21)*0.24,0) -> 1962
C23: basic pay plus Dearness Pay
B24: (E) | C24: Total of Pre-revised emoluments [(A) to (D)] | I24: ='MS Fixation (2008)'!D52 -> 10137
A25: 7. | B25: Number of Pay Fixation Table applicable | I25: =CONCATENATE('MS Fixation (2008)'!F38," ",'MS Fixation (2008)'!G38) -> TABLE 17
A26: 8. | B26: (A) | C26: Pay fixed in Running Pay Band as per pay fixation | I26: ='MS Fixation (2008)'!F52 -> 10140
C27: table given in Schedule – III
B28: (B) | C28: Grade Pay | I28: ='MS Fixation (2008)'!C52 -> 3200
C29: Total of (A+B) | I29: ='MS Fixation (2008)'!H52 -> 13340
A30: 9. | B30: Date of next increment under Rule 14 | I30: ='MS Fixation (2008)'!F46 -> 01-July-2006
A31: 10. | B31: Remarks :
B32: Certified that -
A33: (i) | C33: Pay in the running pay band and grade pay has been fixed as above in accordance with the Rajasthan Civil Services (Revised Pay) Rules, 2008.
A35: (ii) | C35: The entry of the post is appearing in the aforesaid rules at Sr.No.of Sch.-1 Sect. 'B' / 'C' / 'D' under -
C36: (a) | D36: (a) Name of Department . | I36: =+PROPER('MS Fixation (2008)'!C9) -> Colonisation
C37: (b) | D37: (b) Name of Service. | I37: =PROPER('MS Fixation (2008)'!I9) -> Rajasthan Subordinate Accounts Services
A38: (iii) | C38: An undertaking has been obtained from the employee to refund overpayments,
C39: if any, which may subsequently detected.
A40: Place : | C40: =+PROPER('MS Fixation (2008)'!F4) -> Nachana
A41: Date :
E42: Signature & Designation of
E43: Head of Office / Head of Department
A45: Checked and approved
A47: Date : | E47: Accounts Officer / Asstt. Accounts Officer
A48: No. | E48: Date :
A50: Copy to : -
A51: 1. | C51: =H4 -> Commissioner Colonisation Bikaner
A52: 2. | C52: Accounts Officer / Asstt. Accounts Officer.
A53: 3. | C53: Personal File/Guard File
F55: Accounts Officer / Asstt. Accounts Officer
A56: ='Table-2008'!K256 -> 16.18.1.22.5.19.8√97263.0458756048

Sheet Incr Order (2008)
C1: Fixation Master-2008 | F1: ACP-I Order | H1: ACP-II Order | J1: Home-VI PC
B3: Employee code | C3: ='MS Fixation (2008)'!B4 -> 647805 | I3: =CONCATENATE("Increment based on"," ",TEXT('MS Fixation (2008)'!H46,"dd/mm/yyyy")," ") -> Increment based on 01/01/2006 | M3: GA 92
A4: =UPPER('Incr MS'!G3) -> TEHSILDAR COLONISATION NACHANA NO. 2 | N4: Home-VI PC
A5: Periodic Salalry Increment Certificate
A6: 1 | B6: Certified that the Government servents named below have earned the prescribed periodical increments from the date cited in column 9 having been the incumbent of the posts specified not less than year from the date in column 9 after deducting period of suspension for misconduct etc. and absence on leave without pay & the case of those holding the post in officiating capacity, all other kinds of leave. | N6: Fixation Master-2008
A9: 2 | B9: Certified that the Government servents named below have earned/will earn periodical increments from the date cited for reasons stated in the explanatory memo attached here to.
A11: S.No | B11: Name of Incumbent | C11: Post | D11: Pay Scale as on | E11: Present Pay And Grade Pay as on | H11: Date From Present Pay is being taken | I11: Date of Increment | J11: Annual Increment Amount
E12: =D13 -> 2006-01-01 | J12: Increment amount @ 3% | K12: Running Pay | L12: Grade Pay | M12: Total Basic Pay
D13: ='MS Fixation (2008)'!I4 -> 2006-01-01 | E13: Running Pay | F13: Grade Pay | G13: Total Basic Pay
A14: 1 | B14: 2 | C14: 3 | D14: 4 | E14: 5 | F14: 6 | G14: 7(5+6) | H14: 8 | I14: 9 | J14: 10 | K14: 11 | L14: 12 | M14: 13 (11+12) | N14: Before ACP | O14: ACP | P14: After ACP
A15: 1 | B15: ='MS Fixation (2008)'!$C$7 -> PRAVESH KUMAR SHARMA | C15: ='MS Fixation (2008)'!$I$7 -> JUNIOR ACCOUNTANT | D15: ='MS Fixation (2008)'!$F$40 -> 9300-34800 | E15: ='MS Fixation (2008)'!$E$64 -> 10140 | F15: ='MS Fixation (2008)'!$G$64 -> 1900 | G15: =E15+F15 -> 12040 | H15: =IF(D13<I15,I15,D13) -> 2006-01-01 | I15: =IF(M15="N.A.","N.A.",'MS Fixation (2008)'!D67) -> 2006-01-01 | J15: ='MS Fixation (2008)'!F67 -> 0 | K15: =IF(M15="","",IF(M15="N.A.","N.A.",M15-L15)) -> 10140 | L15: ='MS Fixation (2008)'!H67 -> 1900 | M15: ='MS Fixation (2008)'!I67 -> 12040 | N15: Amount | O15: Amount | P15: Amount
H16: =IF(I16="","",I15) -> 2006-01-01 | I16: =IF(M16="N.A.","N.A.",'MS Fixation (2008)'!D68) -> 2006-07-01 | J16: ='MS Fixation (2008)'!F68 -> 370 | K16: 10510 | L16: ='MS Fixation (2008)'!H68 -> 1900 | M16: ='MS Fixation (2008)'!I68 -> 12410 | N16: 17290 | O16: =N21 -> 17810 | P16: =O21 -> 18750 | Q16: =P21 -> 19320
B17: ='Table-2008'!I219 -> Details of REGULAR ACP from 01/07/06 to 11/10/06 | H17: 2006-07-01 | I17: =IF(M17="N.A.","N.A.",'MS Fixation (2008)'!D69) -> 2006-10-11 | J17: ='MS Fixation (2008)'!F69 -> 380 | K17: 10890 | L17: ='MS Fixation (2008)'!H69 -> 2400 | M17: ='MS Fixation (2008)'!I69 -> 13290 | N17: =ROUNDUP(ROUND(N16*3%,0),-1) -> 520 | O17: =ROUNDUP(ROUND(O16*3%,0),-1) -> 540 | P17: =ROUNDUP(ROUND(P16*3%,0),-1) -> 570 | Q17: =ROUNDUP(ROUND(Q16*3%,0),-1) -> 580
B18: =IF('MS Fixation (2008)'!C62="NO","",IF('MS Fixation (2008)'!B54="PROMOTION","Promotion due date","ACP due date")) -> ACP due date | C18: =IF($B$17="","","Pay in Pay Band") -> Pay in Pay Band | D18: =IF($B$17="","","3% incr. on existing Pay") -> 3% incr. on existing Pay | E18: =IF($B$17="","","Grade Pay Diff.") -> Grade Pay Diff. | F18: =IF('MS Fixation (2008)'!C62="NO","",IF('MS Fixation (2008)'!B54="PROMOTION","Pay after Promotion","Pay after ACP")) -> Pay after ACP | H18: 2006-10-11 | I18: =IF(M18="N.A.","N.A.",'MS Fixation (2008)'!D70) -> 2007-07-01 | J18: ='MS Fixation (2008)'!F70 -> 400 | K18: 11290 | L18: ='MS Fixation (2008)'!H70 -> 2400 | M18: ='MS Fixation (2008)'!I70 -> 13690 | N18: 0 | O18: 2800 | P18: 0 | Q18: 0
C19: =IF('MS Fixation (2008)'!$C$62="YES",'MS Fixation (2008)'!C61,"") -> 5200-20200 | H19: 2007-07-01 | I19: =IF(M19="N.A.","N.A.",'MS Fixation (2008)'!D71) -> 2008-07-01 | J19: ='MS Fixation (2008)'!F71 -> 420 | K19: 11710 | L19: ='MS Fixation (2008)'!H71 -> 2400 | M19: ='MS Fixation (2008)'!I71 -> 14110 | N19: 0 | O19: 3200 | P19: 0 | Q19: 0
B20: =IF('MS Fixation (2008)'!$C$62="YES",'MS Fixation (2008)'!C59,"") -> 2006-10-11 | C20: =IF('MS Fixation (2008)'!$C$62="YES",'Table-2008'!K226,"") -> 12410 | D20: =IF('MS Fixation (2008)'!$C$62="YES",'Table-2008'!E226,"") -> 380 | E20: =IF('MS Fixation (2008)'!$C$62="YES",'Table-2008'!H226,"") -> 500 | F20: =IF('MS Fixation (2008)'!$C$62="YES",'Table-2008'!L226,"") -> 13290 | H20: 2008-07-01 | I20: =IF(M20="N.A.","N.A.",'MS Fixation (2008)'!D72) -> 2009-07-01 | J20: ='MS Fixation (2008)'!F72 -> 430 | K20: =IF(M20="","",IF(M20="N.A.","N.A.",M20-L20)) -> 12140 | L20: ='MS Fixation (2008)'!H72 -> 2400 | M20: ='MS Fixation (2008)'!I72 -> 14540 | N20: =N19-N18 -> 0 | O20: =O19-O18 -> 400 | P20: =P19-P18 -> 0 | Q20: =Q19-Q18 -> 0
B21: ='Table-2008'!I221 ->  | H21: 2009-07-01 | I21: =IF(M21="N.A.","N.A.",'MS Fixation (2008)'!D73) -> 2010-07-01 | J21: ='MS Fixation (2008)'!F73 -> 440 | K21: =IF(M21="","",IF(M21="N.A.","N.A.",M21-L21)) -> 12580 | L21: ='MS Fixation (2008)'!H73 -> 2400 | M21: ='MS Fixation (2008)'!I73 -> 14980 | N21: =N16+N17+N20 -> 17810 | O21: =O16+O17+O20 -> 18750 | P21: =P16+P17+P20 -> 19320 | Q21: =Q16+Q17+Q20 -> 19900
B22: =IF('MS Fixation (2008)'!H62="NO","",IF('MS Fixation (2008)'!G54="PROMOTION","Promotion due date","ACP due date")) ->  | C22: =IF($B$21="","","Pay in Pay Band") ->  | D22: =IF($B$21="","","3% incr. on existing Pay") ->  | E22: =IF($B$21="","","Grade Pay Diff.") ->  | F22: =IF('MS Fixation (2008)'!H62="NO","",IF('MS Fixation (2008)'!G54="PROMOTION","Pay after Promotion","Pay after ACP")) ->  | H22: 2010-07-01 | I22: =IF(M22="N.A.","N.A.",'MS Fixation (2008)'!D74) -> 2011-07-01 | J22: ='MS Fixation (2008)'!F74 -> 450 | K22: 13030 | L22: ='MS Fixation (2008)'!H74 -> 2400 | M22: ='MS Fixation (2008)'!I74 -> 15430
C23: =IF('MS Fixation (2008)'!$H$62="YES",'MS Fixation (2008)'!H61,"") ->  | H23: 2011-07-01 | I23: =IF(M23="N.A.","N.A.",'MS Fixation (2008)'!D75) -> 2012-07-01 | J23: ='MS Fixation (2008)'!F75 -> 470 | K23: 13500 | L23: ='MS Fixation (2008)'!H75 -> 2400 | M23: ='MS Fixation (2008)'!I75 -> 15900
B24: =IF('MS Fixation (2008)'!$H$62="YES",'MS Fixation (2008)'!H59,"") ->  | C24: =IF('MS Fixation (2008)'!$H$62="YES",'Table-2008'!K227,"") ->  | D24: =IF('MS Fixation (2008)'!$H$62="YES",'Table-2008'!E227,"") ->  | E24: =IF('MS Fixation (2008)'!$H$62="YES",'Table-2008'!H227,"") ->  | F24: =IF('MS Fixation (2008)'!$H$62="YES",'Table-2008'!L227,"") ->  | H24: 2012-07-01 | I24: =IF(M24="N.A.","N.A.",'MS Fixation (2008)'!D76) -> 2013-07-01 | J24: ='MS Fixation (2008)'!F76 -> 480 | K24: 13980 | L24: ='MS Fixation (2008)'!H76 -> 2800 | M24: ='MS Fixation (2008)'!I76 -> 16780
B25: =IF('Table-2008'!$K$183="D",'Table-2008'!Q185,"") ->  | C25: =IF('Table-2008'!$K$183="D",'Table-2008'!R185,"") ->  | E25: =IF('Table-2008'!$K$183="D",'Table-2008'!S185,"") ->  | I25: =IF(M25="N.A.","N.A.",'MS Fixation (2008)'!D77) ->  | J25: ='MS Fixation (2008)'!F77 ->  | L25: ='MS Fixation (2008)'!H77 ->  | M25: ='MS Fixation (2008)'!I77 -> 
B26: =IF('Table-2008'!$K$183="D",'Table-2008'!K182,"") ->  | C26: =IF('Table-2008'!$K$183="D",'MS Fixation (2008)'!$B$15,"") ->  | E26: =IF('Table-2008'!$K$183="D",'Table-2008'!R212,"") ->  | I26: =IF(M26="N.A.","N.A.",'MS Fixation (2008)'!D78) ->  | J26: ='MS Fixation (2008)'!F78 ->  | L26: ='MS Fixation (2008)'!H78 ->  | M26: ='MS Fixation (2008)'!I78 -> 
B27: =IF(B28="","","Remark/Note") ->  | I27: =IF(M27="N.A.","N.A.",'MS Fixation (2008)'!D79) ->  | J27: ='MS Fixation (2008)'!F79 ->  | K27: =IF(M27="","",IF(M27="N.A.","N.A.",M27-L27)) ->  | L27: ='MS Fixation (2008)'!H79 ->  | M27: ='MS Fixation (2008)'!I79 -> 
B28: =IF('MS Fixation (2008)'!A99>0,'MS Fixation (2008)'!A99,"") ->  | I28: =IF(M28="N.A.","N.A.",'MS Fixation (2008)'!D80) ->  | J28: ='MS Fixation (2008)'!F80 ->  | L28: ='MS Fixation (2008)'!H80 ->  | M28: ='MS Fixation (2008)'!I80 -> 
I29: =IF(M29="N.A.","N.A.",'MS Fixation (2008)'!D81) ->  | J29: ='MS Fixation (2008)'!F81 ->  | L29: ='MS Fixation (2008)'!H81 ->  | M29: ='MS Fixation (2008)'!I81 -> 
B30: =IF(C30="","","Note") ->  | C30: =IF('Table-2008'!Z47>0,'Table-2008'!X48,"") ->  | I30: =IF(M30="N.A.","N.A.",'MS Fixation (2008)'!D82) ->  | J30: ='MS Fixation (2008)'!F82 ->  | L30: ='MS Fixation (2008)'!H82 ->  | M30: ='MS Fixation (2008)'!I82 -> 
I31: =IF(M31="N.A.","N.A.",'MS Fixation (2008)'!D83) ->  | J31: ='MS Fixation (2008)'!F83 ->  | L31: ='MS Fixation (2008)'!H83 ->  | M31: ='MS Fixation (2008)'!I83 -> 
H33: ='MS Fixation (2008)'!C10 -> EXTRA ASSISTANT COMMISSIONER COLONISATION (ADM), BIKANER
A34: =IF(B34="","","Note") -> 
A35: Serial No | C35: =IF('MS Fixation (2008)'!C103>0,'MS Fixation (2008)'!C103,"") -> Accounts/2014 | J35: Dated | K35: =IF('MS Fixation (2008)'!E104>0,'MS Fixation (2008)'!E104,"") -> 2026-05-12
A36: Copy forwarded for information and necessary action :-
A37: =IF(B37="","",1) -> 1900-01-01 | B37: ='Table-2008'!Q238 -> Treassury Officer , JAISALMER
A38: =IF(B38="","",2) -> 1900-01-02 | B38: ='Table-2008'!Q239 -> Sr. Accounts Officer, Colonosiation, Bikaner
A39: =IF(B39="","",3) -> 1900-01-03 | B39: ='Table-2008'!Q240 -> Pravesh Kumar Sharma ,Designation -- JUNIOR ACCOUNTANT
A40: =IF(B40="","",4) -> 1900-01-04 | B40: ='Table-2008'!Q241 -> Accounts Branch-in two copies for prepration of bill
A41: =IF(B41="","",5) -> 1900-01-05 | B41: ='Table-2008'!Q242 -> Personal File/Gurd File
A42: =IF(B42="","",6) ->  | B42: ='Table-2008'!Q243 -> 
A43: =IF('Incr MS'!D6="YES","#16.18.1.22.5.19.8√97263.0458756048#","16.18.1.22.5.19.8√97263.0458756048") -> #16.18.1.22.5.19.8√97263.0458756048# | F43: ='Table-2008'!BW14 -> z-e-12 | H43: =H33 -> EXTRA ASSISTANT COMMISSIONER COLONISATION (ADM), BIKANER
F64: In accordance with paragraph number 4, accommodation number 5/13 was allocated on 24.09.2025, and possession of the accommodation was taken by the allottee on 01.10.2025. The allottee vacated the accommodation on 10.12.2025. The HRA amount for these three months, totaling 48 times 3 = 144/- rupees, has been deducted by G.A. 55A, and there is no remaining amount to be collected from the allottee. Therefore, on this basis, the file is submitted for further necessary action to issue a no-dues certificate related to the accommodation to the allottee.
F65: Therefore, in such a situation, a certificate of non-dues cannot be issued to the applicant.

Sheet Pension
I1: =IF('Table-2008'!$K$183="D","YES","NO") -> NO
A2: FORM 8 | K2: Home-VI PC
A3: (See Rule 83) | L3: Note
A4: Form of letter to the Director, Pension Department Forwarding the pension papers of a Government Servant. | L4: If Pension letter shown in shadow, it means Retirement condition not applied i.e. status "NO" and no need to print
A6: Government of Rajasthan
B7: ='MS Fixation (2008)'!C9 -> COLONISATION | F7: Department
A8: No | B8: ='MS Fixation (2008)'!C103 -> Accounts/2014 | G8: Date | H8: ='MS Fixation (2008)'!E104 -> 2026-05-12
A10: To,
A11: Joint Director
A12: Pension & Pension Welfare department | K12: Fixation Master-2008
A13: ='MS Fixation (2008)'!F13 -> Bikaner
A15: Subject:- | C15: Pension papers of | E15: ='MS Fixation (2008)'!C7 -> PRAVESH KUMAR SHARMA
C16: for authorization of pension.
B18: I am directed to forward herewith the pension papers of
A19: =E15 -> PRAVESH KUMAR SHARMA | E19: Designation | G19: ='MS Fixation (2008)'!I7 -> JUNIOR ACCOUNTANT
A20: of this Department/Office for further necessary action in reference of Finance department order/dated 06-04-2013 & 28-06-13 for revision of pension due to change in pay structure as opted by pensioner
A22: The details of employee is as under
A23: (a) | B23: Name of Pensioners | F23: =A19 -> PRAVESH KUMAR SHARMA
A24: (b) | B24: Designation | F24: =G19 -> JUNIOR ACCOUNTANT
A25: (c) | B25: Date of Retirement/Service end date | F25: ='MS Fixation (2008)'!B14 -> 2012-04-25 | H25: =CONCATENATE("(",'Table-2008'!Q185,")") -> (Retirement Date)
A26: (d) | B26: Name of Office | F26: ='MS Fixation (2008)'!C8 -> COMMISSIONER COLONISATION BIKANER
A28: (e) | B28: Old last pay | F28: ='MS Fixation (2008)'!B15 -> 26630
A29: (f) | B29: Revised last pay | F29: ='MS Fixation (2008)'!B16 -> 16780
A30: (g) | B30: PPO No | F30: ='MS Fixation (2008)'!F15 -> 99
A31: Your attention is invited to the list of enclosures which is forwarded herewith.
A32: (a) | B32: Servce Book | G32: (b) | H32: Revised Last Pay Certificate
A33: (c) | B33: Revised Increment order | G33: (d) | H33: Fixation statement
E34: Yours faithfully,
E36: ='MS Fixation (2008)'!C10 -> EXTRA ASSISTANT COMMISSIONER COLONISATION (ADM), BIKANER
A38: ='Incr Order (2008)'!A36 -> Copy forwarded for information and necessary action :-
A39: ='Incr Order (2008)'!A37 -> 1 | B39: ='Incr Order (2008)'!B37 -> Treassury Officer , JAISALMER
A40: ='Incr Order (2008)'!A38 -> 2 | B40: ='Incr Order (2008)'!B38 -> Sr. Accounts Officer, Colonosiation, Bikaner
A41: ='Incr Order (2008)'!A39 -> 3 | B41: ='Incr Order (2008)'!B39 -> Pravesh Kumar Sharma ,Designation -- JUNIOR ACCOUNTANT
A42: ='Incr Order (2008)'!A40 -> 4 | B42: ='Incr Order (2008)'!B40 -> Accounts Branch-in two copies for prepration of bill
A43: ='Incr Order (2008)'!A41 -> 5 | B43: ='Incr Order (2008)'!B41 -> Personal File/Gurd File
A44: ='Incr Order (2008)'!A42 ->  | B44: ='Incr Order (2008)'!B42 -> 
A45: =IF(B45="","",A44+1) -> 
A46: =IF(B46="","",A45+1) ->  | E46: =E36 -> EXTRA ASSISTANT COMMISSIONER COLONISATION (ADM), BIKANER
A47: 16.18.1.22.5.19.8√97263.0458756048
I48: YES
A49: Form 31
A50: [See rule 8 and 96 (4)]
A51: Form of Revised Last Pay Certificate | K51: HOME
A52: (To be attached with form 7 or 18)
A53: Department | C53: =B7 -> COLONISATION
A54: Office | C54: =F26 -> COMMISSIONER COLONISATION BIKANER
F55: PPO No | H55: =F30 -> 99
A56: 1 | B56: Revised/Final Last Pay Certificate of | F56: =E15 -> PRAVESH KUMAR SHARMA
B57: =G19 -> JUNIOR ACCOUNTANT | G57: Designation
B58: who has been | D58: retired/is to retire | F58: on | G58: =F25 -> 2012-04-25
A59: 2 | B59: He has been be paid up to | E59: =IF('MS Fixation (2008)'!A14="Voluntary",'Table-2008'!E303,G58) -> 2012-04-25 | G59: at the following rates :—
B60: (Notional Pay revised as per F.D.order dated 06/04/2013 for Revision of Pension)
B61: Particular | F61: Per. | G61: Due amt | I61: Paid amt
B62: Substantive pay | F62: P.M. | G62: =F29 -> 16780 | I62: ='Table-2008'!K301 -> 16780
B63: Officiating pay | F63: P.M. | G63: 0 | I63: ='Table-2008'!K302 -> 0
B64: Special pay | F64: P.M. | G64: ='MS Fixation (2008)'!I15 -> 0 | I64: ='Table-2008'!K303 -> 0
B65: Allowances:
B66: Dearness Allowance | F66: P.M. | G66: =ROUND(G62*'MS Fixation (2008)'!E16,0) -> 10907 | I66: ='Table-2008'!K305 -> 10907
B67: House Rent Allowance | F67: P.M. | G67: ='MS Fixation (2008)'!G16 -> 1678 | I67: ='Table-2008'!K306 -> 1678
B68: City Compensatory Allowance | F68: P.M. | G68: ='MS Fixation (2008)'!H16 -> 240 | I68: ='Table-2008'!K307 -> 240
B69: Any other Allowance | F69: P.M. | G69: ='MS Fixation (2008)'!J15 -> 0 | I69: ='Table-2008'!K308 -> 0
B70: Total: | G70: =SUM(G62:G64,G66:G69) -> 29605 | I70: =SUM(I62:I64,I66:I69) -> 29605
A71: 3 | B71: He has handed over/will hand over the charge of. | G71: =B57 -> JUNIOR ACCOUNTANT
B72: Office in the forenoon/afternoon of. | F72: afternoon
A73: 4 | B73: The following amount is to be recovered from the Pension/DCRG:-
B74: Details of Recovery | E74: Amount outstanding | F74: Amount Recovered | G74: Balance Prin/Int. | H74: Authority (basis) of Recovery | I74: Head of credit
A77: I | B77: Dues of Government accommodation
E78: NIL | F78: NIL | G78: NIL | H78: NIL | I78: NIL
A79: II | B79: Long Term Advances
B80: House Building Advance | D80: I | E80: NIL | F80: NIL | G80: NIL | H80: NIL | I80: NIL
D81: II | E81: NIL | F81: NIL | G81: NIL | H81: NIL | I81: NIL
B82: House Repairs Advance | D82: I | E82: NIL | F82: NIL | G82: NIL | H82: NIL | I82: NIL
D83: II | E83: NIL | F83: NIL | G83: NIL | H83: NIL | I83: NIL
D84: III | E84: NIL | F84: NIL | G84: NIL | H84: NIL | I84: NIL
B85: Conveyance Advance | D85: I | E85: NIL | F85: NIL | G85: NIL | H85: NIL | I85: NIL
B86: I | D86: II | E86: NIL | F86: NIL | G86: NIL | H86: NIL | I86: NIL
A87: III | B87: Any Other Advance (give details) | D87: (i) | E87: NIL | F87: NIL | G87: NIL | H87: NIL | I87: NIL
D88: (ii) | E88: NIL | F88: NIL | G88: NIL | H88: NIL | I88: NIL
D89: (iii) | E89: NIL | F89: NIL | G89: NIL | H89: NIL | I89: NIL
A90: IV | B90: Other recoveries | D90: (i) | E90: NIL | F90: NIL | G90: NIL | H90: NIL | I90: NIL
D91: (ii) | E91: NIL | F91: NIL | G91: NIL | H91: NIL | I91: NIL
